Workbook

Sheet Introduction
A1: Comprehensive Stock Price and Economic Series Database
B3: Sometimes it is best to re-start your computer before a new run
B5: Website Link Describing How to Use the Database | N5: Copy tickers
N6: Adjust the start and end tickers
B7: Video Describing Operation of the Stock Price Database
B9: Video Describing Use of the Database and Finding Tickers
B11: Video Describing Analysis with Database
B13: Powerpoint Slides Reference
B15: Link to Relevant Part of this Workbook
B18: General Information
B31: Objectives
B33: Read Fast
B35: Compare different time periods
B36: Compute IRR from Yahoo
B37: Beta and volatilty for different time periods
B38: Macro economic variables
B39: Effective independent presentation
B40: Some things work better with monthly and some with weekly

Sheet Read Stocks
M1: Final Applied | N1: Final Applied | O1: Column | P1: Source | S1: Finance.yahoo Index | X1: FRED Index | AF1: Google Index | AN1: FRED Commodities | AV1: Yahoo Stock Prices | BD1: Google Stock Prices | BL1: FRED Exonomic Data
G2: Start Row | H2: Number | I2: Column | J2: Source | M2: Sheet Name | N2: Stock or Index Name | Q2: Counter | R2: Accum | S2: Sheet | T2: Name | U2: Column | V2: Source | X2: Counter | Y2: Counter 1 | Z2: Sheet | AA2: Re-ordered | AB2: Name | AC2: Re-ordered | AD2: Column | AE2: Source | AF2: Counter | AG2: Counter | AH2: Sheet | AI2: Re-ordered | AJ2: Name | AK2: Re-ordered | AL2: Column | AM2: Source | AN2: counter | AO2: Accum | AP2: Sheet | AQ2: Re-ordered | AR2: Name | AS2: Re-ordered | AT2: Column | AU2: Source | AV2: Counter | AW2: Counter 1 | AX2: Sheet | AY2: Re-ordered | AZ2: Name | BA2: Re-ordered | BB2: Column | BC2: Source | BD2: Counter | BE2: Counter 1 | BF2: Sheet | BG2: Re-ordered | BH2: Name | BI2: Re-ordered | BJ2: Column | BK2: Source | BL2: Counter | BM2: Counter 1 | BN2: Sheet | BO2: Re-ordered | BP2: Name | BQ2: Re-ordered | BR2: Column | BS2: Source
F3: TRUE | G3: 1 | H3: ='Yahoo Index'!Total_Tickers*F3 -> 9 | I3: F | J3: yahoo | L3: 1 | M3: =S3&AA3&AI3&AQ3&AY3&BG3&BO3 -> S&P 500 | N3: =T3&AC3&AK3&AS3&BA3&BI3&BQ3 -> US S&P 500 | O3: =U3&AD3&AL3&AT3&BB3&BJ3&BR3 -> F | P3: =V3&AE3&AM3&AU3&BC3&BK3&BS3 -> yahoo | Q3: =G3 -> 1 | R3: =IF(AND($F$3,Q3<=$H$3),Q3,0) -> 1 | S3: =IF(R3,'Yahoo Index'!E53,"") -> S&P 500 | T3: =IF(R3,'Yahoo Index'!F53,"") -> US S&P 500 | U3: =IF(R3,$I$3,"") -> F | V3: =IF(R3,$J$3,"") -> yahoo | X3: =G17 -> 10 | Y3: =IF(AND($F$17,X3<=$H$17),X3) -> 10 | Z3: =IF($F$17,'FRED Indicies'!E16) -> NASDAQ100 | AA3: =IFERROR(INDEX(Z:Z,MATCH(L3,Y:Y,0)),"") ->  | AB3: =IF($F$17,'FRED Indicies'!D16) -> Nasdaq 100 Index | AC3: =IFERROR(INDEX(AB:AB,MATCH(L3,Y:Y,0)),"") ->  | AD3: =IF(AA3<>"",$I$17,"") ->  | AE3: =IF(AA3<>"",$J$17,"") ->  | AF3: =G20 -> 15 | AG3: =IF(AND($F$20,AF3<=$H$20),AF3) -> FALSE | AH3: =IF(AG3,'Google Index'!E30) -> FALSE | AI3: =IFERROR(INDEX(AH:AH,MATCH(Q3,AG:AG,0)),"") ->  | AJ3: =IF(AF3,'Google Index'!F30) -> HT Media | AK3: =IFERROR(INDEX(AJ:AJ,MATCH(Q3,AG:AG,0)),"") ->  | AL3: =IF(AI3<>"",$I$17,"") ->  | AM3: =IF(AK3<>"",$J$17,"") ->  | AN3: =G11 -> 15 | AO3: =IF(AND($F$11,AN3<=$H$11),AN3) -> 15 | AP3: =IF(AO3,'Commodity Prices'!C16) -> DCOILBRENTEU | AQ3: =IFERROR(INDEX(AP:AP,MATCH(L3,AO:AO,0)),"") ->  | AR3: =IF(AO3,'Commodity Prices'!D16) -> Crude Oil Prices: Brent - Europe (DCOILBRENTEU) | AS3: =IFERROR(INDEX(AR:AR,MATCH(L3,AO:AO,0)),"") ->  | AT3: =IF(AQ3<>"",$I$11,"") ->  | AU3: =IF(AS3<>"",$J$11,"") ->  | AV3: =G5 -> 21 | AW3: =IF(AND($F$5,AV3<=$H$5),AV3) -> 21 | AX3: =IF(AW3,'Yahoo Stocks'!D30) -> HE | AY3: =IFERROR(INDEX(AX:AX,MATCH(L3,AW:AW,0)),"") ->  | AZ3: =IF(AW3,'Yahoo Stocks'!E30) -> Hawaiian Electric Industries | BA3: =IFERROR(INDEX(AZ:AZ,MATCH(L3,AW:AW,0)),"") ->  | BB3: =IF(AY3<>"",$I$5,"") ->  | BC3: =IF(BA3<>"",$J$5,"") ->  | BD3: =G14 -> 51 | BE3: =IF(AND($F$14,BD3<=$H$14),BD3) -> FALSE | BF3: =IF(BE3,'Google Finance Stocks'!D27) -> FALSE | BG3: =IFERROR(INDEX(BF:BF,MATCH(Q3,BE:BE,0)),"") ->  | BH3: =IF(BE3,'Google Finance Stocks'!E27) -> FALSE | BI3: =IFERROR(INDEX(BH:BH,MATCH(Q3,BE:BE,0)),"") ->  | BJ3: =IF(BI3<>"",$I$14,"") ->  | BK3: =IF(BI3<>"",$J$14,"") ->  | BL3: =G8 -> 51 | BM3: =IF(AND($F$8,BL3<=$H$8),BL3) -> 51 | BN3: ='Exchange Rates'!D13 -> GDP Inf | BO3: =IFERROR(INDEX(BN:BN,MATCH(L3,BM:BM,0)),"") ->  | BP3: =IF(BM3,'Exchange Rates'!E13) -> Implicit Price Deflator | BQ3: =IFERROR(INDEX(BP:BP,MATCH(L3,BM:BM,0)),"") ->  | BR3: =IF(BQ3<>"",$I$8,"") ->  | BS3: =IF(BQ3<>"",$J$8,"") -> 
L4: 2 | M4: =S4&AA4&AI4&AQ4&AY4&BG4&BO4 -> DAX | N4: =T4&AC4&AK4&AS4&BA4&BI4&BQ4 -> DAX in Euro | O4: =U4&AD4&AL4&AT4&BB4&BJ4&BR4 -> F | P4: =V4&AE4&AM4&AU4&BC4&BK4&BS4 -> yahoo | Q4: =Q3+1 -> 2 | R4: =IF(AND($F$3,Q4<=$H$3),Q4) -> 2 | S4: =IF(R4,'Yahoo Index'!E54,"") -> DAX | T4: =IF(R4,'Yahoo Index'!F54,"") -> DAX in Euro | U4: =IF(R4,$I$3,"") -> F | V4: =IF(R4,$J$3,"") -> yahoo | X4: =X3+1 -> 11 | Y4: 11 | Z4: =IF($F$17,'FRED Indicies'!E17) -> WILL5000INDFC | AB4: =IF($F$17,'FRED Indicies'!D17) -> Wilshire 5000 Index | AF4: =AF3+1 -> 16 | AG4: FALSE | AH4: =IF(AG4,'Google Index'!E31) -> FALSE | AJ4: =IF(AF4,'Google Index'!F31) -> 0 | AN4: =AN3+1 -> 16 | AO4: 16 | AP4: =IF(AO4,'Commodity Prices'!C17) -> PCOPPUSDM | AQ4: =IFERROR(INDEX(AP:AP,MATCH(L4,AO:AO,0)),"") ->  | AR4: =IF(AO4,'Commodity Prices'!D17) -> Global price of Copper© (PCOPPUSDM) | AV4: =AV3+1 -> 22 | AW4: 22 | AX4: =IF(AW4,'Yahoo Stocks'!D31) -> PNW | AY4: =IFERROR(INDEX(AX:AX,MATCH(L4,AW:AW,0)),"") ->  | AZ4: =IF(AW4,'Yahoo Stocks'!E31) -> Pinacle West | BA4: =IFERROR(INDEX(AZ:AZ,MATCH(L4,AW:AW,0)),"") ->  | BD4: =BD3+1 -> 52 | BE4: FALSE | BF4: =IF(BE4,'Google Finance Stocks'!D28) -> FALSE | BG4: =IFERROR(INDEX(BF:BF,MATCH(Q4,BE:BE,0)),"") ->  | BH4: =IF(BE4,'Google Finance Stocks'!E28) -> FALSE | BI4: =IFERROR(INDEX(BH:BH,MATCH(Q4,BE:BE,0)),"") ->  | BL4: =BL3+1 -> 52 | BM4: 52 | BN4: ='Exchange Rates'!D14 -> CPI US | BO4: =IFERROR(INDEX(BN:BN,MATCH(L4,BM:BM,0)),"") ->  | BP4: =IF(BM4,'Exchange Rates'!E14) -> Consumer Price Inflation | BQ4: =IFERROR(INDEX(BP:BP,MATCH(L4,BM:BM,0)),"") -> 
F5: TRUE | G5: =H11+1 -> 21 | H5: =Yahoo_Stock_Tickers*F5+G5-1 -> 50 | I5: =I27 -> F | J5: Yahoo | L5: 3 | M5: Milan | N5: =T5&AC5&AK5&AS5&BA5&BI5&BQ5 -> Italy Milan | O5: F | P5: yahoo | Q5: =Q4+1 -> 3 | R5: 3 | S5: =IF(R5,'Yahoo Index'!E55,"") -> Milan | T5: =IF(R5,'Yahoo Index'!F55,"") -> Italy Milan | U5: F | V5: yahoo | X5: =X4+1 -> 12 | Y5: 12 | Z5: =IF($F$17,'FRED Indicies'!E18) -> WILL5000PRFC | AB5: =IF($F$17,'FRED Indicies'!D18) -> Wilshire 5000 Large Cap | AF5: =AF4+1 -> 17 | AG5: FALSE | AH5: =IF(AG5,'Google Index'!E32) -> FALSE | AJ5: =IF(AF5,'Google Index'!F32) -> 0 | AN5: =AN4+1 -> 17 | AO5: 17 | AP5: =IF(AO5,'Commodity Prices'!C18) -> MHHNGSP | AR5: =IF(AO5,'Commodity Prices'!D18) -> Henry Hub Natural Gas Spot Price (MHHNGSP) | AV5: =AV4+1 -> 23 | AW5: 23 | AX5: =IF(AW5,'Yahoo Stocks'!D32) -> EXC | AZ5: =IF(AW5,'Yahoo Stocks'!E32) -> Exelon Corporation | BD5: =BD4+1 -> 53 | BE5: FALSE | BF5: =IF(BE5,'Google Finance Stocks'!D29) -> FALSE | BH5: =IF(BE5,'Google Finance Stocks'!E29) -> FALSE | BL5: =BL4+1 -> 53 | BM5: 53 | BN5: ='Exchange Rates'!D15 -> Euro | BP5: =IF(BM5,'Exchange Rates'!E15) -> U.S. / Euro Foreign Exchange Rate (EXUSEU)
L6: 4 | M6: CAC 40 | N6: France CAC 40 | O6: F | P6: yahoo | Q6: 4 | R6: 4 | S6: =IF(R6,'Yahoo Index'!E56,"") -> CAC 40 | T6: =IF(R6,'Yahoo Index'!F56,"") -> France CAC 40 | U6: F | V6: yahoo | X6: 13 | Y6: 13 | Z6: =IF($F$17,'FRED Indicies'!E19) -> RU2000PR | AB6: =IF($F$17,'FRED Indicies'!D19) -> Russel 2000 Index | AF6: 18 | AG6: FALSE | AH6: =IF(AG6,'Google Index'!E33) -> FALSE | AJ6: =IF(AF6,'Google Index'!F33) -> 0 | AN6: 18 | AO6: 18 | AP6: =IF(AO6,'Commodity Prices'!C19) -> PRAWMINDEXM | AR6: =IF(AO6,'Commodity Prices'!D19) -> Global price of Agr. Raw Material Index© (PRAWMINDEXM) | AV6: 24 | AW6: 24 | AX6: =IF(AW6,'Yahoo Stocks'!D33) -> ED | AZ6: =IF(AW6,'Yahoo Stocks'!E33) -> Consolidated Edison | BD6: 54 | BE6: FALSE | BF6: =IF(BE6,'Google Finance Stocks'!D30) -> FALSE | BH6: =IF(BE6,'Google Finance Stocks'!E30) -> FALSE | BL6: 54 | BM6: 54 | BN6: ='Exchange Rates'!D16 -> INR | BP6: =IF(BM6,'Exchange Rates'!E16) -> India / U.S. Foreign Exchange Rate (DEXINUS)
L7: 5 | M7: Nasdaq 100 | N7: Nasdaq 100 | O7: F | P7: yahoo | Q7: 5 | R7: 5 | S7: =IF(R7,'Yahoo Index'!E57,"") -> Nasdaq 100 | T7: =IF(R7,'Yahoo Index'!F57,"") -> Nasdaq 100 | U7: F | V7: yahoo | X7: 14 | Y7: 14 | Z7: =IF($F$17,'FRED Indicies'!E20) -> WILLREITIND | AB7: =IF($F$17,'FRED Indicies'!D20) -> Wilshire REIT Index | AF7: 19 | AG7: FALSE | AH7: =IF(AG7,'Google Index'!E34) -> FALSE | AJ7: =IF(AF7,'Google Index'!F34) -> 0 | AN7: 19 | AO7: 19 | AP7: =IF(AO7,'Commodity Prices'!C20) -> PPOILUSDM | AR7: =IF(AO7,'Commodity Prices'!D20) -> Global price of Palm Oil© (PPOILUSDM) | AV7: 25 | AW7: 25 | AX7: =IF(AW7,'Yahoo Stocks'!D34) -> ALE | AZ7: =IF(AW7,'Yahoo Stocks'!E34) -> ALLETE, Inc. | BD7: 55 | BE7: FALSE | BF7: =IF(BE7,'Google Finance Stocks'!D31) -> FALSE | BH7: =IF(BE7,'Google Finance Stocks'!E31) -> FALSE | BL7: 55 | BM7: 55 | BN7: ='Exchange Rates'!D17 -> UK | BP7: =IF(BM7,'Exchange Rates'!E17) -> U.S. / U.K. Foreign Exchange Rate (EXUSUK)
F8: TRUE | G8: =H14+1 -> 51 | H8: ='Exchange Rates'!D5*'Read Stocks'!F8+G8-1 -> 72 | I8: B | J8: FRED | L8: 6 | M8: 30 Industrials | N8: Dow Jones 30 Industrials | O8: F | P8: yahoo | Q8: 6 | R8: 6 | S8: =IF(R8,'Yahoo Index'!E58,"") -> 30 Industrials | T8: =IF(R8,'Yahoo Index'!F58,"") -> Dow Jones 30 Industrials | U8: F | V8: yahoo | X8: 15 | Y8: FALSE | Z8: =IF($F$17,'FRED Indicies'!E21) -> 0 | AB8: =IF($F$17,'FRED Indicies'!D21) -> 0 | AF8: 20 | AG8: FALSE | AH8: =IF(AG8,'Google Index'!E35) -> FALSE | AJ8: =IF(AF8,'Google Index'!F35) -> 0 | AN8: 20 | AO8: 20 | AP8: =IF(AO8,'Commodity Prices'!C21) -> PFOODINDEXM | AR8: =IF(AO8,'Commodity Prices'!D21) -> Global price of Food index© (PFOODINDEXM) | AV8: 26 | AW8: 26 | AX8: =IF(AW8,'Yahoo Stocks'!D35) -> LNT | AZ8: =IF(AW8,'Yahoo Stocks'!E35) -> Alliant Energy Corporation | BD8: 56 | BE8: FALSE | BF8: =IF(BE8,'Google Finance Stocks'!D32) -> FALSE | BH8: =IF(BE8,'Google Finance Stocks'!E32) -> FALSE | BL8: 56 | BM8: 56 | BN8: ='Exchange Rates'!D18 -> PKR | BP8: =IF(BM8,'Exchange Rates'!E18) -> Pakistan Exchange Rate
L9: 7 | M9: Swiss | N9: Swiss SMI | O9: F | P9: yahoo | Q9: 7 | R9: 7 | S9: =IF(R9,'Yahoo Index'!E59,"") -> Swiss | T9: =IF(R9,'Yahoo Index'!F59,"") -> Swiss SMI | U9: F | V9: yahoo | X9: 16 | Y9: FALSE | Z9: =IF($F$17,'FRED Indicies'!E22) -> 0 | AB9: =IF($F$17,'FRED Indicies'!D22) -> 0 | AF9: 21 | AG9: FALSE | AH9: =IF(AG9,'Google Index'!E36) -> FALSE | AJ9: =IF(AF9,'Google Index'!F36) -> 0 | AN9: 21 | AO9: FALSE | AP9: =IF(AO9,'Commodity Prices'!C22) -> FALSE | AR9: =IF(AO9,'Commodity Prices'!D22) -> FALSE | AV9: 27 | AW9: 27 | AX9: =IF(AW9,'Yahoo Stocks'!D36) -> AEE | AZ9: =IF(AW9,'Yahoo Stocks'!E36) -> Ameren Corporation | BD9: 57 | BE9: FALSE | BF9: =IF(BE9,'Google Finance Stocks'!D33) -> FALSE | BH9: =IF(BE9,'Google Finance Stocks'!E33) -> FALSE | BL9: 57 | BM9: 57 | BN9: ='Exchange Rates'!D19 -> US NOM GNP | BP9: =IF(BM9,'Exchange Rates'!E19) -> Gross National Product (GNP)
L10: 8 | M10: Malaysia | N10: Malaysia | O10: F | P10: yahoo | Q10: 8 | R10: 8 | S10: =IF(R10,'Yahoo Index'!E60,"") -> Malaysia | T10: =IF(R10,'Yahoo Index'!F60,"") -> Malaysia | U10: F | V10: yahoo | X10: 17 | Y10: FALSE | Z10: =IF($F$17,'FRED Indicies'!E23) -> 0 | AB10: =IF($F$17,'FRED Indicies'!D23) -> 0 | AF10: 22 | AG10: FALSE | AH10: =IF(AG10,'Google Index'!E37) -> FALSE | AJ10: =IF(AF10,'Google Index'!F37) -> 0 | AN10: 22 | AO10: FALSE | AP10: =IF(AO10,'Commodity Prices'!C23) -> FALSE | AR10: =IF(AO10,'Commodity Prices'!D23) -> FALSE | AV10: 28 | AW10: 28 | AX10: =IF(AW10,'Yahoo Stocks'!D37) -> AEP | AZ10: =IF(AW10,'Yahoo Stocks'!E37) -> American Electric Power Company, Inc. | BD10: 58 | BE10: FALSE | BF10: =IF(BE10,'Google Finance Stocks'!D34) -> FALSE | BH10: =IF(BE10,'Google Finance Stocks'!E34) -> FALSE | BL10: 58 | BM10: =IF(AND($F$8,BL10<=$H$8),BL10) -> 58 | BN10: ='Exchange Rates'!D20 -> 5 yr treasury | BO10: =IFERROR(INDEX(BN:BN,MATCH(L10,BM:BM,0)),"") ->  | BP10: =IF(BM10,'Exchange Rates'!E20) -> 5-Year Treasury Constant Maturity Rate (GS5)
F11: TRUE | G11: =H20+1 -> 15 | H11: =Total_Com*F11+G11-1 -> 20 | I11: B | J11: FRED | L11: 9 | M11: S&P TR | N11: US S&P 500 Div | O11: F | P11: yahoo | Q11: 9 | R11: 9 | S11: =IF(R11,'Yahoo Index'!E61,"") -> S&P TR | T11: =IF(R11,'Yahoo Index'!F61,"") -> US S&P 500 Div | U11: F | V11: yahoo | X11: 18 | Y11: FALSE | Z11: =IF($F$17,'FRED Indicies'!E24) -> 0 | AB11: =IF($F$17,'FRED Indicies'!D24) -> 0 | AF11: 23 | AG11: FALSE | AH11: =IF(AG11,'Google Index'!E38) -> FALSE | AJ11: =IF(AF11,'Google Index'!F38) -> 0 | AN11: 23 | AO11: FALSE | AP11: =IF(AO11,'Commodity Prices'!C24) -> FALSE | AR11: =IF(AO11,'Commodity Prices'!D24) -> FALSE | AV11: 29 | AW11: 29 | AX11: =IF(AW11,'Yahoo Stocks'!D38) -> AVA | AZ11: =IF(AW11,'Yahoo Stocks'!E38) -> Avista Corporation | BD11: 59 | BE11: FALSE | BF11: =IF(BE11,'Google Finance Stocks'!D35) -> FALSE | BH11: =IF(BE11,'Google Finance Stocks'!E35) -> FALSE | BL11: 59 | BM11: 59 | BN11: ='Exchange Rates'!D21 -> 10 year treasury | BP11: =IF(BM11,'Exchange Rates'!E21) -> 10-Year Treasury Constant Maturity Rate (GS10)
L12: 10 | M12: NASDAQ100 | N12: Nasdaq 100 Index | O12: B | P12: FRED | Q12: 10 | R12: FALSE | S12: =IF(R12,'Yahoo Index'!E62,"") ->  | T12: =IF(R12,'Yahoo Index'!F62,"") ->  | X12: 19 | Y12: FALSE | Z12: =IF($F$17,'FRED Indicies'!E25) -> 0 | AA12: NASDAQ100 | AB12: =IF($F$17,'FRED Indicies'!D25) -> 0 | AC12: Nasdaq 100 Index | AD12: B | AE12: FRED | AF12: 24 | AG12: FALSE | AH12: =IF(AG12,'Google Index'!E39) -> FALSE | AJ12: =IF(AF12,'Google Index'!F39) -> 0 | AN12: 24 | AO12: FALSE | AP12: =IF(AO12,'Commodity Prices'!C25) -> FALSE | AR12: =IF(AO12,'Commodity Prices'!D25) -> FALSE | AV12: 30 | AW12: 30 | AX12: =IF(AW12,'Yahoo Stocks'!D39) -> DUK | AZ12: =IF(AW12,'Yahoo Stocks'!E39) -> Duke Energy Corporation | BD12: 60 | BE12: FALSE | BF12: =IF(BE12,'Google Finance Stocks'!D36) -> FALSE | BH12: =IF(BE12,'Google Finance Stocks'!E36) -> FALSE | BL12: 60 | BM12: 60 | BN12: ='Exchange Rates'!D22 -> US Med Inc Nom | BP12: =IF(BM12,'Exchange Rates'!E22) -> Median Household Income in the United States (MEHOINUSA646N)
L13: 11 | M13: WILL5000INDFC | N13: Wilshire 5000 Index | O13: B | P13: FRED | Q13: 11 | R13: FALSE | S13: =IF(R13,'Yahoo Index'!E63,"") ->  | T13: =IF(R13,'Yahoo Index'!F63,"") ->  | X13: 20 | Y13: FALSE | Z13: =IF($F$17,'FRED Indicies'!E26) -> 0 | AA13: WILL5000INDFC | AB13: =IF($F$17,'FRED Indicies'!D26) -> 0 | AC13: Wilshire 5000 Index | AD13: B | AE13: FRED | AF13: 25 | AG13: FALSE | AH13: =IF(AG13,'Google Index'!E40) -> FALSE | AJ13: =IF(AF13,'Google Index'!F40) -> 0 | AN13: 25 | AO13: FALSE | AP13: =IF(AO13,'Commodity Prices'!C26) -> FALSE | AR13: =IF(AO13,'Commodity Prices'!D26) -> FALSE | AV13: 31 | AW13: 31 | AX13: =IF(AW13,'Yahoo Stocks'!D40) -> EIX | AZ13: =IF(AW13,'Yahoo Stocks'!E40) -> Edison International | BD13: 61 | BE13: FALSE | BF13: =IF(BE13,'Google Finance Stocks'!D37) -> FALSE | BH13: =IF(BE13,'Google Finance Stocks'!E37) -> FALSE | BL13: 61 | BM13: 61 | BN13: ='Exchange Rates'!D23 -> Median Income | BP13: =IF(BM13,'Exchange Rates'!E23) -> Employed full time: Median usual weekly real earnings: d over (LES1252881600Q)
F14: FALSE | G14: =H5+1 -> 51 | H14: =Google_Tickers*F14+G14-1 -> 50 | I14: D | J14: Google | L14: 12 | M14: WILL5000PRFC | N14: Wilshire 5000 Large Cap | O14: B | P14: FRED | Q14: 12 | R14: FALSE | S14: =IF(R14,'Yahoo Index'!E64,"") ->  | T14: =IF(R14,'Yahoo Index'!F64,"") ->  | X14: 21 | Y14: FALSE | Z14: =IF($F$17,'FRED Indicies'!E27) -> 0 | AA14: WILL5000PRFC | AB14: =IF($F$17,'FRED Indicies'!D27) -> 0 | AC14: Wilshire 5000 Large Cap | AD14: B | AE14: FRED | AF14: 26 | AG14: FALSE | AH14: =IF(AG14,'Google Index'!E41) -> FALSE | AJ14: =IF(AF14,'Google Index'!F41) -> 0 | AN14: 26 | AO14: FALSE | AP14: =IF(AO14,'Commodity Prices'!C27) -> FALSE | AR14: =IF(AO14,'Commodity Prices'!D27) -> FALSE | AV14: 32 | AW14: 32 | AX14: =IF(AW14,'Yahoo Stocks'!D41) -> ETR | AZ14: =IF(AW14,'Yahoo Stocks'!E41) -> Entergy Corporation | BD14: 62 | BE14: FALSE | BF14: =IF(BE14,'Google Finance Stocks'!D38) -> FALSE | BH14: =IF(BE14,'Google Finance Stocks'!E38) -> FALSE | BL14: 62 | BM14: 62 | BN14: ='Exchange Rates'!D24 -> Corp Profit | BP14: =IF(BM14,'Exchange Rates'!E24) -> Corporate Profits
L15: 13 | M15: RU2000PR | N15: Russel 2000 Index | O15: B | P15: FRED | Q15: 13 | R15: FALSE | S15: =IF(R15,'Yahoo Index'!E65,"") ->  | T15: =IF(R15,'Yahoo Index'!F65,"") ->  | X15: 22 | Y15: FALSE | Z15: =IF($F$17,'FRED Indicies'!E28) -> 0 | AA15: RU2000PR | AB15: =IF($F$17,'FRED Indicies'!D28) -> 0 | AC15: Russel 2000 Index | AD15: B | AE15: FRED | AF15: 27 | AG15: FALSE | AH15: =IF(AG15,'Google Index'!E42) -> FALSE | AJ15: =IF(AF15,'Google Index'!F42) -> 0 | AN15: 27 | AO15: FALSE | AP15: =IF(AO15,'Commodity Prices'!C28) -> FALSE | AR15: =IF(AO15,'Commodity Prices'!D28) -> FALSE | AV15: 33 | AW15: 33 | AX15: =IF(AW15,'Yahoo Stocks'!D42) -> ES | AZ15: =IF(AW15,'Yahoo Stocks'!E42) -> Eversource Energy | BD15: 63 | BE15: FALSE | BF15: =IF(BE15,'Google Finance Stocks'!D39) -> FALSE | BH15: =IF(BE15,'Google Finance Stocks'!E39) -> FALSE | BL15: 63 | BM15: 63 | BN15: ='Exchange Rates'!D25 -> Corp Nonfin | BP15: =IF(BM15,'Exchange Rates'!E25) -> Non Financial Corporate Profits
L16: 14 | M16: WILLREITIND | N16: Wilshire REIT Index | O16: B | P16: FRED | Q16: 14 | R16: FALSE | S16: =IF(R16,'Yahoo Index'!E66,"") ->  | T16: =IF(R16,'Yahoo Index'!F66,"") ->  | X16: 23 | Y16: FALSE | Z16: =IF($F$17,'FRED Indicies'!E29) -> 0 | AA16: WILLREITIND | AB16: =IF($F$17,'FRED Indicies'!D29) -> 0 | AC16: Wilshire REIT Index | AD16: B | AE16: FRED | AF16: 28 | AG16: FALSE | AH16: =IF(AG16,'Google Index'!E43) -> FALSE | AJ16: =IF(AF16,'Google Index'!F43) -> 0 | AN16: 28 | AO16: FALSE | AP16: =IF(AO16,'Commodity Prices'!C29) -> FALSE | AR16: =IF(AO16,'Commodity Prices'!D29) -> FALSE | AV16: 34 | AW16: 34 | AX16: =IF(AW16,'Yahoo Stocks'!D43) -> EVRG | AZ16: =IF(AW16,'Yahoo Stocks'!E43) -> Evergy, Inc. | BD16: 64 | BE16: FALSE | BF16: =IF(BE16,'Google Finance Stocks'!D40) -> FALSE | BH16: =IF(BE16,'Google Finance Stocks'!E40) -> FALSE | BL16: 64 | BM16: 64 | BN16: ='Exchange Rates'!D26 -> Corp Aft Tax | BP16: =IF(BM16,'Exchange Rates'!E26) -> Corporate Profits After Tax
F17: TRUE | G17: =H3+1 -> 10 | H17: ='FRED Indicies'!Total_Index*F17+G17-1 -> 14 | I17: B | J17: FRED | L17: 15 | M17: DCOILBRENTEU | N17: Crude Oil Prices: Brent - Europe (DCOILBRENTEU) | O17: B | P17: FRED | Q17: 15 | R17: FALSE | S17: =IF(R17,'Yahoo Index'!E67,"") ->  | T17: =IF(R17,'Yahoo Index'!F67,"") ->  | X17: 24 | Y17: FALSE | Z17: =IF($F$17,'FRED Indicies'!E30) -> 0 | AB17: =IF($F$17,'FRED Indicies'!D30) -> 0 | AF17: 29 | AG17: FALSE | AH17: =IF(AG17,'Google Index'!E44) -> FALSE | AJ17: =IF(AF17,'Google Index'!F44) -> 0 | AN17: 29 | AO17: FALSE | AP17: =IF(AO17,'Commodity Prices'!C30) -> FALSE | AQ17: DCOILBRENTEU | AR17: =IF(AO17,'Commodity Prices'!D30) -> FALSE | AS17: Crude Oil Prices: Brent - Europe (DCOILBRENTEU) | AT17: B | AU17: FRED | AV17: 35 | AW17: 35 | AX17: =IF(AW17,'Yahoo Stocks'!D44) -> IDA | AZ17: =IF(AW17,'Yahoo Stocks'!E44) -> IDACORP, Inc. | BD17: 65 | BE17: FALSE | BF17: =IF(BE17,'Google Finance Stocks'!D41) -> FALSE | BH17: =IF(BE17,'Google Finance Stocks'!E41) -> FALSE | BL17: 65 | BM17: 65 | BN17: ='Exchange Rates'!D27 -> Corp Inf Adjusted | BP17: =IF(BM17,'Exchange Rates'!E27) -> Corporate Profits with Inflation Adj
L18: 16 | M18: PCOPPUSDM | N18: Global price of Copper© (PCOPPUSDM) | O18: B | P18: FRED | Q18: 16 | R18: FALSE | S18: =IF(R18,'Yahoo Index'!E68,"") ->  | T18: =IF(R18,'Yahoo Index'!F68,"") ->  | X18: 25 | Y18: FALSE | Z18: =IF($F$17,'FRED Indicies'!E31) -> 0 | AB18: =IF($F$17,'FRED Indicies'!D31) -> 0 | AF18: 30 | AG18: FALSE | AH18: =IF(AG18,'Google Index'!E45) -> FALSE | AJ18: =IF(AF18,'Google Index'!F45) -> 0 | AN18: 30 | AO18: FALSE | AP18: =IF(AO18,'Commodity Prices'!C31) -> FALSE | AQ18: PCOPPUSDM | AR18: =IF(AO18,'Commodity Prices'!D31) -> FALSE | AS18: Global price of Copper© (PCOPPUSDM) | AT18: B | AU18: FRED | AV18: 36 | AW18: 36 | AX18: =IF(AW18,'Yahoo Stocks'!D45) -> NEE | AZ18: =IF(AW18,'Yahoo Stocks'!E45) -> NextEra Energy, Inc. | BD18: 66 | BE18: FALSE | BF18: =IF(BE18,'Google Finance Stocks'!D42) -> FALSE | BH18: =IF(BE18,'Google Finance Stocks'!E42) -> FALSE | BL18: 66 | BM18: 66 | BN18: ='Exchange Rates'!D28 -> GDP Inflation Index | BP18: =IF(BM18,'Exchange Rates'!E28) -> GDP Inflation Index
L19: 17 | M19: MHHNGSP | N19: Henry Hub Natural Gas Spot Price (MHHNGSP) | O19: B | P19: FRED | Q19: 17 | R19: FALSE | S19: =IF(R19,'Yahoo Index'!E69,"") ->  | T19: =IF(R19,'Yahoo Index'!F69,"") ->  | X19: 26 | Y19: FALSE | Z19: =IF($F$17,'FRED Indicies'!E32) -> 0 | AB19: =IF($F$17,'FRED Indicies'!D32) -> 0 | AF19: 31 | AG19: FALSE | AH19: =IF(AG19,'Google Index'!E46) -> FALSE | AJ19: =IF(AF19,'Google Index'!F46) -> 0 | AN19: 31 | AO19: FALSE | AP19: =IF(AO19,'Commodity Prices'!C32) -> FALSE | AQ19: MHHNGSP | AR19: =IF(AO19,'Commodity Prices'!D32) -> FALSE | AS19: Henry Hub Natural Gas Spot Price (MHHNGSP) | AT19: B | AU19: FRED | AV19: 37 | AW19: 37 | AX19: =IF(AW19,'Yahoo Stocks'!D46) -> NWE | AZ19: =IF(AW19,'Yahoo Stocks'!E46) -> NorthWestern Corporation | BD19: 67 | BE19: FALSE | BF19: =IF(BE19,'Google Finance Stocks'!D43) -> FALSE | BH19: =IF(BE19,'Google Finance Stocks'!E43) -> FALSE | BL19: 67 | BM19: 67 | BN19: ='Exchange Rates'!D29 -> CPI US Index | BP19: =IF(BM19,'Exchange Rates'!E29) -> CPI US Index
F20: FALSE | G20: =H17+1 -> 15 | H20: ='Google Index'!D20*F20+G20-1 -> 14 | I20: D | J20: Google | L20: 18 | M20: PRAWMINDEXM | N20: Global price of Agr. Raw Material Index© (PRAWMINDEXM) | O20: B | P20: FRED | Q20: 18 | R20: FALSE | S20: =IF(R20,'Yahoo Index'!E70,"") ->  | T20: =IF(R20,'Yahoo Index'!F70,"") ->  | X20: 27 | Y20: FALSE | Z20: =IF($F$17,'FRED Indicies'!E33) -> 0 | AB20: =IF($F$17,'FRED Indicies'!D33) -> 0 | AF20: 32 | AG20: FALSE | AH20: =IF(AG20,'Google Index'!E47) -> FALSE | AJ20: =IF(AF20,'Google Index'!F47) -> 0 | AN20: 32 | AO20: FALSE | AP20: =IF(AO20,'Commodity Prices'!C33) -> FALSE | AQ20: PRAWMINDEXM | AR20: =IF(AO20,'Commodity Prices'!D33) -> FALSE | AS20: Global price of Agr. Raw Material Index© (PRAWMINDEXM) | AT20: B | AU20: FRED | AV20: 38 | AW20: 38 | AX20: =IF(AW20,'Yahoo Stocks'!D47) -> OGE | AZ20: =IF(AW20,'Yahoo Stocks'!E47) -> OGE Energy Corporation | BD20: 68 | BE20: FALSE | BF20: =IF(BE20,'Google Finance Stocks'!D44) -> FALSE | BH20: =IF(BE20,'Google Finance Stocks'!E44) -> FALSE | BL20: 68 | BM20: 68 | BN20: ='Exchange Rates'!D30 -> US GDP | BP20: =IF(BM20,'Exchange Rates'!E30) -> US GDP Gross Domestic Product (GDP)
L21: 19 | M21: PPOILUSDM | N21: Global price of Palm Oil© (PPOILUSDM) | O21: B | P21: FRED | Q21: 19 | R21: FALSE | S21: =IF(R21,'Yahoo Index'!E71,"") ->  | T21: =IF(R21,'Yahoo Index'!F71,"") ->  | X21: 28 | Y21: FALSE | Z21: =IF($F$17,'FRED Indicies'!E34) -> 0 | AB21: =IF($F$17,'FRED Indicies'!D34) -> 0 | AF21: 33 | AG21: FALSE | AH21: =IF(AG21,'Google Index'!E48) -> FALSE | AJ21: =IF(AF21,'Google Index'!F48) -> 0 | AN21: 33 | AO21: FALSE | AP21: =IF(AO21,'Commodity Prices'!C34) -> FALSE | AQ21: PPOILUSDM | AR21: =IF(AO21,'Commodity Prices'!D34) -> FALSE | AS21: Global price of Palm Oil© (PPOILUSDM) | AT21: B | AU21: FRED | AV21: 39 | AW21: 39 | AX21: =IF(AW21,'Yahoo Stocks'!D48) -> OTTR | AZ21: =IF(AW21,'Yahoo Stocks'!E48) -> Otter Tail Corporation | BD21: 69 | BE21: FALSE | BF21: =IF(BE21,'Google Finance Stocks'!D45) -> FALSE | BH21: =IF(BE21,'Google Finance Stocks'!E45) -> FALSE | BL21: 69 | BM21: 69 | BN21: ='Exchange Rates'!D31 -> Median Family Income | BP21: =IF(BM21,'Exchange Rates'!E31) -> Median Family Income in the United States (MEFAINUSA646N)
L22: 20 | M22: PFOODINDEXM | N22: Global price of Food index© (PFOODINDEXM) | O22: B | P22: FRED | Q22: 20 | R22: FALSE | S22: =IF(R22,'Yahoo Index'!E72,"") ->  | T22: =IF(R22,'Yahoo Index'!F72,"") ->  | X22: 29 | Y22: FALSE | Z22: =IF($F$17,'FRED Indicies'!E35) -> 0 | AB22: =IF($F$17,'FRED Indicies'!D35) -> 0 | AF22: 34 | AG22: FALSE | AH22: =IF(AG22,'Google Index'!E49) -> FALSE | AJ22: =IF(AF22,'Google Index'!F49) -> 0 | AN22: 34 | AO22: FALSE | AP22: =IF(AO22,'Commodity Prices'!C35) -> FALSE | AQ22: PFOODINDEXM | AR22: =IF(AO22,'Commodity Prices'!D35) -> FALSE | AS22: Global price of Food index© (PFOODINDEXM) | AT22: B | AU22: FRED | AV22: 40 | AW22: 40 | AX22: =IF(AW22,'Yahoo Stocks'!D49) -> POR | AZ22: =IF(AW22,'Yahoo Stocks'!E49) -> Portland General Electric | BD22: 70 | BE22: FALSE | BF22: =IF(BE22,'Google Finance Stocks'!D46) -> FALSE | BH22: =IF(BE22,'Google Finance Stocks'!E46) -> FALSE | BL22: 70 | BM22: 70 | BN22: ='Exchange Rates'!D32 -> US Real GDP | BP22: =IF(BM22,'Exchange Rates'!E32) -> Real Gross Domestic Product (GDPC1)
H23: Monthly | I23: FALSE | L23: 21 | M23: HE | N23: Hawaiian Electric Industries | O23: F | P23: Yahoo | Q23: 21 | R23: FALSE | S23: =IF(R23,'Yahoo Index'!E73,"") ->  | T23: =IF(R23,'Yahoo Index'!F73,"") ->  | X23: 30 | Y23: FALSE | Z23: =IF($F$17,'FRED Indicies'!E36) -> 0 | AB23: =IF($F$17,'FRED Indicies'!D36) -> 0 | AF23: 35 | AG23: FALSE | AH23: =IF(AG23,'Google Index'!E50) -> FALSE | AJ23: =IF(AF23,'Google Index'!F50) -> 0 | AN23: 35 | AO23: FALSE | AP23: =IF(AO23,'Commodity Prices'!C36) -> FALSE | AR23: =IF(AO23,'Commodity Prices'!D36) -> FALSE | AV23: 41 | AW23: 41 | AX23: =IF(AW23,'Yahoo Stocks'!D50) -> XEL | AY23: HE | AZ23: =IF(AW23,'Yahoo Stocks'!E50) -> Xcel Energy Inc. | BA23: Hawaiian Electric Industries | BB23: F | BC23: Yahoo | BD23: 71 | BE23: FALSE | BF23: =IF(BE23,'Google Finance Stocks'!D47) -> FALSE | BH23: =IF(BE23,'Google Finance Stocks'!E47) -> FALSE | BL23: 71 | BM23: 71 | BN23: ='Exchange Rates'!D33 -> US Real GNP | BP23: =IF(BM23,'Exchange Rates'!E33) -> Real Gross National Product (GNPC96)
L24: 22 | M24: PNW | N24: Pinacle West | O24: F | P24: Yahoo | Q24: 22 | R24: FALSE | S24: =IF(R24,'Yahoo Index'!E74,"") ->  | T24: =IF(R24,'Yahoo Index'!F74,"") ->  | X24: 31 | Y24: FALSE | Z24: =IF($F$17,'FRED Indicies'!E37) -> 0 | AB24: =IF($F$17,'FRED Indicies'!D37) -> 0 | AF24: 36 | AG24: FALSE | AH24: =IF(AG24,'Google Index'!E51) -> FALSE | AJ24: =IF(AF24,'Google Index'!F51) -> 0 | AN24: 36 | AO24: FALSE | AP24: =IF(AO24,'Commodity Prices'!C37) -> FALSE | AR24: =IF(AO24,'Commodity Prices'!D37) -> FALSE | AV24: 42 | AW24: 42 | AX24: =IF(AW24,'Yahoo Stocks'!D51) -> D | AY24: PNW | AZ24: =IF(AW24,'Yahoo Stocks'!E51) -> Dominion Energy | BA24: Pinacle West | BB24: F | BC24: Yahoo | BD24: 72 | BE24: FALSE | BF24: =IF(BE24,'Google Finance Stocks'!D48) -> FALSE | BH24: =IF(BE24,'Google Finance Stocks'!E48) -> FALSE | BL24: 72 | BM24: 72 | BN24: ='Exchange Rates'!D34 -> GDP GDI | BP24: =IF(BM24,'Exchange Rates'!E34) -> Real Average of GDP and GDI (LB0000091Q020SBEA)
H25: Adj Close | I25: TRUE | L25: 23 | M25: EXC | N25: Exelon Corporation | O25: F | P25: Yahoo | Q25: 23 | R25: FALSE | S25: =IF(R25,'Yahoo Index'!E75,"") ->  | T25: =IF(R25,'Yahoo Index'!F75,"") ->  | X25: 32 | Y25: FALSE | Z25: =IF($F$17,'FRED Indicies'!E38) -> 0 | AB25: =IF($F$17,'FRED Indicies'!D38) -> 0 | AF25: 37 | AG25: FALSE | AH25: =IF(AG25,'Google Index'!E52) -> FALSE | AJ25: =IF(AF25,'Google Index'!F52) -> 0 | AN25: 37 | AO25: FALSE | AP25: =IF(AO25,'Commodity Prices'!C38) -> FALSE | AR25: =IF(AO25,'Commodity Prices'!D38) -> FALSE | AV25: 43 | AW25: 43 | AX25: =IF(AW25,'Yahoo Stocks'!D52) -> SO | AY25: EXC | AZ25: =IF(AW25,'Yahoo Stocks'!E52) -> Southern Company | BA25: Exelon Corporation | BB25: F | BC25: Yahoo | BD25: 73 | BE25: FALSE | BF25: =IF(BE25,'Google Finance Stocks'!D49) -> FALSE | BH25: =IF(BE25,'Google Finance Stocks'!E49) -> FALSE | BL25: 73 | BM25: FALSE | BN25: ='Exchange Rates'!D35 -> 0 | BP25: =IF(BM25,'Exchange Rates'!E35) -> FALSE
L26: 24 | M26: ED | N26: Consolidated Edison | O26: F | P26: Yahoo | Q26: 24 | R26: FALSE | S26: =IF(R26,'Yahoo Index'!E76,"") ->  | T26: =IF(R26,'Yahoo Index'!F76,"") ->  | X26: 33 | Y26: FALSE | Z26: =IF($F$17,'FRED Indicies'!E39) -> 0 | AB26: =IF($F$17,'FRED Indicies'!D39) -> 0 | AF26: 38 | AG26: FALSE | AH26: =IF(AG26,'Google Index'!E53) -> FALSE | AJ26: =IF(AF26,'Google Index'!F53) -> 0 | AN26: 38 | AO26: FALSE | AP26: =IF(AO26,'Commodity Prices'!C39) -> FALSE | AR26: =IF(AO26,'Commodity Prices'!D39) -> FALSE | AV26: 44 | AW26: 44 | AX26: =IF(AW26,'Yahoo Stocks'!D53) -> PEG | AY26: ED | AZ26: =IF(AW26,'Yahoo Stocks'!E53) -> Public Service Enterprise Group | BA26: Consolidated Edison | BB26: F | BC26: Yahoo | BD26: 74 | BE26: FALSE | BF26: =IF(BE26,'Google Finance Stocks'!D50) -> FALSE | BH26: =IF(BE26,'Google Finance Stocks'!E50) -> FALSE | BL26: 74 | BM26: FALSE | BN26: ='Exchange Rates'!D36 -> 0 | BP26: =IF(BM26,'Exchange Rates'!E36) -> FALSE
E27: Yahoo Column to Use in Summary | I27: =IF(Adj_Close,"F","E") -> F | L27: 25 | M27: ALE | N27: ALLETE, Inc. | O27: F | P27: Yahoo | Q27: 25 | R27: FALSE | S27: =IF(R27,'Yahoo Index'!E77,"") ->  | T27: =IF(R27,'Yahoo Index'!F77,"") ->  | X27: 34 | Y27: FALSE | Z27: =IF($F$17,'FRED Indicies'!E40) -> 0 | AB27: =IF($F$17,'FRED Indicies'!D40) -> 0 | AF27: 39 | AG27: FALSE | AH27: =IF(AG27,'Google Index'!E54) -> FALSE | AJ27: =IF(AF27,'Google Index'!F54) -> 0 | AN27: 39 | AO27: FALSE | AP27: =IF(AO27,'Commodity Prices'!C40) -> FALSE | AR27: =IF(AO27,'Commodity Prices'!D40) -> FALSE | AV27: 45 | AW27: 45 | AX27: =IF(AW27,'Yahoo Stocks'!D54) -> WEC | AY27: =IFERROR(INDEX(AX:AX,MATCH(L27,AW:AW,0)),"") -> ALE | AZ27: =IF(AW27,'Yahoo Stocks'!E54) -> WEC Energy Group | BA27: =IFERROR(INDEX(AZ:AZ,MATCH(L27,AW:AW,0)),"") -> ALLETE, Inc. | BB27: F | BC27: Yahoo | BD27: 75 | BE27: FALSE | BF27: =IF(BE27,'Google Finance Stocks'!D51) -> FALSE | BH27: =IF(BE27,'Google Finance Stocks'!E51) -> FALSE | BL27: 75 | BM27: FALSE | BN27: ='Exchange Rates'!D37 -> 0 | BP27: =IF(BM27,'Exchange Rates'!E37) -> FALSE
L28: 26 | M28: LNT | N28: Alliant Energy Corporation | O28: F | P28: Yahoo | Q28: 26 | R28: FALSE | S28: =IF(R28,'Yahoo Index'!E78,"") ->  | T28: =IF(R28,'Yahoo Index'!F78,"") ->  | X28: 35 | Y28: FALSE | Z28: =IF($F$17,'FRED Indicies'!E41) -> 0 | AB28: =IF($F$17,'FRED Indicies'!D41) -> 0 | AF28: 40 | AG28: FALSE | AH28: =IF(AG28,'Google Index'!E55) -> FALSE | AJ28: =IF(AF28,'Google Index'!F55) -> 0 | AN28: 40 | AO28: FALSE | AP28: =IF(AO28,'Commodity Prices'!C41) -> FALSE | AR28: =IF(AO28,'Commodity Prices'!D41) -> FALSE | AV28: 46 | AW28: 46 | AX28: =IF(AW28,'Yahoo Stocks'!D55) -> CMS | AY28: LNT | AZ28: =IF(AW28,'Yahoo Stocks'!E55) -> Consumers Energy Company | BA28: Alliant Energy Corporation | BB28: F | BC28: Yahoo | BD28: 76 | BE28: FALSE | BF28: =IF(BE28,'Google Finance Stocks'!D52) -> FALSE | BH28: =IF(BE28,'Google Finance Stocks'!E52) -> FALSE | BL28: 76 | BM28: FALSE | BN28: ='Exchange Rates'!D38 -> 0 | BP28: =IF(BM28,'Exchange Rates'!E38) -> FALSE
E29: Monthly/Weekly Code | I29: =IF(monthly,"mo","wk") -> wk | L29: 27 | M29: AEE | N29: Ameren Corporation | O29: F | P29: Yahoo | Q29: 27 | R29: FALSE | S29: =IF(R29,'Yahoo Index'!E79,"") ->  | T29: =IF(R29,'Yahoo Index'!F79,"") ->  | X29: 36 | Y29: FALSE | Z29: =IF($F$17,'FRED Indicies'!E42) -> 0 | AB29: =IF($F$17,'FRED Indicies'!D42) -> 0 | AF29: 41 | AG29: FALSE | AH29: =IF(AG29,'Google Index'!E56) -> FALSE | AJ29: =IF(AF29,'Google Index'!F56) -> 0 | AN29: 41 | AO29: FALSE | AP29: =IF(AO29,'Commodity Prices'!C42) -> FALSE | AR29: =IF(AO29,'Commodity Prices'!D42) -> FALSE | AV29: 47 | AW29: 47 | AX29: =IF(AW29,'Yahoo Stocks'!D56) -> MDU | AY29: AEE | AZ29: =IF(AW29,'Yahoo Stocks'!E56) -> MDU Resources Group | BA29: Ameren Corporation | BB29: F | BC29: Yahoo | BD29: 77 | BE29: FALSE | BF29: =IF(BE29,'Google Finance Stocks'!D53) -> FALSE | BH29: =IF(BE29,'Google Finance Stocks'!E53) -> FALSE | BL29: 77 | BM29: FALSE | BN29: ='Exchange Rates'!D39 -> 0 | BP29: =IF(BM29,'Exchange Rates'!E39) -> FALSE
E30: Month | F30: &interval=1mo&events=history&crumb= | L30: 28 | M30: AEP | N30: American Electric Power Company, Inc. | O30: F | P30: Yahoo | Q30: 28 | R30: FALSE | S30: =IF(R30,'Yahoo Index'!E80,"") ->  | T30: =IF(R30,'Yahoo Index'!F80,"") ->  | X30: 37 | Y30: FALSE | Z30: =IF($F$17,'FRED Indicies'!E43) -> 0 | AB30: =IF($F$17,'FRED Indicies'!D43) -> 0 | AF30: 42 | AG30: FALSE | AH30: =IF(AG30,'Google Index'!E57) -> FALSE | AJ30: =IF(AF30,'Google Index'!F57) -> 0 | AN30: 42 | AO30: FALSE | AP30: =IF(AO30,'Commodity Prices'!C43) -> FALSE | AR30: =IF(AO30,'Commodity Prices'!D43) -> FALSE | AV30: 48 | AW30: 48 | AX30: =IF(AW30,'Yahoo Stocks'!D57) -> MGEE | AY30: AEP | AZ30: =IF(AW30,'Yahoo Stocks'!E57) -> MGE Energy | BA30: American Electric Power Company, Inc. | BB30: F | BC30: Yahoo | BD30: 78 | BE30: FALSE | BF30: =IF(BE30,'Google Finance Stocks'!D54) -> FALSE | BH30: =IF(BE30,'Google Finance Stocks'!E54) -> FALSE | BL30: 78 | BM30: FALSE | BN30: ='Exchange Rates'!D40 -> 0 | BP30: =IF(BM30,'Exchange Rates'!E40) -> FALSE
E31: Week | F31: &interval=1wk&events=history&crumb= | L31: 29 | M31: AVA | N31: Avista Corporation | O31: F | P31: Yahoo | Q31: 29 | R31: FALSE | S31: =IF(R31,'Yahoo Index'!E81,"") ->  | T31: =IF(R31,'Yahoo Index'!F81,"") ->  | X31: 38 | Y31: FALSE | Z31: =IF($F$17,'FRED Indicies'!E44) -> 0 | AB31: =IF($F$17,'FRED Indicies'!D44) -> 0 | AF31: 43 | AG31: FALSE | AH31: =IF(AG31,'Google Index'!E58) -> FALSE | AJ31: =IF(AF31,'Google Index'!F58) -> 0 | AN31: 43 | AO31: FALSE | AP31: =IF(AO31,'Commodity Prices'!C44) -> FALSE | AR31: =IF(AO31,'Commodity Prices'!D44) -> FALSE | AV31: 49 | AW31: 49 | AX31: =IF(AW31,'Yahoo Stocks'!D58) -> BKH | AY31: AVA | AZ31: =IF(AW31,'Yahoo Stocks'!E58) -> Black Hills Corporation | BA31: Avista Corporation | BB31: F | BC31: Yahoo | BD31: 79 | BE31: FALSE | BF31: =IF(BE31,'Google Finance Stocks'!D55) -> FALSE | BH31: =IF(BE31,'Google Finance Stocks'!E55) -> FALSE | BL31: 79 | BM31: FALSE | BN31: ='Exchange Rates'!D41 -> 0 | BP31: =IF(BM31,'Exchange Rates'!E41) -> FALSE
E32: Applied | F32: =IF(monthly,F30,F31) -> &interval=1wk&events=history&crumb= | L32: 30 | M32: DUK | N32: Duke Energy Corporation | O32: F | P32: Yahoo | Q32: 30 | R32: FALSE | S32: =IF(R32,'Yahoo Index'!E82,"") ->  | T32: =IF(R32,'Yahoo Index'!F82,"") ->  | X32: 39 | Y32: FALSE | Z32: =IF($F$17,'FRED Indicies'!E45) -> 0 | AB32: =IF($F$17,'FRED Indicies'!D45) -> 0 | AF32: 44 | AG32: FALSE | AH32: =IF(AG32,'Google Index'!E59) -> FALSE | AJ32: =IF(AF32,'Google Index'!F59) -> 0 | AN32: 44 | AO32: FALSE | AP32: =IF(AO32,'Commodity Prices'!C45) -> FALSE | AR32: =IF(AO32,'Commodity Prices'!D45) -> FALSE | AV32: 50 | AW32: 50 | AX32: =IF(AW32,'Yahoo Stocks'!D59) -> PNM | AY32: DUK | AZ32: =IF(AW32,'Yahoo Stocks'!E59) -> PNM Resources | BA32: Duke Energy Corporation | BB32: F | BC32: Yahoo | BD32: 80 | BE32: FALSE | BF32: =IF(BE32,'Google Finance Stocks'!D56) -> FALSE | BH32: =IF(BE32,'Google Finance Stocks'!E56) -> FALSE | BL32: 80 | BM32: FALSE | BN32: ='Exchange Rates'!D42 -> 0 | BP32: =IF(BM32,'Exchange Rates'!E42) -> FALSE
L33: 31 | M33: EIX | N33: Edison International | O33: F | P33: Yahoo | Q33: 31 | R33: FALSE | S33: =IF(R33,'Yahoo Index'!E83,"") ->  | T33: =IF(R33,'Yahoo Index'!F83,"") ->  | X33: 40 | Y33: FALSE | Z33: =IF($F$17,'FRED Indicies'!E46) -> 0 | AB33: =IF($F$17,'FRED Indicies'!D46) -> 0 | AF33: 45 | AG33: FALSE | AH33: =IF(AG33,'Google Index'!E60) -> FALSE | AJ33: =IF(AF33,'Google Index'!F60) -> 0 | AN33: 45 | AO33: FALSE | AP33: =IF(AO33,'Commodity Prices'!C46) -> FALSE | AR33: =IF(AO33,'Commodity Prices'!D46) -> FALSE | AV33: 51 | AW33: FALSE | AX33: =IF(AW33,'Yahoo Stocks'!D60) -> FALSE | AY33: EIX | AZ33: =IF(AW33,'Yahoo Stocks'!E60) -> FALSE | BA33: Edison International | BB33: F | BC33: Yahoo | BD33: 81 | BE33: FALSE | BF33: =IF(BE33,'Google Finance Stocks'!D57) -> FALSE | BH33: =IF(BE33,'Google Finance Stocks'!E57) -> FALSE | BL33: 81 | BM33: FALSE | BN33: ='Exchange Rates'!D43 -> 0 | BP33: =IF(BM33,'Exchange Rates'!E43) -> FALSE
E34: comment | F34: FALSE | L34: 32 | M34: ETR | N34: Entergy Corporation | O34: F | P34: Yahoo | Q34: 32 | R34: FALSE | S34: =IF(R34,'Yahoo Index'!E84,"") ->  | T34: =IF(R34,'Yahoo Index'!F84,"") ->  | X34: 41 | Y34: FALSE | Z34: =IF($F$17,'FRED Indicies'!E47) -> 0 | AB34: =IF($F$17,'FRED Indicies'!D47) -> 0 | AF34: 46 | AG34: FALSE | AH34: =IF(AG34,'Google Index'!E61) -> FALSE | AJ34: =IF(AF34,'Google Index'!F61) -> 0 | AN34: 46 | AO34: FALSE | AP34: =IF(AO34,'Commodity Prices'!C47) -> FALSE | AR34: =IF(AO34,'Commodity Prices'!D47) -> FALSE | AV34: 52 | AW34: FALSE | AX34: =IF(AW34,'Yahoo Stocks'!D61) -> FALSE | AY34: ETR | AZ34: =IF(AW34,'Yahoo Stocks'!E61) -> FALSE | BA34: Entergy Corporation | BB34: F | BC34: Yahoo | BD34: 82 | BE34: FALSE | BF34: =IF(BE34,'Google Finance Stocks'!D58) -> FALSE | BH34: =IF(BE34,'Google Finance Stocks'!E58) -> FALSE | BL34: 82 | BM34: FALSE | BN34: ='Exchange Rates'!D44 -> 0 | BP34: =IF(BM34,'Exchange Rates'!E44) -> FALSE
L35: 33 | M35: ES | N35: Eversource Energy | O35: F | P35: Yahoo | Q35: 33 | R35: FALSE | S35: =IF(R35,'Yahoo Index'!E85,"") ->  | T35: =IF(R35,'Yahoo Index'!F85,"") ->  | X35: 42 | Y35: =IF(AND($F$17,X35<=$H$17),X35) -> FALSE | Z35: =IF($F$17,'FRED Indicies'!E48) -> 0 | AA35: =IFERROR(INDEX(Z:Z,MATCH(L35,Y:Y,0)),"") ->  | AB35: =IF($F$17,'FRED Indicies'!D48) -> 0 | AC35: =IFERROR(INDEX(AB:AB,MATCH(L35,Y:Y,0)),"") ->  | AD35: =IF(AA35<>"",$I$17,"") ->  | AE35: =IF(AA35<>"",$J$17,"") ->  | AF35: 47 | AG35: =IF(AND($F$20,AF35<=$H$20),AF35) -> FALSE | AH35: =IF(AG35,'Google Index'!E62) -> FALSE | AI35: =IFERROR(INDEX(AH:AH,MATCH(Q35,AG:AG,0)),"") ->  | AJ35: =IF(AF35,'Google Index'!F62) -> 0 | AK35: =IFERROR(INDEX(AJ:AJ,MATCH(Q35,AG:AG,0)),"") ->  | AL35: =IF(AI35<>"",$I$17,"") ->  | AM35: =IF(AK35<>"",$J$17,"") ->  | AN35: 47 | AO35: =IF(AND($F$11,AN35<=$H$11),AN35) -> FALSE | AP35: =IF(AO35,'Commodity Prices'!C48) -> FALSE | AQ35: =IFERROR(INDEX(AP:AP,MATCH(L35,AO:AO,0)),"") ->  | AR35: =IF(AO35,'Commodity Prices'!D48) -> FALSE | AS35: =IFERROR(INDEX(AR:AR,MATCH(L35,AO:AO,0)),"") ->  | AT35: =IF(AQ35<>"",$I$11,"") ->  | AU35: =IF(AS35<>"",$J$11,"") ->  | AV35: 53 | AW35: =IF(AND($F$5,AV35<=$H$5),AV35) -> FALSE | AX35: =IF(AW35,'Yahoo Stocks'!D62) -> FALSE | AY35: ES | AZ35: =IF(AW35,'Yahoo Stocks'!E62) -> FALSE | BA35: Eversource Energy | BB35: =IF(AY35<>"",$I$5,"") -> F | BC35: =IF(BA35<>"",$J$5,"") -> Yahoo | BD35: 83 | BE35: FALSE | BF35: =IF(BE35,'Google Finance Stocks'!D59) -> FALSE | BH35: =IF(BE35,'Google Finance Stocks'!E59) -> FALSE | BL35: 83 | BM35: FALSE | BN35: ='Exchange Rates'!D45 -> 0 | BP35: =IF(BM35,'Exchange Rates'!E45) -> FALSE
L36: 34 | M36: EVRG | N36: Evergy, Inc. | O36: F | P36: Yahoo | Q36: 34 | R36: FALSE | S36: =IF(R36,'Yahoo Index'!E86,"") ->  | T36: =IF(R36,'Yahoo Index'!F86,"") ->  | X36: 43 | Y36: FALSE | Z36: =IF($F$17,'FRED Indicies'!E49) -> 0 | AB36: =IF($F$17,'FRED Indicies'!D49) -> 0 | AF36: 48 | AG36: FALSE | AH36: =IF(AG36,'Google Index'!E63) -> FALSE | AJ36: =IF(AF36,'Google Index'!F63) -> 0 | AN36: 48 | AO36: FALSE | AP36: =IF(AO36,'Commodity Prices'!C49) -> FALSE | AR36: =IF(AO36,'Commodity Prices'!D49) -> FALSE | AV36: 54 | AW36: FALSE | AX36: =IF(AW36,'Yahoo Stocks'!D63) -> FALSE | AY36: EVRG | AZ36: =IF(AW36,'Yahoo Stocks'!E63) -> FALSE | BA36: Evergy, Inc. | BB36: F | BC36: Yahoo | BD36: 84 | BE36: FALSE | BF36: =IF(BE36,'Google Finance Stocks'!D60) -> FALSE | BH36: =IF(BE36,'Google Finance Stocks'!E60) -> FALSE | BL36: 84 | BM36: FALSE | BN36: ='Exchange Rates'!D46 -> 0 | BP36: =IF(BM36,'Exchange Rates'!E46) -> FALSE
L37: 35 | M37: IDA | N37: IDACORP, Inc. | O37: F | P37: Yahoo | Q37: 35 | R37: FALSE | S37: =IF(R37,'Yahoo Index'!E87,"") ->  | T37: =IF(R37,'Yahoo Index'!F87,"") ->  | X37: 44 | Y37: FALSE | Z37: =IF($F$17,'FRED Indicies'!E50) -> 0 | AB37: =IF($F$17,'FRED Indicies'!D50) -> 0 | AF37: 49 | AG37: FALSE | AH37: =IF(AG37,'Google Index'!E64) -> FALSE | AJ37: =IF(AF37,'Google Index'!F64) -> 0 | AN37: 49 | AO37: FALSE | AP37: =IF(AO37,'Commodity Prices'!C50) -> FALSE | AR37: =IF(AO37,'Commodity Prices'!D50) -> FALSE | AV37: 55 | AW37: FALSE | AX37: =IF(AW37,'Yahoo Stocks'!D64) -> FALSE | AY37: IDA | AZ37: =IF(AW37,'Yahoo Stocks'!E64) -> FALSE | BA37: IDACORP, Inc. | BB37: F | BC37: Yahoo | BD37: 85 | BE37: FALSE | BF37: =IF(BE37,'Google Finance Stocks'!D61) -> FALSE | BH37: =IF(BE37,'Google Finance Stocks'!E61) -> FALSE | BL37: 85 | BM37: FALSE | BN37: ='Exchange Rates'!D47 -> 0 | BP37: =IF(BM37,'Exchange Rates'!E47) -> FALSE
L38: 36 | M38: NEE | N38: NextEra Energy, Inc. | O38: F | P38: Yahoo | Q38: 36 | R38: FALSE | S38: =IF(R38,'Yahoo Index'!E88,"") ->  | T38: =IF(R38,'Yahoo Index'!F88,"") ->  | X38: 45 | Y38: FALSE | Z38: =IF($F$17,'FRED Indicies'!E51) -> 0 | AB38: =IF($F$17,'FRED Indicies'!D51) -> 0 | AF38: 50 | AG38: FALSE | AH38: =IF(AG38,'Google Index'!E65) -> FALSE | AJ38: =IF(AF38,'Google Index'!F65) -> 0 | AN38: 50 | AO38: FALSE | AP38: =IF(AO38,'Commodity Prices'!C51) -> FALSE | AR38: =IF(AO38,'Commodity Prices'!D51) -> FALSE | AV38: 56 | AW38: FALSE | AX38: =IF(AW38,'Yahoo Stocks'!D65) -> FALSE | AY38: NEE | AZ38: =IF(AW38,'Yahoo Stocks'!E65) -> FALSE | BA38: NextEra Energy, Inc. | BB38: F | BC38: Yahoo | BD38: 86 | BE38: FALSE | BF38: =IF(BE38,'Google Finance Stocks'!D62) -> FALSE | BH38: =IF(BE38,'Google Finance Stocks'!E62) -> FALSE | BL38: 86 | BM38: FALSE | BN38: ='Exchange Rates'!D48 -> 0 | BP38: =IF(BM38,'Exchange Rates'!E48) -> FALSE
L39: 37 | M39: NWE | N39: NorthWestern Corporation | O39: F | P39: Yahoo | Q39: 37 | R39: FALSE | S39: =IF(R39,'Yahoo Index'!E89,"") ->  | T39: =IF(R39,'Yahoo Index'!F89,"") ->  | X39: 46 | Y39: FALSE | Z39: =IF($F$17,'FRED Indicies'!E52) -> 0 | AB39: =IF($F$17,'FRED Indicies'!D52) -> 0 | AF39: 51 | AG39: FALSE | AH39: =IF(AG39,'Google Index'!E66) -> FALSE | AJ39: =IF(AF39,'Google Index'!F66) -> 0 | AN39: 51 | AO39: FALSE | AP39: =IF(AO39,'Commodity Prices'!C52) -> FALSE | AR39: =IF(AO39,'Commodity Prices'!D52) -> FALSE | AV39: 57 | AW39: FALSE | AX39: =IF(AW39,'Yahoo Stocks'!D66) -> FALSE | AY39: NWE | AZ39: =IF(AW39,'Yahoo Stocks'!E66) -> FALSE | BA39: NorthWestern Corporation | BB39: F | BC39: Yahoo | BD39: 87 | BE39: FALSE | BF39: =IF(BE39,'Google Finance Stocks'!D63) -> FALSE | BH39: =IF(BE39,'Google Finance Stocks'!E63) -> FALSE | BL39: 87 | BM39: FALSE | BN39: ='Exchange Rates'!D49 -> 0 | BP39: =IF(BM39,'Exchange Rates'!E49) -> FALSE
L40: 38 | M40: OGE | N40: OGE Energy Corporation | O40: F | P40: Yahoo | Q40: 38 | R40: FALSE | S40: =IF(R40,'Yahoo Index'!E90,"") ->  | T40: =IF(R40,'Yahoo Index'!F90,"") ->  | X40: 47 | Y40: FALSE | Z40: =IF($F$17,'FRED Indicies'!E53) -> 0 | AB40: =IF($F$17,'FRED Indicies'!D53) -> 0 | AF40: 52 | AG40: FALSE | AH40: =IF(AG40,'Google Index'!E67) -> FALSE | AJ40: =IF(AF40,'Google Index'!F67) -> 0 | AN40: 52 | AO40: FALSE | AP40: =IF(AO40,'Commodity Prices'!C53) -> FALSE | AR40: =IF(AO40,'Commodity Prices'!D53) -> FALSE | AV40: 58 | AW40: FALSE | AX40: =IF(AW40,'Yahoo Stocks'!D67) -> FALSE | AY40: OGE | AZ40: =IF(AW40,'Yahoo Stocks'!E67) -> FALSE | BA40: OGE Energy Corporation | BB40: F | BC40: Yahoo | BD40: 88 | BE40: FALSE | BF40: =IF(BE40,'Google Finance Stocks'!D64) -> FALSE | BH40: =IF(BE40,'Google Finance Stocks'!E64) -> FALSE | BL40: 88 | BM40: FALSE | BN40: ='Exchange Rates'!D50 -> 0 | BP40: =IF(BM40,'Exchange Rates'!E50) -> FALSE
L41: 39 | M41: OTTR | N41: Otter Tail Corporation | O41: F | P41: Yahoo | Q41: 39 | R41: FALSE | S41: =IF(R41,'Yahoo Index'!E91,"") ->  | T41: =IF(R41,'Yahoo Index'!F91,"") ->  | X41: 48 | Y41: FALSE | Z41: =IF($F$17,'FRED Indicies'!E54) -> 0 | AB41: =IF($F$17,'FRED Indicies'!D54) -> 0 | AF41: 53 | AG41: FALSE | AH41: =IF(AG41,'Google Index'!E68) -> FALSE | AJ41: =IF(AF41,'Google Index'!F68) -> 0 | AN41: 53 | AO41: FALSE | AP41: =IF(AO41,'Commodity Prices'!C54) -> FALSE | AR41: =IF(AO41,'Commodity Prices'!D54) -> FALSE | AV41: 59 | AW41: FALSE | AX41: =IF(AW41,'Yahoo Stocks'!D68) -> FALSE | AY41: OTTR | AZ41: =IF(AW41,'Yahoo Stocks'!E68) -> FALSE | BA41: Otter Tail Corporation | BB41: F | BC41: Yahoo | BD41: 89 | BE41: FALSE | BF41: =IF(BE41,'Google Finance Stocks'!D65) -> FALSE | BH41: =IF(BE41,'Google Finance Stocks'!E65) -> FALSE | BL41: 89 | BM41: FALSE | BN41: ='Exchange Rates'!D51 -> 0 | BP41: =IF(BM41,'Exchange Rates'!E51) -> FALSE
L42: 40 | M42: POR | N42: Portland General Electric | O42: F | P42: Yahoo | Q42: 40 | R42: FALSE | S42: =IF(R42,'Yahoo Index'!E92,"") ->  | T42: =IF(R42,'Yahoo Index'!F92,"") ->  | X42: 49 | Y42: FALSE | Z42: =IF($F$17,'FRED Indicies'!E55) -> 0 | AB42: =IF($F$17,'FRED Indicies'!D55) -> 0 | AF42: 54 | AG42: FALSE | AH42: =IF(AG42,'Google Index'!E69) -> FALSE | AJ42: =IF(AF42,'Google Index'!F69) -> 0 | AN42: 54 | AO42: FALSE | AP42: =IF(AO42,'Commodity Prices'!C55) -> FALSE | AR42: =IF(AO42,'Commodity Prices'!D55) -> FALSE | AV42: 60 | AW42: FALSE | AX42: =IF(AW42,'Yahoo Stocks'!D69) -> FALSE | AY42: POR | AZ42: =IF(AW42,'Yahoo Stocks'!E69) -> FALSE | BA42: Portland General Electric | BB42: F | BC42: Yahoo | BD42: 90 | BE42: FALSE | BF42: =IF(BE42,'Google Finance Stocks'!D66) -> FALSE | BH42: =IF(BE42,'Google Finance Stocks'!E66) -> FALSE | BL42: 90 | BM42: FALSE | BN42: ='Exchange Rates'!D52 -> 0 | BP42: =IF(BM42,'Exchange Rates'!E52) -> FALSE
L43: 41 | M43: XEL | N43: Xcel Energy Inc. | O43: F | P43: Yahoo | Q43: 41 | R43: FALSE | S43: =IF(R43,'Yahoo Index'!E93,"") ->  | T43: =IF(R43,'Yahoo Index'!F93,"") ->  | X43: 50 | Y43: FALSE | Z43: =IF($F$17,'FRED Indicies'!E56) -> 0 | AB43: =IF($F$17,'FRED Indicies'!D56) -> 0 | AF43: 55 | AG43: FALSE | AH43: =IF(AG43,'Google Index'!E70) -> FALSE | AJ43: =IF(AF43,'Google Index'!F70) -> 0 | AN43: 55 | AO43: FALSE | AP43: =IF(AO43,'Commodity Prices'!C56) -> FALSE | AR43: =IF(AO43,'Commodity Prices'!D56) -> FALSE | AV43: 61 | AW43: FALSE | AX43: =IF(AW43,'Yahoo Stocks'!D70) -> FALSE | AY43: XEL | AZ43: =IF(AW43,'Yahoo Stocks'!E70) -> FALSE | BA43: Xcel Energy Inc. | BB43: F | BC43: Yahoo | BD43: 91 | BE43: FALSE | BF43: =IF(BE43,'Google Finance Stocks'!D67) -> FALSE | BH43: =IF(BE43,'Google Finance Stocks'!E67) -> FALSE | BL43: 91 | BM43: FALSE | BN43: ='Exchange Rates'!D53 -> 0 | BP43: =IF(BM43,'Exchange Rates'!E53) -> FALSE
L44: 42 | M44: D | N44: Dominion Energy | O44: F | P44: Yahoo | Q44: 42 | R44: FALSE | S44: =IF(R44,'Yahoo Index'!E94,"") ->  | T44: =IF(R44,'Yahoo Index'!F94,"") ->  | X44: 51 | Y44: FALSE | Z44: =IF($F$17,'FRED Indicies'!E57) -> 0 | AB44: =IF($F$17,'FRED Indicies'!D57) -> 0 | AF44: 56 | AG44: FALSE | AH44: =IF(AG44,'Google Index'!E71) -> FALSE | AJ44: =IF(AF44,'Google Index'!F71) -> 0 | AN44: 56 | AO44: FALSE | AP44: =IF(AO44,'Commodity Prices'!C57) -> FALSE | AR44: =IF(AO44,'Commodity Prices'!D57) -> FALSE | AV44: 62 | AW44: FALSE | AX44: =IF(AW44,'Yahoo Stocks'!D71) -> FALSE | AY44: D | AZ44: =IF(AW44,'Yahoo Stocks'!E71) -> FALSE | BA44: Dominion Energy | BB44: F | BC44: Yahoo | BD44: 92 | BE44: FALSE | BF44: =IF(BE44,'Google Finance Stocks'!D68) -> FALSE | BH44: =IF(BE44,'Google Finance Stocks'!E68) -> FALSE | BL44: 92 | BM44: FALSE | BN44: ='Exchange Rates'!D54 -> 0 | BP44: =IF(BM44,'Exchange Rates'!E54) -> FALSE
L45: 43 | M45: SO | N45: Southern Company | O45: F | P45: Yahoo | Q45: 43 | R45: FALSE | S45: =IF(R45,'Yahoo Index'!E95,"") ->  | T45: =IF(R45,'Yahoo Index'!F95,"") ->  | X45: 52 | Y45: FALSE | Z45: =IF($F$17,'FRED Indicies'!E58) -> 0 | AB45: =IF($F$17,'FRED Indicies'!D58) -> 0 | AF45: 57 | AG45: FALSE | AH45: =IF(AG45,'Google Index'!E72) -> FALSE | AJ45: =IF(AF45,'Google Index'!F72) -> 0 | AN45: 57 | AO45: FALSE | AP45: =IF(AO45,'Commodity Prices'!C58) -> FALSE | AR45: =IF(AO45,'Commodity Prices'!D58) -> FALSE | AV45: 63 | AW45: FALSE | AX45: =IF(AW45,'Yahoo Stocks'!D72) -> FALSE | AY45: SO | AZ45: =IF(AW45,'Yahoo Stocks'!E72) -> FALSE | BA45: Southern Company | BB45: F | BC45: Yahoo | BD45: 93 | BE45: FALSE | BF45: =IF(BE45,'Google Finance Stocks'!D69) -> FALSE | BH45: =IF(BE45,'Google Finance Stocks'!E69) -> FALSE | BL45: 93 | BM45: FALSE | BN45: ='Exchange Rates'!D55 -> 0 | BP45: =IF(BM45,'Exchange Rates'!E55) -> FALSE
L46: 44 | M46: PEG | N46: Public Service Enterprise Group | O46: F | P46: Yahoo | Q46: 44 | R46: FALSE | S46: =IF(R46,'Yahoo Index'!E96,"") ->  | T46: =IF(R46,'Yahoo Index'!F96,"") ->  | X46: 53 | Y46: FALSE | Z46: =IF($F$17,'FRED Indicies'!E59) -> 0 | AB46: =IF($F$17,'FRED Indicies'!D59) -> 0 | AF46: 58 | AG46: FALSE | AH46: =IF(AG46,'Google Index'!E73) -> FALSE | AJ46: =IF(AF46,'Google Index'!F73) -> 0 | AN46: 58 | AO46: FALSE | AP46: =IF(AO46,'Commodity Prices'!C59) -> FALSE | AR46: =IF(AO46,'Commodity Prices'!D59) -> FALSE | AV46: 64 | AW46: FALSE | AX46: =IF(AW46,'Yahoo Stocks'!D73) -> FALSE | AY46: PEG | AZ46: =IF(AW46,'Yahoo Stocks'!E73) -> FALSE | BA46: Public Service Enterprise Group | BB46: F | BC46: Yahoo | BD46: 94 | BE46: FALSE | BF46: =IF(BE46,'Google Finance Stocks'!D70) -> FALSE | BH46: =IF(BE46,'Google Finance Stocks'!E70) -> FALSE | BL46: 94 | BM46: FALSE | BN46: ='Exchange Rates'!D56 -> 0 | BP46: =IF(BM46,'Exchange Rates'!E56) -> FALSE
L47: 45 | M47: WEC | N47: WEC Energy Group | O47: F | P47: Yahoo | Q47: 45 | R47: FALSE | S47: =IF(R47,'Yahoo Index'!E97,"") ->  | T47: =IF(R47,'Yahoo Index'!F97,"") ->  | X47: 54 | Y47: FALSE | Z47: =IF($F$17,'FRED Indicies'!E60) -> 0 | AB47: =IF($F$17,'FRED Indicies'!D60) -> 0 | AF47: 59 | AG47: FALSE | AH47: =IF(AG47,'Google Index'!E74) -> FALSE | AJ47: =IF(AF47,'Google Index'!F74) -> 0 | AN47: 59 | AO47: FALSE | AP47: =IF(AO47,'Commodity Prices'!C60) -> FALSE | AR47: =IF(AO47,'Commodity Prices'!D60) -> FALSE | AV47: 65 | AW47: FALSE | AX47: =IF(AW47,'Yahoo Stocks'!D74) -> FALSE | AY47: WEC | AZ47: =IF(AW47,'Yahoo Stocks'!E74) -> FALSE | BA47: WEC Energy Group | BB47: F | BC47: Yahoo | BD47: 95 | BE47: FALSE | BF47: =IF(BE47,'Google Finance Stocks'!D71) -> FALSE | BH47: =IF(BE47,'Google Finance Stocks'!E71) -> FALSE | BL47: 95 | BM47: FALSE | BN47: ='Exchange Rates'!D57 -> 0 | BP47: =IF(BM47,'Exchange Rates'!E57) -> FALSE
L48: 46 | M48: CMS | N48: Consumers Energy Company | O48: F | P48: Yahoo | Q48: 46 | R48: FALSE | S48: =IF(R48,'Yahoo Index'!E98,"") ->  | T48: =IF(R48,'Yahoo Index'!F98,"") ->  | X48: 55 | Y48: FALSE | Z48: =IF($F$17,'FRED Indicies'!E61) -> 0 | AB48: =IF($F$17,'FRED Indicies'!D61) -> 0 | AF48: 60 | AG48: FALSE | AH48: =IF(AG48,'Google Index'!E75) -> FALSE | AJ48: =IF(AF48,'Google Index'!F75) -> 0 | AN48: 60 | AO48: FALSE | AP48: =IF(AO48,'Commodity Prices'!C61) -> FALSE | AR48: =IF(AO48,'Commodity Prices'!D61) -> FALSE | AV48: 66 | AW48: FALSE | AX48: =IF(AW48,'Yahoo Stocks'!D75) -> FALSE | AY48: CMS | AZ48: =IF(AW48,'Yahoo Stocks'!E75) -> FALSE | BA48: Consumers Energy Company | BB48: F | BC48: Yahoo | BD48: 96 | BE48: FALSE | BF48: =IF(BE48,'Google Finance Stocks'!D72) -> FALSE | BH48: =IF(BE48,'Google Finance Stocks'!E72) -> FALSE | BL48: 96 | BM48: FALSE | BN48: ='Exchange Rates'!D58 -> 0 | BP48: =IF(BM48,'Exchange Rates'!E58) -> FALSE
L49: 47 | M49: MDU | N49: MDU Resources Group | O49: F | P49: Yahoo | Q49: 47 | R49: FALSE | S49: =IF(R49,'Yahoo Index'!E99,"") ->  | T49: =IF(R49,'Yahoo Index'!F99,"") ->  | X49: 56 | Y49: FALSE | Z49: =IF($F$17,'FRED Indicies'!E62) -> 0 | AB49: =IF($F$17,'FRED Indicies'!D62) -> 0 | AF49: 61 | AG49: FALSE | AH49: =IF(AG49,'Google Index'!E76) -> FALSE | AJ49: =IF(AF49,'Google Index'!F76) -> 0 | AN49: 61 | AO49: FALSE | AP49: =IF(AO49,'Commodity Prices'!C62) -> FALSE | AR49: =IF(AO49,'Commodity Prices'!D62) -> FALSE | AV49: 67 | AW49: FALSE | AX49: =IF(AW49,'Yahoo Stocks'!D76) -> FALSE | AY49: MDU | AZ49: =IF(AW49,'Yahoo Stocks'!E76) -> FALSE | BA49: MDU Resources Group | BB49: F | BC49: Yahoo | BD49: 97 | BE49: FALSE | BF49: =IF(BE49,'Google Finance Stocks'!D73) -> FALSE | BH49: =IF(BE49,'Google Finance Stocks'!E73) -> FALSE | BL49: 97 | BM49: FALSE | BN49: ='Exchange Rates'!D59 -> 0 | BP49: =IF(BM49,'Exchange Rates'!E59) -> FALSE
L50: 48 | M50: MGEE | N50: MGE Energy | O50: F | P50: Yahoo | Q50: 48 | R50: FALSE | S50: =IF(R50,'Yahoo Index'!E100,"") ->  | T50: =IF(R50,'Yahoo Index'!F100,"") ->  | X50: 57 | Y50: FALSE | Z50: =IF($F$17,'FRED Indicies'!E63) -> 0 | AB50: =IF($F$17,'FRED Indicies'!D63) -> 0 | AF50: 62 | AG50: FALSE | AH50: =IF(AG50,'Google Index'!E77) -> FALSE | AJ50: =IF(AF50,'Google Index'!F77) -> 0 | AN50: 62 | AO50: FALSE | AP50: =IF(AO50,'Commodity Prices'!C63) -> FALSE | AR50: =IF(AO50,'Commodity Prices'!D63) -> FALSE | AV50: 68 | AW50: FALSE | AX50: =IF(AW50,'Yahoo Stocks'!D77) -> FALSE | AY50: MGEE | AZ50: =IF(AW50,'Yahoo Stocks'!E77) -> FALSE | BA50: MGE Energy | BB50: F | BC50: Yahoo | BD50: 98 | BE50: FALSE | BF50: =IF(BE50,'Google Finance Stocks'!D74) -> FALSE | BH50: =IF(BE50,'Google Finance Stocks'!E74) -> FALSE | BL50: 98 | BM50: FALSE | BN50: ='Exchange Rates'!D60 -> 0 | BP50: =IF(BM50,'Exchange Rates'!E60) -> FALSE
L51: 49 | M51: BKH | N51: Black Hills Corporation | O51: F | P51: Yahoo | Q51: 49 | R51: FALSE | S51: =IF(R51,'Yahoo Index'!E101,"") ->  | T51: =IF(R51,'Yahoo Index'!F101,"") ->  | X51: 58 | Y51: FALSE | Z51: =IF($F$17,'FRED Indicies'!E64) -> 0 | AB51: =IF($F$17,'FRED Indicies'!D64) -> 0 | AF51: 63 | AG51: FALSE | AH51: =IF(AG51,'Google Index'!E78) -> FALSE | AJ51: =IF(AF51,'Google Index'!F78) -> 0 | AN51: 63 | AO51: FALSE | AP51: =IF(AO51,'Commodity Prices'!C64) -> FALSE | AR51: =IF(AO51,'Commodity Prices'!D64) -> FALSE | AV51: 69 | AW51: FALSE | AX51: =IF(AW51,'Yahoo Stocks'!D78) -> FALSE | AY51: BKH | AZ51: =IF(AW51,'Yahoo Stocks'!E78) -> FALSE | BA51: Black Hills Corporation | BB51: F | BC51: Yahoo | BD51: 99 | BE51: FALSE | BF51: =IF(BE51,'Google Finance Stocks'!D75) -> FALSE | BH51: =IF(BE51,'Google Finance Stocks'!E75) -> FALSE | BL51: 99 | BM51: FALSE | BN51: ='Exchange Rates'!D61 -> 0 | BP51: =IF(BM51,'Exchange Rates'!E61) -> FALSE
L52: 50 | M52: PNM | N52: PNM Resources | O52: F | P52: Yahoo | Q52: 50 | R52: FALSE | S52: =IF(R52,'Yahoo Index'!E102,"") ->  | T52: =IF(R52,'Yahoo Index'!F102,"") ->  | X52: 59 | Y52: FALSE | Z52: =IF($F$17,'FRED Indicies'!E65) -> 0 | AB52: =IF($F$17,'FRED Indicies'!D65) -> 0 | AF52: 64 | AG52: FALSE | AH52: =IF(AG52,'Google Index'!E79) -> FALSE | AJ52: =IF(AF52,'Google Index'!F79) -> 0 | AN52: 64 | AO52: FALSE | AP52: =IF(AO52,'Commodity Prices'!C65) -> FALSE | AR52: =IF(AO52,'Commodity Prices'!D65) -> FALSE | AV52: 70 | AW52: FALSE | AX52: =IF(AW52,'Yahoo Stocks'!D79) -> FALSE | AY52: PNM | AZ52: =IF(AW52,'Yahoo Stocks'!E79) -> FALSE | BA52: PNM Resources | BB52: F | BC52: Yahoo | BD52: 100 | BE52: FALSE | BF52: =IF(BE52,'Google Finance Stocks'!D76) -> FALSE | BH52: =IF(BE52,'Google Finance Stocks'!E76) -> FALSE | BL52: 100 | BM52: FALSE | BN52: ='Exchange Rates'!D62 -> 0 | BP52: =IF(BM52,'Exchange Rates'!E62) -> FALSE
L53: 51 | M53: =S53&AA53&AI53&AQ53&AY53&BG53&BO53 -> GDP Inf | N53: =T53&AC53&AK53&AS53&BA53&BI53&BQ53 -> Implicit Price Deflator | O53: =U53&AD53&AL53&AT53&BB53&BJ53&BR53 -> B | P53: =V53&AE53&AM53&AU53&BC53&BK53&BS53 -> FRED | Q53: 51 | R53: =IF(AND($F$3,Q53<=$H$3),Q53) -> FALSE | S53: =IF(R53,'Yahoo Index'!E103,"") ->  | T53: =IF(R53,'Yahoo Index'!F103,"") ->  | U53: =IF(R53,$I$3,"") ->  | V53: =IF(R53,$J$3,"") ->  | X53: 60 | Y53: FALSE | Z53: =IF($F$17,'FRED Indicies'!E66) -> 0 | AA53: =IFERROR(INDEX(Z:Z,MATCH(L53,Y:Y,0)),"") ->  | AB53: =IF($F$17,'FRED Indicies'!D66) -> 0 | AC53: =IFERROR(INDEX(AB:AB,MATCH(L53,Y:Y,0)),"") ->  | AF53: 65 | AG53: FALSE | AH53: =IF(AG53,'Google Index'!E80) -> FALSE | AI53: =IFERROR(INDEX(AH:AH,MATCH(Q53,AG:AG,0)),"") ->  | AJ53: =IF(AF53,'Google Index'!F80) -> 0 | AK53: =IFERROR(INDEX(AJ:AJ,MATCH(Q53,AG:AG,0)),"") ->  | AN53: 65 | AO53: FALSE | AP53: =IF(AO53,'Commodity Prices'!C66) -> FALSE | AQ53: =IFERROR(INDEX(AP:AP,MATCH(L53,AO:AO,0)),"") ->  | AR53: =IF(AO53,'Commodity Prices'!D66) -> FALSE | AS53: =IFERROR(INDEX(AR:AR,MATCH(L53,AO:AO,0)),"") ->  | AV53: 71 | AW53: FALSE | AX53: =IF(AW53,'Yahoo Stocks'!D80) -> FALSE | AZ53: =IF(AW53,'Yahoo Stocks'!E80) -> FALSE | BD53: 101 | BE53: FALSE | BF53: =IF(BE53,'Google Finance Stocks'!D77) -> FALSE | BG53: =IFERROR(INDEX(BF:BF,MATCH(Q53,BE:BE,0)),"") ->  | BH53: =IF(BE53,'Google Finance Stocks'!E77) -> FALSE | BI53: =IFERROR(INDEX(BH:BH,MATCH(Q53,BE:BE,0)),"") ->  | BL53: 101 | BM53: FALSE | BN53: ='Exchange Rates'!D63 -> 0 | BO53: =IFERROR(INDEX(BN:BN,MATCH(L53,BM:BM,0)),"") -> GDP Inf | BP53: =IF(BM53,'Exchange Rates'!E63) -> FALSE | BQ53: =IFERROR(INDEX(BP:BP,MATCH(L53,BM:BM,0)),"") -> Implicit Price Deflator | BR53: B | BS53: FRED
L54: 52 | M54: CPI US | N54: Consumer Price Inflation | O54: B | P54: FRED | Q54: 52 | R54: FALSE | S54: =IF(R54,'Yahoo Index'!E104,"") ->  | T54: =IF(R54,'Yahoo Index'!F104,"") ->  | X54: 61 | Y54: FALSE | Z54: =IF($F$17,'FRED Indicies'!E67) -> 0 | AB54: =IF($F$17,'FRED Indicies'!D67) -> 0 | AF54: 66 | AG54: FALSE | AH54: =IF(AG54,'Google Index'!E81) -> FALSE | AJ54: =IF(AF54,'Google Index'!F81) -> 0 | AN54: 66 | AO54: FALSE | AP54: =IF(AO54,'Commodity Prices'!C67) -> FALSE | AR54: =IF(AO54,'Commodity Prices'!D67) -> FALSE | AV54: 72 | AW54: FALSE | AX54: =IF(AW54,'Yahoo Stocks'!D81) -> FALSE | AZ54: =IF(AW54,'Yahoo Stocks'!E81) -> FALSE | BD54: 102 | BE54: FALSE | BF54: =IF(BE54,'Google Finance Stocks'!D78) -> FALSE | BH54: =IF(BE54,'Google Finance Stocks'!E78) -> FALSE | BL54: 102 | BM54: FALSE | BN54: ='Exchange Rates'!D64 -> 0 | BO54: CPI US | BP54: =IF(BM54,'Exchange Rates'!E64) -> FALSE | BQ54: Consumer Price Inflation | BR54: B | BS54: FRED
L55: 53 | M55: Euro | N55: U.S. / Euro Foreign Exchange Rate (EXUSEU) | O55: B | P55: FRED | Q55: 53 | R55: FALSE | S55: =IF(R55,'Yahoo Index'!E105,"") ->  | T55: =IF(R55,'Yahoo Index'!F105,"") ->  | X55: 62 | Y55: FALSE | Z55: =IF($F$17,'FRED Indicies'!E68) -> 0 | AB55: =IF($F$17,'FRED Indicies'!D68) -> 0 | AF55: 67 | AG55: FALSE | AH55: =IF(AG55,'Google Index'!E82) -> FALSE | AJ55: =IF(AF55,'Google Index'!F82) -> 0 | AN55: 67 | AO55: FALSE | AP55: =IF(AO55,'Commodity Prices'!C68) -> FALSE | AR55: =IF(AO55,'Commodity Prices'!D68) -> FALSE | AV55: 73 | AW55: FALSE | AX55: =IF(AW55,'Yahoo Stocks'!D82) -> FALSE | AZ55: =IF(AW55,'Yahoo Stocks'!E82) -> FALSE | BD55: 103 | BE55: FALSE | BF55: =IF(BE55,'Google Finance Stocks'!D79) -> FALSE | BH55: =IF(BE55,'Google Finance Stocks'!E79) -> FALSE | BL55: 103 | BM55: FALSE | BN55: ='Exchange Rates'!D65 -> 0 | BO55: Euro | BP55: =IF(BM55,'Exchange Rates'!E65) -> FALSE | BQ55: U.S. / Euro Foreign Exchange Rate (EXUSEU) | BR55: B | BS55: FRED
L56: 54 | M56: INR | N56: India / U.S. Foreign Exchange Rate (DEXINUS) | O56: B | P56: FRED | Q56: 54 | R56: FALSE | S56: =IF(R56,'Yahoo Index'!E106,"") ->  | T56: =IF(R56,'Yahoo Index'!F106,"") ->  | X56: 63 | Y56: FALSE | Z56: =IF($F$17,'FRED Indicies'!E69) -> 0 | AB56: =IF($F$17,'FRED Indicies'!D69) -> 0 | AF56: 68 | AG56: FALSE | AH56: =IF(AG56,'Google Index'!E83) -> FALSE | AJ56: =IF(AF56,'Google Index'!F83) -> 0 | AN56: 68 | AO56: FALSE | AP56: =IF(AO56,'Commodity Prices'!C69) -> FALSE | AR56: =IF(AO56,'Commodity Prices'!D69) -> FALSE | AV56: 74 | AW56: FALSE | AX56: =IF(AW56,'Yahoo Stocks'!D83) -> FALSE | AZ56: =IF(AW56,'Yahoo Stocks'!E83) -> FALSE | BD56: 104 | BE56: FALSE | BF56: =IF(BE56,'Google Finance Stocks'!D80) -> FALSE | BH56: =IF(BE56,'Google Finance Stocks'!E80) -> FALSE | BL56: 104 | BM56: FALSE | BN56: ='Exchange Rates'!D81 -> 0 | BO56: INR | BP56: =IF(BM56,'Exchange Rates'!E81) -> FALSE | BQ56: India / U.S. Foreign Exchange Rate (DEXINUS) | BR56: B | BS56: FRED
L57: 55 | M57: UK | N57: U.S. / U.K. Foreign Exchange Rate (EXUSUK) | O57: B | P57: FRED | Q57: 55 | R57: FALSE | S57: =IF(R57,'Yahoo Index'!E107,"") ->  | T57: =IF(R57,'Yahoo Index'!F107,"") ->  | X57: 64 | Y57: FALSE | Z57: =IF($F$17,'FRED Indicies'!E70) -> 0 | AB57: =IF($F$17,'FRED Indicies'!D70) -> 0 | AF57: 69 | AG57: FALSE | AH57: =IF(AG57,'Google Index'!E84) -> FALSE | AJ57: =IF(AF57,'Google Index'!F84) -> 0 | AN57: 69 | AO57: FALSE | AP57: =IF(AO57,'Commodity Prices'!C70) -> FALSE | AR57: =IF(AO57,'Commodity Prices'!D70) -> FALSE | AV57: 75 | AW57: FALSE | AX57: =IF(AW57,'Yahoo Stocks'!D84) -> FALSE | AZ57: =IF(AW57,'Yahoo Stocks'!E84) -> FALSE | BD57: 105 | BE57: FALSE | BF57: =IF(BE57,'Google Finance Stocks'!D81) -> FALSE | BH57: =IF(BE57,'Google Finance Stocks'!E81) -> FALSE | BL57: 105 | BM57: FALSE | BN57: ='Exchange Rates'!D82 -> 0 | BO57: UK | BP57: =IF(BM57,'Exchange Rates'!E82) -> FALSE | BQ57: U.S. / U.K. Foreign Exchange Rate (EXUSUK) | BR57: B | BS57: FRED
L58: 56 | M58: PKR | N58: Pakistan Exchange Rate | O58: B | P58: FRED | Q58: 56 | R58: FALSE | S58: =IF(R58,'Yahoo Index'!E108,"") ->  | T58: =IF(R58,'Yahoo Index'!F108,"") ->  | X58: 65 | Y58: FALSE | Z58: =IF($F$17,'FRED Indicies'!E71) -> 0 | AB58: =IF($F$17,'FRED Indicies'!D71) -> 0 | AF58: 70 | AG58: FALSE | AH58: =IF(AG58,'Google Index'!E85) -> FALSE | AJ58: =IF(AF58,'Google Index'!F85) -> 0 | AN58: 70 | AO58: FALSE | AP58: =IF(AO58,'Commodity Prices'!C71) -> FALSE | AR58: =IF(AO58,'Commodity Prices'!D71) -> FALSE | AV58: 76 | AW58: FALSE | AX58: =IF(AW58,'Yahoo Stocks'!D85) -> FALSE | AZ58: =IF(AW58,'Yahoo Stocks'!E85) -> FALSE | BD58: 106 | BE58: FALSE | BF58: =IF(BE58,'Google Finance Stocks'!D82) -> FALSE | BH58: =IF(BE58,'Google Finance Stocks'!E82) -> FALSE | BL58: 106 | BM58: FALSE | BN58: ='Exchange Rates'!D83 -> 0 | BO58: PKR | BP58: =IF(BM58,'Exchange Rates'!E83) -> FALSE | BQ58: Pakistan Exchange Rate | BR58: B | BS58: FRED
L59: 57 | M59: US NOM GNP | N59: Gross National Product (GNP) | O59: B | P59: FRED | Q59: 57 | R59: FALSE | S59: =IF(R59,'Yahoo Index'!E109,"") ->  | T59: =IF(R59,'Yahoo Index'!F109,"") ->  | X59: 66 | Y59: FALSE | Z59: =IF($F$17,'FRED Indicies'!E72) -> 0 | AB59: =IF($F$17,'FRED Indicies'!D72) -> 0 | AF59: 71 | AG59: FALSE | AH59: =IF(AG59,'Google Index'!E86) -> FALSE | AJ59: =IF(AF59,'Google Index'!F86) -> 0 | AN59: 71 | AO59: FALSE | AP59: =IF(AO59,'Commodity Prices'!C72) -> FALSE | AR59: =IF(AO59,'Commodity Prices'!D72) -> FALSE | AV59: 77 | AW59: FALSE | AX59: =IF(AW59,'Yahoo Stocks'!D86) -> FALSE | AZ59: =IF(AW59,'Yahoo Stocks'!E86) -> FALSE | BD59: 107 | BE59: FALSE | BF59: =IF(BE59,'Google Finance Stocks'!D83) -> FALSE | BH59: =IF(BE59,'Google Finance Stocks'!E83) -> FALSE | BL59: 107 | BM59: FALSE | BN59: ='Exchange Rates'!D84 -> 0 | BO59: US NOM GNP | BP59: =IF(BM59,'Exchange Rates'!E84) -> FALSE | BQ59: Gross National Product (GNP) | BR59: B | BS59: FRED
L60: 58 | M60: 5 yr treasury | N60: 5-Year Treasury Constant Maturity Rate (GS5) | O60: B | P60: FRED | Q60: 58 | R60: FALSE | S60: =IF(R60,'Yahoo Index'!E110,"") ->  | T60: =IF(R60,'Yahoo Index'!F110,"") ->  | X60: 67 | Y60: FALSE | Z60: =IF($F$17,'FRED Indicies'!E73) -> 0 | AB60: =IF($F$17,'FRED Indicies'!D73) -> 0 | AF60: 72 | AG60: FALSE | AH60: =IF(AG60,'Google Index'!E87) -> FALSE | AJ60: =IF(AF60,'Google Index'!F87) -> 0 | AN60: 72 | AO60: FALSE | AP60: =IF(AO60,'Commodity Prices'!C73) -> FALSE | AR60: =IF(AO60,'Commodity Prices'!D73) -> FALSE | AV60: 78 | AW60: FALSE | AX60: =IF(AW60,'Yahoo Stocks'!D87) -> FALSE | AZ60: =IF(AW60,'Yahoo Stocks'!E87) -> FALSE | BD60: 108 | BE60: FALSE | BF60: =IF(BE60,'Google Finance Stocks'!D84) -> FALSE | BH60: =IF(BE60,'Google Finance Stocks'!E84) -> FALSE | BL60: 108 | BM60: FALSE | BN60: ='Exchange Rates'!D85 -> 0 | BO60: 5 yr treasury | BP60: =IF(BM60,'Exchange Rates'!E85) -> FALSE | BQ60: 5-Year Treasury Constant Maturity Rate (GS5) | BR60: B | BS60: FRED
L61: 59 | M61: 10 year treasury | N61: 10-Year Treasury Constant Maturity Rate (GS10) | O61: B | P61: FRED | Q61: 59 | R61: FALSE | S61: =IF(R61,'Yahoo Index'!E111,"") ->  | T61: =IF(R61,'Yahoo Index'!F111,"") ->  | X61: 68 | Y61: FALSE | Z61: =IF($F$17,'FRED Indicies'!E74) -> 0 | AB61: =IF($F$17,'FRED Indicies'!D74) -> 0 | AF61: 73 | AG61: FALSE | AH61: =IF(AG61,'Google Index'!E88) -> FALSE | AJ61: =IF(AF61,'Google Index'!F88) -> 0 | AN61: 73 | AO61: FALSE | AP61: =IF(AO61,'Commodity Prices'!C74) -> FALSE | AR61: =IF(AO61,'Commodity Prices'!D74) -> FALSE | AV61: 79 | AW61: FALSE | AX61: =IF(AW61,'Yahoo Stocks'!D88) -> FALSE | AZ61: =IF(AW61,'Yahoo Stocks'!E88) -> FALSE | BD61: 109 | BE61: FALSE | BF61: =IF(BE61,'Google Finance Stocks'!D85) -> FALSE | BH61: =IF(BE61,'Google Finance Stocks'!E85) -> FALSE | BL61: 109 | BM61: FALSE | BN61: ='Exchange Rates'!D86 -> 0 | BO61: 10 year treasury | BP61: =IF(BM61,'Exchange Rates'!E86) -> FALSE | BQ61: 10-Year Treasury Constant Maturity Rate (GS10) | BR61: B | BS61: FRED
L62: 60 | M62: US Med Inc Nom | N62: Median Household Income in the United States (MEHOINUSA646N) | O62: B | P62: FRED | Q62: 60 | R62: FALSE | S62: =IF(R62,'Yahoo Index'!E112,"") ->  | T62: =IF(R62,'Yahoo Index'!F112,"") ->  | X62: 69 | Y62: FALSE | Z62: =IF($F$17,'FRED Indicies'!E75) -> 0 | AB62: =IF($F$17,'FRED Indicies'!D75) -> 0 | AF62: 74 | AG62: FALSE | AH62: =IF(AG62,'Google Index'!E89) -> FALSE | AJ62: =IF(AF62,'Google Index'!F89) -> 0 | AN62: 74 | AO62: FALSE | AP62: =IF(AO62,'Commodity Prices'!C75) -> FALSE | AR62: =IF(AO62,'Commodity Prices'!D75) -> FALSE | AV62: 80 | AW62: FALSE | AX62: =IF(AW62,'Yahoo Stocks'!D89) -> FALSE | AZ62: =IF(AW62,'Yahoo Stocks'!E89) -> FALSE | BD62: 110 | BE62: FALSE | BF62: =IF(BE62,'Google Finance Stocks'!D86) -> FALSE | BH62: =IF(BE62,'Google Finance Stocks'!E86) -> FALSE | BL62: 110 | BM62: FALSE | BN62: ='Exchange Rates'!D87 -> 0 | BO62: US Med Inc Nom | BP62: =IF(BM62,'Exchange Rates'!E87) -> FALSE | BQ62: Median Household Income in the United States (MEHOINUSA646N) | BR62: B | BS62: FRED
L63: 61 | M63: Median Income | N63: Employed full time: Median usual weekly real earnings: d over (LES1252881600Q) | O63: B | P63: FRED | Q63: 61 | R63: FALSE | S63: =IF(R63,'Yahoo Index'!E113,"") ->  | T63: =IF(R63,'Yahoo Index'!F113,"") ->  | X63: 70 | Y63: FALSE | Z63: =IF($F$17,'FRED Indicies'!E76) -> 0 | AB63: =IF($F$17,'FRED Indicies'!D76) -> 0 | AF63: 75 | AG63: FALSE | AH63: =IF(AG63,'Google Index'!E90) -> FALSE | AJ63: =IF(AF63,'Google Index'!F90) -> 0 | AN63: 75 | AO63: FALSE | AP63: =IF(AO63,'Commodity Prices'!C76) -> FALSE | AR63: =IF(AO63,'Commodity Prices'!D76) -> FALSE | AV63: 81 | AW63: FALSE | AX63: =IF(AW63,'Yahoo Stocks'!D90) -> FALSE | AZ63: =IF(AW63,'Yahoo Stocks'!E90) -> FALSE | BD63: 111 | BE63: FALSE | BF63: =IF(BE63,'Google Finance Stocks'!D87) -> FALSE | BH63: =IF(BE63,'Google Finance Stocks'!E87) -> FALSE | BL63: 111 | BM63: FALSE | BN63: ='Exchange Rates'!D88 -> 0 | BO63: Median Income | BP63: =IF(BM63,'Exchange Rates'!E88) -> FALSE | BQ63: Employed full time: Median usual weekly real earnings: d over (LES1252881600Q) | BR63: B | BS63: FRED
L64: 62 | M64: Corp Profit | N64: Corporate Profits | O64: B | P64: FRED | Q64: 62 | R64: FALSE | S64: =IF(R64,'Yahoo Index'!E114,"") ->  | T64: =IF(R64,'Yahoo Index'!F114,"") ->  | X64: 71 | Y64: FALSE | Z64: =IF($F$17,'FRED Indicies'!E77) -> 0 | AB64: =IF($F$17,'FRED Indicies'!D77) -> 0 | AF64: 76 | AG64: FALSE | AH64: =IF(AG64,'Google Index'!E91) -> FALSE | AJ64: =IF(AF64,'Google Index'!F91) -> 0 | AN64: 76 | AO64: FALSE | AP64: =IF(AO64,'Commodity Prices'!C77) -> FALSE | AR64: =IF(AO64,'Commodity Prices'!D77) -> FALSE | AV64: 82 | AW64: FALSE | AX64: =IF(AW64,'Yahoo Stocks'!D91) -> FALSE | AZ64: =IF(AW64,'Yahoo Stocks'!E91) -> FALSE | BD64: 112 | BE64: FALSE | BF64: =IF(BE64,'Google Finance Stocks'!D88) -> FALSE | BH64: =IF(BE64,'Google Finance Stocks'!E88) -> FALSE | BL64: 112 | BM64: FALSE | BN64: ='Exchange Rates'!D89 -> 0 | BO64: Corp Profit | BP64: =IF(BM64,'Exchange Rates'!E89) -> FALSE | BQ64: Corporate Profits | BR64: B | BS64: FRED
L65: 63 | M65: Corp Nonfin | N65: Non Financial Corporate Profits | O65: B | P65: FRED | Q65: 63 | R65: FALSE | S65: =IF(R65,'Yahoo Index'!E115,"") ->  | T65: =IF(R65,'Yahoo Index'!F115,"") ->  | X65: 72 | Y65: FALSE | Z65: =IF($F$17,'FRED Indicies'!E78) -> 0 | AB65: =IF($F$17,'FRED Indicies'!D78) -> 0 | AF65: 77 | AG65: FALSE | AH65: =IF(AG65,'Google Index'!E92) -> FALSE | AJ65: =IF(AF65,'Google Index'!F92) -> 0 | AN65: 77 | AO65: FALSE | AP65: =IF(AO65,'Commodity Prices'!C78) -> FALSE | AR65: =IF(AO65,'Commodity Prices'!D78) -> FALSE | AV65: 83 | AW65: FALSE | AX65: =IF(AW65,'Yahoo Stocks'!D92) -> FALSE | AZ65: =IF(AW65,'Yahoo Stocks'!E92) -> FALSE | BD65: 113 | BE65: FALSE | BF65: =IF(BE65,'Google Finance Stocks'!D89) -> FALSE | BH65: =IF(BE65,'Google Finance Stocks'!E89) -> FALSE | BL65: 113 | BM65: FALSE | BN65: ='Exchange Rates'!D90 -> 0 | BO65: Corp Nonfin | BP65: =IF(BM65,'Exchange Rates'!E90) -> FALSE | BQ65: Non Financial Corporate Profits | BR65: B | BS65: FRED
L66: 64 | M66: Corp Aft Tax | N66: Corporate Profits After Tax | O66: B | P66: FRED | Q66: 64 | R66: FALSE | S66: =IF(R66,'Yahoo Index'!E116,"") ->  | T66: =IF(R66,'Yahoo Index'!F116,"") ->  | X66: 73 | Y66: FALSE | Z66: =IF($F$17,'FRED Indicies'!E79) -> 0 | AB66: =IF($F$17,'FRED Indicies'!D79) -> 0 | AF66: 78 | AG66: FALSE | AH66: =IF(AG66,'Google Index'!E93) -> FALSE | AJ66: =IF(AF66,'Google Index'!F93) -> 0 | AN66: 78 | AO66: FALSE | AP66: =IF(AO66,'Commodity Prices'!C79) -> FALSE | AR66: =IF(AO66,'Commodity Prices'!D79) -> FALSE | AV66: 84 | AW66: FALSE | AX66: =IF(AW66,'Yahoo Stocks'!D93) -> FALSE | AZ66: =IF(AW66,'Yahoo Stocks'!E93) -> FALSE | BD66: 114 | BE66: FALSE | BF66: =IF(BE66,'Google Finance Stocks'!D90) -> FALSE | BH66: =IF(BE66,'Google Finance Stocks'!E90) -> FALSE | BL66: 114 | BM66: FALSE | BN66: ='Exchange Rates'!D91 -> 0 | BO66: Corp Aft Tax | BP66: =IF(BM66,'Exchange Rates'!E91) -> FALSE | BQ66: Corporate Profits After Tax | BR66: B | BS66: FRED
L67: 65 | M67: Corp Inf Adjusted | N67: Corporate Profits with Inflation Adj | O67: B | P67: FRED | Q67: 65 | R67: FALSE | S67: =IF(R67,'Yahoo Index'!E117,"") ->  | T67: =IF(R67,'Yahoo Index'!F117,"") ->  | X67: 74 | Y67: =IF(AND($F$17,X67<=$H$17),X67) -> FALSE | Z67: =IF($F$17,'FRED Indicies'!E80) -> 0 | AB67: =IF($F$17,'FRED Indicies'!D80) -> 0 | AD67: =IF(AA67<>"",$I$17,"") ->  | AE67: =IF(AA67<>"",$J$17,"") ->  | AF67: 79 | AG67: =IF(AND($F$20,AF67<=$H$20),AF67) -> FALSE | AH67: =IF(AG67,'Google Index'!E94) -> FALSE | AJ67: =IF(AF67,'Google Index'!F94) -> 0 | AL67: =IF(AI67<>"",$I$17,"") ->  | AM67: =IF(AK67<>"",$J$17,"") ->  | AN67: 79 | AO67: =IF(AND($F$11,AN67<=$H$11),AN67) -> FALSE | AP67: =IF(AO67,'Commodity Prices'!C80) -> FALSE | AR67: =IF(AO67,'Commodity Prices'!D80) -> FALSE | AT67: =IF(AQ67<>"",$I$11,"") ->  | AU67: =IF(AS67<>"",$J$11,"") ->  | AV67: 85 | AW67: =IF(AND($F$5,AV67<=$H$5),AV67) -> FALSE | AX67: =IF(AW67,'Yahoo Stocks'!D94) -> FALSE | AZ67: =IF(AW67,'Yahoo Stocks'!E94) -> FALSE | BB67: =IF(AY67<>"",$I$5,"") ->  | BC67: =IF(BA67<>"",$J$5,"") ->  | BD67: 115 | BE67: =IF(AND($F$14,BD67<=$H$14),BD67) -> FALSE | BF67: =IF(BE67,'Google Finance Stocks'!D91) -> FALSE | BH67: =IF(BE67,'Google Finance Stocks'!E91) -> FALSE | BJ67: =IF(BI67<>"",$I$14,"") ->  | BK67: =IF(BI67<>"",$J$14,"") ->  | BL67: 115 | BM67: =IF(AND($F$8,BL67<=$H$8),BL67) -> FALSE | BN67: ='Exchange Rates'!D92 -> 0 | BO67: Corp Inf Adjusted | BP67: =IF(BM67,'Exchange Rates'!E92) -> FALSE | BQ67: Corporate Profits with Inflation Adj | BR67: =IF(BQ67<>"",$I$8,"") -> B | BS67: =IF(BQ67<>"",$J$8,"") -> FRED
L68: 66 | M68: GDP Inflation Index | N68: GDP Inflation Index | O68: B | P68: FRED | Q68: 66 | R68: FALSE | S68: =IF(R68,'Yahoo Index'!E118,"") ->  | T68: =IF(R68,'Yahoo Index'!F118,"") ->  | X68: 75 | Y68: FALSE | Z68: =IF($F$17,'FRED Indicies'!E81) -> 0 | AB68: =IF($F$17,'FRED Indicies'!D81) -> 0 | AF68: 80 | AG68: FALSE | AH68: =IF(AG68,'Google Index'!E95) -> FALSE | AJ68: =IF(AF68,'Google Index'!F95) -> 0 | AN68: 80 | AO68: FALSE | AP68: =IF(AO68,'Commodity Prices'!C81) -> FALSE | AR68: =IF(AO68,'Commodity Prices'!D81) -> FALSE | AV68: 86 | AW68: FALSE | AX68: =IF(AW68,'Yahoo Stocks'!D95) -> FALSE | AZ68: =IF(AW68,'Yahoo Stocks'!E95) -> FALSE | BD68: 116 | BE68: FALSE | BF68: =IF(BE68,'Google Finance Stocks'!D92) -> FALSE | BH68: =IF(BE68,'Google Finance Stocks'!E92) -> FALSE | BL68: 116 | BM68: FALSE | BN68: ='Exchange Rates'!D93 -> 0 | BO68: GDP Inflation Index | BP68: =IF(BM68,'Exchange Rates'!E93) -> FALSE | BQ68: GDP Inflation Index | BR68: B | BS68: FRED
L69: 67 | M69: CPI US Index | N69: CPI US Index | O69: B | P69: FRED | Q69: =Q68+1 -> 67 | R69: FALSE | S69: =IF(R69,'Yahoo Index'!E119,"") ->  | T69: =IF(R69,'Yahoo Index'!F119,"") ->  | X69: =X68+1 -> 76 | Y69: FALSE | Z69: =IF($F$17,'FRED Indicies'!E82) -> 0 | AB69: =IF($F$17,'FRED Indicies'!D82) -> 0 | AF69: =AF68+1 -> 81 | AG69: FALSE | AH69: =IF(AG69,'Google Index'!E96) -> FALSE | AJ69: =IF(AF69,'Google Index'!F96) -> 0 | AN69: =AN68+1 -> 81 | AO69: FALSE | AP69: =IF(AO69,'Commodity Prices'!C82) -> FALSE | AR69: =IF(AO69,'Commodity Prices'!D82) -> FALSE | AV69: =AV68+1 -> 87 | AW69: FALSE | AX69: =IF(AW69,'Yahoo Stocks'!D96) -> FALSE | AZ69: =IF(AW69,'Yahoo Stocks'!E96) -> FALSE | BD69: =BD68+1 -> 117 | BE69: FALSE | BF69: =IF(BE69,'Google Finance Stocks'!D93) -> FALSE | BH69: =IF(BE69,'Google Finance Stocks'!E93) -> FALSE | BL69: =BL68+1 -> 117 | BM69: FALSE | BN69: ='Exchange Rates'!D94 -> 0 | BO69: CPI US Index | BP69: =IF(BM69,'Exchange Rates'!E94) -> FALSE | BQ69: CPI US Index | BR69: B | BS69: FRED
L70: 68 | M70: US GDP | N70: US GDP Gross Domestic Product (GDP) | O70: B | P70: FRED | Q70: 68 | R70: FALSE | S70: =IF(R70,'Yahoo Index'!E120,"") ->  | T70: =IF(R70,'Yahoo Index'!F120,"") ->  | X70: 77 | Y70: FALSE | Z70: =IF($F$17,'FRED Indicies'!E83) -> 0 | AB70: =IF($F$17,'FRED Indicies'!D83) -> 0 | AF70: 82 | AG70: FALSE | AH70: =IF(AG70,'Google Index'!E97) -> FALSE | AJ70: =IF(AF70,'Google Index'!F97) -> 0 | AN70: 82 | AO70: FALSE | AP70: =IF(AO70,'Commodity Prices'!C83) -> FALSE | AR70: =IF(AO70,'Commodity Prices'!D83) -> FALSE | AV70: 88 | AW70: FALSE | AX70: =IF(AW70,'Yahoo Stocks'!D97) -> FALSE | AZ70: =IF(AW70,'Yahoo Stocks'!E97) -> FALSE | BD70: 118 | BE70: FALSE | BF70: =IF(BE70,'Google Finance Stocks'!D94) -> FALSE | BH70: =IF(BE70,'Google Finance Stocks'!E94) -> FALSE | BL70: 118 | BM70: FALSE | BN70: ='Exchange Rates'!D95 -> 0 | BO70: US GDP | BP70: =IF(BM70,'Exchange Rates'!E95) -> FALSE | BQ70: US GDP Gross Domestic Product (GDP) | BR70: B | BS70: FRED
L71: 69 | M71: Median Family Income | N71: Median Family Income in the United States (MEFAINUSA646N) | O71: B | P71: FRED | Q71: 69 | R71: FALSE | S71: =IF(R71,'Yahoo Index'!E121,"") ->  | T71: =IF(R71,'Yahoo Index'!F121,"") ->  | X71: 78 | Y71: FALSE | Z71: =IF($F$17,'FRED Indicies'!E84) -> 0 | AB71: =IF($F$17,'FRED Indicies'!D84) -> 0 | AF71: 83 | AG71: FALSE | AH71: =IF(AG71,'Google Index'!E98) -> FALSE | AJ71: =IF(AF71,'Google Index'!F98) -> 0 | AN71: 83 | AO71: FALSE | AP71: =IF(AO71,'Commodity Prices'!C84) -> FALSE | AR71: =IF(AO71,'Commodity Prices'!D84) -> FALSE | AV71: 89 | AW71: FALSE | AX71: =IF(AW71,'Yahoo Stocks'!D98) -> FALSE | AZ71: =IF(AW71,'Yahoo Stocks'!E98) -> FALSE | BD71: 119 | BE71: FALSE | BF71: =IF(BE71,'Google Finance Stocks'!D95) -> FALSE | BH71: =IF(BE71,'Google Finance Stocks'!E95) -> FALSE | BL71: 119 | BM71: FALSE | BN71: ='Exchange Rates'!D96 -> 0 | BO71: Median Family Income | BP71: =IF(BM71,'Exchange Rates'!E96) -> FALSE | BQ71: Median Family Income in the United States (MEFAINUSA646N) | BR71: B | BS71: FRED
L72: 70 | M72: US Real GDP | N72: Real Gross Domestic Product (GDPC1) | O72: B | P72: FRED | Q72: 70 | R72: FALSE | S72: =IF(R72,'Yahoo Index'!E122,"") ->  | T72: =IF(R72,'Yahoo Index'!F122,"") ->  | X72: 79 | Y72: FALSE | Z72: =IF($F$17,'FRED Indicies'!E85) -> 0 | AB72: =IF($F$17,'FRED Indicies'!D85) -> 0 | AF72: 84 | AG72: FALSE | AH72: =IF(AG72,'Google Index'!E99) -> FALSE | AJ72: =IF(AF72,'Google Index'!F99) -> 0 | AN72: 84 | AO72: FALSE | AP72: =IF(AO72,'Commodity Prices'!C85) -> FALSE | AR72: =IF(AO72,'Commodity Prices'!D85) -> FALSE | AV72: 90 | AW72: FALSE | AX72: =IF(AW72,'Yahoo Stocks'!D99) -> FALSE | AZ72: =IF(AW72,'Yahoo Stocks'!E99) -> FALSE | BD72: 120 | BE72: FALSE | BF72: =IF(BE72,'Google Finance Stocks'!D96) -> FALSE | BH72: =IF(BE72,'Google Finance Stocks'!E96) -> FALSE | BL72: 120 | BM72: FALSE | BN72: ='Exchange Rates'!D97 -> 0 | BO72: US Real GDP | BP72: =IF(BM72,'Exchange Rates'!E97) -> FALSE | BQ72: Real Gross Domestic Product (GDPC1) | BR72: B | BS72: FRED
L73: 71 | M73: US Real GNP | N73: Real Gross National Product (GNPC96) | O73: B | P73: FRED | Q73: 71 | R73: FALSE | S73: =IF(R73,'Yahoo Index'!E123,"") ->  | T73: =IF(R73,'Yahoo Index'!F123,"") ->  | X73: 80 | Y73: FALSE | Z73: =IF($F$17,'FRED Indicies'!E86) -> 0 | AB73: =IF($F$17,'FRED Indicies'!D86) -> 0 | AF73: 85 | AG73: FALSE | AH73: =IF(AG73,'Google Index'!E100) -> FALSE | AJ73: =IF(AF73,'Google Index'!F100) -> 0 | AN73: 85 | AO73: FALSE | AP73: =IF(AO73,'Commodity Prices'!C86) -> FALSE | AR73: =IF(AO73,'Commodity Prices'!D86) -> FALSE | AV73: 91 | AW73: FALSE | AX73: =IF(AW73,'Yahoo Stocks'!D100) -> FALSE | AZ73: =IF(AW73,'Yahoo Stocks'!E100) -> FALSE | BD73: 121 | BE73: FALSE | BF73: =IF(BE73,'Google Finance Stocks'!D97) -> FALSE | BH73: =IF(BE73,'Google Finance Stocks'!E97) -> FALSE | BL73: 121 | BM73: FALSE | BN73: ='Exchange Rates'!D98 -> 0 | BO73: US Real GNP | BP73: =IF(BM73,'Exchange Rates'!E98) -> FALSE | BQ73: Real Gross National Product (GNPC96) | BR73: B | BS73: FRED
L74: 72 | M74: GDP GDI | N74: Real Average of GDP and GDI (LB0000091Q020SBEA) | O74: B | P74: FRED | Q74: 72 | R74: FALSE | S74: =IF(R74,'Yahoo Index'!E124,"") ->  | T74: =IF(R74,'Yahoo Index'!F124,"") ->  | X74: 81 | Y74: FALSE | Z74: =IF($F$17,'FRED Indicies'!E87) -> 0 | AB74: =IF($F$17,'FRED Indicies'!D87) -> 0 | AF74: 86 | AG74: FALSE | AH74: =IF(AG74,'Google Index'!E101) -> FALSE | AJ74: =IF(AF74,'Google Index'!F101) -> 0 | AN74: 86 | AO74: FALSE | AP74: =IF(AO74,'Commodity Prices'!C87) -> FALSE | AR74: =IF(AO74,'Commodity Prices'!D87) -> FALSE | AV74: 92 | AW74: FALSE | AX74: =IF(AW74,'Yahoo Stocks'!D101) -> FALSE | AZ74: =IF(AW74,'Yahoo Stocks'!E101) -> FALSE | BD74: 122 | BE74: FALSE | BF74: =IF(BE74,'Google Finance Stocks'!D98) -> FALSE | BH74: =IF(BE74,'Google Finance Stocks'!E98) -> FALSE | BL74: 122 | BM74: FALSE | BN74: ='Exchange Rates'!D99 -> 0 | BO74: GDP GDI | BP74: =IF(BM74,'Exchange Rates'!E99) -> FALSE | BQ74: Real Average of GDP and GDI (LB0000091Q020SBEA) | BR74: B | BS74: FRED
L75: 73 | Q75: 73 | R75: FALSE | S75: =IF(R75,'Yahoo Index'!E125,"") ->  | T75: =IF(R75,'Yahoo Index'!F125,"") ->  | X75: 82 | Y75: FALSE | Z75: =IF($F$17,'FRED Indicies'!E88) -> 0 | AB75: =IF($F$17,'FRED Indicies'!D88) -> 0 | AF75: 87 | AG75: FALSE | AH75: =IF(AG75,'Google Index'!E102) -> FALSE | AJ75: =IF(AF75,'Google Index'!F102) -> 0 | AN75: 87 | AO75: FALSE | AP75: =IF(AO75,'Commodity Prices'!C88) -> FALSE | AR75: =IF(AO75,'Commodity Prices'!D88) -> FALSE | AV75: 93 | AW75: FALSE | AX75: =IF(AW75,'Yahoo Stocks'!D102) -> FALSE | AZ75: =IF(AW75,'Yahoo Stocks'!E102) -> FALSE | BD75: 123 | BE75: FALSE | BF75: =IF(BE75,'Google Finance Stocks'!D99) -> FALSE | BH75: =IF(BE75,'Google Finance Stocks'!E99) -> FALSE | BL75: 123 | BM75: FALSE | BN75: ='Exchange Rates'!D100 -> 0 | BP75: =IF(BM75,'Exchange Rates'!E100) -> FALSE
L76: 74 | Q76: 74 | R76: FALSE | S76: =IF(R76,'Yahoo Index'!E126,"") ->  | T76: =IF(R76,'Yahoo Index'!F126,"") ->  | X76: 83 | Y76: FALSE | Z76: =IF($F$17,'FRED Indicies'!E89) -> 0 | AB76: =IF($F$17,'FRED Indicies'!D89) -> 0 | AF76: 88 | AG76: FALSE | AH76: =IF(AG76,'Google Index'!E103) -> FALSE | AJ76: =IF(AF76,'Google Index'!F103) -> 0 | AN76: 88 | AO76: FALSE | AP76: =IF(AO76,'Commodity Prices'!C89) -> FALSE | AR76: =IF(AO76,'Commodity Prices'!D89) -> FALSE | AV76: 94 | AW76: FALSE | AX76: =IF(AW76,'Yahoo Stocks'!D103) -> FALSE | AZ76: =IF(AW76,'Yahoo Stocks'!E103) -> FALSE | BD76: 124 | BE76: FALSE | BF76: =IF(BE76,'Google Finance Stocks'!D100) -> FALSE | BH76: =IF(BE76,'Google Finance Stocks'!E100) -> FALSE | BL76: 124 | BM76: FALSE | BN76: ='Exchange Rates'!D101 -> 0 | BP76: =IF(BM76,'Exchange Rates'!E101) -> FALSE
L77: 75 | Q77: 75 | R77: FALSE | S77: =IF(R77,'Yahoo Index'!E127,"") ->  | T77: =IF(R77,'Yahoo Index'!F127,"") ->  | X77: 84 | Y77: FALSE | Z77: =IF($F$17,'FRED Indicies'!E90) -> 0 | AB77: =IF($F$17,'FRED Indicies'!D90) -> 0 | AF77: 89 | AG77: FALSE | AH77: =IF(AG77,'Google Index'!E104) -> FALSE | AJ77: =IF(AF77,'Google Index'!F104) -> 0 | AN77: 89 | AO77: FALSE | AP77: =IF(AO77,'Commodity Prices'!C90) -> FALSE | AR77: =IF(AO77,'Commodity Prices'!D90) -> FALSE | AV77: 95 | AW77: FALSE | AX77: =IF(AW77,'Yahoo Stocks'!D104) -> FALSE | AZ77: =IF(AW77,'Yahoo Stocks'!E104) -> FALSE | BD77: 125 | BE77: FALSE | BF77: =IF(BE77,'Google Finance Stocks'!D101) -> FALSE | BH77: =IF(BE77,'Google Finance Stocks'!E101) -> FALSE | BL77: 125 | BM77: FALSE | BN77: ='Exchange Rates'!D102 -> 0 | BP77: =IF(BM77,'Exchange Rates'!E102) -> FALSE
L78: 76 | Q78: 76 | R78: FALSE | S78: =IF(R78,'Yahoo Index'!E128,"") ->  | T78: =IF(R78,'Yahoo Index'!F128,"") ->  | X78: 85 | Y78: FALSE | Z78: =IF($F$17,'FRED Indicies'!E91) -> 0 | AB78: =IF($F$17,'FRED Indicies'!D91) -> 0 | AF78: 90 | AG78: FALSE | AH78: =IF(AG78,'Google Index'!E105) -> FALSE | AJ78: =IF(AF78,'Google Index'!F105) -> 0 | AN78: 90 | AO78: FALSE | AP78: =IF(AO78,'Commodity Prices'!C91) -> FALSE | AR78: =IF(AO78,'Commodity Prices'!D91) -> FALSE | AV78: 96 | AW78: FALSE | AX78: =IF(AW78,'Yahoo Stocks'!D105) -> FALSE | AZ78: =IF(AW78,'Yahoo Stocks'!E105) -> FALSE | BD78: 126 | BE78: FALSE | BF78: =IF(BE78,'Google Finance Stocks'!D102) -> FALSE | BH78: =IF(BE78,'Google Finance Stocks'!E102) -> FALSE | BL78: 126 | BM78: FALSE | BN78: ='Exchange Rates'!D103 -> 0 | BP78: =IF(BM78,'Exchange Rates'!E103) -> FALSE
L79: 77 | Q79: 77 | R79: FALSE | S79: =IF(R79,'Yahoo Index'!E129,"") ->  | T79: =IF(R79,'Yahoo Index'!F129,"") ->  | X79: 86 | Y79: FALSE | Z79: =IF($F$17,'FRED Indicies'!E92) -> 0 | AB79: =IF($F$17,'FRED Indicies'!D92) -> 0 | AF79: 91 | AG79: FALSE | AH79: =IF(AG79,'Google Index'!E106) -> FALSE | AJ79: =IF(AF79,'Google Index'!F106) -> 0 | AN79: 91 | AO79: FALSE | AP79: =IF(AO79,'Commodity Prices'!C92) -> FALSE | AR79: =IF(AO79,'Commodity Prices'!D92) -> FALSE | AV79: 97 | AW79: FALSE | AX79: =IF(AW79,'Yahoo Stocks'!D106) -> FALSE | AZ79: =IF(AW79,'Yahoo Stocks'!E106) -> FALSE | BD79: 127 | BE79: FALSE | BF79: =IF(BE79,'Google Finance Stocks'!D103) -> FALSE | BH79: =IF(BE79,'Google Finance Stocks'!E103) -> FALSE | BL79: 127 | BM79: FALSE | BN79: ='Exchange Rates'!D104 -> 0 | BP79: =IF(BM79,'Exchange Rates'!E104) -> FALSE
L80: 78 | Q80: 78 | R80: FALSE | S80: =IF(R80,'Yahoo Index'!E130,"") ->  | T80: =IF(R80,'Yahoo Index'!F130,"") ->  | X80: 87 | Y80: FALSE | Z80: =IF($F$17,'FRED Indicies'!E93) -> 0 | AB80: =IF($F$17,'FRED Indicies'!D93) -> 0 | AF80: 92 | AG80: FALSE | AH80: =IF(AG80,'Google Index'!E107) -> FALSE | AJ80: =IF(AF80,'Google Index'!F107) -> 0 | AN80: 92 | AO80: FALSE | AP80: =IF(AO80,'Commodity Prices'!C93) -> FALSE | AR80: =IF(AO80,'Commodity Prices'!D93) -> FALSE | AV80: 98 | AW80: FALSE | AX80: =IF(AW80,'Yahoo Stocks'!D107) -> FALSE | AZ80: =IF(AW80,'Yahoo Stocks'!E107) -> FALSE | BD80: 128 | BE80: FALSE | BF80: =IF(BE80,'Google Finance Stocks'!D104) -> FALSE | BH80: =IF(BE80,'Google Finance Stocks'!E104) -> FALSE | BL80: 128 | BM80: FALSE | BN80: ='Exchange Rates'!D105 -> 0 | BP80: =IF(BM80,'Exchange Rates'!E105) -> FALSE
L81: 79 | Q81: 79 | R81: FALSE | S81: =IF(R81,'Yahoo Index'!E131,"") ->  | T81: =IF(R81,'Yahoo Index'!F131,"") ->  | X81: 88 | Y81: FALSE | Z81: =IF($F$17,'FRED Indicies'!E94) -> 0 | AB81: =IF($F$17,'FRED Indicies'!D94) -> 0 | AF81: 93 | AG81: FALSE | AH81: =IF(AG81,'Google Index'!E108) -> FALSE | AJ81: =IF(AF81,'Google Index'!F108) -> 0 | AN81: 93 | AO81: FALSE | AP81: =IF(AO81,'Commodity Prices'!C94) -> FALSE | AR81: =IF(AO81,'Commodity Prices'!D94) -> FALSE | AV81: 99 | AW81: FALSE | AX81: =IF(AW81,'Yahoo Stocks'!D108) -> FALSE | AZ81: =IF(AW81,'Yahoo Stocks'!E108) -> FALSE | BD81: 129 | BE81: FALSE | BF81: =IF(BE81,'Google Finance Stocks'!D105) -> FALSE | BH81: =IF(BE81,'Google Finance Stocks'!E105) -> FALSE | BL81: 129 | BM81: FALSE | BN81: ='Exchange Rates'!D106 -> 0 | BP81: =IF(BM81,'Exchange Rates'!E106) -> FALSE
L82: 80 | Q82: 80 | R82: FALSE | S82: =IF(R82,'Yahoo Index'!E132,"") ->  | T82: =IF(R82,'Yahoo Index'!F132,"") ->  | X82: 89 | Y82: FALSE | Z82: =IF($F$17,'FRED Indicies'!E95) -> 0 | AB82: =IF($F$17,'FRED Indicies'!D95) -> 0 | AF82: 94 | AG82: FALSE | AH82: =IF(AG82,'Google Index'!E109) -> FALSE | AJ82: =IF(AF82,'Google Index'!F109) -> 0 | AN82: 94 | AO82: FALSE | AP82: =IF(AO82,'Commodity Prices'!C95) -> FALSE | AR82: =IF(AO82,'Commodity Prices'!D95) -> FALSE | AV82: 100 | AW82: FALSE | AX82: =IF(AW82,'Yahoo Stocks'!D109) -> FALSE | AZ82: =IF(AW82,'Yahoo Stocks'!E109) -> FALSE | BD82: 130 | BE82: FALSE | BF82: =IF(BE82,'Google Finance Stocks'!D106) -> FALSE | BH82: =IF(BE82,'Google Finance Stocks'!E106) -> FALSE | BL82: 130 | BM82: FALSE | BN82: ='Exchange Rates'!D107 -> 0 | BP82: =IF(BM82,'Exchange Rates'!E107) -> FALSE
L83: 81 | Q83: 81 | R83: FALSE | S83: =IF(R83,'Yahoo Index'!E133,"") ->  | T83: =IF(R83,'Yahoo Index'!F133,"") ->  | X83: 90 | Y83: FALSE | Z83: =IF($F$17,'FRED Indicies'!E96) -> 0 | AB83: =IF($F$17,'FRED Indicies'!D96) -> 0 | AF83: 95 | AG83: FALSE | AH83: =IF(AG83,'Google Index'!E110) -> FALSE | AJ83: =IF(AF83,'Google Index'!F110) -> 0 | AN83: 95 | AO83: FALSE | AP83: =IF(AO83,'Commodity Prices'!C96) -> FALSE | AR83: =IF(AO83,'Commodity Prices'!D96) -> FALSE | AV83: 101 | AW83: FALSE | AX83: =IF(AW83,'Yahoo Stocks'!D110) -> FALSE | AZ83: =IF(AW83,'Yahoo Stocks'!E110) -> FALSE | BD83: 131 | BE83: FALSE | BF83: =IF(BE83,'Google Finance Stocks'!D107) -> FALSE | BH83: =IF(BE83,'Google Finance Stocks'!E107) -> FALSE | BL83: 131 | BM83: FALSE | BN83: ='Exchange Rates'!D108 -> 0 | BP83: =IF(BM83,'Exchange Rates'!E108) -> FALSE
L84: 82 | Q84: 82 | R84: FALSE | S84: =IF(R84,'Yahoo Index'!E134,"") ->  | T84: =IF(R84,'Yahoo Index'!F134,"") ->  | X84: 91 | Y84: FALSE | Z84: =IF($F$17,'FRED Indicies'!E97) -> 0 | AB84: =IF($F$17,'FRED Indicies'!D97) -> 0 | AF84: 96 | AG84: FALSE | AH84: =IF(AG84,'Google Index'!E111) -> FALSE | AJ84: =IF(AF84,'Google Index'!F111) -> 0 | AN84: 96 | AO84: FALSE | AP84: =IF(AO84,'Commodity Prices'!C97) -> FALSE | AR84: =IF(AO84,'Commodity Prices'!D97) -> FALSE | AV84: 102 | AW84: FALSE | AX84: =IF(AW84,'Yahoo Stocks'!D111) -> FALSE | AZ84: =IF(AW84,'Yahoo Stocks'!E111) -> FALSE | BD84: 132 | BE84: FALSE | BF84: =IF(BE84,'Google Finance Stocks'!D108) -> FALSE | BH84: =IF(BE84,'Google Finance Stocks'!E108) -> FALSE | BL84: 132 | BM84: FALSE | BN84: ='Exchange Rates'!D109 -> 0 | BP84: =IF(BM84,'Exchange Rates'!E109) -> FALSE
L85: 83 | Q85: 83 | R85: FALSE | S85: =IF(R85,'Yahoo Index'!E135,"") ->  | T85: =IF(R85,'Yahoo Index'!F135,"") ->  | X85: 92 | Y85: FALSE | Z85: =IF($F$17,'FRED Indicies'!E98) -> 0 | AB85: =IF($F$17,'FRED Indicies'!D98) -> 0 | AF85: 97 | AG85: FALSE | AH85: =IF(AG85,'Google Index'!E112) -> FALSE | AJ85: =IF(AF85,'Google Index'!F112) -> 0 | AN85: 97 | AO85: FALSE | AP85: =IF(AO85,'Commodity Prices'!C98) -> FALSE | AR85: =IF(AO85,'Commodity Prices'!D98) -> FALSE | AV85: 103 | AW85: FALSE | AX85: =IF(AW85,'Yahoo Stocks'!D112) -> FALSE | AZ85: =IF(AW85,'Yahoo Stocks'!E112) -> FALSE | BD85: 133 | BE85: FALSE | BF85: =IF(BE85,'Google Finance Stocks'!D109) -> FALSE | BH85: =IF(BE85,'Google Finance Stocks'!E109) -> FALSE | BL85: 133 | BM85: FALSE | BN85: ='Exchange Rates'!D110 -> 0 | BP85: =IF(BM85,'Exchange Rates'!E110) -> FALSE
L86: 84 | Q86: 84 | R86: FALSE | S86: =IF(R86,'Yahoo Index'!E136,"") ->  | T86: =IF(R86,'Yahoo Index'!F136,"") ->  | X86: 93 | Y86: FALSE | Z86: =IF($F$17,'FRED Indicies'!E99) -> 0 | AB86: =IF($F$17,'FRED Indicies'!D99) -> 0 | AF86: 98 | AG86: FALSE | AH86: =IF(AG86,'Google Index'!E113) -> FALSE | AJ86: =IF(AF86,'Google Index'!F113) -> 0 | AN86: 98 | AO86: FALSE | AP86: =IF(AO86,'Commodity Prices'!C99) -> FALSE | AR86: =IF(AO86,'Commodity Prices'!D99) -> FALSE | AV86: 104 | AW86: FALSE | AX86: =IF(AW86,'Yahoo Stocks'!D113) -> FALSE | AZ86: =IF(AW86,'Yahoo Stocks'!E113) -> FALSE | BD86: 134 | BE86: FALSE | BF86: =IF(BE86,'Google Finance Stocks'!D110) -> FALSE | BH86: =IF(BE86,'Google Finance Stocks'!E110) -> FALSE | BL86: 134 | BM86: FALSE | BN86: ='Exchange Rates'!D111 -> 0 | BP86: =IF(BM86,'Exchange Rates'!E111) -> FALSE
L87: 85 | Q87: 85 | R87: FALSE | S87: =IF(R87,'Yahoo Index'!E137,"") ->  | T87: =IF(R87,'Yahoo Index'!F137,"") ->  | X87: 94 | Y87: FALSE | Z87: =IF($F$17,'FRED Indicies'!E100) -> 0 | AB87: =IF($F$17,'FRED Indicies'!D100) -> 0 | AF87: 99 | AG87: FALSE | AH87: =IF(AG87,'Google Index'!E114) -> FALSE | AJ87: =IF(AF87,'Google Index'!F114) -> 0 | AN87: 99 | AO87: FALSE | AP87: =IF(AO87,'Commodity Prices'!C100) -> FALSE | AR87: =IF(AO87,'Commodity Prices'!D100) -> FALSE | AV87: 105 | AW87: FALSE | AX87: =IF(AW87,'Yahoo Stocks'!D114) -> FALSE | AZ87: =IF(AW87,'Yahoo Stocks'!E114) -> FALSE | BD87: 135 | BE87: FALSE | BF87: =IF(BE87,'Google Finance Stocks'!D111) -> FALSE | BH87: =IF(BE87,'Google Finance Stocks'!E111) -> FALSE | BL87: 135 | BM87: FALSE | BN87: ='Exchange Rates'!D112 -> 0 | BP87: =IF(BM87,'Exchange Rates'!E112) -> FALSE
L88: 86 | Q88: 86 | R88: FALSE | S88: =IF(R88,'Yahoo Index'!E138,"") ->  | T88: =IF(R88,'Yahoo Index'!F138,"") ->  | X88: 95 | Y88: FALSE | Z88: =IF($F$17,'FRED Indicies'!E101) -> 0 | AB88: =IF($F$17,'FRED Indicies'!D101) -> 0 | AF88: 100 | AG88: FALSE | AH88: =IF(AG88,'Google Index'!E115) -> FALSE | AJ88: =IF(AF88,'Google Index'!F115) -> 0 | AN88: 100 | AO88: FALSE | AP88: =IF(AO88,'Commodity Prices'!C101) -> FALSE | AR88: =IF(AO88,'Commodity Prices'!D101) -> FALSE | AV88: 106 | AW88: FALSE | AX88: =IF(AW88,'Yahoo Stocks'!D115) -> FALSE | AZ88: =IF(AW88,'Yahoo Stocks'!E115) -> FALSE | BD88: 136 | BE88: FALSE | BF88: =IF(BE88,'Google Finance Stocks'!D112) -> FALSE | BH88: =IF(BE88,'Google Finance Stocks'!E112) -> FALSE | BL88: 136 | BM88: FALSE | BN88: ='Exchange Rates'!D113 -> 0 | BP88: =IF(BM88,'Exchange Rates'!E113) -> FALSE
L89: 87 | Q89: 87 | R89: FALSE | S89: =IF(R89,'Yahoo Index'!E139,"") ->  | T89: =IF(R89,'Yahoo Index'!F139,"") ->  | X89: 96 | Y89: FALSE | Z89: =IF($F$17,'FRED Indicies'!E102) -> 0 | AB89: =IF($F$17,'FRED Indicies'!D102) -> 0 | AF89: 101 | AG89: FALSE | AH89: =IF(AG89,'Google Index'!E116) -> FALSE | AJ89: =IF(AF89,'Google Index'!F116) -> 0 | AN89: 101 | AO89: FALSE | AP89: =IF(AO89,'Commodity Prices'!C102) -> FALSE | AR89: =IF(AO89,'Commodity Prices'!D102) -> FALSE | AV89: 107 | AW89: FALSE | AX89: =IF(AW89,'Yahoo Stocks'!D116) -> FALSE | AZ89: =IF(AW89,'Yahoo Stocks'!E116) -> FALSE | BD89: 137 | BE89: FALSE | BF89: =IF(BE89,'Google Finance Stocks'!D113) -> FALSE | BH89: =IF(BE89,'Google Finance Stocks'!E113) -> FALSE | BL89: 137 | BM89: FALSE | BN89: ='Exchange Rates'!D114 -> 0 | BP89: =IF(BM89,'Exchange Rates'!E114) -> FALSE
L90: 88 | Q90: 88 | R90: FALSE | S90: =IF(R90,'Yahoo Index'!E140,"") ->  | T90: =IF(R90,'Yahoo Index'!F140,"") ->  | X90: 97 | Y90: FALSE | Z90: =IF($F$17,'FRED Indicies'!E103) -> 0 | AB90: =IF($F$17,'FRED Indicies'!D103) -> 0 | AF90: 102 | AG90: FALSE | AH90: =IF(AG90,'Google Index'!E117) -> FALSE | AJ90: =IF(AF90,'Google Index'!F117) -> 0 | AN90: 102 | AO90: FALSE | AP90: =IF(AO90,'Commodity Prices'!C103) -> FALSE | AR90: =IF(AO90,'Commodity Prices'!D103) -> FALSE | AV90: 108 | AW90: FALSE | AX90: =IF(AW90,'Yahoo Stocks'!D117) -> FALSE | AZ90: =IF(AW90,'Yahoo Stocks'!E117) -> FALSE | BD90: 138 | BE90: FALSE | BF90: =IF(BE90,'Google Finance Stocks'!D114) -> FALSE | BH90: =IF(BE90,'Google Finance Stocks'!E114) -> FALSE | BL90: 138 | BM90: FALSE | BN90: ='Exchange Rates'!D115 -> 0 | BP90: =IF(BM90,'Exchange Rates'!E115) -> FALSE
L91: 89 | Q91: 89 | R91: FALSE | S91: =IF(R91,'Yahoo Index'!E141,"") ->  | T91: =IF(R91,'Yahoo Index'!F141,"") ->  | X91: 98 | Y91: FALSE | Z91: =IF($F$17,'FRED Indicies'!E104) -> 0 | AB91: =IF($F$17,'FRED Indicies'!D104) -> 0 | AF91: 103 | AG91: FALSE | AH91: =IF(AG91,'Google Index'!E118) -> FALSE | AJ91: =IF(AF91,'Google Index'!F118) -> 0 | AN91: 103 | AO91: FALSE | AP91: =IF(AO91,'Commodity Prices'!C104) -> FALSE | AR91: =IF(AO91,'Commodity Prices'!D104) -> FALSE | AV91: 109 | AW91: FALSE | AX91: =IF(AW91,'Yahoo Stocks'!D118) -> FALSE | AY91: =IFERROR(INDEX(AX:AX,MATCH(L91,AW:AW,0)),"") ->  | AZ91: =IF(AW91,'Yahoo Stocks'!E118) -> FALSE | BA91: =IFERROR(INDEX(AZ:AZ,MATCH(L91,AW:AW,0)),"") ->  | BD91: 139 | BE91: FALSE | BF91: =IF(BE91,'Google Finance Stocks'!D115) -> FALSE | BH91: =IF(BE91,'Google Finance Stocks'!E115) -> FALSE | BL91: 139 | BM91: FALSE | BN91: ='Exchange Rates'!D116 -> 0 | BP91: =IF(BM91,'Exchange Rates'!E116) -> FALSE
L92: 90 | Q92: 90 | R92: FALSE | S92: =IF(R92,'Yahoo Index'!E142,"") ->  | T92: =IF(R92,'Yahoo Index'!F142,"") ->  | X92: 99 | Y92: FALSE | Z92: =IF($F$17,'FRED Indicies'!E105) -> 0 | AB92: =IF($F$17,'FRED Indicies'!D105) -> 0 | AF92: 104 | AG92: FALSE | AH92: =IF(AG92,'Google Index'!E119) -> FALSE | AJ92: =IF(AF92,'Google Index'!F119) -> 0 | AN92: 104 | AO92: FALSE | AP92: =IF(AO92,'Commodity Prices'!C105) -> FALSE | AR92: =IF(AO92,'Commodity Prices'!D105) -> FALSE | AV92: 110 | AW92: FALSE | AX92: =IF(AW92,'Yahoo Stocks'!D119) -> FALSE | AZ92: =IF(AW92,'Yahoo Stocks'!E119) -> FALSE | BD92: 140 | BE92: FALSE | BF92: =IF(BE92,'Google Finance Stocks'!D116) -> FALSE | BH92: =IF(BE92,'Google Finance Stocks'!E116) -> FALSE | BL92: 140 | BM92: FALSE | BN92: ='Exchange Rates'!D117 -> 0 | BP92: =IF(BM92,'Exchange Rates'!E117) -> FALSE
L93: 91 | Q93: 91 | R93: FALSE | S93: =IF(R93,'Yahoo Index'!E143,"") ->  | T93: =IF(R93,'Yahoo Index'!F143,"") ->  | X93: 100 | Y93: FALSE | Z93: =IF($F$17,'FRED Indicies'!E106) -> 0 | AB93: =IF($F$17,'FRED Indicies'!D106) -> 0 | AF93: 105 | AG93: FALSE | AH93: =IF(AG93,'Google Index'!E120) -> FALSE | AJ93: =IF(AF93,'Google Index'!F120) -> 0 | AN93: 105 | AO93: FALSE | AP93: =IF(AO93,'Commodity Prices'!C106) -> FALSE | AR93: =IF(AO93,'Commodity Prices'!D106) -> FALSE | AV93: 111 | AW93: FALSE | AX93: =IF(AW93,'Yahoo Stocks'!D120) -> FALSE | AZ93: =IF(AW93,'Yahoo Stocks'!E120) -> FALSE | BD93: 141 | BE93: FALSE | BF93: =IF(BE93,'Google Finance Stocks'!D117) -> FALSE | BH93: =IF(BE93,'Google Finance Stocks'!E117) -> FALSE | BL93: 141 | BM93: FALSE | BN93: ='Exchange Rates'!D118 -> 0 | BP93: =IF(BM93,'Exchange Rates'!E118) -> FALSE
L94: 92 | Q94: 92 | R94: FALSE | S94: =IF(R94,'Yahoo Index'!E144,"") ->  | T94: =IF(R94,'Yahoo Index'!F144,"") ->  | X94: 101 | Y94: FALSE | Z94: =IF($F$17,'FRED Indicies'!E107) -> 0 | AB94: =IF($F$17,'FRED Indicies'!D107) -> 0 | AF94: 106 | AG94: FALSE | AH94: =IF(AG94,'Google Index'!E121) -> FALSE | AJ94: =IF(AF94,'Google Index'!F121) -> 0 | AN94: 106 | AO94: FALSE | AP94: =IF(AO94,'Commodity Prices'!C107) -> FALSE | AR94: =IF(AO94,'Commodity Prices'!D107) -> FALSE | AV94: 112 | AW94: FALSE | AX94: =IF(AW94,'Yahoo Stocks'!D121) -> FALSE | AZ94: =IF(AW94,'Yahoo Stocks'!E121) -> FALSE | BD94: 142 | BE94: FALSE | BF94: =IF(BE94,'Google Finance Stocks'!D118) -> FALSE | BH94: =IF(BE94,'Google Finance Stocks'!E118) -> FALSE | BL94: 142 | BM94: FALSE | BN94: ='Exchange Rates'!D119 -> 0 | BP94: =IF(BM94,'Exchange Rates'!E119) -> FALSE
L95: 93 | Q95: 93 | R95: FALSE | S95: =IF(R95,'Yahoo Index'!E145,"") ->  | T95: =IF(R95,'Yahoo Index'!F145,"") ->  | X95: 102 | Y95: FALSE | Z95: =IF($F$17,'FRED Indicies'!E108) -> 0 | AB95: =IF($F$17,'FRED Indicies'!D108) -> 0 | AF95: 107 | AG95: FALSE | AH95: =IF(AG95,'Google Index'!E122) -> FALSE | AJ95: =IF(AF95,'Google Index'!F122) -> 0 | AN95: 107 | AO95: FALSE | AP95: =IF(AO95,'Commodity Prices'!C108) -> FALSE | AR95: =IF(AO95,'Commodity Prices'!D108) -> FALSE | AV95: 113 | AW95: FALSE | AX95: =IF(AW95,'Yahoo Stocks'!D122) -> FALSE | AZ95: =IF(AW95,'Yahoo Stocks'!E122) -> FALSE | BD95: 143 | BE95: FALSE | BF95: =IF(BE95,'Google Finance Stocks'!D119) -> FALSE | BH95: =IF(BE95,'Google Finance Stocks'!E119) -> FALSE | BL95: 143 | BM95: FALSE | BN95: ='Exchange Rates'!D120 -> 0 | BP95: =IF(BM95,'Exchange Rates'!E120) -> FALSE
L96: 94 | Q96: 94 | R96: FALSE | S96: =IF(R96,'Yahoo Index'!E146,"") ->  | T96: =IF(R96,'Yahoo Index'!F146,"") ->  | X96: 103 | Y96: FALSE | Z96: =IF($F$17,'FRED Indicies'!E109) -> 0 | AB96: =IF($F$17,'FRED Indicies'!D109) -> 0 | AF96: 108 | AG96: FALSE | AH96: =IF(AG96,'Google Index'!E123) -> FALSE | AJ96: =IF(AF96,'Google Index'!F123) -> 0 | AN96: 108 | AO96: FALSE | AP96: =IF(AO96,'Commodity Prices'!C109) -> FALSE | AR96: =IF(AO96,'Commodity Prices'!D109) -> FALSE | AV96: 114 | AW96: FALSE | AX96: =IF(AW96,'Yahoo Stocks'!D123) -> FALSE | AZ96: =IF(AW96,'Yahoo Stocks'!E123) -> FALSE | BD96: 144 | BE96: FALSE | BF96: =IF(BE96,'Google Finance Stocks'!D120) -> FALSE | BH96: =IF(BE96,'Google Finance Stocks'!E120) -> FALSE | BL96: 144 | BM96: FALSE | BN96: ='Exchange Rates'!D121 -> 0 | BP96: =IF(BM96,'Exchange Rates'!E121) -> FALSE
L97: 95 | Q97: 95 | R97: FALSE | S97: =IF(R97,'Yahoo Index'!E147,"") ->  | T97: =IF(R97,'Yahoo Index'!F147,"") ->  | X97: 104 | Y97: FALSE | Z97: =IF($F$17,'FRED Indicies'!E110) -> 0 | AB97: =IF($F$17,'FRED Indicies'!D110) -> 0 | AF97: 109 | AG97: FALSE | AH97: =IF(AG97,'Google Index'!E124) -> FALSE | AJ97: =IF(AF97,'Google Index'!F124) -> 0 | AN97: 109 | AO97: FALSE | AP97: =IF(AO97,'Commodity Prices'!C110) -> FALSE | AR97: =IF(AO97,'Commodity Prices'!D110) -> FALSE | AV97: 115 | AW97: FALSE | AX97: =IF(AW97,'Yahoo Stocks'!D124) -> FALSE | AZ97: =IF(AW97,'Yahoo Stocks'!E124) -> FALSE | BD97: 145 | BE97: FALSE | BF97: =IF(BE97,'Google Finance Stocks'!D121) -> FALSE | BH97: =IF(BE97,'Google Finance Stocks'!E121) -> FALSE | BL97: 145 | BM97: FALSE | BN97: ='Exchange Rates'!D122 -> 0 | BP97: =IF(BM97,'Exchange Rates'!E122) -> FALSE
L98: 96 | Q98: 96 | R98: FALSE | S98: =IF(R98,'Yahoo Index'!E148,"") ->  | T98: =IF(R98,'Yahoo Index'!F148,"") ->  | X98: 105 | Y98: FALSE | Z98: =IF($F$17,'FRED Indicies'!E111) -> 0 | AB98: =IF($F$17,'FRED Indicies'!D111) -> 0 | AF98: 110 | AG98: FALSE | AH98: =IF(AG98,'Google Index'!E125) -> FALSE | AJ98: =IF(AF98,'Google Index'!F125) -> 0 | AN98: 110 | AO98: FALSE | AP98: =IF(AO98,'Commodity Prices'!C111) -> FALSE | AR98: =IF(AO98,'Commodity Prices'!D111) -> FALSE | AV98: 116 | AW98: FALSE | AX98: =IF(AW98,'Yahoo Stocks'!D125) -> FALSE | AZ98: =IF(AW98,'Yahoo Stocks'!E125) -> FALSE | BD98: 146 | BE98: FALSE | BF98: =IF(BE98,'Google Finance Stocks'!D122) -> FALSE | BH98: =IF(BE98,'Google Finance Stocks'!E122) -> FALSE | BL98: 146 | BM98: FALSE | BN98: ='Exchange Rates'!D123 -> 0 | BP98: =IF(BM98,'Exchange Rates'!E123) -> FALSE
L99: 97 | Q99: 97 | R99: FALSE | S99: =IF(R99,'Yahoo Index'!E149,"") ->  | T99: =IF(R99,'Yahoo Index'!F149,"") ->  | X99: 106 | Y99: =IF(AND($F$17,X99<=$H$17),X99) -> FALSE | Z99: =IF($F$17,'FRED Indicies'!E112) -> 0 | AB99: =IF($F$17,'FRED Indicies'!D112) -> 0 | AD99: =IF(AA99<>"",$I$17,"") ->  | AE99: =IF(AA99<>"",$J$17,"") ->  | AF99: 111 | AG99: =IF(AND($F$20,AF99<=$H$20),AF99) -> FALSE | AH99: =IF(AG99,'Google Index'!E126) -> FALSE | AJ99: =IF(AF99,'Google Index'!F126) -> 0 | AL99: =IF(AI99<>"",$I$17,"") ->  | AM99: =IF(AK99<>"",$J$17,"") ->  | AN99: 111 | AO99: =IF(AND($F$11,AN99<=$H$11),AN99) -> FALSE | AP99: =IF(AO99,'Commodity Prices'!C112) -> FALSE | AR99: =IF(AO99,'Commodity Prices'!D112) -> FALSE | AT99: =IF(AQ99<>"",$I$11,"") ->  | AU99: =IF(AS99<>"",$J$11,"") ->  | AV99: 117 | AW99: =IF(AND($F$5,AV99<=$H$5),AV99) -> FALSE | AX99: =IF(AW99,'Yahoo Stocks'!D126) -> FALSE | AZ99: =IF(AW99,'Yahoo Stocks'!E126) -> FALSE | BB99: =IF(AY99<>"",$I$5,"") ->  | BC99: =IF(BA99<>"",$J$5,"") ->  | BD99: 147 | BE99: FALSE | BF99: =IF(BE99,'Google Finance Stocks'!D123) -> FALSE | BH99: =IF(BE99,'Google Finance Stocks'!E123) -> FALSE | BL99: 147 | BM99: FALSE | BN99: ='Exchange Rates'!D124 -> 0 | BP99: =IF(BM99,'Exchange Rates'!E124) -> FALSE
L100: 98 | Q100: 98 | R100: FALSE | S100: =IF(R100,'Yahoo Index'!E150,"") ->  | T100: =IF(R100,'Yahoo Index'!F150,"") ->  | X100: 107 | Y100: FALSE | Z100: =IF($F$17,'FRED Indicies'!E113) -> 0 | AB100: =IF($F$17,'FRED Indicies'!D113) -> 0 | AF100: 112 | AG100: FALSE | AH100: =IF(AG100,'Google Index'!E127) -> FALSE | AJ100: =IF(AF100,'Google Index'!F127) -> 0 | AN100: 112 | AO100: FALSE | AP100: =IF(AO100,'Commodity Prices'!C113) -> FALSE | AR100: =IF(AO100,'Commodity Prices'!D113) -> FALSE | AV100: 118 | AW100: FALSE | AX100: =IF(AW100,'Yahoo Stocks'!D127) -> FALSE | AZ100: =IF(AW100,'Yahoo Stocks'!E127) -> FALSE | BD100: 148 | BE100: FALSE | BF100: =IF(BE100,'Google Finance Stocks'!D124) -> FALSE | BH100: =IF(BE100,'Google Finance Stocks'!E124) -> FALSE | BL100: 148 | BM100: FALSE | BN100: ='Exchange Rates'!D125 -> 0 | BP100: =IF(BM100,'Exchange Rates'!E125) -> FALSE
L101: 99 | Q101: 99 | R101: FALSE | S101: =IF(R101,'Yahoo Index'!E151,"") ->  | T101: =IF(R101,'Yahoo Index'!F151,"") ->  | X101: 108 | Y101: FALSE | Z101: =IF($F$17,'FRED Indicies'!E114) -> 0 | AB101: =IF($F$17,'FRED Indicies'!D114) -> 0 | AF101: 113 | AG101: FALSE | AH101: =IF(AG101,'Google Index'!E128) -> FALSE | AJ101: =IF(AF101,'Google Index'!F128) -> 0 | AN101: 113 | AO101: FALSE | AP101: =IF(AO101,'Commodity Prices'!C114) -> FALSE | AR101: =IF(AO101,'Commodity Prices'!D114) -> FALSE | AV101: 119 | AW101: FALSE | AX101: =IF(AW101,'Yahoo Stocks'!D128) -> FALSE | AZ101: =IF(AW101,'Yahoo Stocks'!E128) -> FALSE | BD101: 149 | BE101: FALSE | BF101: =IF(BE101,'Google Finance Stocks'!D125) -> FALSE | BH101: =IF(BE101,'Google Finance Stocks'!E125) -> FALSE | BL101: 149 | BM101: FALSE | BN101: ='Exchange Rates'!D126 -> 0 | BP101: =IF(BM101,'Exchange Rates'!E126) -> FALSE
L102: 100 | Q102: 100 | R102: FALSE | S102: =IF(R102,'Yahoo Index'!E152,"") ->  | T102: =IF(R102,'Yahoo Index'!F152,"") ->  | X102: 109 | Y102: FALSE | Z102: =IF($F$17,'FRED Indicies'!E115) -> 0 | AB102: =IF($F$17,'FRED Indicies'!D115) -> 0 | AF102: 114 | AG102: FALSE | AH102: =IF(AG102,'Google Index'!E129) -> FALSE | AJ102: =IF(AF102,'Google Index'!F129) -> 0 | AN102: 114 | AO102: FALSE | AP102: =IF(AO102,'Commodity Prices'!C115) -> FALSE | AR102: =IF(AO102,'Commodity Prices'!D115) -> FALSE | AV102: 120 | AW102: FALSE | AX102: =IF(AW102,'Yahoo Stocks'!D129) -> FALSE | AZ102: =IF(AW102,'Yahoo Stocks'!E129) -> FALSE | BD102: 150 | BE102: FALSE | BF102: =IF(BE102,'Google Finance Stocks'!D126) -> FALSE | BH102: =IF(BE102,'Google Finance Stocks'!E126) -> FALSE | BL102: 150 | BM102: FALSE | BN102: ='Exchange Rates'!D127 -> 0 | BP102: =IF(BM102,'Exchange Rates'!E127) -> FALSE
L103: 101 | Q103: 101 | R103: FALSE | S103: =IF(R103,'Yahoo Index'!E153,"") ->  | T103: =IF(R103,'Yahoo Index'!F153,"") ->  | X103: 110 | Y103: FALSE | Z103: =IF($F$17,'FRED Indicies'!E116) -> 0 | AB103: =IF($F$17,'FRED Indicies'!D116) -> 0 | AF103: 115 | AG103: FALSE | AH103: =IF(AG103,'Google Index'!E130) -> FALSE | AJ103: =IF(AF103,'Google Index'!F130) -> 0 | AN103: 115 | AO103: FALSE | AP103: =IF(AO103,'Commodity Prices'!C116) -> FALSE | AR103: =IF(AO103,'Commodity Prices'!D116) -> FALSE | AV103: 121 | AW103: FALSE | AX103: =IF(AW103,'Yahoo Stocks'!D130) -> FALSE | AZ103: =IF(AW103,'Yahoo Stocks'!E130) -> FALSE | BD103: 151 | BE103: FALSE | BF103: =IF(BE103,'Google Finance Stocks'!D127) -> FALSE | BH103: =IF(BE103,'Google Finance Stocks'!E127) -> FALSE | BL103: 151 | BM103: FALSE | BN103: ='Exchange Rates'!D128 -> 0 | BP103: =IF(BM103,'Exchange Rates'!E128) -> FALSE
L104: 102 | Q104: 102 | R104: FALSE | S104: =IF(R104,'Yahoo Index'!E154,"") ->  | T104: =IF(R104,'Yahoo Index'!F154,"") ->  | X104: 111 | Y104: FALSE | Z104: =IF($F$17,'FRED Indicies'!E117) -> 0 | AB104: =IF($F$17,'FRED Indicies'!D117) -> 0 | AF104: 116 | AG104: FALSE | AH104: =IF(AG104,'Google Index'!E131) -> FALSE | AJ104: =IF(AF104,'Google Index'!F131) -> 0 | AN104: 116 | AO104: FALSE | AP104: =IF(AO104,'Commodity Prices'!C117) -> FALSE | AR104: =IF(AO104,'Commodity Prices'!D117) -> FALSE | AV104: 122 | AW104: FALSE | AX104: =IF(AW104,'Yahoo Stocks'!D131) -> FALSE | AZ104: =IF(AW104,'Yahoo Stocks'!E131) -> FALSE | BD104: 152 | BE104: FALSE | BF104: =IF(BE104,'Google Finance Stocks'!D128) -> FALSE | BH104: =IF(BE104,'Google Finance Stocks'!E128) -> FALSE | BL104: 152 | BM104: FALSE | BN104: ='Exchange Rates'!D129 -> 0 | BP104: =IF(BM104,'Exchange Rates'!E129) -> FALSE
L105: 103 | Q105: 103 | R105: FALSE | S105: =IF(R105,'Yahoo Index'!E155,"") ->  | T105: =IF(R105,'Yahoo Index'!F155,"") ->  | X105: 112 | Y105: FALSE | Z105: =IF($F$17,'FRED Indicies'!E118) -> 0 | AB105: =IF($F$17,'FRED Indicies'!D118) -> 0 | AF105: 117 | AG105: FALSE | AH105: =IF(AG105,'Google Index'!E132) -> FALSE | AJ105: =IF(AF105,'Google Index'!F132) -> 0 | AN105: 117 | AO105: FALSE | AP105: =IF(AO105,'Commodity Prices'!C118) -> FALSE | AR105: =IF(AO105,'Commodity Prices'!D118) -> FALSE | AV105: 123 | AW105: FALSE | AX105: =IF(AW105,'Yahoo Stocks'!D132) -> FALSE | AZ105: =IF(AW105,'Yahoo Stocks'!E132) -> FALSE | BD105: 153 | BE105: FALSE | BF105: =IF(BE105,'Google Finance Stocks'!D129) -> FALSE | BH105: =IF(BE105,'Google Finance Stocks'!E129) -> FALSE | BL105: 153 | BM105: FALSE | BN105: ='Exchange Rates'!D130 -> 0 | BP105: =IF(BM105,'Exchange Rates'!E130) -> FALSE
L106: 104 | Q106: 104 | R106: FALSE | S106: =IF(R106,'Yahoo Index'!E156,"") ->  | T106: =IF(R106,'Yahoo Index'!F156,"") ->  | X106: 113 | Y106: FALSE | Z106: =IF($F$17,'FRED Indicies'!E119) -> 0 | AB106: =IF($F$17,'FRED Indicies'!D119) -> 0 | AF106: 118 | AG106: FALSE | AH106: =IF(AG106,'Google Index'!E133) -> FALSE | AJ106: =IF(AF106,'Google Index'!F133) -> 0 | AN106: 118 | AO106: FALSE | AP106: =IF(AO106,'Commodity Prices'!C119) -> FALSE | AR106: =IF(AO106,'Commodity Prices'!D119) -> FALSE | AV106: 124 | AW106: FALSE | AX106: =IF(AW106,'Yahoo Stocks'!D133) -> FALSE | AZ106: =IF(AW106,'Yahoo Stocks'!E133) -> FALSE | BD106: 154 | BE106: FALSE | BF106: =IF(BE106,'Google Finance Stocks'!D130) -> FALSE | BH106: =IF(BE106,'Google Finance Stocks'!E130) -> FALSE | BL106: 154 | BM106: FALSE | BN106: ='Exchange Rates'!D131 -> 0 | BP106: =IF(BM106,'Exchange Rates'!E131) -> FALSE
L107: 105 | Q107: 105 | R107: FALSE | S107: =IF(R107,'Yahoo Index'!E157,"") ->  | T107: =IF(R107,'Yahoo Index'!F157,"") ->  | X107: 114 | Y107: FALSE | Z107: =IF($F$17,'FRED Indicies'!E120) -> 0 | AB107: =IF($F$17,'FRED Indicies'!D120) -> 0 | AF107: 119 | AG107: FALSE | AH107: =IF(AG107,'Google Index'!E134) -> FALSE | AJ107: =IF(AF107,'Google Index'!F134) -> 0 | AN107: 119 | AO107: FALSE | AP107: =IF(AO107,'Commodity Prices'!C120) -> FALSE | AR107: =IF(AO107,'Commodity Prices'!D120) -> FALSE | AV107: 125 | AW107: FALSE | AX107: =IF(AW107,'Yahoo Stocks'!D134) -> FALSE | AZ107: =IF(AW107,'Yahoo Stocks'!E134) -> FALSE | BD107: 155 | BE107: FALSE | BF107: =IF(BE107,'Google Finance Stocks'!D131) -> FALSE | BH107: =IF(BE107,'Google Finance Stocks'!E131) -> FALSE | BL107: 155 | BM107: FALSE | BN107: ='Exchange Rates'!D132 -> 0 | BP107: =IF(BM107,'Exchange Rates'!E132) -> FALSE
L108: 106 | Q108: 106 | R108: FALSE | S108: =IF(R108,'Yahoo Index'!E158,"") ->  | T108: =IF(R108,'Yahoo Index'!F158,"") ->  | X108: 115 | Y108: FALSE | Z108: =IF($F$17,'FRED Indicies'!E121) -> 0 | AB108: =IF($F$17,'FRED Indicies'!D121) -> 0 | AF108: 120 | AG108: FALSE | AH108: =IF(AG108,'Google Index'!E135) -> FALSE | AJ108: =IF(AF108,'Google Index'!F135) -> 0 | AN108: 120 | AO108: FALSE | AP108: =IF(AO108,'Commodity Prices'!C121) -> FALSE | AR108: =IF(AO108,'Commodity Prices'!D121) -> FALSE | AV108: 126 | AW108: FALSE | AX108: =IF(AW108,'Yahoo Stocks'!D135) -> FALSE | AZ108: =IF(AW108,'Yahoo Stocks'!E135) -> FALSE | BD108: 156 | BE108: FALSE | BF108: =IF(BE108,'Google Finance Stocks'!D132) -> FALSE | BH108: =IF(BE108,'Google Finance Stocks'!E132) -> FALSE | BL108: 156 | BM108: FALSE | BN108: ='Exchange Rates'!D133 -> 0 | BP108: =IF(BM108,'Exchange Rates'!E133) -> FALSE
L109: 107 | Q109: 107 | R109: FALSE | S109: =IF(R109,'Yahoo Index'!E159,"") ->  | T109: =IF(R109,'Yahoo Index'!F159,"") ->  | X109: 116 | Y109: FALSE | Z109: =IF($F$17,'FRED Indicies'!E122) -> 0 | AB109: =IF($F$17,'FRED Indicies'!D122) -> 0 | AF109: 121 | AG109: FALSE | AH109: =IF(AG109,'Google Index'!E136) -> FALSE | AJ109: =IF(AF109,'Google Index'!F136) -> 0 | AN109: 121 | AO109: FALSE | AP109: =IF(AO109,'Commodity Prices'!C122) -> FALSE | AR109: =IF(AO109,'Commodity Prices'!D122) -> FALSE | AV109: 127 | AW109: FALSE | AX109: =IF(AW109,'Yahoo Stocks'!D136) -> FALSE | AZ109: =IF(AW109,'Yahoo Stocks'!E136) -> FALSE | BD109: 157 | BE109: FALSE | BF109: =IF(BE109,'Google Finance Stocks'!D133) -> FALSE | BH109: =IF(BE109,'Google Finance Stocks'!E133) -> FALSE | BL109: 157 | BM109: FALSE | BN109: ='Exchange Rates'!D134 -> 0 | BP109: =IF(BM109,'Exchange Rates'!E134) -> FALSE
L110: 108 | Q110: 108 | R110: FALSE | S110: =IF(R110,'Yahoo Index'!E160,"") ->  | T110: =IF(R110,'Yahoo Index'!F160,"") ->  | X110: 117 | Y110: FALSE | Z110: =IF($F$17,'FRED Indicies'!E123) -> 0 | AB110: =IF($F$17,'FRED Indicies'!D123) -> 0 | AF110: 122 | AG110: FALSE | AH110: =IF(AG110,'Google Index'!E137) -> FALSE | AJ110: =IF(AF110,'Google Index'!F137) -> 0 | AN110: 122 | AO110: FALSE | AP110: =IF(AO110,'Commodity Prices'!C123) -> FALSE | AR110: =IF(AO110,'Commodity Prices'!D123) -> FALSE | AV110: 128 | AW110: FALSE | AX110: =IF(AW110,'Yahoo Stocks'!D137) -> FALSE | AZ110: =IF(AW110,'Yahoo Stocks'!E137) -> FALSE | BD110: 158 | BE110: FALSE | BF110: =IF(BE110,'Google Finance Stocks'!D134) -> FALSE | BH110: =IF(BE110,'Google Finance Stocks'!E134) -> FALSE | BL110: 158 | BM110: FALSE | BN110: ='Exchange Rates'!D135 -> 0 | BP110: =IF(BM110,'Exchange Rates'!E135) -> FALSE
L111: 109 | Q111: 109 | R111: FALSE | S111: =IF(R111,'Yahoo Index'!E161,"") ->  | T111: =IF(R111,'Yahoo Index'!F161,"") ->  | X111: 118 | Y111: FALSE | Z111: =IF($F$17,'FRED Indicies'!E124) -> 0 | AB111: =IF($F$17,'FRED Indicies'!D124) -> 0 | AF111: 123 | AG111: FALSE | AH111: =IF(AG111,'Google Index'!E138) -> FALSE | AJ111: =IF(AF111,'Google Index'!F138) -> 0 | AN111: 123 | AO111: FALSE | AP111: =IF(AO111,'Commodity Prices'!C124) -> FALSE | AR111: =IF(AO111,'Commodity Prices'!D124) -> FALSE | AV111: 129 | AW111: FALSE | AX111: =IF(AW111,'Yahoo Stocks'!D138) -> FALSE | AZ111: =IF(AW111,'Yahoo Stocks'!E138) -> FALSE | BD111: 159 | BE111: FALSE | BF111: =IF(BE111,'Google Finance Stocks'!D135) -> FALSE | BH111: =IF(BE111,'Google Finance Stocks'!E135) -> FALSE | BL111: 159 | BM111: FALSE | BN111: ='Exchange Rates'!D136 -> 0 | BP111: =IF(BM111,'Exchange Rates'!E136) -> FALSE
L112: 110 | Q112: 110 | R112: FALSE | S112: =IF(R112,'Yahoo Index'!E162,"") ->  | T112: =IF(R112,'Yahoo Index'!F162,"") ->  | X112: 119 | Y112: FALSE | Z112: =IF($F$17,'FRED Indicies'!E125) -> 0 | AB112: =IF($F$17,'FRED Indicies'!D125) -> 0 | AF112: 124 | AG112: FALSE | AH112: =IF(AG112,'Google Index'!E139) -> FALSE | AJ112: =IF(AF112,'Google Index'!F139) -> 0 | AN112: 124 | AO112: FALSE | AP112: =IF(AO112,'Commodity Prices'!C125) -> FALSE | AR112: =IF(AO112,'Commodity Prices'!D125) -> FALSE | AV112: 130 | AW112: FALSE | AX112: =IF(AW112,'Yahoo Stocks'!D139) -> FALSE | AZ112: =IF(AW112,'Yahoo Stocks'!E139) -> FALSE | BD112: 160 | BE112: FALSE | BF112: =IF(BE112,'Google Finance Stocks'!D136) -> FALSE | BH112: =IF(BE112,'Google Finance Stocks'!E136) -> FALSE | BL112: 160 | BM112: FALSE | BN112: ='Exchange Rates'!D137 -> 0 | BP112: =IF(BM112,'Exchange Rates'!E137) -> FALSE
L113: 111 | Q113: 111 | R113: FALSE | S113: =IF(R113,'Yahoo Index'!E163,"") ->  | T113: =IF(R113,'Yahoo Index'!F163,"") ->  | X113: 120 | Y113: FALSE | Z113: =IF($F$17,'FRED Indicies'!E126) -> 0 | AB113: =IF($F$17,'FRED Indicies'!D126) -> 0 | AF113: 125 | AG113: FALSE | AH113: =IF(AG113,'Google Index'!E140) -> FALSE | AJ113: =IF(AF113,'Google Index'!F140) -> 0 | AN113: 125 | AO113: FALSE | AP113: =IF(AO113,'Commodity Prices'!C126) -> FALSE | AR113: =IF(AO113,'Commodity Prices'!D126) -> FALSE | AV113: 131 | AW113: FALSE | AX113: =IF(AW113,'Yahoo Stocks'!D140) -> FALSE | AZ113: =IF(AW113,'Yahoo Stocks'!E140) -> FALSE | BD113: 161 | BE113: FALSE | BF113: =IF(BE113,'Google Finance Stocks'!D137) -> FALSE | BH113: =IF(BE113,'Google Finance Stocks'!E137) -> FALSE | BL113: 161 | BM113: FALSE | BN113: ='Exchange Rates'!D138 -> 0 | BP113: =IF(BM113,'Exchange Rates'!E138) -> FALSE
L114: 112 | Q114: 112 | R114: FALSE | S114: =IF(R114,'Yahoo Index'!E164,"") ->  | T114: =IF(R114,'Yahoo Index'!F164,"") ->  | X114: 121 | Y114: FALSE | Z114: =IF($F$17,'FRED Indicies'!E127) -> 0 | AB114: =IF($F$17,'FRED Indicies'!D127) -> 0 | AF114: 126 | AG114: FALSE | AH114: =IF(AG114,'Google Index'!E141) -> FALSE | AJ114: =IF(AF114,'Google Index'!F141) -> 0 | AN114: 126 | AO114: FALSE | AP114: =IF(AO114,'Commodity Prices'!C127) -> FALSE | AR114: =IF(AO114,'Commodity Prices'!D127) -> FALSE | AV114: 132 | AW114: FALSE | AX114: =IF(AW114,'Yahoo Stocks'!D141) -> FALSE | AZ114: =IF(AW114,'Yahoo Stocks'!E141) -> FALSE | BD114: 162 | BE114: FALSE | BF114: =IF(BE114,'Google Finance Stocks'!D138) -> FALSE | BH114: =IF(BE114,'Google Finance Stocks'!E138) -> FALSE | BL114: 162 | BM114: FALSE | BN114: ='Exchange Rates'!D139 -> 0 | BP114: =IF(BM114,'Exchange Rates'!E139) -> FALSE
L115: 113 | Q115: 113 | R115: FALSE | S115: =IF(R115,'Yahoo Index'!E165,"") ->  | T115: =IF(R115,'Yahoo Index'!F165,"") ->  | X115: 122 | Y115: FALSE | Z115: =IF($F$17,'FRED Indicies'!E128) -> 0 | AB115: =IF($F$17,'FRED Indicies'!D128) -> 0 | AF115: 127 | AG115: FALSE | AH115: =IF(AG115,'Google Index'!E142) -> FALSE | AJ115: =IF(AF115,'Google Index'!F142) -> 0 | AN115: 127 | AO115: FALSE | AP115: =IF(AO115,'Commodity Prices'!C128) -> FALSE | AR115: =IF(AO115,'Commodity Prices'!D128) -> FALSE | AV115: 133 | AW115: FALSE | AX115: =IF(AW115,'Yahoo Stocks'!D142) -> FALSE | AZ115: =IF(AW115,'Yahoo Stocks'!E142) -> FALSE | BD115: 163 | BE115: FALSE | BF115: =IF(BE115,'Google Finance Stocks'!D139) -> FALSE | BH115: =IF(BE115,'Google Finance Stocks'!E139) -> FALSE | BL115: 163 | BM115: FALSE | BN115: ='Exchange Rates'!D140 -> 0 | BP115: =IF(BM115,'Exchange Rates'!E140) -> FALSE
L116: 114 | Q116: 114 | R116: FALSE | S116: =IF(R116,'Yahoo Index'!E166,"") ->  | T116: =IF(R116,'Yahoo Index'!F166,"") ->  | X116: 123 | Y116: FALSE | Z116: =IF($F$17,'FRED Indicies'!E129) -> 0 | AB116: =IF($F$17,'FRED Indicies'!D129) -> 0 | AF116: 128 | AG116: FALSE | AH116: =IF(AG116,'Google Index'!E143) -> FALSE | AJ116: =IF(AF116,'Google Index'!F143) -> 0 | AN116: 128 | AO116: FALSE | AP116: =IF(AO116,'Commodity Prices'!C129) -> FALSE | AR116: =IF(AO116,'Commodity Prices'!D129) -> FALSE | AV116: 134 | AW116: FALSE | AX116: =IF(AW116,'Yahoo Stocks'!D143) -> FALSE | AZ116: =IF(AW116,'Yahoo Stocks'!E143) -> FALSE | BD116: 164 | BE116: FALSE | BF116: =IF(BE116,'Google Finance Stocks'!D140) -> FALSE | BH116: =IF(BE116,'Google Finance Stocks'!E140) -> FALSE | BL116: 164 | BM116: FALSE | BN116: ='Exchange Rates'!D141 -> 0 | BP116: =IF(BM116,'Exchange Rates'!E141) -> FALSE
L117: 115 | M117: =S117&AA117&AI117&AQ117&AY117&BG117&BO117 ->  | N117: =T117&AC117&AK117&AS117&BA117&BI117&BQ117 ->  | O117: =U117&AD117&AL117&AT117&BB117&BJ117&BR117 ->  | P117: =V117&AE117&AM117&AU117&BC117&BK117&BS117 ->  | Q117: 115 | R117: =IF(AND($F$3,Q117<=$H$3),Q117) -> FALSE | S117: =IF(R117,'Yahoo Index'!E167,"") ->  | T117: =IF(R117,'Yahoo Index'!F167,"") ->  | U117: =IF(R117,$I$3,"") ->  | V117: =IF(R117,$J$3,"") ->  | X117: 124 | Y117: FALSE | Z117: =IF($F$17,'FRED Indicies'!E130) -> 0 | AA117: =IFERROR(INDEX(Z:Z,MATCH(L117,Y:Y,0)),"") ->  | AB117: =IF($F$17,'FRED Indicies'!D130) -> 0 | AC117: =IFERROR(INDEX(AB:AB,MATCH(L117,Y:Y,0)),"") ->  | AF117: 129 | AG117: FALSE | AH117: =IF(AG117,'Google Index'!E144) -> FALSE | AI117: =IFERROR(INDEX(AH:AH,MATCH(Q117,AG:AG,0)),"") ->  | AJ117: =IF(AF117,'Google Index'!F144) -> 0 | AK117: =IFERROR(INDEX(AJ:AJ,MATCH(Q117,AG:AG,0)),"") ->  | AN117: 129 | AO117: FALSE | AP117: =IF(AO117,'Commodity Prices'!C130) -> FALSE | AQ117: =IFERROR(INDEX(AP:AP,MATCH(L117,AO:AO,0)),"") ->  | AR117: =IF(AO117,'Commodity Prices'!D130) -> FALSE | AS117: =IFERROR(INDEX(AR:AR,MATCH(L117,AO:AO,0)),"") ->  | AV117: 135 | AW117: FALSE | AX117: =IF(AW117,'Yahoo Stocks'!D144) -> FALSE | AZ117: =IF(AW117,'Yahoo Stocks'!E144) -> FALSE | BD117: 165 | BE117: FALSE | BF117: =IF(BE117,'Google Finance Stocks'!D141) -> FALSE | BG117: =IFERROR(INDEX(BF:BF,MATCH(Q117,BE:BE,0)),"") ->  | BH117: =IF(BE117,'Google Finance Stocks'!E141) -> FALSE | BI117: =IFERROR(INDEX(BH:BH,MATCH(Q117,BE:BE,0)),"") ->  | BL117: 165 | BM117: FALSE | BN117: ='Exchange Rates'!D142 -> 0 | BO117: =IFERROR(INDEX(BN:BN,MATCH(L117,BM:BM,0)),"") ->  | BP117: =IF(BM117,'Exchange Rates'!E142) -> FALSE | BQ117: =IFERROR(INDEX(BP:BP,MATCH(L117,BM:BM,0)),"") -> 
L118: 116 | Q118: 116 | R118: FALSE | S118: =IF(R118,'Yahoo Index'!E168,"") ->  | T118: =IF(R118,'Yahoo Index'!F168,"") ->  | X118: 125 | Y118: FALSE | Z118: =IF($F$17,'FRED Indicies'!E131) -> 0 | AB118: =IF($F$17,'FRED Indicies'!D131) -> 0 | AF118: 130 | AG118: FALSE | AH118: =IF(AG118,'Google Index'!E145) -> FALSE | AJ118: =IF(AF118,'Google Index'!F145) -> 0 | AN118: 130 | AO118: FALSE | AP118: =IF(AO118,'Commodity Prices'!C131) -> FALSE | AR118: =IF(AO118,'Commodity Prices'!D131) -> FALSE | AV118: 136 | AW118: FALSE | AX118: =IF(AW118,'Yahoo Stocks'!D145) -> FALSE | AZ118: =IF(AW118,'Yahoo Stocks'!E145) -> FALSE | BD118: 166 | BE118: FALSE | BF118: =IF(BE118,'Google Finance Stocks'!D142) -> FALSE | BH118: =IF(BE118,'Google Finance Stocks'!E142) -> FALSE | BL118: 166 | BM118: FALSE | BN118: ='Exchange Rates'!D143 -> 0 | BP118: =IF(BM118,'Exchange Rates'!E143) -> FALSE
L119: 117 | Q119: 117 | R119: FALSE | S119: =IF(R119,'Yahoo Index'!E169,"") ->  | T119: =IF(R119,'Yahoo Index'!F169,"") ->  | X119: 126 | Y119: FALSE | Z119: =IF($F$17,'FRED Indicies'!E132) -> 0 | AB119: =IF($F$17,'FRED Indicies'!D132) -> 0 | AF119: 131 | AG119: FALSE | AH119: =IF(AG119,'Google Index'!E146) -> FALSE | AJ119: =IF(AF119,'Google Index'!F146) -> 0 | AN119: 131 | AO119: FALSE | AP119: =IF(AO119,'Commodity Prices'!C132) -> FALSE | AR119: =IF(AO119,'Commodity Prices'!D132) -> FALSE | AV119: 137 | AW119: FALSE | AX119: =IF(AW119,'Yahoo Stocks'!D146) -> FALSE | AZ119: =IF(AW119,'Yahoo Stocks'!E146) -> FALSE | BD119: 167 | BE119: FALSE | BF119: =IF(BE119,'Google Finance Stocks'!D143) -> FALSE | BH119: =IF(BE119,'Google Finance Stocks'!E143) -> FALSE | BL119: 167 | BM119: FALSE | BN119: ='Exchange Rates'!D144 -> 0 | BP119: =IF(BM119,'Exchange Rates'!E144) -> FALSE
L120: 118 | Q120: 118 | R120: FALSE | S120: =IF(R120,'Yahoo Index'!E170,"") ->  | T120: =IF(R120,'Yahoo Index'!F170,"") ->  | X120: 127 | Y120: FALSE | Z120: =IF($F$17,'FRED Indicies'!E133) -> 0 | AB120: =IF($F$17,'FRED Indicies'!D133) -> 0 | AF120: 132 | AG120: FALSE | AH120: =IF(AG120,'Google Index'!E147) -> FALSE | AJ120: =IF(AF120,'Google Index'!F147) -> 0 | AN120: 132 | AO120: FALSE | AP120: =IF(AO120,'Commodity Prices'!C133) -> FALSE | AR120: =IF(AO120,'Commodity Prices'!D133) -> FALSE | AV120: 138 | AW120: FALSE | AX120: =IF(AW120,'Yahoo Stocks'!D147) -> FALSE | AZ120: =IF(AW120,'Yahoo Stocks'!E147) -> FALSE | BD120: 168 | BE120: FALSE | BF120: =IF(BE120,'Google Finance Stocks'!D144) -> FALSE | BH120: =IF(BE120,'Google Finance Stocks'!E144) -> FALSE | BL120: 168 | BM120: FALSE | BN120: ='Exchange Rates'!D145 -> 0 | BP120: =IF(BM120,'Exchange Rates'!E145) -> FALSE
L121: 119 | Q121: 119 | R121: FALSE | S121: =IF(R121,'Yahoo Index'!E171,"") ->  | T121: =IF(R121,'Yahoo Index'!F171,"") ->  | X121: 128 | Y121: FALSE | Z121: =IF($F$17,'FRED Indicies'!E134) -> 0 | AB121: =IF($F$17,'FRED Indicies'!D134) -> 0 | AF121: 133 | AG121: FALSE | AH121: =IF(AG121,'Google Index'!E148) -> FALSE | AJ121: =IF(AF121,'Google Index'!F148) -> 0 | AN121: 133 | AO121: FALSE | AP121: =IF(AO121,'Commodity Prices'!C134) -> FALSE | AR121: =IF(AO121,'Commodity Prices'!D134) -> FALSE | AV121: 139 | AW121: FALSE | AX121: =IF(AW121,'Yahoo Stocks'!D148) -> FALSE | AZ121: =IF(AW121,'Yahoo Stocks'!E148) -> FALSE | BD121: 169 | BE121: FALSE | BF121: =IF(BE121,'Google Finance Stocks'!D145) -> FALSE | BH121: =IF(BE121,'Google Finance Stocks'!E145) -> FALSE | BL121: 169 | BM121: FALSE | BN121: ='Exchange Rates'!D146 -> 0 | BP121: =IF(BM121,'Exchange Rates'!E146) -> FALSE
L122: 120 | Q122: 120 | R122: FALSE | S122: =IF(R122,'Yahoo Index'!E172,"") ->  | T122: =IF(R122,'Yahoo Index'!F172,"") ->  | X122: 129 | Y122: FALSE | Z122: =IF($F$17,'FRED Indicies'!E135) -> 0 | AB122: =IF($F$17,'FRED Indicies'!D135) -> 0 | AF122: 134 | AG122: FALSE | AH122: =IF(AG122,'Google Index'!E149) -> FALSE | AJ122: =IF(AF122,'Google Index'!F149) -> 0 | AN122: 134 | AO122: FALSE | AP122: =IF(AO122,'Commodity Prices'!C135) -> FALSE | AR122: =IF(AO122,'Commodity Prices'!D135) -> FALSE | AV122: 140 | AW122: FALSE | AX122: =IF(AW122,'Yahoo Stocks'!D149) -> FALSE | AZ122: =IF(AW122,'Yahoo Stocks'!E149) -> FALSE | BD122: 170 | BE122: FALSE | BF122: =IF(BE122,'Google Finance Stocks'!D146) -> FALSE | BH122: =IF(BE122,'Google Finance Stocks'!E146) -> FALSE | BL122: 170 | BM122: FALSE | BN122: ='Exchange Rates'!D147 -> 0 | BP122: =IF(BM122,'Exchange Rates'!E147) -> FALSE
L123: 121 | Q123: 121 | R123: FALSE | S123: =IF(R123,'Yahoo Index'!E173,"") ->  | T123: =IF(R123,'Yahoo Index'!F173,"") ->  | X123: 130 | Y123: FALSE | Z123: =IF($F$17,'FRED Indicies'!E136) -> 0 | AB123: =IF($F$17,'FRED Indicies'!D136) -> 0 | AF123: 135 | AG123: FALSE | AH123: =IF(AG123,'Google Index'!E150) -> FALSE | AJ123: =IF(AF123,'Google Index'!F150) -> 0 | AN123: 135 | AO123: FALSE | AP123: =IF(AO123,'Commodity Prices'!C136) -> FALSE | AR123: =IF(AO123,'Commodity Prices'!D136) -> FALSE | AV123: 141 | AW123: FALSE | AX123: =IF(AW123,'Yahoo Stocks'!D150) -> FALSE | AZ123: =IF(AW123,'Yahoo Stocks'!E150) -> FALSE | BD123: 171 | BE123: FALSE | BF123: =IF(BE123,'Google Finance Stocks'!D147) -> FALSE | BH123: =IF(BE123,'Google Finance Stocks'!E147) -> FALSE | BL123: 171 | BM123: FALSE | BN123: ='Exchange Rates'!D148 -> 0 | BP123: =IF(BM123,'Exchange Rates'!E148) -> FALSE
L124: 122 | Q124: 122 | R124: FALSE | S124: =IF(R124,'Yahoo Index'!E174,"") ->  | T124: =IF(R124,'Yahoo Index'!F174,"") ->  | X124: 131 | Y124: FALSE | Z124: =IF($F$17,'FRED Indicies'!E137) -> 0 | AB124: =IF($F$17,'FRED Indicies'!D137) -> 0 | AF124: 136 | AG124: FALSE | AH124: =IF(AG124,'Google Index'!E151) -> FALSE | AJ124: =IF(AF124,'Google Index'!F151) -> 0 | AN124: 136 | AO124: FALSE | AP124: =IF(AO124,'Commodity Prices'!C137) -> FALSE | AR124: =IF(AO124,'Commodity Prices'!D137) -> FALSE | AV124: 142 | AW124: FALSE | AX124: =IF(AW124,'Yahoo Stocks'!D151) -> FALSE | AZ124: =IF(AW124,'Yahoo Stocks'!E151) -> FALSE | BD124: 172 | BE124: FALSE | BF124: =IF(BE124,'Google Finance Stocks'!D148) -> FALSE | BH124: =IF(BE124,'Google Finance Stocks'!E148) -> FALSE | BL124: 172 | BM124: FALSE | BN124: ='Exchange Rates'!D149 -> 0 | BP124: =IF(BM124,'Exchange Rates'!E149) -> FALSE
L125: 123 | Q125: 123 | R125: FALSE | S125: =IF(R125,'Yahoo Index'!E175,"") ->  | T125: =IF(R125,'Yahoo Index'!F175,"") ->  | X125: 132 | Y125: FALSE | Z125: =IF($F$17,'FRED Indicies'!E138) -> 0 | AB125: =IF($F$17,'FRED Indicies'!D138) -> 0 | AF125: 137 | AG125: FALSE | AH125: =IF(AG125,'Google Index'!E152) -> FALSE | AJ125: =IF(AF125,'Google Index'!F152) -> 0 | AN125: 137 | AO125: FALSE | AP125: =IF(AO125,'Commodity Prices'!C138) -> FALSE | AR125: =IF(AO125,'Commodity Prices'!D138) -> FALSE | AV125: 143 | AW125: FALSE | AX125: =IF(AW125,'Yahoo Stocks'!D152) -> FALSE | AZ125: =IF(AW125,'Yahoo Stocks'!E152) -> FALSE | BD125: 173 | BE125: FALSE | BF125: =IF(BE125,'Google Finance Stocks'!D149) -> FALSE | BH125: =IF(BE125,'Google Finance Stocks'!E149) -> FALSE | BL125: 173 | BM125: FALSE | BN125: ='Exchange Rates'!D150 -> 0 | BP125: =IF(BM125,'Exchange Rates'!E150) -> FALSE
L126: 124 | Q126: 124 | R126: FALSE | S126: =IF(R126,'Yahoo Index'!E176,"") ->  | T126: =IF(R126,'Yahoo Index'!F176,"") ->  | X126: 133 | Y126: FALSE | Z126: =IF($F$17,'FRED Indicies'!E139) -> 0 | AB126: =IF($F$17,'FRED Indicies'!D139) -> 0 | AF126: 138 | AG126: FALSE | AH126: =IF(AG126,'Google Index'!E153) -> FALSE | AJ126: =IF(AF126,'Google Index'!F153) -> 0 | AN126: 138 | AO126: FALSE | AP126: =IF(AO126,'Commodity Prices'!C139) -> FALSE | AR126: =IF(AO126,'Commodity Prices'!D139) -> FALSE | AV126: 144 | AW126: FALSE | AX126: =IF(AW126,'Yahoo Stocks'!D153) -> FALSE | AZ126: =IF(AW126,'Yahoo Stocks'!E153) -> FALSE | BD126: 174 | BE126: FALSE | BF126: =IF(BE126,'Google Finance Stocks'!D150) -> FALSE | BH126: =IF(BE126,'Google Finance Stocks'!E150) -> FALSE | BL126: 174 | BM126: FALSE | BN126: ='Exchange Rates'!D151 -> 0 | BO126: =IFERROR(INDEX(BN:BN,MATCH(L126,BM:BM,0)),"") ->  | BP126: =IF(BM126,'Exchange Rates'!E151) -> FALSE
L127: 125 | Q127: 125 | R127: FALSE | S127: =IF(R127,'Yahoo Index'!E177,"") ->  | T127: =IF(R127,'Yahoo Index'!F177,"") ->  | X127: 134 | Y127: FALSE | Z127: =IF($F$17,'FRED Indicies'!E140) -> 0 | AB127: =IF($F$17,'FRED Indicies'!D140) -> 0 | AF127: 139 | AG127: FALSE | AH127: =IF(AG127,'Google Index'!E154) -> FALSE | AJ127: =IF(AF127,'Google Index'!F154) -> 0 | AN127: 139 | AO127: FALSE | AP127: =IF(AO127,'Commodity Prices'!C140) -> FALSE | AR127: =IF(AO127,'Commodity Prices'!D140) -> FALSE | AV127: 145 | AW127: FALSE | AX127: =IF(AW127,'Yahoo Stocks'!D154) -> FALSE | AZ127: =IF(AW127,'Yahoo Stocks'!E154) -> FALSE | BD127: 175 | BE127: FALSE | BF127: =IF(BE127,'Google Finance Stocks'!D151) -> FALSE | BH127: =IF(BE127,'Google Finance Stocks'!E151) -> FALSE | BL127: 175 | BM127: FALSE | BN127: ='Exchange Rates'!D152 -> 0 | BO127: =IFERROR(INDEX(BN:BN,MATCH(L127,BM:BM,0)),"") ->  | BP127: =IF(BM127,'Exchange Rates'!E152) -> FALSE
L128: 126 | M128: =S128&AA128&AI128&AQ128&AY128&BG128&BO128 ->  | N128: =T128&AC128&AK128&AS128&BA128&BI128&BQ128 ->  | O128: =U128&AD128&AL128&AT128&BB128&BJ128&BR128 ->  | P128: =V128&AE128&AM128&AU128&BC128&BK128&BS128 ->  | Q128: 126 | R128: =IF(AND($F$3,Q128<=$H$3),Q128) -> FALSE | X128: 135 | Y128: FALSE | Z128: =IF($F$17,'FRED Indicies'!E141) -> 0 | AA128: =IFERROR(INDEX(Z:Z,MATCH(L128,Y:Y,0)),"") ->  | AB128: =IF($F$17,'FRED Indicies'!D141) -> 0 | AC128: =IFERROR(INDEX(AB:AB,MATCH(L128,Y:Y,0)),"") ->  | AF128: 140 | AG128: FALSE | AH128: =IF(AG128,'Google Index'!E155) -> FALSE | AI128: =IFERROR(INDEX(AH:AH,MATCH(Q128,AG:AG,0)),"") ->  | AJ128: =IF(AF128,'Google Index'!F155) -> 0 | AK128: =IFERROR(INDEX(AJ:AJ,MATCH(Q128,AG:AG,0)),"") ->  | AN128: 140 | AO128: FALSE | AP128: =IF(AO128,'Commodity Prices'!C141) -> FALSE | AQ128: =IFERROR(INDEX(AP:AP,MATCH(L128,AO:AO,0)),"") ->  | AR128: =IF(AO128,'Commodity Prices'!D141) -> FALSE | AS128: =IFERROR(INDEX(AR:AR,MATCH(L128,AO:AO,0)),"") ->  | AV128: 146 | AW128: FALSE | AX128: =IF(AW128,'Yahoo Stocks'!D155) -> FALSE | AZ128: =IF(AW128,'Yahoo Stocks'!E155) -> FALSE | BD128: 176 | BE128: FALSE | BF128: =IF(BE128,'Google Finance Stocks'!D152) -> FALSE | BG128: =IFERROR(INDEX(BF:BF,MATCH(Q128,BE:BE,0)),"") ->  | BH128: =IF(BE128,'Google Finance Stocks'!E152) -> FALSE | BI128: =IFERROR(INDEX(BH:BH,MATCH(Q128,BE:BE,0)),"") ->  | BL128: 176 | BM128: FALSE | BN128: ='Exchange Rates'!D153 -> 0 | BO128: =IFERROR(INDEX(BN:BN,MATCH(L128,BM:BM,0)),"") ->  | BP128: =IF(BM128,'Exchange Rates'!E153) -> FALSE | BQ128: =IFERROR(INDEX(BP:BP,MATCH(L128,BM:BM,0)),"") -> 
L129: 127 | Q129: 127 | R129: FALSE | X129: 136 | Y129: FALSE | Z129: =IF($F$17,'FRED Indicies'!E142) -> 0 | AB129: =IF($F$17,'FRED Indicies'!D142) -> 0 | AF129: 141 | AG129: FALSE | AH129: =IF(AG129,'Google Index'!E156) -> FALSE | AJ129: =IF(AF129,'Google Index'!F156) -> 0 | AN129: 141 | AO129: FALSE | AP129: =IF(AO129,'Commodity Prices'!C142) -> FALSE | AR129: =IF(AO129,'Commodity Prices'!D142) -> FALSE | AV129: 147 | AW129: FALSE | AX129: =IF(AW129,'Yahoo Stocks'!D156) -> FALSE | AZ129: =IF(AW129,'Yahoo Stocks'!E156) -> FALSE | BD129: 177 | BE129: FALSE | BF129: =IF(BE129,'Google Finance Stocks'!D153) -> FALSE | BH129: =IF(BE129,'Google Finance Stocks'!E153) -> FALSE | BL129: 177 | BM129: FALSE | BN129: ='Exchange Rates'!D154 -> 0 | BO129: =IFERROR(INDEX(BN:BN,MATCH(L129,BM:BM,0)),"") ->  | BP129: =IF(BM129,'Exchange Rates'!E154) -> FALSE
L130: 128 | Q130: 128 | R130: FALSE | X130: 137 | Y130: FALSE | Z130: =IF($F$17,'FRED Indicies'!E143) -> 0 | AB130: =IF($F$17,'FRED Indicies'!D143) -> 0 | AF130: 142 | AG130: FALSE | AH130: =IF(AG130,'Google Index'!E157) -> FALSE | AJ130: =IF(AF130,'Google Index'!F157) -> 0 | AN130: 142 | AO130: FALSE | AP130: =IF(AO130,'Commodity Prices'!C143) -> FALSE | AR130: =IF(AO130,'Commodity Prices'!D143) -> FALSE | AV130: 148 | AW130: FALSE | AX130: =IF(AW130,'Yahoo Stocks'!D157) -> FALSE | AZ130: =IF(AW130,'Yahoo Stocks'!E157) -> FALSE | BD130: 178 | BE130: FALSE | BF130: =IF(BE130,'Google Finance Stocks'!D154) -> FALSE | BH130: =IF(BE130,'Google Finance Stocks'!E154) -> FALSE | BL130: 178 | BM130: FALSE | BN130: ='Exchange Rates'!D155 -> 0 | BP130: =IF(BM130,'Exchange Rates'!E155) -> FALSE
L131: 129 | Q131: 129 | R131: FALSE | X131: 138 | Y131: =IF(AND($F$17,X131<=$H$17),X131) -> FALSE | Z131: =IF($F$17,'FRED Indicies'!E144) -> 0 | AB131: =IF($F$17,'FRED Indicies'!D144) -> 0 | AD131: =IF(AA131<>"",$I$17,"") ->  | AE131: =IF(AA131<>"",$J$17,"") ->  | AF131: 143 | AG131: =IF(AND($F$20,AF131<=$H$20),AF131) -> FALSE | AH131: =IF(AG131,'Google Index'!E158) -> FALSE | AJ131: =IF(AF131,'Google Index'!F158) -> 0 | AL131: =IF(AI131<>"",$I$17,"") ->  | AM131: =IF(AK131<>"",$J$17,"") ->  | AN131: 143 | AO131: =IF(AND($F$11,AN131<=$H$11),AN131) -> FALSE | AP131: =IF(AO131,'Commodity Prices'!C144) -> FALSE | AR131: =IF(AO131,'Commodity Prices'!D144) -> FALSE | AT131: =IF(AQ131<>"",$I$11,"") ->  | AU131: =IF(AS131<>"",$J$11,"") ->  | AV131: 149 | AW131: =IF(AND($F$5,AV131<=$H$5),AV131) -> FALSE | AX131: =IF(AW131,'Yahoo Stocks'!D158) -> FALSE | AZ131: =IF(AW131,'Yahoo Stocks'!E158) -> FALSE | BB131: =IF(AY131<>"",$I$5,"") ->  | BC131: =IF(BA131<>"",$J$5,"") ->  | BD131: 179 | BE131: =IF(AND($F$14,BD131<=$H$14),BD131) -> FALSE | BF131: =IF(BE131,'Google Finance Stocks'!D155) -> FALSE | BH131: =IF(BE131,'Google Finance Stocks'!E155) -> FALSE | BJ131: =IF(BI131<>"",$I$14,"") ->  | BK131: =IF(BI131<>"",$J$14,"") ->  | BL131: 179 | BM131: =IF(AND($F$8,BL131<=$H$8),BL131) -> FALSE | BN131: ='Exchange Rates'!D156 -> 0 | BP131: =IF(BM131,'Exchange Rates'!E156) -> FALSE | BR131: =IF(BQ131<>"",$I$8,"") ->  | BS131: =IF(BQ131<>"",$J$8,"") -> 
L132: 130 | Q132: 130 | R132: FALSE | X132: 139 | Y132: FALSE | Z132: =IF($F$17,'FRED Indicies'!E145) -> 0 | AB132: =IF($F$17,'FRED Indicies'!D145) -> 0 | AF132: 144 | AG132: FALSE | AH132: =IF(AG132,'Google Index'!E159) -> FALSE | AJ132: =IF(AF132,'Google Index'!F159) -> 0 | AN132: 144 | AO132: FALSE | AP132: =IF(AO132,'Commodity Prices'!C145) -> FALSE | AR132: =IF(AO132,'Commodity Prices'!D145) -> FALSE | AV132: 150 | AW132: FALSE | AX132: =IF(AW132,'Yahoo Stocks'!D159) -> FALSE | AZ132: =IF(AW132,'Yahoo Stocks'!E159) -> FALSE | BD132: 180 | BE132: FALSE | BF132: =IF(BE132,'Google Finance Stocks'!D156) -> FALSE | BH132: =IF(BE132,'Google Finance Stocks'!E156) -> FALSE | BL132: 180 | BM132: FALSE | BN132: ='Exchange Rates'!D157 -> 0 | BP132: =IF(BM132,'Exchange Rates'!E157) -> FALSE
L133: 131 | Q133: =Q132+1 -> 131 | R133: FALSE | X133: =X132+1 -> 140 | Y133: FALSE | Z133: =IF($F$17,'FRED Indicies'!E146) -> 0 | AB133: =IF($F$17,'FRED Indicies'!D146) -> 0 | AF133: =AF132+1 -> 145 | AG133: FALSE | AH133: =IF(AG133,'Google Index'!E160) -> FALSE | AJ133: =IF(AF133,'Google Index'!F160) -> 0 | AN133: =AN132+1 -> 145 | AO133: FALSE | AP133: =IF(AO133,'Commodity Prices'!C146) -> FALSE | AR133: =IF(AO133,'Commodity Prices'!D146) -> FALSE | AV133: =AV132+1 -> 151 | AW133: FALSE | AX133: =IF(AW133,'Yahoo Stocks'!D160) -> FALSE | AZ133: =IF(AW133,'Yahoo Stocks'!E160) -> FALSE | BD133: =BD132+1 -> 181 | BE133: FALSE | BF133: =IF(BE133,'Google Finance Stocks'!D157) -> FALSE | BH133: =IF(BE133,'Google Finance Stocks'!E157) -> FALSE | BL133: =BL132+1 -> 181 | BM133: FALSE | BN133: ='Exchange Rates'!D158 -> 0 | BP133: =IF(BM133,'Exchange Rates'!E158) -> FALSE
L134: 132 | Q134: 132 | R134: FALSE | X134: 141 | Y134: FALSE | Z134: =IF($F$17,'FRED Indicies'!E147) -> 0 | AB134: =IF($F$17,'FRED Indicies'!D147) -> 0 | AF134: 146 | AG134: FALSE | AH134: =IF(AG134,'Google Index'!E161) -> FALSE | AJ134: =IF(AF134,'Google Index'!F161) -> 0 | AN134: 146 | AO134: FALSE | AP134: =IF(AO134,'Commodity Prices'!C147) -> FALSE | AR134: =IF(AO134,'Commodity Prices'!D147) -> FALSE | AV134: 152 | AW134: FALSE | AX134: =IF(AW134,'Yahoo Stocks'!D161) -> FALSE | AZ134: =IF(AW134,'Yahoo Stocks'!E161) -> FALSE | BD134: 182 | BE134: FALSE | BF134: =IF(BE134,'Google Finance Stocks'!D158) -> FALSE | BH134: =IF(BE134,'Google Finance Stocks'!E158) -> FALSE | BL134: 182 | BM134: FALSE | BN134: ='Exchange Rates'!D159 -> 0 | BP134: =IF(BM134,'Exchange Rates'!E159) -> FALSE
L135: 133 | M135: =S135&AA135&AI135&AQ135&AY135&BG135&BO135 ->  | N135: =T135&AC135&AK135&AS135&BA135&BI135&BQ135 ->  | O135: =U135&AD135&AL135&AT135&BB135&BJ135&BR135 ->  | P135: =V135&AE135&AM135&AU135&BC135&BK135&BS135 ->  | Q135: 133 | R135: =IF(AND($F$3,Q135<=$H$3),Q135) -> FALSE | X135: 142 | Y135: FALSE | Z135: =IF($F$17,'FRED Indicies'!E148) -> 0 | AB135: =IF($F$17,'FRED Indicies'!D148) -> 0 | AF135: 147 | AG135: FALSE | AH135: =IF(AG135,'Google Index'!E162) -> FALSE | AJ135: =IF(AF135,'Google Index'!F162) -> 0 | AN135: 147 | AO135: FALSE | AP135: =IF(AO135,'Commodity Prices'!C148) -> FALSE | AR135: =IF(AO135,'Commodity Prices'!D148) -> FALSE | AV135: 153 | AW135: FALSE | AX135: =IF(AW135,'Yahoo Stocks'!D162) -> FALSE | AZ135: =IF(AW135,'Yahoo Stocks'!E162) -> FALSE | BD135: 183 | BE135: FALSE | BF135: =IF(BE135,'Google Finance Stocks'!D159) -> FALSE | BH135: =IF(BE135,'Google Finance Stocks'!E159) -> FALSE | BL135: 183 | BM135: FALSE | BN135: ='Exchange Rates'!D160 -> 0 | BP135: =IF(BM135,'Exchange Rates'!E160) -> FALSE
L136: 134 | Q136: 134 | R136: FALSE | X136: 143 | Y136: FALSE | Z136: =IF($F$17,'FRED Indicies'!E149) -> 0 | AB136: =IF($F$17,'FRED Indicies'!D149) -> 0 | AF136: 148 | AG136: FALSE | AH136: =IF(AG136,'Google Index'!E163) -> FALSE | AJ136: =IF(AF136,'Google Index'!F163) -> 0 | AN136: 148 | AO136: FALSE | AP136: =IF(AO136,'Commodity Prices'!C149) -> FALSE | AR136: =IF(AO136,'Commodity Prices'!D149) -> FALSE | AV136: 154 | AW136: FALSE | AX136: =IF(AW136,'Yahoo Stocks'!D163) -> FALSE | AZ136: =IF(AW136,'Yahoo Stocks'!E163) -> FALSE | BD136: 184 | BE136: FALSE | BF136: =IF(BE136,'Google Finance Stocks'!D160) -> FALSE | BH136: =IF(BE136,'Google Finance Stocks'!E160) -> FALSE | BL136: 184 | BM136: FALSE | BN136: ='Exchange Rates'!D161 -> 0 | BP136: =IF(BM136,'Exchange Rates'!E161) -> FALSE
L137: 135 | Q137: 135 | R137: FALSE | X137: 144 | Y137: FALSE | Z137: =IF($F$17,'FRED Indicies'!E150) -> 0 | AB137: =IF($F$17,'FRED Indicies'!D150) -> 0 | AF137: 149 | AG137: FALSE | AH137: =IF(AG137,'Google Index'!E164) -> FALSE | AJ137: =IF(AF137,'Google Index'!F164) -> 0 | AN137: 149 | AO137: FALSE | AP137: =IF(AO137,'Commodity Prices'!C150) -> FALSE | AR137: =IF(AO137,'Commodity Prices'!D150) -> FALSE | AV137: 155 | AW137: FALSE | AX137: =IF(AW137,'Yahoo Stocks'!D164) -> FALSE | AZ137: =IF(AW137,'Yahoo Stocks'!E164) -> FALSE | BD137: 185 | BE137: FALSE | BF137: =IF(BE137,'Google Finance Stocks'!D161) -> FALSE | BH137: =IF(BE137,'Google Finance Stocks'!E161) -> FALSE | BL137: 185 | BM137: FALSE | BN137: ='Exchange Rates'!D162 -> 0 | BP137: =IF(BM137,'Exchange Rates'!E162) -> FALSE
L138: 136 | Q138: 136 | R138: FALSE | X138: 145 | Y138: FALSE | Z138: =IF($F$17,'FRED Indicies'!E151) -> 0 | AB138: =IF($F$17,'FRED Indicies'!D151) -> 0 | AF138: 150 | AG138: FALSE | AH138: =IF(AG138,'Google Index'!E165) -> FALSE | AJ138: =IF(AF138,'Google Index'!F165) -> 0 | AN138: 150 | AO138: FALSE | AP138: =IF(AO138,'Commodity Prices'!C151) -> FALSE | AR138: =IF(AO138,'Commodity Prices'!D151) -> FALSE | AV138: 156 | AW138: FALSE | AX138: =IF(AW138,'Yahoo Stocks'!D165) -> FALSE | AZ138: =IF(AW138,'Yahoo Stocks'!E165) -> FALSE | BD138: 186 | BE138: FALSE | BF138: =IF(BE138,'Google Finance Stocks'!D162) -> FALSE | BH138: =IF(BE138,'Google Finance Stocks'!E162) -> FALSE | BL138: 186 | BM138: FALSE | BN138: ='Exchange Rates'!D163 -> 0 | BP138: =IF(BM138,'Exchange Rates'!E163) -> FALSE
L139: 137 | Q139: 137 | R139: FALSE | X139: 146 | Y139: FALSE | Z139: =IF($F$17,'FRED Indicies'!E152) -> 0 | AB139: =IF($F$17,'FRED Indicies'!D152) -> 0 | AF139: 151 | AG139: FALSE | AH139: =IF(AG139,'Google Index'!E166) -> FALSE | AJ139: =IF(AF139,'Google Index'!F166) -> 0 | AN139: 151 | AO139: FALSE | AP139: =IF(AO139,'Commodity Prices'!C152) -> FALSE | AR139: =IF(AO139,'Commodity Prices'!D152) -> FALSE | AV139: 157 | AW139: FALSE | AX139: =IF(AW139,'Yahoo Stocks'!D166) -> FALSE | AZ139: =IF(AW139,'Yahoo Stocks'!E166) -> FALSE | BD139: 187 | BE139: FALSE | BF139: =IF(BE139,'Google Finance Stocks'!D163) -> FALSE | BH139: =IF(BE139,'Google Finance Stocks'!E163) -> FALSE | BL139: 187 | BM139: FALSE | BN139: ='Exchange Rates'!D164 -> 0 | BP139: =IF(BM139,'Exchange Rates'!E164) -> FALSE
L140: 138 | Q140: 138 | R140: FALSE | X140: 147 | Y140: FALSE | Z140: =IF($F$17,'FRED Indicies'!E153) -> 0 | AB140: =IF($F$17,'FRED Indicies'!D153) -> 0 | AF140: 152 | AG140: FALSE | AH140: =IF(AG140,'Google Index'!E167) -> FALSE | AJ140: =IF(AF140,'Google Index'!F167) -> 0 | AN140: 152 | AO140: FALSE | AP140: =IF(AO140,'Commodity Prices'!C153) -> FALSE | AR140: =IF(AO140,'Commodity Prices'!D153) -> FALSE | AV140: 158 | AW140: FALSE | AX140: =IF(AW140,'Yahoo Stocks'!D167) -> FALSE | AZ140: =IF(AW140,'Yahoo Stocks'!E167) -> FALSE | BD140: 188 | BE140: FALSE | BF140: =IF(BE140,'Google Finance Stocks'!D164) -> FALSE | BH140: =IF(BE140,'Google Finance Stocks'!E164) -> FALSE | BL140: 188 | BM140: FALSE | BN140: ='Exchange Rates'!D165 -> 0 | BP140: =IF(BM140,'Exchange Rates'!E165) -> FALSE
L141: 139 | M141: =S141&AA141&AI141&AQ141&AY141&BG141&BO141 ->  | N141: =T141&AC141&AK141&AS141&BA141&BI141&BQ141 ->  | O141: =U141&AD141&AL141&AT141&BB141&BJ141&BR141 ->  | P141: =V141&AE141&AM141&AU141&BC141&BK141&BS141 ->  | Q141: 139 | R141: FALSE | X141: 148 | Y141: FALSE | Z141: =IF($F$17,'FRED Indicies'!E154) -> 0 | AB141: =IF($F$17,'FRED Indicies'!D154) -> 0 | AF141: 153 | AG141: FALSE | AH141: =IF(AG141,'Google Index'!E168) -> FALSE | AJ141: =IF(AF141,'Google Index'!F168) -> 0 | AN141: 153 | AO141: FALSE | AP141: =IF(AO141,'Commodity Prices'!C154) -> FALSE | AR141: =IF(AO141,'Commodity Prices'!D154) -> FALSE | AV141: 159 | AW141: FALSE | AX141: =IF(AW141,'Yahoo Stocks'!D168) -> FALSE | AZ141: =IF(AW141,'Yahoo Stocks'!E168) -> FALSE | BD141: 189 | BE141: FALSE | BF141: =IF(BE141,'Google Finance Stocks'!D165) -> FALSE | BH141: =IF(BE141,'Google Finance Stocks'!E165) -> FALSE | BL141: 189 | BM141: FALSE | BN141: ='Exchange Rates'!D166 -> 0 | BP141: =IF(BM141,'Exchange Rates'!E166) -> FALSE
L142: 140 | Q142: 140 | R142: FALSE | X142: 149 | Y142: FALSE | Z142: =IF($F$17,'FRED Indicies'!E155) -> 0 | AB142: =IF($F$17,'FRED Indicies'!D155) -> 0 | AF142: 154 | AG142: FALSE | AH142: =IF(AG142,'Google Index'!E169) -> FALSE | AJ142: =IF(AF142,'Google Index'!F169) -> 0 | AN142: 154 | AO142: FALSE | AP142: =IF(AO142,'Commodity Prices'!C155) -> FALSE | AR142: =IF(AO142,'Commodity Prices'!D155) -> FALSE | AV142: 160 | AW142: FALSE | AX142: =IF(AW142,'Yahoo Stocks'!D169) -> FALSE | AZ142: =IF(AW142,'Yahoo Stocks'!E169) -> FALSE | BD142: 190 | BE142: FALSE | BF142: =IF(BE142,'Google Finance Stocks'!D166) -> FALSE | BH142: =IF(BE142,'Google Finance Stocks'!E166) -> FALSE | BL142: 190 | BM142: FALSE | BN142: ='Exchange Rates'!D167 -> 0 | BP142: =IF(BM142,'Exchange Rates'!E167) -> FALSE
L143: 141 | Q143: 141 | R143: FALSE | X143: 150 | Y143: FALSE | Z143: =IF($F$17,'FRED Indicies'!E156) -> 0 | AB143: =IF($F$17,'FRED Indicies'!D156) -> 0 | AF143: 155 | AG143: FALSE | AH143: =IF(AG143,'Google Index'!E170) -> FALSE | AJ143: =IF(AF143,'Google Index'!F170) -> 0 | AN143: 155 | AO143: FALSE | AP143: =IF(AO143,'Commodity Prices'!C156) -> FALSE | AR143: =IF(AO143,'Commodity Prices'!D156) -> FALSE | AV143: 161 | AW143: FALSE | AX143: =IF(AW143,'Yahoo Stocks'!D170) -> FALSE | AZ143: =IF(AW143,'Yahoo Stocks'!E170) -> FALSE | BD143: 191 | BE143: FALSE | BF143: =IF(BE143,'Google Finance Stocks'!D167) -> FALSE | BH143: =IF(BE143,'Google Finance Stocks'!E167) -> FALSE | BL143: 191 | BM143: FALSE | BN143: ='Exchange Rates'!D168 -> 0 | BP143: =IF(BM143,'Exchange Rates'!E168) -> FALSE
L144: 142 | Q144: 142 | R144: FALSE | X144: 151 | Y144: FALSE | Z144: =IF($F$17,'FRED Indicies'!E157) -> 0 | AB144: =IF($F$17,'FRED Indicies'!D157) -> 0 | AF144: 156 | AG144: FALSE | AH144: =IF(AG144,'Google Index'!E171) -> FALSE | AJ144: =IF(AF144,'Google Index'!F171) -> 0 | AN144: 156 | AO144: FALSE | AP144: =IF(AO144,'Commodity Prices'!C157) -> FALSE | AR144: =IF(AO144,'Commodity Prices'!D157) -> FALSE | AV144: 162 | AW144: FALSE | AX144: =IF(AW144,'Yahoo Stocks'!D171) -> FALSE | AZ144: =IF(AW144,'Yahoo Stocks'!E171) -> FALSE | BD144: 192 | BE144: FALSE | BF144: =IF(BE144,'Google Finance Stocks'!D168) -> FALSE | BH144: =IF(BE144,'Google Finance Stocks'!E168) -> FALSE | BL144: 192 | BM144: FALSE | BN144: ='Exchange Rates'!D169 -> 0 | BP144: =IF(BM144,'Exchange Rates'!E169) -> FALSE
L145: 143 | Q145: 143 | R145: FALSE | X145: 152 | Y145: FALSE | Z145: =IF($F$17,'FRED Indicies'!E158) -> 0 | AB145: =IF($F$17,'FRED Indicies'!D158) -> 0 | AF145: 157 | AG145: FALSE | AH145: =IF(AG145,'Google Index'!E172) -> FALSE | AJ145: =IF(AF145,'Google Index'!F172) -> 0 | AN145: 157 | AO145: FALSE | AP145: =IF(AO145,'Commodity Prices'!C158) -> FALSE | AR145: =IF(AO145,'Commodity Prices'!D158) -> FALSE | AV145: 163 | AW145: FALSE | AX145: =IF(AW145,'Yahoo Stocks'!D172) -> FALSE | AZ145: =IF(AW145,'Yahoo Stocks'!E172) -> FALSE | BD145: 193 | BE145: FALSE | BF145: =IF(BE145,'Google Finance Stocks'!D169) -> FALSE | BH145: =IF(BE145,'Google Finance Stocks'!E169) -> FALSE | BL145: 193 | BM145: FALSE | BN145: ='Exchange Rates'!D170 -> 0 | BP145: =IF(BM145,'Exchange Rates'!E170) -> FALSE
L146: 144 | Q146: 144 | R146: FALSE | X146: 153 | Y146: FALSE | Z146: =IF($F$17,'FRED Indicies'!E159) -> 0 | AB146: =IF($F$17,'FRED Indicies'!D159) -> 0 | AF146: 158 | AG146: FALSE | AH146: =IF(AG146,'Google Index'!E173) -> FALSE | AJ146: =IF(AF146,'Google Index'!F173) -> 0 | AN146: 158 | AO146: FALSE | AP146: =IF(AO146,'Commodity Prices'!C159) -> FALSE | AR146: =IF(AO146,'Commodity Prices'!D159) -> FALSE | AV146: 164 | AW146: FALSE | AX146: =IF(AW146,'Yahoo Stocks'!D173) -> FALSE | AZ146: =IF(AW146,'Yahoo Stocks'!E173) -> FALSE | BD146: 194 | BE146: FALSE | BF146: =IF(BE146,'Google Finance Stocks'!D170) -> FALSE | BH146: =IF(BE146,'Google Finance Stocks'!E170) -> FALSE | BL146: 194 | BM146: FALSE | BN146: ='Exchange Rates'!D171 -> 0 | BP146: =IF(BM146,'Exchange Rates'!E171) -> FALSE
L147: 145 | Q147: 145 | R147: FALSE | X147: 154 | Y147: FALSE | Z147: =IF($F$17,'FRED Indicies'!E160) -> 0 | AB147: =IF($F$17,'FRED Indicies'!D160) -> 0 | AF147: 159 | AG147: FALSE | AH147: =IF(AG147,'Google Index'!E174) -> FALSE | AJ147: =IF(AF147,'Google Index'!F174) -> 0 | AN147: 159 | AO147: FALSE | AP147: =IF(AO147,'Commodity Prices'!C160) -> FALSE | AR147: =IF(AO147,'Commodity Prices'!D160) -> FALSE | AV147: 165 | AW147: FALSE | AX147: =IF(AW147,'Yahoo Stocks'!D174) -> FALSE | AZ147: =IF(AW147,'Yahoo Stocks'!E174) -> FALSE | BD147: 195 | BE147: FALSE | BF147: =IF(BE147,'Google Finance Stocks'!D171) -> FALSE | BH147: =IF(BE147,'Google Finance Stocks'!E171) -> FALSE | BL147: 195 | BM147: FALSE | BN147: ='Exchange Rates'!D172 -> 0 | BP147: =IF(BM147,'Exchange Rates'!E172) -> FALSE
L148: 146 | Q148: 146 | R148: FALSE | X148: 155 | Y148: FALSE | Z148: =IF($F$17,'FRED Indicies'!E161) -> 0 | AB148: =IF($F$17,'FRED Indicies'!D161) -> 0 | AF148: 160 | AG148: FALSE | AH148: =IF(AG148,'Google Index'!E175) -> FALSE | AJ148: =IF(AF148,'Google Index'!F175) -> 0 | AN148: 160 | AO148: FALSE | AP148: =IF(AO148,'Commodity Prices'!C161) -> FALSE | AR148: =IF(AO148,'Commodity Prices'!D161) -> FALSE | AV148: 166 | AW148: FALSE | AX148: =IF(AW148,'Yahoo Stocks'!D175) -> FALSE | AZ148: =IF(AW148,'Yahoo Stocks'!E175) -> FALSE | BD148: 196 | BE148: FALSE | BF148: =IF(BE148,'Google Finance Stocks'!D172) -> FALSE | BH148: =IF(BE148,'Google Finance Stocks'!E172) -> FALSE | BL148: 196 | BM148: FALSE | BN148: ='Exchange Rates'!D173 -> 0 | BP148: =IF(BM148,'Exchange Rates'!E173) -> FALSE
L149: 147 | Q149: 147 | R149: FALSE | X149: 156 | Y149: FALSE | Z149: =IF($F$17,'FRED Indicies'!E162) -> 0 | AB149: =IF($F$17,'FRED Indicies'!D162) -> 0 | AF149: 161 | AG149: FALSE | AH149: =IF(AG149,'Google Index'!E176) -> FALSE | AJ149: =IF(AF149,'Google Index'!F176) -> 0 | AN149: 161 | AO149: FALSE | AP149: =IF(AO149,'Commodity Prices'!C162) -> FALSE | AR149: =IF(AO149,'Commodity Prices'!D162) -> FALSE | AV149: 167 | AW149: FALSE | AX149: =IF(AW149,'Yahoo Stocks'!D176) -> FALSE | AZ149: =IF(AW149,'Yahoo Stocks'!E176) -> FALSE | BD149: 197 | BE149: FALSE | BF149: =IF(BE149,'Google Finance Stocks'!D173) -> FALSE | BH149: =IF(BE149,'Google Finance Stocks'!E173) -> FALSE | BL149: 197 | BM149: FALSE | BN149: ='Exchange Rates'!D174 -> 0 | BP149: =IF(BM149,'Exchange Rates'!E174) -> FALSE
L150: 148 | Q150: 148 | R150: FALSE | X150: 157 | Y150: FALSE | Z150: =IF($F$17,'FRED Indicies'!E163) -> 0 | AB150: =IF($F$17,'FRED Indicies'!D163) -> 0 | AF150: 162 | AG150: FALSE | AH150: =IF(AG150,'Google Index'!E177) -> FALSE | AJ150: =IF(AF150,'Google Index'!F177) -> 0 | AN150: 162 | AO150: FALSE | AP150: =IF(AO150,'Commodity Prices'!C163) -> FALSE | AR150: =IF(AO150,'Commodity Prices'!D163) -> FALSE | AV150: 168 | AW150: FALSE | AX150: =IF(AW150,'Yahoo Stocks'!D177) -> FALSE | AZ150: =IF(AW150,'Yahoo Stocks'!E177) -> FALSE | BD150: 198 | BE150: FALSE | BF150: =IF(BE150,'Google Finance Stocks'!D174) -> FALSE | BH150: =IF(BE150,'Google Finance Stocks'!E174) -> FALSE | BL150: 198 | BM150: FALSE | BN150: ='Exchange Rates'!D175 -> 0 | BP150: =IF(BM150,'Exchange Rates'!E175) -> FALSE
L151: 149 | Q151: 149 | R151: FALSE | X151: 158 | Y151: FALSE | Z151: =IF($F$17,'FRED Indicies'!E164) -> 0 | AB151: =IF($F$17,'FRED Indicies'!D164) -> 0 | AF151: 163 | AG151: FALSE | AH151: =IF(AG151,'Google Index'!E178) -> FALSE | AJ151: =IF(AF151,'Google Index'!F178) -> 0 | AN151: 163 | AO151: FALSE | AP151: =IF(AO151,'Commodity Prices'!C164) -> FALSE | AR151: =IF(AO151,'Commodity Prices'!D164) -> FALSE | AV151: 169 | AW151: FALSE | AX151: =IF(AW151,'Yahoo Stocks'!D178) -> FALSE | AZ151: =IF(AW151,'Yahoo Stocks'!E178) -> FALSE | BD151: 199 | BE151: FALSE | BF151: =IF(BE151,'Google Finance Stocks'!D175) -> FALSE | BH151: =IF(BE151,'Google Finance Stocks'!E175) -> FALSE | BL151: 199 | BM151: FALSE | BN151: ='Exchange Rates'!D176 -> 0 | BP151: =IF(BM151,'Exchange Rates'!E176) -> FALSE
L152: 150 | Q152: 150 | R152: FALSE | X152: 159 | Y152: FALSE | Z152: =IF($F$17,'FRED Indicies'!E165) -> 0 | AB152: =IF($F$17,'FRED Indicies'!D165) -> 0 | AF152: 164 | AG152: FALSE | AH152: =IF(AG152,'Google Index'!E179) -> FALSE | AJ152: =IF(AF152,'Google Index'!F179) -> 0 | AN152: 164 | AO152: FALSE | AP152: =IF(AO152,'Commodity Prices'!C165) -> FALSE | AR152: =IF(AO152,'Commodity Prices'!D165) -> FALSE | AV152: 170 | AW152: FALSE | AX152: =IF(AW152,'Yahoo Stocks'!D179) -> FALSE | AZ152: =IF(AW152,'Yahoo Stocks'!E179) -> FALSE | BD152: 200 | BE152: FALSE | BF152: =IF(BE152,'Google Finance Stocks'!D176) -> FALSE | BH152: =IF(BE152,'Google Finance Stocks'!E176) -> FALSE | BL152: 200 | BM152: FALSE | BN152: ='Exchange Rates'!D177 -> 0 | BP152: =IF(BM152,'Exchange Rates'!E177) -> FALSE
L153: 151 | Q153: 151 | R153: FALSE | X153: 160 | Y153: FALSE | Z153: =IF($F$17,'FRED Indicies'!E166) -> 0 | AB153: =IF($F$17,'FRED Indicies'!D166) -> 0 | AF153: 165 | AG153: FALSE | AH153: =IF(AG153,'Google Index'!E180) -> FALSE | AJ153: =IF(AF153,'Google Index'!F180) -> 0 | AN153: 165 | AO153: FALSE | AP153: =IF(AO153,'Commodity Prices'!C166) -> FALSE | AR153: =IF(AO153,'Commodity Prices'!D166) -> FALSE | AV153: 171 | AW153: FALSE | AX153: =IF(AW153,'Yahoo Stocks'!D180) -> FALSE | AZ153: =IF(AW153,'Yahoo Stocks'!E180) -> FALSE | BD153: 201 | BE153: FALSE | BF153: =IF(BE153,'Google Finance Stocks'!D177) -> FALSE | BH153: =IF(BE153,'Google Finance Stocks'!E177) -> FALSE | BL153: 201 | BM153: FALSE | BN153: ='Exchange Rates'!D178 -> 0 | BP153: =IF(BM153,'Exchange Rates'!E178) -> FALSE
L154: 152 | X154: 161 | Y154: FALSE | Z154: =IF($F$17,'FRED Indicies'!E167) -> 0 | AB154: =IF($F$17,'FRED Indicies'!D167) -> 0 | AF154: 166 | AG154: FALSE | AH154: =IF(AG154,'Google Index'!E181) -> FALSE | AJ154: =IF(AF154,'Google Index'!F181) -> 0 | AN154: 166 | AO154: FALSE | AP154: =IF(AO154,'Commodity Prices'!C167) -> FALSE | AR154: =IF(AO154,'Commodity Prices'!D167) -> FALSE | AV154: 172 | AW154: FALSE | AX154: =IF(AW154,'Yahoo Stocks'!D181) -> FALSE | AZ154: =IF(AW154,'Yahoo Stocks'!E181) -> FALSE | BD154: 202 | BE154: FALSE | BF154: =IF(BE154,'Google Finance Stocks'!D178) -> FALSE | BH154: =IF(BE154,'Google Finance Stocks'!E178) -> FALSE | BL154: 202 | BM154: FALSE | BN154: ='Exchange Rates'!D179 -> 0 | BP154: =IF(BM154,'Exchange Rates'!E179) -> FALSE
L155: 153 | X155: 162 | Y155: FALSE | Z155: =IF($F$17,'FRED Indicies'!E168) -> 0 | AB155: =IF($F$17,'FRED Indicies'!D168) -> 0 | AF155: 167 | AG155: FALSE | AH155: =IF(AG155,'Google Index'!E182) -> FALSE | AJ155: =IF(AF155,'Google Index'!F182) -> 0 | AN155: 167 | AO155: FALSE | AP155: =IF(AO155,'Commodity Prices'!C168) -> FALSE | AR155: =IF(AO155,'Commodity Prices'!D168) -> FALSE | AV155: 173 | AW155: FALSE | AX155: =IF(AW155,'Yahoo Stocks'!D182) -> FALSE | AY155: =IFERROR(INDEX(AX:AX,MATCH(L155,AW:AW,0)),"") ->  | AZ155: =IF(AW155,'Yahoo Stocks'!E182) -> FALSE | BA155: =IFERROR(INDEX(AZ:AZ,MATCH(L155,AW:AW,0)),"") ->  | BD155: 203 | BE155: FALSE | BF155: =IF(BE155,'Google Finance Stocks'!D179) -> FALSE | BH155: =IF(BE155,'Google Finance Stocks'!E179) -> FALSE | BL155: 203 | BM155: FALSE | BN155: ='Exchange Rates'!D180 -> 0 | BP155: =IF(BM155,'Exchange Rates'!E180) -> FALSE
L156: 154 | X156: 163 | Y156: FALSE | Z156: =IF($F$17,'FRED Indicies'!E169) -> 0 | AB156: =IF($F$17,'FRED Indicies'!D169) -> 0 | AF156: 168 | AG156: FALSE | AH156: =IF(AG156,'Google Index'!E183) -> FALSE | AJ156: =IF(AF156,'Google Index'!F183) -> 0 | AN156: 168 | AO156: FALSE | AP156: =IF(AO156,'Commodity Prices'!C169) -> FALSE | AR156: =IF(AO156,'Commodity Prices'!D169) -> FALSE | AV156: 174 | AW156: FALSE | AX156: =IF(AW156,'Yahoo Stocks'!D183) -> FALSE | AZ156: =IF(AW156,'Yahoo Stocks'!E183) -> FALSE | BD156: 204 | BE156: FALSE | BF156: =IF(BE156,'Google Finance Stocks'!D180) -> FALSE | BH156: =IF(BE156,'Google Finance Stocks'!E180) -> FALSE | BL156: 204 | BM156: FALSE | BN156: ='Exchange Rates'!D181 -> 0 | BP156: =IF(BM156,'Exchange Rates'!E181) -> FALSE
L157: 155 | X157: 164 | Y157: FALSE | Z157: =IF($F$17,'FRED Indicies'!E170) -> 0 | AB157: =IF($F$17,'FRED Indicies'!D170) -> 0 | AF157: 169 | AG157: FALSE | AH157: =IF(AG157,'Google Index'!E184) -> FALSE | AJ157: =IF(AF157,'Google Index'!F184) -> 0 | AN157: 169 | AO157: FALSE | AP157: =IF(AO157,'Commodity Prices'!C170) -> FALSE | AR157: =IF(AO157,'Commodity Prices'!D170) -> FALSE | AV157: 175 | AW157: FALSE | AX157: =IF(AW157,'Yahoo Stocks'!D184) -> FALSE | AZ157: =IF(AW157,'Yahoo Stocks'!E184) -> FALSE | BD157: 205 | BE157: FALSE | BF157: =IF(BE157,'Google Finance Stocks'!D181) -> FALSE | BH157: =IF(BE157,'Google Finance Stocks'!E181) -> FALSE | BL157: 205 | BM157: FALSE | BN157: ='Exchange Rates'!D182 -> 0 | BP157: =IF(BM157,'Exchange Rates'!E182) -> FALSE
L158: 156 | X158: 165 | Y158: FALSE | Z158: =IF($F$17,'FRED Indicies'!E171) -> 0 | AB158: =IF($F$17,'FRED Indicies'!D171) -> 0 | AF158: 170 | AG158: FALSE | AH158: =IF(AG158,'Google Index'!E185) -> FALSE | AJ158: =IF(AF158,'Google Index'!F185) -> 0 | AN158: 170 | AO158: FALSE | AP158: =IF(AO158,'Commodity Prices'!C171) -> FALSE | AR158: =IF(AO158,'Commodity Prices'!D171) -> FALSE | AV158: 176 | AW158: FALSE | AX158: =IF(AW158,'Yahoo Stocks'!D185) -> FALSE | AZ158: =IF(AW158,'Yahoo Stocks'!E185) -> FALSE | BD158: 206 | BE158: FALSE | BF158: =IF(BE158,'Google Finance Stocks'!D182) -> FALSE | BH158: =IF(BE158,'Google Finance Stocks'!E182) -> FALSE | BL158: 206 | BM158: FALSE | BN158: ='Exchange Rates'!D183 -> 0 | BP158: =IF(BM158,'Exchange Rates'!E183) -> FALSE
L159: 157 | X159: 166 | Y159: FALSE | Z159: =IF($F$17,'FRED Indicies'!E172) -> 0 | AB159: =IF($F$17,'FRED Indicies'!D172) -> 0 | AF159: 171 | AG159: FALSE | AH159: =IF(AG159,'Google Index'!E186) -> FALSE | AJ159: =IF(AF159,'Google Index'!F186) -> 0 | AN159: 171 | AO159: FALSE | AP159: =IF(AO159,'Commodity Prices'!C172) -> FALSE | AR159: =IF(AO159,'Commodity Prices'!D172) -> FALSE | AV159: 177 | AW159: FALSE | AX159: =IF(AW159,'Yahoo Stocks'!D186) -> FALSE | AZ159: =IF(AW159,'Yahoo Stocks'!E186) -> FALSE | BD159: 207 | BE159: FALSE | BF159: =IF(BE159,'Google Finance Stocks'!D183) -> FALSE | BH159: =IF(BE159,'Google Finance Stocks'!E183) -> FALSE | BL159: 207 | BM159: FALSE | BN159: ='Exchange Rates'!D184 -> 0 | BP159: =IF(BM159,'Exchange Rates'!E184) -> FALSE
L160: 158 | X160: 167 | Y160: FALSE | Z160: =IF($F$17,'FRED Indicies'!E173) -> 0 | AB160: =IF($F$17,'FRED Indicies'!D173) -> 0 | AF160: 172 | AG160: FALSE | AH160: =IF(AG160,'Google Index'!E187) -> FALSE | AJ160: =IF(AF160,'Google Index'!F187) -> 0 | AN160: 172 | AO160: FALSE | AP160: =IF(AO160,'Commodity Prices'!C173) -> FALSE | AR160: =IF(AO160,'Commodity Prices'!D173) -> FALSE | AV160: 178 | AW160: FALSE | AX160: =IF(AW160,'Yahoo Stocks'!D187) -> FALSE | AZ160: =IF(AW160,'Yahoo Stocks'!E187) -> FALSE | BD160: 208 | BE160: FALSE | BF160: =IF(BE160,'Google Finance Stocks'!D184) -> FALSE | BH160: =IF(BE160,'Google Finance Stocks'!E184) -> FALSE | BL160: 208 | BM160: FALSE | BN160: ='Exchange Rates'!D185 -> 0 | BP160: =IF(BM160,'Exchange Rates'!E185) -> FALSE
L161: 159 | X161: 168 | Y161: FALSE | Z161: =IF($F$17,'FRED Indicies'!E174) -> 0 | AB161: =IF($F$17,'FRED Indicies'!D174) -> 0 | AF161: 173 | AG161: FALSE | AH161: =IF(AG161,'Google Index'!E188) -> FALSE | AJ161: =IF(AF161,'Google Index'!F188) -> 0 | AN161: 173 | AO161: FALSE | AP161: =IF(AO161,'Commodity Prices'!C174) -> FALSE | AR161: =IF(AO161,'Commodity Prices'!D174) -> FALSE | AV161: 179 | AW161: FALSE | AX161: =IF(AW161,'Yahoo Stocks'!D188) -> FALSE | AZ161: =IF(AW161,'Yahoo Stocks'!E188) -> FALSE | BD161: 209 | BE161: FALSE | BF161: =IF(BE161,'Google Finance Stocks'!D185) -> FALSE | BH161: =IF(BE161,'Google Finance Stocks'!E185) -> FALSE | BL161: 209 | BM161: FALSE | BN161: ='Exchange Rates'!D186 -> 0 | BP161: =IF(BM161,'Exchange Rates'!E186) -> FALSE
L162: 160 | X162: 169 | Y162: FALSE | Z162: =IF($F$17,'FRED Indicies'!E175) -> 0 | AB162: =IF($F$17,'FRED Indicies'!D175) -> 0 | AF162: 174 | AG162: FALSE | AH162: =IF(AG162,'Google Index'!E189) -> FALSE | AJ162: =IF(AF162,'Google Index'!F189) -> 0 | AN162: 174 | AO162: FALSE | AP162: =IF(AO162,'Commodity Prices'!C175) -> FALSE | AR162: =IF(AO162,'Commodity Prices'!D175) -> FALSE | AV162: 180 | AW162: FALSE | AX162: =IF(AW162,'Yahoo Stocks'!D189) -> FALSE | AZ162: =IF(AW162,'Yahoo Stocks'!E189) -> FALSE | BD162: 210 | BE162: FALSE | BF162: =IF(BE162,'Google Finance Stocks'!D186) -> FALSE | BH162: =IF(BE162,'Google Finance Stocks'!E186) -> FALSE | BL162: 210 | BM162: FALSE | BN162: ='Exchange Rates'!D187 -> 0 | BP162: =IF(BM162,'Exchange Rates'!E187) -> FALSE
L163: 161 | X163: 170 | Y163: =IF(AND($F$17,X163<=$H$17),X163) -> FALSE | Z163: =IF($F$17,'FRED Indicies'!E176) -> 0 | AB163: =IF($F$17,'FRED Indicies'!D176) -> 0 | AD163: =IF(AA163<>"",$I$17,"") ->  | AE163: =IF(AA163<>"",$J$17,"") ->  | AF163: 175 | AG163: =IF(AND($F$20,AF163<=$H$20),AF163) -> FALSE | AH163: =IF(AG163,'Google Index'!E190) -> FALSE | AJ163: =IF(AF163,'Google Index'!F190) -> 0 | AL163: =IF(AI163<>"",$I$17,"") ->  | AM163: =IF(AK163<>"",$J$17,"") ->  | AN163: 175 | AO163: =IF(AND($F$11,AN163<=$H$11),AN163) -> FALSE | AP163: =IF(AO163,'Commodity Prices'!C176) -> FALSE | AR163: =IF(AO163,'Commodity Prices'!D176) -> FALSE | AT163: =IF(AQ163<>"",$I$11,"") ->  | AU163: =IF(AS163<>"",$J$11,"") ->  | AV163: 181 | AW163: =IF(AND($F$5,AV163<=$H$5),AV163) -> FALSE | AX163: =IF(AW163,'Yahoo Stocks'!D190) -> FALSE | AZ163: =IF(AW163,'Yahoo Stocks'!E190) -> FALSE | BB163: =IF(AY163<>"",$I$5,"") ->  | BC163: =IF(BA163<>"",$J$5,"") ->  | BD163: 211 | BE163: FALSE | BF163: =IF(BE163,'Google Finance Stocks'!D187) -> FALSE | BH163: =IF(BE163,'Google Finance Stocks'!E187) -> FALSE | BL163: 211 | BM163: FALSE | BN163: ='Exchange Rates'!D188 -> 0 | BP163: =IF(BM163,'Exchange Rates'!E188) -> FALSE
L164: 162 | X164: 171 | Y164: FALSE | Z164: =IF($F$17,'FRED Indicies'!E177) -> 0 | AB164: =IF($F$17,'FRED Indicies'!D177) -> 0 | AF164: 176 | AG164: FALSE | AH164: =IF(AG164,'Google Index'!E191) -> FALSE | AJ164: =IF(AF164,'Google Index'!F191) -> 0 | AN164: 176 | AO164: FALSE | AP164: =IF(AO164,'Commodity Prices'!C177) -> FALSE | AR164: =IF(AO164,'Commodity Prices'!D177) -> FALSE | AV164: 182 | AW164: FALSE | AX164: =IF(AW164,'Yahoo Stocks'!D191) -> FALSE | AZ164: =IF(AW164,'Yahoo Stocks'!E191) -> FALSE | BD164: 212 | BE164: FALSE | BF164: =IF(BE164,'Google Finance Stocks'!D188) -> FALSE | BH164: =IF(BE164,'Google Finance Stocks'!E188) -> FALSE | BL164: 212 | BM164: FALSE | BN164: ='Exchange Rates'!D189 -> 0 | BP164: =IF(BM164,'Exchange Rates'!E189) -> FALSE
L165: 163 | X165: 172 | Y165: FALSE | Z165: =IF($F$17,'FRED Indicies'!E178) -> 0 | AB165: =IF($F$17,'FRED Indicies'!D178) -> 0 | AF165: 177 | AG165: FALSE | AH165: =IF(AG165,'Google Index'!E192) -> FALSE | AJ165: =IF(AF165,'Google Index'!F192) -> 0 | AN165: 177 | AO165: FALSE | AP165: =IF(AO165,'Commodity Prices'!C178) -> FALSE | AR165: =IF(AO165,'Commodity Prices'!D178) -> FALSE | AV165: 183 | AW165: FALSE | AX165: =IF(AW165,'Yahoo Stocks'!D192) -> FALSE | AZ165: =IF(AW165,'Yahoo Stocks'!E192) -> FALSE | BD165: 213 | BE165: FALSE | BF165: =IF(BE165,'Google Finance Stocks'!D189) -> FALSE | BH165: =IF(BE165,'Google Finance Stocks'!E189) -> FALSE | BL165: 213 | BM165: FALSE | BN165: ='Exchange Rates'!D190 -> 0 | BP165: =IF(BM165,'Exchange Rates'!E190) -> FALSE
L166: 164 | X166: 173 | Y166: FALSE | Z166: =IF($F$17,'FRED Indicies'!E179) -> 0 | AB166: =IF($F$17,'FRED Indicies'!D179) -> 0 | AF166: 178 | AG166: FALSE | AH166: =IF(AG166,'Google Index'!E193) -> FALSE | AJ166: =IF(AF166,'Google Index'!F193) -> 0 | AN166: 178 | AO166: FALSE | AP166: =IF(AO166,'Commodity Prices'!C179) -> FALSE | AR166: =IF(AO166,'Commodity Prices'!D179) -> FALSE | AV166: 184 | AW166: FALSE | AX166: =IF(AW166,'Yahoo Stocks'!D193) -> FALSE | AZ166: =IF(AW166,'Yahoo Stocks'!E193) -> FALSE | BD166: 214 | BE166: FALSE | BF166: =IF(BE166,'Google Finance Stocks'!D190) -> FALSE | BH166: =IF(BE166,'Google Finance Stocks'!E190) -> FALSE | BL166: 214 | BM166: FALSE | BN166: ='Exchange Rates'!D191 -> 0 | BP166: =IF(BM166,'Exchange Rates'!E191) -> FALSE
L167: 165 | X167: 174 | Y167: FALSE | Z167: =IF($F$17,'FRED Indicies'!E180) -> 0 | AB167: =IF($F$17,'FRED Indicies'!D180) -> 0 | AF167: 179 | AG167: FALSE | AH167: =IF(AG167,'Google Index'!E194) -> FALSE | AJ167: =IF(AF167,'Google Index'!F194) -> 0 | AN167: 179 | AO167: FALSE | AP167: =IF(AO167,'Commodity Prices'!C180) -> FALSE | AR167: =IF(AO167,'Commodity Prices'!D180) -> FALSE | AV167: 185 | AW167: FALSE | AX167: =IF(AW167,'Yahoo Stocks'!D194) -> FALSE | AZ167: =IF(AW167,'Yahoo Stocks'!E194) -> FALSE | BD167: 215 | BE167: FALSE | BF167: =IF(BE167,'Google Finance Stocks'!D191) -> FALSE | BH167: =IF(BE167,'Google Finance Stocks'!E191) -> FALSE | BL167: 215 | BM167: FALSE | BN167: ='Exchange Rates'!D192 -> 0 | BP167: =IF(BM167,'Exchange Rates'!E192) -> FALSE
L168: 166 | X168: 175 | Y168: FALSE | Z168: =IF($F$17,'FRED Indicies'!E181) -> 0 | AB168: =IF($F$17,'FRED Indicies'!D181) -> 0 | AF168: 180 | AG168: FALSE | AH168: =IF(AG168,'Google Index'!E195) -> FALSE | AJ168: =IF(AF168,'Google Index'!F195) -> 0 | AN168: 180 | AO168: FALSE | AP168: =IF(AO168,'Commodity Prices'!C181) -> FALSE | AR168: =IF(AO168,'Commodity Prices'!D181) -> FALSE | AV168: 186 | AW168: FALSE | AX168: =IF(AW168,'Yahoo Stocks'!D195) -> FALSE | AZ168: =IF(AW168,'Yahoo Stocks'!E195) -> FALSE | BD168: 216 | BE168: FALSE | BF168: =IF(BE168,'Google Finance Stocks'!D192) -> FALSE | BH168: =IF(BE168,'Google Finance Stocks'!E192) -> FALSE | BL168: 216 | BM168: FALSE | BN168: ='Exchange Rates'!D193 -> 0 | BP168: =IF(BM168,'Exchange Rates'!E193) -> FALSE
L169: 167 | X169: 176 | Y169: FALSE | Z169: =IF($F$17,'FRED Indicies'!E182) -> 0 | AB169: =IF($F$17,'FRED Indicies'!D182) -> 0 | AF169: 181 | AG169: FALSE | AH169: =IF(AG169,'Google Index'!E196) -> FALSE | AJ169: =IF(AF169,'Google Index'!F196) -> 0 | AN169: 181 | AO169: FALSE | AP169: =IF(AO169,'Commodity Prices'!C182) -> FALSE | AR169: =IF(AO169,'Commodity Prices'!D182) -> FALSE | AV169: 187 | AW169: FALSE | AX169: =IF(AW169,'Yahoo Stocks'!D196) -> FALSE | AZ169: =IF(AW169,'Yahoo Stocks'!E196) -> FALSE | BD169: 217 | BE169: FALSE | BF169: =IF(BE169,'Google Finance Stocks'!D193) -> FALSE | BH169: =IF(BE169,'Google Finance Stocks'!E193) -> FALSE | BL169: 217 | BM169: FALSE | BN169: ='Exchange Rates'!D194 -> 0 | BP169: =IF(BM169,'Exchange Rates'!E194) -> FALSE
L170: 168 | X170: 177 | Y170: FALSE | Z170: =IF($F$17,'FRED Indicies'!E183) -> 0 | AB170: =IF($F$17,'FRED Indicies'!D183) -> 0 | AF170: 182 | AG170: FALSE | AH170: =IF(AG170,'Google Index'!E197) -> FALSE | AJ170: =IF(AF170,'Google Index'!F197) -> 0 | AN170: 182 | AO170: FALSE | AP170: =IF(AO170,'Commodity Prices'!C183) -> FALSE | AR170: =IF(AO170,'Commodity Prices'!D183) -> FALSE | AV170: 188 | AW170: FALSE | AX170: =IF(AW170,'Yahoo Stocks'!D197) -> FALSE | AZ170: =IF(AW170,'Yahoo Stocks'!E197) -> FALSE | BD170: 218 | BE170: FALSE | BF170: =IF(BE170,'Google Finance Stocks'!D194) -> FALSE | BH170: =IF(BE170,'Google Finance Stocks'!E194) -> FALSE | BL170: 218 | BM170: FALSE | BN170: ='Exchange Rates'!D195 -> 0 | BP170: =IF(BM170,'Exchange Rates'!E195) -> FALSE
L171: 169 | X171: 178 | Y171: FALSE | Z171: =IF($F$17,'FRED Indicies'!E184) -> 0 | AB171: =IF($F$17,'FRED Indicies'!D184) -> 0 | AF171: 183 | AG171: FALSE | AH171: =IF(AG171,'Google Index'!E198) -> FALSE | AJ171: =IF(AF171,'Google Index'!F198) -> 0 | AN171: 183 | AO171: FALSE | AP171: =IF(AO171,'Commodity Prices'!C184) -> FALSE | AR171: =IF(AO171,'Commodity Prices'!D184) -> FALSE | AV171: 189 | AW171: FALSE | AX171: =IF(AW171,'Yahoo Stocks'!D198) -> FALSE | AZ171: =IF(AW171,'Yahoo Stocks'!E198) -> FALSE | BD171: 219 | BE171: FALSE | BF171: =IF(BE171,'Google Finance Stocks'!D195) -> FALSE | BH171: =IF(BE171,'Google Finance Stocks'!E195) -> FALSE | BL171: 219 | BM171: FALSE | BN171: ='Exchange Rates'!D196 -> 0 | BP171: =IF(BM171,'Exchange Rates'!E196) -> FALSE
L172: 170 | BD172: 220 | BE172: FALSE | BF172: =IF(BE172,'Google Finance Stocks'!D196) -> FALSE | BG172: =IFERROR(INDEX(BF:BF,MATCH(Q172,BE:BE,0)),"") ->  | BH172: =IF(BE172,'Google Finance Stocks'!E196) -> FALSE | BI172: =IFERROR(INDEX(BH:BH,MATCH(Q172,BE:BE,0)),"") ->  | BL172: 220 | BM172: FALSE | BN172: ='Exchange Rates'!D197 -> 0 | BO172: =IFERROR(INDEX(BN:BN,MATCH(L172,BM:BM,0)),"") ->  | BP172: =IF(BM172,'Exchange Rates'!E197) -> FALSE | BQ172: =IFERROR(INDEX(BP:BP,MATCH(L172,BM:BM,0)),"") -> 
L173: 171 | BD173: 221 | BE173: FALSE | BF173: =IF(BE173,'Google Finance Stocks'!D197) -> FALSE | BH173: =IF(BE173,'Google Finance Stocks'!E197) -> FALSE | BL173: 221 | BM173: FALSE | BN173: ='Exchange Rates'!D198 -> 0 | BP173: =IF(BM173,'Exchange Rates'!E198) -> FALSE
L174: 172 | BD174: 222 | BE174: FALSE | BF174: =IF(BE174,'Google Finance Stocks'!D198) -> FALSE | BH174: =IF(BE174,'Google Finance Stocks'!E198) -> FALSE | BL174: 222 | BM174: FALSE | BN174: ='Exchange Rates'!D199 -> 0 | BP174: =IF(BM174,'Exchange Rates'!E199) -> FALSE
L175: 173 | BD175: 223 | BE175: FALSE | BF175: =IF(BE175,'Google Finance Stocks'!D199) -> FALSE | BH175: =IF(BE175,'Google Finance Stocks'!E199) -> FALSE | BL175: 223 | BM175: FALSE | BN175: ='Exchange Rates'!D200 -> 0 | BP175: =IF(BM175,'Exchange Rates'!E200) -> FALSE
L176: 174 | BD176: 224 | BE176: FALSE | BF176: =IF(BE176,'Google Finance Stocks'!D200) -> FALSE | BH176: =IF(BE176,'Google Finance Stocks'!E200) -> FALSE | BL176: 224 | BM176: FALSE | BN176: ='Exchange Rates'!D201 -> 0 | BP176: =IF(BM176,'Exchange Rates'!E201) -> FALSE
BD177: 225 | BE177: FALSE | BF177: =IF(BE177,'Google Finance Stocks'!D201) -> FALSE | BH177: =IF(BE177,'Google Finance Stocks'!E201) -> FALSE | BL177: 225 | BM177: FALSE | BN177: ='Exchange Rates'!D202 -> 0 | BP177: =IF(BM177,'Exchange Rates'!E202) -> FALSE
BD178: 226 | BE178: FALSE | BF178: =IF(BE178,'Google Finance Stocks'!D202) -> FALSE | BH178: =IF(BE178,'Google Finance Stocks'!E202) -> FALSE | BL178: 226 | BM178: FALSE | BN178: ='Exchange Rates'!D203 -> 0 | BP178: =IF(BM178,'Exchange Rates'!E203) -> FALSE
BD179: 227 | BE179: FALSE | BF179: =IF(BE179,'Google Finance Stocks'!D203) -> FALSE | BH179: =IF(BE179,'Google Finance Stocks'!E203) -> FALSE | BL179: 227 | BM179: FALSE | BN179: ='Exchange Rates'!D204 -> 0 | BP179: =IF(BM179,'Exchange Rates'!E204) -> FALSE
BD180: 228 | BE180: FALSE | BF180: =IF(BE180,'Google Finance Stocks'!D204) -> FALSE | BH180: =IF(BE180,'Google Finance Stocks'!E204) -> FALSE | BL180: 228 | BM180: FALSE | BN180: ='Exchange Rates'!D205 -> 0 | BP180: =IF(BM180,'Exchange Rates'!E205) -> FALSE
BD181: 229 | BE181: FALSE | BF181: =IF(BE181,'Google Finance Stocks'!D205) -> FALSE | BH181: =IF(BE181,'Google Finance Stocks'!E205) -> FALSE | BL181: 229 | BM181: FALSE | BN181: ='Exchange Rates'!D206 -> 0 | BP181: =IF(BM181,'Exchange Rates'!E206) -> FALSE
BD182: 230 | BE182: FALSE | BF182: =IF(BE182,'Google Finance Stocks'!D206) -> FALSE | BH182: =IF(BE182,'Google Finance Stocks'!E206) -> FALSE | BL182: 230 | BM182: FALSE | BN182: ='Exchange Rates'!D207 -> 0 | BP182: =IF(BM182,'Exchange Rates'!E207) -> FALSE
BD183: 231 | BE183: FALSE | BF183: =IF(BE183,'Google Finance Stocks'!D207) -> FALSE | BH183: =IF(BE183,'Google Finance Stocks'!E207) -> FALSE | BL183: 231 | BM183: FALSE | BN183: ='Exchange Rates'!D208 -> 0 | BP183: =IF(BM183,'Exchange Rates'!E208) -> FALSE
BD184: 232 | BE184: FALSE | BF184: =IF(BE184,'Google Finance Stocks'!D208) -> FALSE | BH184: =IF(BE184,'Google Finance Stocks'!E208) -> FALSE | BL184: 232 | BM184: FALSE | BN184: ='Exchange Rates'!D209 -> 0 | BP184: =IF(BM184,'Exchange Rates'!E209) -> FALSE
BD185: 233 | BE185: FALSE | BF185: =IF(BE185,'Google Finance Stocks'!D209) -> FALSE | BH185: =IF(BE185,'Google Finance Stocks'!E209) -> FALSE | BL185: 233 | BM185: FALSE | BN185: ='Exchange Rates'!D210 -> 0 | BP185: =IF(BM185,'Exchange Rates'!E210) -> FALSE
BD186: 234 | BE186: FALSE | BF186: =IF(BE186,'Google Finance Stocks'!D210) -> FALSE | BH186: =IF(BE186,'Google Finance Stocks'!E210) -> FALSE | BL186: 234 | BM186: FALSE | BN186: ='Exchange Rates'!D211 -> 0 | BP186: =IF(BM186,'Exchange Rates'!E211) -> FALSE
BD187: 235 | BE187: FALSE | BF187: =IF(BE187,'Google Finance Stocks'!D211) -> FALSE | BH187: =IF(BE187,'Google Finance Stocks'!E211) -> FALSE | BL187: 235 | BM187: FALSE | BN187: ='Exchange Rates'!D212 -> 0 | BP187: =IF(BM187,'Exchange Rates'!E212) -> FALSE
BD188: 236 | BE188: FALSE | BF188: =IF(BE188,'Google Finance Stocks'!D212) -> FALSE | BH188: =IF(BE188,'Google Finance Stocks'!E212) -> FALSE | BL188: 236 | BM188: FALSE | BN188: ='Exchange Rates'!D213 -> 0 | BP188: =IF(BM188,'Exchange Rates'!E213) -> FALSE
BD189: 237 | BE189: FALSE | BF189: =IF(BE189,'Google Finance Stocks'!D213) -> FALSE | BH189: =IF(BE189,'Google Finance Stocks'!E213) -> FALSE | BL189: 237 | BM189: FALSE | BN189: ='Exchange Rates'!D214 -> 0 | BP189: =IF(BM189,'Exchange Rates'!E214) -> FALSE
BD190: 238 | BE190: FALSE | BF190: =IF(BE190,'Google Finance Stocks'!D214) -> FALSE | BH190: =IF(BE190,'Google Finance Stocks'!E214) -> FALSE | BL190: 238 | BM190: FALSE | BN190: ='Exchange Rates'!D215 -> 0 | BP190: =IF(BM190,'Exchange Rates'!E215) -> FALSE
BD191: 239 | BE191: FALSE | BF191: =IF(BE191,'Google Finance Stocks'!D215) -> FALSE | BH191: =IF(BE191,'Google Finance Stocks'!E215) -> FALSE | BL191: 239 | BM191: FALSE | BN191: ='Exchange Rates'!D216 -> 0 | BP191: =IF(BM191,'Exchange Rates'!E216) -> FALSE
BD192: 240 | BE192: FALSE | BF192: =IF(BE192,'Google Finance Stocks'!D216) -> FALSE | BH192: =IF(BE192,'Google Finance Stocks'!E216) -> FALSE | BL192: 240 | BM192: FALSE | BN192: ='Exchange Rates'!D217 -> 0 | BP192: =IF(BM192,'Exchange Rates'!E217) -> FALSE
BD193: 241 | BE193: FALSE | BF193: =IF(BE193,'Google Finance Stocks'!D217) -> FALSE | BH193: =IF(BE193,'Google Finance Stocks'!E217) -> FALSE | BL193: 241 | BM193: FALSE | BN193: ='Exchange Rates'!D218 -> 0 | BP193: =IF(BM193,'Exchange Rates'!E218) -> FALSE
BD194: 242 | BE194: FALSE | BF194: =IF(BE194,'Google Finance Stocks'!D218) -> FALSE | BH194: =IF(BE194,'Google Finance Stocks'!E218) -> FALSE | BL194: 242 | BM194: FALSE | BN194: ='Exchange Rates'!D219 -> 0 | BP194: =IF(BM194,'Exchange Rates'!E219) -> FALSE
BD195: 243 | BE195: =IF(AND($F$14,BD195<=$H$14),BD195) -> FALSE | BF195: =IF(BE195,'Google Finance Stocks'!D219) -> FALSE | BH195: =IF(BE195,'Google Finance Stocks'!E219) -> FALSE | BJ195: =IF(BI195<>"",$I$14,"") ->  | BK195: =IF(BI195<>"",$J$14,"") ->  | BL195: 243 | BM195: =IF(AND($F$8,BL195<=$H$8),BL195) -> FALSE | BN195: ='Exchange Rates'!D220 -> 0 | BP195: =IF(BM195,'Exchange Rates'!E220) -> FALSE | BR195: =IF(BQ195<>"",$I$8,"") ->  | BS195: =IF(BQ195<>"",$J$8,"") -> 
BD196: 244 | BE196: FALSE | BF196: =IF(BE196,'Google Finance Stocks'!D220) -> FALSE | BH196: =IF(BE196,'Google Finance Stocks'!E220) -> FALSE | BL196: 244 | BM196: FALSE | BN196: ='Exchange Rates'!D221 -> 0 | BP196: =IF(BM196,'Exchange Rates'!E221) -> FALSE
BD197: =BD196+1 -> 245 | BE197: FALSE | BF197: =IF(BE197,'Google Finance Stocks'!D221) -> FALSE | BH197: =IF(BE197,'Google Finance Stocks'!E221) -> FALSE | BL197: =BL196+1 -> 245 | BM197: FALSE | BN197: ='Exchange Rates'!D222 -> 0 | BP197: =IF(BM197,'Exchange Rates'!E222) -> FALSE
BD198: 246 | BE198: FALSE | BF198: =IF(BE198,'Google Finance Stocks'!D222) -> FALSE | BH198: =IF(BE198,'Google Finance Stocks'!E222) -> FALSE | BL198: 246 | BM198: FALSE | BN198: ='Exchange Rates'!D223 -> 0 | BP198: =IF(BM198,'Exchange Rates'!E223) -> FALSE
BD199: 247 | BE199: FALSE | BF199: =IF(BE199,'Google Finance Stocks'!D223) -> FALSE | BH199: =IF(BE199,'Google Finance Stocks'!E223) -> FALSE | BL199: 247 | BM199: FALSE | BN199: ='Exchange Rates'!D224 -> 0 | BP199: =IF(BM199,'Exchange Rates'!E224) -> FALSE
BD200: 248 | BE200: FALSE | BF200: =IF(BE200,'Google Finance Stocks'!D224) -> FALSE | BH200: =IF(BE200,'Google Finance Stocks'!E224) -> FALSE | BL200: 248 | BM200: FALSE | BN200: ='Exchange Rates'!D225 -> 0 | BP200: =IF(BM200,'Exchange Rates'!E225) -> FALSE
... 6 more rows

Sheet Multiple Stock Graph
C1: Index | K1: IRR | L1: Vol | M1: Beta
J2: =O38 -> US S&P 500 | K2: =Summary!L3 -> -0.05719899053 | L2: =Summary!AU5 -> 0.209638016 | M2: =Summary!AU3 -> 1
B3: Comparison vs Base | G3: Counter | H3: Match | I3: Selection
A4: 1 | B4: ='Read Stocks'!M3 -> S&P 500 | C4: ='Read Stocks'!N3 -> US S&P 500 | D4: FALSE | F4: =D4*1 -> 0 | G4: 1 | H4: =MATCH(G4,F$1:F$555,0) -> 24 | I4: =INDEX(B:B,H4) -> HE | J4: =IFERROR(INDEX($C:$C,H4),"") -> Hawaiian Electric Industries | K4: =IFERROR(TRANSPOSE(Summary!BB4:BG4),"") -> 0.007207208874 | L4: =IFERROR(TRANSPOSE(Summary!AV5:BA5),"") -> 0.3181422688 | M4: =IFERROR(TRANSPOSE(Summary!AV3:BA3),"") -> 0.533558919
A5: 2 | B5: ='Read Stocks'!M4 -> DAX | C5: ='Read Stocks'!N4 -> DAX in Euro | D5: FALSE | F5: =F4+D5 -> 0 | G5: 2 | H5: =MATCH(G5,F$1:F$555,0) -> 27 | I5: =INDEX(B:B,H5) -> ED | J5: =IFERROR(INDEX($C:$C,H5),"") -> Consolidated Edison | K5: 0.06040788619 | L5: 0.1640325037 | M5: 0.335463435
A6: 3 | B6: ='Read Stocks'!M5 -> Milan | C6: ='Read Stocks'!N5 -> Italy Milan | D6: FALSE | F6: 0 | G6: 3 | H6: 34 | I6: EIX | J6: Edison International | K6: -0.01329493565 | L6: 0.2067720666 | M6: 0.7413862007
A7: 4 | B7: ='Read Stocks'!M6 -> CAC 40 | C7: ='Read Stocks'!N6 -> France CAC 40 | D7: FALSE | F7: 0 | G7: 4 | H7: =MATCH(G7,F$1:F$555,0) ->  | I7: =INDEX(B:B,H7) ->  | L7: 0 | M7: 0
A8: 5 | B8: ='Read Stocks'!M7 -> Nasdaq 100 | C8: ='Read Stocks'!N7 -> Nasdaq 100 | D8: FALSE | F8: 0 | G8: 5 | L8: 0 | M8: 0
A9: 6 | B9: ='Read Stocks'!M8 -> 30 Industrials | C9: ='Read Stocks'!N8 -> Dow Jones 30 Industrials | D9: FALSE | F9: 0 | G9: 6 | H9: =MATCH(G9,F$1:F$555,0) ->  | I9: =INDEX(B:B,H9) ->  | L9: 0 | M9: 0
A10: 7 | B10: ='Read Stocks'!M9 -> Swiss | C10: ='Read Stocks'!N9 -> Swiss SMI | D10: FALSE | F10: 0 | G10: 7
A11: 8 | B11: ='Read Stocks'!M10 -> Malaysia | C11: ='Read Stocks'!N10 -> Malaysia | D11: FALSE | F11: 0 | G11: 8 | K11: Series Start | L11: Final | M11: Years
A12: 9 | B12: ='Read Stocks'!M11 -> S&P TR | C12: ='Read Stocks'!N11 -> US S&P 500 Div | D12: FALSE | F12: 0 | G12: 9 | J12: =J2 -> US S&P 500 | K12: =Summary!F3 -> 2006-12-31 | L12: =Summary!L2 -> 0.7900965318 | M12: =Summary!L4 -> 4
A13: 10 | B13: ='Read Stocks'!M12 -> NASDAQ100 | C13: ='Read Stocks'!N12 -> Nasdaq 100 Index | D13: FALSE | F13: 0 | G13: 10 | J13: =J4 -> Hawaiian Electric Industries | K13: =TRANSPOSE(Summary!AC2:AH2) -> 1973-02-19 | L13: =TRANSPOSE(Summary!BB3:BG3) -> 1.029141999
A14: 11 | B14: ='Read Stocks'!M13 -> WILL5000INDFC | C14: ='Read Stocks'!N13 -> Wilshire 5000 Index | D14: FALSE | F14: 0 | G14: 11 | J14: Consolidated Edison | K14: 1962-01-01 | L14: 1.264421278 | AA14: Indices used for Adjustment
A15: 12 | B15: ='Read Stocks'!M14 -> WILL5000PRFC | C15: ='Read Stocks'!N14 -> Wilshire 5000 Large Cap | D15: FALSE | F15: 0 | G15: 12 | J15: Edison International | K15: 1973-04-30 | L15: 0.9478714207
A16: 13 | B16: ='Read Stocks'!M15 -> RU2000PR | C16: ='Read Stocks'!N15 -> Russel 2000 Index | D16: FALSE | F16: 0 | G16: 13 | L16: 1 | AA16: =TRANSPOSE(Summary!BO6:BU6) -> GDP Inf | AB16: Divide
A17: 14 | B17: ='Read Stocks'!M16 -> WILLREITIND | C17: ='Read Stocks'!N16 -> Wilshire REIT Index | D17: FALSE | F17: 0 | G17: 14 | L17: 1 | AA17: CPI US | AB17: Divide
A18: 15 | B18: ='Read Stocks'!M17 -> DCOILBRENTEU | C18: ='Read Stocks'!N17 -> Crude Oil Prices: Brent - Europe (DCOILBRENTEU) | D18: FALSE | F18: 0 | G18: 15 | L18: 1 | O18: =IF(K28," Monthly Data","Weekly Data") -> Weekly Data | AA18: Euro | AB18: Multiply
A19: 16 | B19: ='Read Stocks'!M18 -> PCOPPUSDM | C19: ='Read Stocks'!N18 -> Global price of Copper© (PCOPPUSDM) | D19: FALSE | F19: 0 | G19: 16 | AA19: INR | AB19: Divide
A20: 17 | B20: ='Read Stocks'!M19 -> MHHNGSP | C20: ='Read Stocks'!N19 -> Henry Hub Natural Gas Spot Price (MHHNGSP) | D20: FALSE | F20: 0 | G20: 17 | J20: Graph Type | AA20: UK | AB20: Multiply
A21: 18 | B21: ='Read Stocks'!M20 -> PRAWMINDEXM | C21: ='Read Stocks'!N20 -> Global price of Agr. Raw Material Index© (PRAWMINDEXM) | D21: FALSE | F21: 0 | G21: 18 | O21: Start Year | R21: End Year | AA21: PKR | AB21: Divide
A22: 19 | B22: ='Read Stocks'!M21 -> PPOILUSDM | C22: ='Read Stocks'!N21 -> Global price of Palm Oil© (PPOILUSDM) | D22: FALSE | F22: 0 | G22: 19 | J22: Final Date | K22: =Summary!F2 -> 2010-12-31 | O22: =INDEX(C:C,H14) ->  | AA22: US NOM GNP | AB22: Divide
A23: 20 | B23: ='Read Stocks'!M22 -> PFOODINDEXM | C23: ='Read Stocks'!N22 -> Global price of Food index© (PFOODINDEXM) | D23: FALSE | F23: 0 | G23: 20 | J23: Start Date | K23: =Summary!F1 -> 2006-12-31
A24: 21 | B24: ='Read Stocks'!M23 -> HE | C24: ='Read Stocks'!N23 -> Hawaiian Electric Industries | D24: TRUE | F24: 1 | G24: 21 | J24: Months | K24: =DATEDIF(K23,K22,"m") -> 48
A25: 22 | B25: ='Read Stocks'!M24 -> PNW | C25: ='Read Stocks'!N24 -> Pinacle West | D25: FALSE | F25: 1 | G25: 22
A26: 23 | B26: ='Read Stocks'!M25 -> EXC | C26: ='Read Stocks'!N25 -> Exelon Corporation | D26: FALSE | F26: 1 | G26: 23 | J26: Turn off Calc After Change | K26: FALSE
A27: 24 | B27: ='Read Stocks'!M26 -> ED | C27: ='Read Stocks'!N26 -> Consolidated Edison | D27: TRUE | F27: 2 | G27: 24 | J27: Adjusted Closing Price | K27: =Adj_Close -> TRUE | O27: Adjustments for Inflation or Currency | W27: End Date | X27: =Summary!F2 -> 2010-12-31
A28: 25 | B28: ='Read Stocks'!M27 -> ALE | C28: ='Read Stocks'!N27 -> ALLETE, Inc. | D28: FALSE | F28: 2 | G28: 25 | J28: Monthly Data | K28: =monthly -> FALSE
A29: 26 | B29: ='Read Stocks'!M28 -> LNT | C29: ='Read Stocks'!N28 -> Alliant Energy Corporation | D29: FALSE | F29: 2 | G29: 26 | O29: =J2 -> US S&P 500 | Q29: 0 | R29: =IF(Q29,INDEX('Read Stocks'!$BN$3:$BN$11,'Multiple Stock Graph'!Q29),"USD") -> USD
A30: 27 | B30: ='Read Stocks'!M29 -> AEE | C30: ='Read Stocks'!N29 -> Ameren Corporation | D30: FALSE | F30: 2 | G30: 27 | O30: =J4 -> Hawaiian Electric Industries | Q30: 0 | R30: =IF(Q30,INDEX('Read Stocks'!$BN$3:$BN$11,'Multiple Stock Graph'!Q30),"USD") -> USD
A31: 28 | B31: ='Read Stocks'!M30 -> AEP | C31: ='Read Stocks'!N30 -> American Electric Power Company, Inc. | D31: FALSE | F31: 2 | G31: 28 | O31: Consolidated Edison | Q31: 0 | R31: =IF(Q31,INDEX('Read Stocks'!$BN$3:$BN$11,'Multiple Stock Graph'!Q31),"USD") -> USD | Y31: Instructions at www.edbodmer.com
A32: 29 | B32: ='Read Stocks'!M31 -> AVA | C32: ='Read Stocks'!N31 -> Avista Corporation | D32: FALSE | F32: 2 | G32: 29 | O32: Edison International | Q32: 0 | R32: =IF(Q32,INDEX('Read Stocks'!$BN$3:$BN$11,'Multiple Stock Graph'!Q32),"USD") -> USD | Y32: Questions: e-mail edwardbodmer@gmail.com
A33: 30 | B33: ='Read Stocks'!M32 -> DUK | C33: ='Read Stocks'!N32 -> Duke Energy Corporation | D33: FALSE | F33: 2 | G33: 30 | Q33: 0 | R33: =IF(Q33,INDEX('Read Stocks'!$BN$3:$BN$11,'Multiple Stock Graph'!Q33),"USD") -> USD
A34: 31 | B34: ='Read Stocks'!M33 -> EIX | C34: ='Read Stocks'!N33 -> Edison International | D34: TRUE | F34: 3 | G34: 31 | Q34: 0 | R34: =IF(Q34,INDEX('Read Stocks'!$BN$3:$BN$11,'Multiple Stock Graph'!Q34),"USD") -> USD
A35: 32 | B35: ='Read Stocks'!M34 -> ETR | C35: ='Read Stocks'!N34 -> Entergy Corporation | D35: FALSE | F35: 3 | G35: 32 | Q35: 0 | R35: =IF(Q35,INDEX('Read Stocks'!$BN$3:$BN$11,'Multiple Stock Graph'!Q35),"USD") -> USD
A36: 33 | B36: ='Read Stocks'!M35 -> ES | C36: ='Read Stocks'!N35 -> Eversource Energy | D36: FALSE | F36: 3 | G36: 33
A37: 34 | B37: ='Read Stocks'!M36 -> EVRG | C37: ='Read Stocks'!N36 -> Evergy, Inc. | D37: FALSE | F37: 3 | G37: 34
A38: 35 | B38: ='Read Stocks'!M37 -> IDA | C38: ='Read Stocks'!N37 -> IDACORP, Inc. | D38: FALSE | F38: 3 | G38: 35 | L38: Primary Stock | N38: =Forms!J4 -> 1 | O38: =INDEX(C4:C195,Forms!J4) -> US S&P 500
A39: 36 | B39: ='Read Stocks'!M38 -> NEE | C39: ='Read Stocks'!N38 -> NextEra Energy, Inc. | D39: FALSE | F39: 3 | G39: 36 | L39: Use the Drop Down Box for Selecting the Index Value for the base and the date
A40: 37 | B40: ='Read Stocks'!M39 -> NWE | C40: ='Read Stocks'!N39 -> NorthWestern Corporation | D40: FALSE | F40: 3 | G40: 37 | L40: Use the check boxes for comparison
A41: 38 | B41: ='Read Stocks'!M40 -> OGE | C41: ='Read Stocks'!N40 -> OGE Energy Corporation | D41: FALSE | F41: 3 | G41: 38 | L41: Use the first check box for index in computing beta and other statistics
A42: 39 | B42: ='Read Stocks'!M41 -> OTTR | C42: ='Read Stocks'!N41 -> Otter Tail Corporation | D42: FALSE | F42: 3 | G42: 39
A43: 40 | B43: ='Read Stocks'!M42 -> POR | C43: ='Read Stocks'!N42 -> Portland General Electric | D43: FALSE | F43: 3 | G43: 40 | L43: When looking at FRED data in individual sheets, shift, CNTL F re-formats.
A44: 41 | B44: ='Read Stocks'!M43 -> XEL | C44: ='Read Stocks'!N43 -> Xcel Energy Inc. | D44: FALSE | F44: =F43+D44 -> 3 | G44: 41 | I44: =INDEX(B:B,H44) -> 
A45: 42 | B45: ='Read Stocks'!M44 -> D | C45: ='Read Stocks'!N44 -> Dominion Energy | D45: FALSE | F45: =F44+D45 -> 3 | G45: 42 | L45: A range name called graph_output allows you to put in flexible ranges
A46: 43 | B46: ='Read Stocks'!M45 -> SO | C46: ='Read Stocks'!N45 -> Southern Company | D46: FALSE | F46: 3 | G46: 43
A47: 44 | B47: ='Read Stocks'!M46 -> PEG | C47: ='Read Stocks'!N46 -> Public Service Enterprise Group | D47: FALSE | F47: 3 | G47: 44
A48: 45 | B48: ='Read Stocks'!M47 -> WEC | C48: ='Read Stocks'!N47 -> WEC Energy Group | D48: FALSE | F48: 3 | G48: 45
A49: 46 | B49: ='Read Stocks'!M48 -> CMS | C49: ='Read Stocks'!N48 -> Consumers Energy Company | D49: FALSE | F49: =F48+D49 -> 3 | G49: 45 | I49: =INDEX(B:B,H49) -> 
A50: 47 | B50: ='Read Stocks'!M49 -> MDU | C50: ='Read Stocks'!N49 -> MDU Resources Group | D50: FALSE | F50: 3 | G50: 45
A51: 48 | B51: ='Read Stocks'!M50 -> MGEE | C51: ='Read Stocks'!N50 -> MGE Energy | D51: FALSE | F51: 3 | G51: 45
A52: 49 | B52: ='Read Stocks'!M51 -> BKH | C52: ='Read Stocks'!N51 -> Black Hills Corporation | D52: FALSE | F52: 3 | G52: 45
A53: 50 | B53: ='Read Stocks'!M52 -> PNM | C53: ='Read Stocks'!N52 -> PNM Resources | D53: FALSE | F53: 3 | G53: 45
A54: 51 | B54: ='Read Stocks'!M53 -> GDP Inf | C54: ='Read Stocks'!N53 -> Implicit Price Deflator | D54: FALSE | F54: 3 | G54: 45
A55: 52 | B55: ='Read Stocks'!M54 -> CPI US | C55: ='Read Stocks'!N54 -> Consumer Price Inflation | D55: FALSE | F55: 3 | G55: 45
A56: 53 | B56: ='Read Stocks'!M55 -> Euro | C56: ='Read Stocks'!N55 -> U.S. / Euro Foreign Exchange Rate (EXUSEU) | D56: FALSE | F56: 3 | G56: 45
A57: 54 | B57: ='Read Stocks'!M56 -> INR | C57: ='Read Stocks'!N56 -> India / U.S. Foreign Exchange Rate (DEXINUS) | D57: FALSE | F57: 3 | G57: 45
A58: 55 | B58: ='Read Stocks'!M57 -> UK | C58: ='Read Stocks'!N57 -> U.S. / U.K. Foreign Exchange Rate (EXUSUK) | D58: FALSE | F58: 3 | G58: 45
A59: 56 | B59: ='Read Stocks'!M58 -> PKR | C59: ='Read Stocks'!N58 -> Pakistan Exchange Rate | D59: FALSE | F59: 3 | G59: 45
A60: 57 | B60: ='Read Stocks'!M59 -> US NOM GNP | C60: ='Read Stocks'!N59 -> Gross National Product (GNP) | D60: FALSE | F60: 3 | G60: 45
A61: 58 | B61: ='Read Stocks'!M60 -> 5 yr treasury | C61: ='Read Stocks'!N60 -> 5-Year Treasury Constant Maturity Rate (GS5) | D61: FALSE | F61: 3 | G61: 45
A62: 59 | B62: ='Read Stocks'!M61 -> 10 year treasury | C62: ='Read Stocks'!N61 -> 10-Year Treasury Constant Maturity Rate (GS10) | D62: FALSE | F62: 3 | G62: 45
A63: 60 | B63: ='Read Stocks'!M62 -> US Med Inc Nom | C63: ='Read Stocks'!N62 -> Median Household Income in the United States (MEHOINUSA646N) | D63: FALSE | F63: 3 | G63: 45
A64: 61 | B64: ='Read Stocks'!M63 -> Median Income | C64: ='Read Stocks'!N63 -> Employed full time: Median usual weekly real earnings: d over (LES1252881600Q) | D64: FALSE | F64: 3 | G64: 45
A65: 62 | B65: ='Read Stocks'!M64 -> Corp Profit | C65: ='Read Stocks'!N64 -> Corporate Profits | D65: FALSE | F65: 3 | G65: 45
A66: 63 | B66: ='Read Stocks'!M65 -> Corp Nonfin | C66: ='Read Stocks'!N65 -> Non Financial Corporate Profits | D66: FALSE | F66: 3 | G66: 45
A67: 64 | B67: ='Read Stocks'!M66 -> Corp Aft Tax | C67: ='Read Stocks'!N66 -> Corporate Profits After Tax | D67: FALSE | F67: 3 | G67: 45
A68: 65 | B68: ='Read Stocks'!M67 -> Corp Inf Adjusted | C68: ='Read Stocks'!N67 -> Corporate Profits with Inflation Adj | D68: FALSE | F68: 3 | G68: 45
A69: 66 | B69: ='Read Stocks'!M68 -> GDP Inflation Index | C69: ='Read Stocks'!N68 -> GDP Inflation Index | D69: FALSE | F69: 3 | G69: 45 | H69: =MATCH(G69,F$1:F$555,0) -> 
A70: 67 | B70: ='Read Stocks'!M69 -> CPI US Index | C70: ='Read Stocks'!N69 -> CPI US Index | D70: FALSE | F70: 3 | G70: 45
A71: 68 | B71: ='Read Stocks'!M70 -> US GDP | C71: ='Read Stocks'!N70 -> US GDP Gross Domestic Product (GDP) | D71: FALSE | F71: 3 | G71: 45
A72: 69 | B72: ='Read Stocks'!M71 -> Median Family Income | C72: ='Read Stocks'!N71 -> Median Family Income in the United States (MEFAINUSA646N) | D72: FALSE | F72: 3 | G72: 45
A73: 70 | B73: ='Read Stocks'!M72 -> US Real GDP | C73: ='Read Stocks'!N72 -> Real Gross Domestic Product (GDPC1) | D73: FALSE | F73: 3 | G73: 45
A74: 71 | B74: ='Read Stocks'!M73 -> US Real GNP | C74: ='Read Stocks'!N73 -> Real Gross National Product (GNPC96) | D74: FALSE | F74: 3 | G74: 45
A75: 72 | B75: ='Read Stocks'!M74 -> GDP GDI | C75: ='Read Stocks'!N74 -> Real Average of GDP and GDI (LB0000091Q020SBEA) | D75: FALSE | F75: 3 | G75: 45
A76: 73 | B76: ='Read Stocks'!M75 ->  | C76: ='Read Stocks'!N75 ->  | D76: FALSE | F76: 3 | G76: 45
A77: 74 | B77: ='Read Stocks'!M76 ->  | C77: ='Read Stocks'!N76 ->  | D77: FALSE | F77: 3 | G77: 45
A78: 75 | B78: ='Read Stocks'!M77 ->  | C78: ='Read Stocks'!N77 ->  | D78: FALSE | F78: 3 | G78: 45
A79: 76 | B79: ='Read Stocks'!M78 ->  | C79: ='Read Stocks'!N78 ->  | D79: FALSE | F79: 3 | G79: 45
A80: 77 | B80: ='Read Stocks'!M79 ->  | C80: ='Read Stocks'!N79 ->  | D80: FALSE | F80: 3 | G80: 45
A81: 78 | B81: ='Read Stocks'!M80 ->  | C81: ='Read Stocks'!N80 ->  | D81: FALSE | F81: 3 | G81: 45
A82: 79 | B82: ='Read Stocks'!M81 ->  | C82: ='Read Stocks'!N81 ->  | D82: FALSE | F82: 3 | G82: 45
A83: 80 | B83: ='Read Stocks'!M82 ->  | C83: ='Read Stocks'!N82 ->  | D83: FALSE | F83: 3 | G83: 45
A84: 81 | B84: ='Read Stocks'!M83 ->  | C84: ='Read Stocks'!N83 ->  | D84: FALSE | F84: 3 | G84: 45
A85: 82 | B85: ='Read Stocks'!M84 ->  | C85: ='Read Stocks'!N84 ->  | D85: FALSE | F85: 3 | G85: 45
A86: 83 | B86: ='Read Stocks'!M85 ->  | C86: ='Read Stocks'!N85 ->  | D86: FALSE | F86: 3 | G86: 45
A87: 84 | B87: ='Read Stocks'!M86 ->  | C87: ='Read Stocks'!N86 ->  | D87: FALSE | F87: 3 | G87: 45
A88: 85 | B88: ='Read Stocks'!M87 ->  | C88: ='Read Stocks'!N87 ->  | D88: FALSE | F88: 3 | G88: 45
A89: 86 | B89: ='Read Stocks'!M88 ->  | C89: ='Read Stocks'!N88 ->  | D89: FALSE | F89: 3 | G89: 45
A90: 87 | B90: ='Read Stocks'!M89 ->  | C90: ='Read Stocks'!N89 ->  | D90: FALSE | F90: 3 | G90: 45
A91: 88 | B91: ='Read Stocks'!M90 ->  | C91: ='Read Stocks'!N90 ->  | D91: FALSE | F91: 3 | G91: 45
A92: 89 | B92: ='Read Stocks'!M91 ->  | C92: ='Read Stocks'!N91 ->  | D92: FALSE | F92: 3 | G92: 45
A93: 90 | B93: ='Read Stocks'!M92 ->  | C93: ='Read Stocks'!N92 ->  | D93: FALSE | F93: 3 | G93: 45
A94: 91 | B94: ='Read Stocks'!M93 ->  | C94: ='Read Stocks'!N93 ->  | D94: FALSE | F94: 3 | G94: 45
A95: 92 | B95: ='Read Stocks'!M94 ->  | C95: ='Read Stocks'!N94 ->  | D95: FALSE | F95: 3 | G95: 45
A96: 93 | B96: ='Read Stocks'!M95 ->  | C96: ='Read Stocks'!N95 ->  | D96: FALSE | F96: 3 | G96: 45
A97: 94 | B97: ='Read Stocks'!M96 ->  | C97: ='Read Stocks'!N96 ->  | D97: FALSE | F97: 3 | G97: 45
A98: 95 | B98: ='Read Stocks'!M97 ->  | C98: ='Read Stocks'!N97 ->  | D98: FALSE | F98: 3 | G98: 45
A99: 96 | B99: ='Read Stocks'!M98 ->  | C99: ='Read Stocks'!N98 ->  | D99: FALSE | F99: 3 | G99: 45
A100: 97 | B100: ='Read Stocks'!M99 ->  | C100: ='Read Stocks'!N99 ->  | D100: FALSE | F100: 3 | G100: 45
A101: 98 | B101: ='Read Stocks'!M100 ->  | C101: ='Read Stocks'!N100 ->  | D101: FALSE | F101: 3 | G101: 45
A102: 99 | B102: ='Read Stocks'!M101 ->  | C102: ='Read Stocks'!N101 ->  | D102: FALSE | F102: 3 | G102: 45
A103: 100 | B103: ='Read Stocks'!M102 ->  | C103: ='Read Stocks'!N102 ->  | D103: FALSE | F103: 3 | G103: 45
A104: 101 | B104: ='Read Stocks'!M103 ->  | C104: ='Read Stocks'!N103 ->  | D104: FALSE | F104: 3 | G104: 45
A105: 102 | B105: ='Read Stocks'!M104 ->  | C105: ='Read Stocks'!N104 ->  | D105: FALSE | F105: 3 | G105: 45
A106: 103 | B106: ='Read Stocks'!M105 ->  | C106: ='Read Stocks'!N105 ->  | D106: FALSE | F106: 3 | G106: 45
A107: 104 | B107: ='Read Stocks'!M106 ->  | C107: ='Read Stocks'!N106 ->  | D107: FALSE | F107: 3 | G107: 45
A108: 105 | B108: ='Read Stocks'!M107 ->  | C108: ='Read Stocks'!N107 ->  | D108: FALSE | F108: 3 | G108: 45
A109: 106 | B109: ='Read Stocks'!M108 ->  | C109: ='Read Stocks'!N108 ->  | D109: FALSE | F109: 3 | G109: 45
A110: 107 | B110: ='Read Stocks'!M109 ->  | C110: ='Read Stocks'!N109 ->  | D110: FALSE | F110: 3 | G110: 45
A111: 108 | B111: ='Read Stocks'!M110 ->  | C111: ='Read Stocks'!N110 ->  | D111: FALSE | F111: 3 | G111: 45
A112: 109 | B112: ='Read Stocks'!M111 ->  | C112: ='Read Stocks'!N111 ->  | D112: FALSE | F112: 3 | G112: 45
A113: 110 | B113: ='Read Stocks'!M112 ->  | C113: ='Read Stocks'!N112 ->  | D113: FALSE | F113: =F112+D113 -> 3 | G113: 45 | I113: =INDEX(B:B,H113) -> 
A114: 111 | B114: ='Read Stocks'!M113 ->  | C114: ='Read Stocks'!N113 ->  | D114: FALSE | F114: 3 | G114: 45
A115: 112 | B115: ='Read Stocks'!M114 ->  | C115: ='Read Stocks'!N114 ->  | D115: FALSE | F115: 3 | G115: 45
A116: 113 | B116: ='Read Stocks'!M115 ->  | C116: ='Read Stocks'!N115 ->  | D116: FALSE | F116: 3 | G116: 45
A117: 114 | B117: ='Read Stocks'!M116 ->  | C117: ='Read Stocks'!N116 ->  | D117: FALSE | F117: 3 | G117: 45
A118: 115 | B118: ='Read Stocks'!M117 ->  | C118: ='Read Stocks'!N117 ->  | D118: FALSE | F118: 3 | G118: 45
A119: 116 | B119: ='Read Stocks'!M118 ->  | C119: ='Read Stocks'!N118 ->  | D119: FALSE | F119: 3 | G119: 45
A120: 117 | B120: ='Read Stocks'!M119 ->  | C120: ='Read Stocks'!N119 ->  | D120: FALSE | F120: 3 | G120: 45
A121: 118 | B121: ='Read Stocks'!M120 ->  | C121: ='Read Stocks'!N120 ->  | D121: FALSE | F121: 3 | G121: 45
A122: 119 | B122: ='Read Stocks'!M121 ->  | C122: ='Read Stocks'!N121 ->  | D122: FALSE | F122: 3 | G122: 45
A123: 120 | B123: ='Read Stocks'!M122 ->  | C123: ='Read Stocks'!N122 ->  | D123: FALSE | F123: 3 | G123: 45
A124: 121 | B124: ='Read Stocks'!M123 ->  | C124: ='Read Stocks'!N123 ->  | D124: FALSE | F124: 3 | G124: 45
A125: 122 | B125: ='Read Stocks'!M124 ->  | C125: ='Read Stocks'!N124 ->  | D125: FALSE | F125: 3 | G125: 45
A126: 123 | B126: ='Read Stocks'!M125 ->  | C126: ='Read Stocks'!N125 ->  | D126: FALSE | F126: 3 | G126: 45
A127: 124 | B127: ='Read Stocks'!M126 ->  | C127: ='Read Stocks'!N126 ->  | D127: FALSE | F127: 3 | G127: 45
A128: 125 | B128: ='Read Stocks'!M127 ->  | C128: ='Read Stocks'!N127 ->  | D128: FALSE | F128: 3 | G128: 45
A129: 126 | B129: ='Read Stocks'!M128 ->  | C129: ='Read Stocks'!N128 ->  | D129: FALSE | F129: 3 | G129: 45
A130: 127 | B130: ='Read Stocks'!M129 ->  | C130: ='Read Stocks'!N129 ->  | D130: FALSE | F130: 3 | G130: 45
A131: 128 | B131: ='Read Stocks'!M130 ->  | C131: ='Read Stocks'!N130 ->  | D131: FALSE | F131: 3 | G131: 45
A132: 129 | B132: ='Read Stocks'!M131 ->  | C132: ='Read Stocks'!N131 ->  | D132: FALSE | F132: 3 | G132: 45
A133: 130 | B133: ='Read Stocks'!M132 ->  | C133: ='Read Stocks'!N132 ->  | D133: FALSE | F133: 3 | G133: 45 | H133: =MATCH(G133,F$1:F$555,0) -> 
A134: 131 | B134: ='Read Stocks'!M133 ->  | C134: ='Read Stocks'!N133 ->  | D134: FALSE | F134: 3 | G134: 45
A135: 132 | B135: ='Read Stocks'!M134 ->  | C135: ='Read Stocks'!N134 ->  | D135: FALSE | F135: 3 | G135: 45
A136: 133 | B136: ='Read Stocks'!M135 ->  | C136: ='Read Stocks'!N135 ->  | D136: FALSE | F136: 3 | G136: 45
A137: 134 | B137: ='Read Stocks'!M136 ->  | C137: ='Read Stocks'!N136 ->  | D137: FALSE | F137: 3 | G137: 45
A138: 135 | B138: ='Read Stocks'!M137 ->  | C138: ='Read Stocks'!N137 ->  | D138: FALSE | F138: 3 | G138: 45
A139: 136 | B139: ='Read Stocks'!M138 ->  | C139: ='Read Stocks'!N138 ->  | D139: FALSE | F139: 3 | G139: 45
A140: 137 | B140: ='Read Stocks'!M139 ->  | C140: ='Read Stocks'!N139 ->  | D140: FALSE | F140: 3 | G140: 45
A141: 138 | B141: ='Read Stocks'!M140 ->  | C141: ='Read Stocks'!N140 ->  | D141: FALSE | F141: 3 | G141: 45
A142: 139 | B142: ='Read Stocks'!M141 ->  | C142: ='Read Stocks'!N141 ->  | D142: FALSE | F142: 3 | G142: 45
A143: 140 | B143: ='Read Stocks'!M142 ->  | C143: ='Read Stocks'!N142 ->  | D143: FALSE | F143: 3 | G143: 45
A144: 141 | B144: ='Read Stocks'!M143 ->  | C144: ='Read Stocks'!N143 ->  | D144: FALSE | F144: 3 | G144: 45
A145: 142 | B145: ='Read Stocks'!M144 ->  | C145: ='Read Stocks'!N144 ->  | D145: FALSE | F145: 3 | G145: 45
A146: 143 | B146: ='Read Stocks'!M145 ->  | C146: ='Read Stocks'!N145 ->  | D146: FALSE | F146: 3 | G146: 45
A147: 144 | B147: ='Read Stocks'!M146 ->  | C147: ='Read Stocks'!N146 ->  | D147: FALSE | F147: 3 | G147: 45
A148: 145 | B148: ='Read Stocks'!M147 ->  | C148: ='Read Stocks'!N147 ->  | D148: FALSE | F148: 3 | G148: 45
A149: 146 | B149: ='Read Stocks'!M148 ->  | C149: ='Read Stocks'!N148 ->  | D149: FALSE | F149: 3 | G149: 45
A150: 147 | B150: ='Read Stocks'!M149 ->  | C150: ='Read Stocks'!N149 ->  | D150: FALSE | F150: 3 | G150: 45
A151: 148 | B151: ='Read Stocks'!M150 ->  | C151: ='Read Stocks'!N150 ->  | D151: FALSE | F151: 3 | G151: 45
A152: 149 | B152: ='Read Stocks'!M151 ->  | C152: ='Read Stocks'!N151 ->  | D152: FALSE | F152: 3 | G152: 45
A153: 150 | B153: ='Read Stocks'!M152 ->  | C153: ='Read Stocks'!N152 ->  | D153: FALSE | F153: 3 | G153: 45
A154: 151 | B154: ='Read Stocks'!M153 ->  | C154: ='Read Stocks'!N153 ->  | D154: FALSE | F154: 3 | G154: 45
A155: 152 | B155: ='Read Stocks'!M154 ->  | C155: ='Read Stocks'!N154 ->  | D155: FALSE | F155: 3 | G155: 45
A156: 153 | B156: ='Read Stocks'!M155 ->  | C156: ='Read Stocks'!N155 ->  | D156: FALSE | F156: 3 | G156: 45
A157: 154 | B157: ='Read Stocks'!M156 ->  | C157: ='Read Stocks'!N156 ->  | D157: FALSE | F157: 3 | G157: 45
A158: 155 | B158: ='Read Stocks'!M157 ->  | C158: ='Read Stocks'!N157 ->  | D158: FALSE | F158: 3 | G158: 45
A159: 156 | B159: ='Read Stocks'!M158 ->  | C159: ='Read Stocks'!N158 ->  | D159: FALSE | F159: 3 | G159: 45
A160: 157 | B160: ='Read Stocks'!M159 ->  | C160: ='Read Stocks'!N159 ->  | D160: FALSE | F160: 3 | G160: 45
A161: 158 | B161: ='Read Stocks'!M160 ->  | C161: ='Read Stocks'!N160 ->  | D161: FALSE | F161: 3 | G161: 45
A162: 159 | B162: ='Read Stocks'!M161 ->  | C162: ='Read Stocks'!N161 ->  | D162: FALSE | F162: 3 | G162: 45
A163: 160 | B163: ='Read Stocks'!M162 ->  | C163: ='Read Stocks'!N162 ->  | D163: FALSE | F163: 3 | G163: 45
A164: 161 | B164: ='Read Stocks'!M163 ->  | C164: ='Read Stocks'!N163 ->  | D164: FALSE | F164: 3 | G164: 45
A165: 162 | B165: ='Read Stocks'!M164 ->  | C165: ='Read Stocks'!N164 ->  | D165: FALSE | F165: 3 | G165: 45
A166: 163 | B166: ='Read Stocks'!M165 ->  | C166: ='Read Stocks'!N165 ->  | D166: FALSE | F166: 3 | G166: 45
A167: 164 | B167: ='Read Stocks'!M166 ->  | C167: ='Read Stocks'!N166 ->  | D167: FALSE | F167: 3 | G167: 45
A168: 165 | B168: ='Read Stocks'!M167 ->  | C168: ='Read Stocks'!N167 ->  | D168: FALSE | F168: 3 | G168: 45
A169: 166 | B169: ='Read Stocks'!M168 ->  | C169: ='Read Stocks'!N168 ->  | D169: FALSE | F169: 3 | G169: 45
A170: 167 | B170: ='Read Stocks'!M169 ->  | C170: ='Read Stocks'!N169 ->  | D170: FALSE | F170: 3 | G170: 45
A171: 168 | B171: ='Read Stocks'!M170 ->  | C171: ='Read Stocks'!N170 ->  | D171: FALSE | F171: 3 | G171: 45
A172: 169 | B172: ='Read Stocks'!M171 ->  | C172: ='Read Stocks'!N171 ->  | D172: FALSE | F172: 3 | G172: 45
A173: 170 | B173: ='Read Stocks'!M172 ->  | C173: ='Read Stocks'!N172 ->  | D173: FALSE | F173: 3 | G173: 45
A174: 171 | B174: ='Read Stocks'!M173 ->  | C174: ='Read Stocks'!N173 ->  | D174: FALSE | F174: 3 | G174: 45
A175: 172 | B175: ='Read Stocks'!M174 ->  | C175: ='Read Stocks'!N174 ->  | D175: FALSE | F175: 3 | G175: 45
A176: 173 | B176: ='Read Stocks'!M175 ->  | C176: ='Read Stocks'!N175 ->  | D176: FALSE | F176: 3 | G176: 45
A177: 174 | B177: ='Read Stocks'!M176 ->  | C177: ='Read Stocks'!N176 ->  | D177: FALSE | F177: =F176+D177 -> 3 | G177: 45 | I177: =INDEX(B:B,H177) -> 
A178: 175 | B178: ='Read Stocks'!M177 -> 0 | C178: ='Read Stocks'!N177 -> 0 | D178: FALSE | F178: 3 | G178: 45
A179: 176 | B179: ='Read Stocks'!M178 -> 0 | C179: ='Read Stocks'!N178 -> 0 | D179: FALSE | F179: 3 | G179: 45
A180: 177 | B180: ='Read Stocks'!M179 -> 0 | C180: ='Read Stocks'!N179 -> 0 | D180: FALSE | F180: 3 | G180: 45
A181: 178 | B181: ='Read Stocks'!M180 -> 0 | C181: ='Read Stocks'!N180 -> 0 | D181: FALSE | F181: 3 | G181: 45
A182: 179 | B182: ='Read Stocks'!M181 -> 0 | C182: ='Read Stocks'!N181 -> 0 | D182: FALSE | F182: 3 | G182: 45
A183: 180 | B183: ='Read Stocks'!M182 -> 0 | C183: ='Read Stocks'!N182 -> 0 | D183: FALSE | F183: 3 | G183: 45
A184: 181 | B184: ='Read Stocks'!M183 -> 0 | C184: ='Read Stocks'!N183 -> 0 | D184: FALSE | F184: 3 | G184: 45
A185: 182 | B185: ='Read Stocks'!M184 -> 0 | C185: ='Read Stocks'!N184 -> 0 | D185: FALSE | F185: 3 | G185: 45
A186: 183 | B186: ='Read Stocks'!M185 -> 0 | C186: ='Read Stocks'!N185 -> 0 | D186: FALSE | F186: 3 | G186: 45
A187: 184 | B187: ='Read Stocks'!M186 -> 0 | C187: ='Read Stocks'!N186 -> 0 | D187: FALSE | F187: 3 | G187: 45
A188: 185 | B188: ='Read Stocks'!M187 -> 0 | C188: ='Read Stocks'!N187 -> 0 | D188: FALSE | F188: 3 | G188: 45
A189: 186 | B189: ='Read Stocks'!M188 -> 0 | C189: ='Read Stocks'!N188 -> 0 | D189: FALSE | F189: 3 | G189: 45
A190: 187 | B190: ='Read Stocks'!M189 -> 0 | C190: ='Read Stocks'!N189 -> 0 | D190: FALSE | F190: 3 | G190: 45
A191: 188 | B191: ='Read Stocks'!M190 -> 0 | C191: ='Read Stocks'!N190 -> 0 | D191: FALSE | F191: 3 | G191: 45
A192: 189 | B192: ='Read Stocks'!M191 -> 0 | C192: ='Read Stocks'!N191 -> 0 | D192: FALSE | F192: 3 | G192: 45
A193: 190 | B193: ='Read Stocks'!M192 -> 0 | C193: ='Read Stocks'!N192 -> 0 | D193: FALSE | F193: 3 | G193: 45
A194: 191 | B194: ='Read Stocks'!M193 -> 0 | C194: ='Read Stocks'!N193 -> 0 | D194: FALSE | F194: 3 | G194: 45
A195: 192 | B195: ='Read Stocks'!M194 -> 0 | C195: ='Read Stocks'!N194 -> 0 | D195: FALSE | F195: 3 | G195: 45
D196: FALSE | F196: 3 | G196: 45
D197: FALSE | F197: 3 | G197: 45 | H197: =MATCH(G197,F$1:F$555,0) -> 
D198: FALSE | F198: 3 | G198: 45
D199: FALSE | F199: 3 | G199: 45
D200: FALSE | F200: 3 | G200: 45
... 100 more rows

Sheet Summary
E1: Selected Start | F1: =Forms!G9 -> 2006-12-31 | G1: Index No (Frms) | H1: =Forms!J4 -> 1 | M1: Graph Code for Index etc. --> | N1: =Forms!P3 -> 3 | O1: Height | P1: =COUNT(E10:E10000)+1 -> 50 | Q1: Graph Cols | R1: =COUNTIF('Multiple Stock Graph'!D:D,TRUE)+2 -> 5 | X1: Instructions at www.edbodmer.com | AT1: Periods in Yr | AV1: =IF(E7,52,12) -> 12 | BB1: IRR's and Index | BO1: These Are Indices Used
E2: End Date | F2: =Forms!L9 -> 2010-12-31 | G2: Col to Read | H2: =INDEX('Read Stocks'!O3:O202,Summary!H1) -> F | K2: Final Value | L2: =LOOKUP(F2,$E$10:$E$1837,L10:L1837) -> 0.7900965318 | O2: The Data Shaded in Grey is the Selection for the Graph | X2: Questions: e-mail edwardbodmer@gmail.com | AC2: =MIN(INDIRECT("'"&AC5&"'!A:A")) -> 1973-02-19 | AD2: =MIN(INDIRECT("'"&AD5&"'!A:A")) -> 1962-01-01 | AE2: 1973-04-30 | BH2: Inflation and Index from Sheet Names | BO2: First two are inflation, next 5 are exchange rates with multiplication
E3: Start of Series | F3: =F1 -> 2006-12-31 | K3: IRR | L3: =(L2)^(1/($L$4))-1 -> -0.05719899053 | O3: This uses graph_output -- a range name with offset (Height and width above) | AI3: Exchange Rate Adjustments to Individual Stocks | AO3: Adjusted Values for Exchange Rate | AT3: Beta | AU3: =IFERROR(SLOPE(AU10:AU2000,$AU$10:$AU$2000),0) -> 1 | AV3: =IFERROR(SLOPE(AV11:AV2000,AU11:AU2000),0) -> 0.533558919 | AW3: =IFERROR(SLOPE(AW11:AW2000,AU11:AU2000),0) -> 0.335463435 | AX3: =IFERROR(SLOPE(AX11:AX1999,AU11:AU1999),0) -> 0.7413862007 | AY3: =IFERROR(SLOPE(AY11:AY2000,AU11:AU2000),0) -> 0 | AZ3: =IFERROR(SLOPE(AZ11:AZ2000,AU11:AU2000),0) -> 0 | BA3: =IFERROR(SLOPE(BA11:BA837,AU11:AU837),0) -> 0 | BB3: =LOOKUP($F$2,$E:$E,BB:BB) -> 1.029141999 | BC3: 1.264421278 | BD3: 0.9478714207 | BE3: 1 | BF3: 1 | BG3: 1 | BH3: Raw Retrieval of Inflation and Exchange Indirect
B4: Raw Date | E4: Final Start | F4: =MAX(F3,F1) -> 2006-12-31 | H4: See Right Data | K4: Years for IRR | L4: =(F2-F4)/365.25 -> 4 | O4: Use CNTL F3 to look at range | W4: Raw Values without Index, Inflation Adj from INDIRECT Function | AC4: Re-orded Lookup Value for Raw Value with Adjusted Date | AT4: Std Dev | AU4: =IFERROR(STDEV(AU10:AU200),0) -> 0.0605172825 | AV4: =IFERROR(STDEV(AV10:AV2000),0) -> 0.09183976228 | AW4: 0.0473521051 | AX4: 0.05968995416 | AY4: 0 | AZ4: 0 | BA4: 0 | BB4: =IF(BB3<>1,(BB3)^(1/($L$4))-1,"") -> 0.007207208874 | BC4: =IF(BC3<>1,(BC3)^(1/($L$4))-1,"") -> 0.06040788619 | BD4: -0.01329493565 | BH4: Retrieves first six items | BO4: Exchange Rate with Lookup
B5: Base Index | F5: Base Stock | H5: Exchange Rate | I5: Adjusted | J5: Adjusted Base | N5: Single | P5: Main | Q5: Comparators from Choose and Data to Right | V5: Code | W5: =TRANSPOSE('Multiple Stock Graph'!I4:I9) -> HE | X5: ED | Y5: EIX | AC5: =W5 -> HE | AD5: =X5 -> ED | AE5: EIX | AT5: Volatiltiy | AU5: =AU4*$AV$1^0.5 -> 0.209638016 | AV5: =AV4*$AV$1^0.5 -> 0.3181422688 | AW5: 0.1640325037 | AX5: 0.2067720666 | AY5: 0 | AZ5: 0 | BA5: 0
A6: Base | B6: =Forms!O9 -> S&P 500 | D6: Monthly | E6: Weekly Switch | F6: From Applied | H6: or Inflation | I6: Index | J6: For Exch or Inf | K6: Change | L6: Index | N6: Graph | P6: Item | Q6: First Comparator(Stats) | W6: =MATCH(W5,'Read Stocks'!$M:$M,0) -> 23 | X6: =MATCH(X5,'Read Stocks'!$M:$M,0) -> 26 | Y6: =MATCH(Y5,'Read Stocks'!$M:$M,0) -> 33 | Z6: =MATCH(Z5,'Read Stocks'!$M:$M,0) ->  | AA6: =MATCH(AA5,'Read Stocks'!$M:$M,0) ->  | AB6: =MATCH(AB5,'Read Stocks'!$M:$M,0) ->  | AI6: FALSE | AJ6: FALSE | AK6: FALSE | AL6: FALSE | AM6: FALSE | AN6: FALSE | AU6: Growth Rate | AV6: Growth Rate | BB6: Index | BH6: =BO6 -> GDP Inf | BI6: =BP6 -> CPI US | BJ6: Euro | BK6: INR | BL6: UK | BO6: =TRANSPOSE('Exchange Rates'!D13:D47) -> GDP Inf | BP6: CPI US | BQ6: Euro | BR6: INR | BS6: UK | BT6: PKR | BU6: US NOM GNP
A7: Date | B7: Raw Data | D7: Date from | E7: FALSE | F7: Date | G7: Date Selected | H7: Adjustment | I7: for Zero | J7: =B6 -> S&P 500 | K7: =B6 -> S&P 500 | L7: =K7 -> S&P 500 | M7: X-Axis | N7: =CHOOSE($N$1,B6,K7,L7) -> S&P 500 | O7: x-axis | P7: =INDEX('Read Stocks'!N3:N202,Summary!H1) -> US S&P 500 | Q7: =TRANSPOSE('Multiple Stock Graph'!J4:J9) -> Hawaiian Electric Industries | R7: Consolidated Edison | S7: Edison International | W7: =INDEX('Read Stocks'!$O:$O,Summary!W6) -> F | X7: =INDEX('Read Stocks'!$O:$O,Summary!X6) -> F | Y7: =INDEX('Read Stocks'!$O:$O,Summary!Y6) -> F | Z7: =INDEX('Read Stocks'!$O:$O,Summary!Z6) ->  | AA7: =INDEX('Read Stocks'!$O:$O,Summary!AA6) ->  | AB7: =INDEX('Read Stocks'!$O:$O,Summary!AB6) ->  | AI7: =TRANSPOSE('Multiple Stock Graph'!Q30:Q35) -> 0 | AJ7: 0 | AK7: 0 | AL7: 0 | AM7: 0 | AN7: 0 | AO7: =Q7 -> Hawaiian Electric Industries | AP7: Consolidated Edison | AQ7: Edison International | AU7: =K7 -> S&P 500 | AV7: =W5 -> HE | AW7: ED | AX7: EIX | BB7: =AV7 -> HE | BC7: ED | BD7: EIX | BO7: B | BP7: B | BQ7: B | BR7: B | BS7: B | BT7: B | BU7: B | BW7: Weekely
A8: Copied | B8: From Start | D8: Selected Start | E8: Month or Day | F8: Re-Ordered | G8: Switch | H8: ='Multiple Stock Graph'!Q29 -> 0 | J8: Absolute | K8: LN Funct | L8: Index | N8: Choose | Q8: 1 | R8: 2 | S8: 3 | T8: 4 | U8: 5 | V8: 6 | W8: 1 | X8: 2 | Y8: 3 | Z8: 4 | AA8: 5 | AB8: 6 | AI8: =IFERROR(INDEX($BO$6:$BU$6,AI7),"") ->  | AJ8: =IFERROR(INDEX($BO$6:$BU$6,AJ7),"") ->  | AO8: 1 | AP8: 2 | AQ8: 3 | AR8: 4 | AS8: 5 | AT8: 6 | BO8: =TRANSPOSE('Multiple Stock Graph'!AB16:AB22) -> Divide | BP8: Divide | BQ8: Multiply | BR8: Divide | BS8: Multiply | BT8: Divide | BU8: Divide | BW8: Date
B9: =H2 -> F | D9: =IF(E7,"Not Used","Applied") -> Applied | E9: Date | F9: =H2 -> F | L9: 1 | P9: =P7&" IRR "&TEXT(L3,"##.00%") -> US S&P 500 IRR -5.72% | Q9: =Q7&" IRR "&TEXT(BB4,"##.00%") -> Hawaiian Electric Industries IRR .72% | R9: =R7&" IRR "&TEXT(BC4,"##.00%") -> Consolidated Edison IRR 6.04% | S9: Edison International IRR -1.33% | T9: IRR | U9: IRR | V9: IRR | BB9: 1 | BC9: 1 | BD9: 1 | BE9: 1 | BF9: 1 | BG9: 1 | BW9: =IF(E7,"Applied","Not Used") -> Not Used
A10: 1990-01-01 | B10: =IFERROR(LOOKUP($A10,INDIRECT("'"&B$6&"'!A:A"),INDIRECT("'"&B$6&"'!"&$B$9&":"&$B$9)),0) -> 352.200012 | D10: =MAX(F3,F1) -> 2006-12-31 | E10: =IF($E$7,BW10,D10) -> 2006-12-31 | F10: =LOOKUP(E10,A:A,B:B) -> 1418.300049 | G10: =AND(E10>=$F$4,E10<$F$2) -> TRUE | H10: =IF(H$8<>0,INDEX($BO10:$BU10,H$8),1) -> 1 | I10: =IF(H10,H10,IF(I11,I11,1)) -> 1 | J10: =IF(ISNUMBER(F10),F10,J11)*I10 -> 1418.300049 | K10: =IFERROR(LN(B10/B9),FALSE) -> FALSE | L10: =IF($G10,(L9*(1+K10)),L9) -> 1 | M10: =IF(G10,E10,NA()) -> 2006-12-31 | N10: =CHOOSE($N$1,J10,K10,L10) -> 1 | O10: =M10 -> 2006-12-31 | P10: =N10 -> 1 | Q10: =CHOOSE($N$1,AO10,AV10,BB10) -> 1 | R10: =CHOOSE($N$1,AP10,AW10,BC10) -> 1 | S10: =CHOOSE($N$1,AQ10,AX10,BD10) -> 1 | T10: =CHOOSE($N$1,AR10,AY10,BE10) -> 1 | U10: =CHOOSE($N$1,AS10,AZ10,BF10) -> 1 | V10: =CHOOSE($N$1,AT10,BA10,BG10) -> 1 | W10: =LOOKUP($A10,INDIRECT("'"&W$5&"'!A:A"),INDIRECT("'"&W$5&"'!"&W$7&":"&W$7)) -> 3.22123 | X10: =LOOKUP($A10,INDIRECT("'"&X$5&"'!A:A"),INDIRECT("'"&X$5&"'!"&X$7&":"&X$7)) -> 4.974726 | Y10: =LOOKUP($A10,INDIRECT("'"&Y$5&"'!A:A"),INDIRECT("'"&Y$5&"'!"&Y$7&":"&Y$7)) -> 5.48272 | AC10: =IF(ISNUMBER(LOOKUP($E10,$A:$A,W:W)),LOOKUP($E10,$A:$A,W:W),AC9) -> 13.121509 | AD10: =IF(ISNUMBER(LOOKUP($E10,$A:$A,X:X)),LOOKUP($E10,$A:$A,X:X),AD9) -> 23.866037 | AE10: =IF(ISNUMBER(LOOKUP($E10,$A:$A,Y:Y)),LOOKUP($E10,$A:$A,Y:Y),AE9) -> 26.088434 | AF10: =IF(ISNUMBER(LOOKUP($E10,$A:$A,Z:Z)),LOOKUP($E10,$A:$A,Z:Z),AF9) -> 0 | AG10: =IF(ISNUMBER(LOOKUP($E10,$A:$A,AA:AA)),LOOKUP($E10,$A:$A,AA:AA),AG9) -> 0 | AH10: =IF(ISNUMBER(LOOKUP($E10,$A:$A,AB:AB)),LOOKUP($E10,$A:$A,AB:AB),AH9) -> 0 | AI10: =IF(AI$7,INDEX($BO10:$BU10,AI$7),1) -> 1 | AJ10: =IF(AJ$7,INDEX($BO10:$BU10,AJ$7),1) -> 1 | AK10: 1 | AL10: 1 | AM10: 1 | AN10: 1 | AO10: =IFERROR(IF(ISNUMBER(AC10)>0.1,AC10,AO11)*AI10,AO11) -> 13.121509 | AP10: 23.866037 | AQ10: 26.088434 | AR10: 0 | AS10: 0 | AT10: 0 | AU10: =K10 -> FALSE | AV10: =IF(G10,IFERROR(LN(AO10/AO9),FALSE)) -> FALSE | AW10: =IF(G10,IFERROR(LN(AP10/AP9),FALSE)) -> FALSE | AX10: =IF(G10,IFERROR(LN(AQ10/AQ9),FALSE)) -> FALSE | AY10: =IF(G10,IFERROR(LN(AR10/AR9),FALSE)) -> FALSE | AZ10: =IF(G10,IFERROR(LN(AS10/AS9),FALSE)) -> FALSE | BA10: =IF(G10,IFERROR(LN(AT10/AT9),FALSE)) -> FALSE | BB10: 1 | BC10: 1 | BD10: 1 | BE10: 1 | BF10: 1 | BG10: 1 | BH10: =IFERROR(LOOKUP($A10,INDIRECT("'"&BO$6&"'!A:A"),INDIRECT("'"&BO$6&"'!"&BO$7&":"&BO$7)),0) -> 0 | BI10: =IFERROR(LOOKUP($A10,INDIRECT("'"&BP$6&"'!A:A"),INDIRECT("'"&BP$6&"'!"&BP$7&":"&BP$7)),0) -> 0 | BJ10: 0 | BK10: 0 | BL10: 0 | BM10: 0 | BN10: 0 | BO10: =IFERROR(IF(BO$8="Divide",1/LOOKUP($E10,$A:$A,BH:BH)*1,LOOKUP($E10,$A:$A,BH:BH)*1),BO11) -> 0 | BP10: =IFERROR(IF(BP$8="Divide",1/LOOKUP($E10,$A:$A,BI:BI)*1,LOOKUP($E10,$A:$A,BI:BI)*1),BP11) -> 0 | BQ10: =IFERROR(IF(BQ$8="Divide",1/LOOKUP($E10,$A:$A,BJ:BJ)*1,LOOKUP($E10,$A:$A,BJ:BJ)*1),BQ11) -> 0 | BR10: =IFERROR(IF(BR$8="Divide",1/LOOKUP($E10,$A:$A,BK:BK)*1,LOOKUP($E10,$A:$A,BK:BK)*1),BR11) -> 0 | BS10: =IFERROR(IF(BS$8="Divide",1/LOOKUP($E10,$A:$A,BL:BL)*1,LOOKUP($E10,$A:$A,BL:BL)*1),BS11) -> 0 | BT10: =IFERROR(IF(BT$8="Divide",1/LOOKUP($E10,$A:$A,BM:BM)*1,LOOKUP($E10,$A:$A,BM:BM)*1),BT11) -> 0 | BU10: =IFERROR(IF(BU$8="Divide",1/LOOKUP($E10,$A:$A,BN:BN)*1,LOOKUP($E10,$A:$A,BN:BN)*1),BU11) -> 0 | BW10: =D10 -> 2006-12-31
A11: 1990-01-08 | B11: 339.929993 | D11: =IF(D10<$F$2,MIN(EOMONTH(D10,1),$F$2)) -> 2007-01-31 | E11: 2007-01-31 | F11: 1448.390015 | G11: =AND(E11>=$F$4,E11<$F$2) -> TRUE | H11: =IF(H$8<>0,INDEX($BO11:$BU11,H$8),1) -> 1 | I11: =IF(H11,H11,IF(I12,I12,1)) -> 1 | J11: =IF(ISNUMBER(F11),F11,J12)*I11 -> 1448.390015 | K11: =IFERROR(LN(J11/J10),FALSE) -> 0.0209935992 | L11: =IF($G11,(L10*(1+K11)),L10) -> 1.020993599 | M11: 2007-01-31 | N11: =CHOOSE($N$1,J11,K11,L11) -> 1.020993599 | O11: =M11 -> 2007-01-31 | P11: =N11 -> 1.020993599 | Q11: =IFERROR(CHOOSE($N$1,AO11,AV11,BB11),Q10) -> 0.9952118312 | R11: 1.008113077 | S11: 1.005224307 | T11: 1 | U11: 1 | V11: 1 | W11: =LOOKUP($A11,INDIRECT("'"&W$5&"'!A:A"),INDIRECT("'"&W$5&"'!"&W$7&":"&W$7)) -> 3.179799 | X11: 4.752639 | Y11: 5.33985 | Z11: =LOOKUP($A11,INDIRECT("'"&Z$5&"'!A:A"),INDIRECT("'"&Z$5&"'!"&Z$7&":"&Z$7)) ->  | AC11: 13.058681 | AD11: 24.059664 | AE11: 26.224728 | AF11: 0 | AG11: 0 | AH11: 0 | AI11: =IF(AI$7,INDEX($BO11:$BU11,AI$7),1) -> 1 | AJ11: 1 | AK11: 1 | AL11: 1 | AM11: 1 | AN11: 1 | AO11: =IFERROR(IF(ISNUMBER(AC11)>0.1,AC11,AO12)*AI11,AO12) -> 13.058681 | AP11: =IFERROR(IF(ISNUMBER(AD11)>0.1,AD11,AP12)*AJ11,AP12) -> 24.059664 | AQ11: =IFERROR(IF(ISNUMBER(AE11)>0.1,AE11,AQ12)*AK11,AQ12) -> 26.224728 | AR11: =IFERROR(IF(ISNUMBER(AF11)>0.1,AF11,AR12)*AL11,AR12) -> 0 | AS11: =IFERROR(IF(ISNUMBER(AG11)>0.1,AG11,AS12)*AM11,AS12) -> 0 | AT11: =IFERROR(IF(ISNUMBER(AH11)>0.1,AH11,AT12)*AN11,AT12) -> 0 | AU11: =K11 -> 0.0209935992 | AV11: -0.004799668804 | AW11: 0.008080343093 | AX11: 0.005210708096 | AY11: FALSE | AZ11: FALSE | BA11: FALSE | BB11: =IFERROR(IF($G11,BB10*AO11/AO10,BB10),BB10) -> 0.9952118312 | BC11: 1.008113077 | BD11: 1.005224307 | BE11: 1 | BF11: 1 | BG11: 1 | BH11: =IFERROR(LOOKUP($A11,INDIRECT("'"&BO$6&"'!A:A"),INDIRECT("'"&BO$6&"'!"&BO$7&":"&BO$7)),0) -> 0 | BI11: =IFERROR(LOOKUP($A11,INDIRECT("'"&BP$6&"'!A:A"),INDIRECT("'"&BP$6&"'!"&BP$7&":"&BP$7)),0) -> 0 | BJ11: =IFERROR(LOOKUP($A11,INDIRECT("'"&BQ$6&"'!A:A"),INDIRECT("'"&BQ$6&"'!"&BQ$7&":"&BQ$7)),0) -> 0 | BK11: =IFERROR(LOOKUP($A11,INDIRECT("'"&BR$6&"'!A:A"),INDIRECT("'"&BR$6&"'!"&BR$7&":"&BR$7)),0) -> 0 | BL11: =IFERROR(LOOKUP($A11,INDIRECT("'"&BS$6&"'!A:A"),INDIRECT("'"&BS$6&"'!"&BS$7&":"&BS$7)),0) -> 0 | BM11: =IFERROR(LOOKUP($A11,INDIRECT("'"&BT$6&"'!A:A"),INDIRECT("'"&BT$6&"'!"&BT$7&":"&BT$7)),0) -> 0 | BN11: =IFERROR(LOOKUP($A11,INDIRECT("'"&BU$6&"'!A:A"),INDIRECT("'"&BU$6&"'!"&BU$7&":"&BU$7)),0) -> 0 | BO11: 0 | BP11: 0 | BQ11: 0 | BR11: 0 | BS11: 0 | BT11: 0 | BU11: 0 | BW11: =IF(BW10<=$F$2,BW10+7) -> 2007-01-07
A12: 1990-01-15 | B12: 339.149994 | D12: 2007-02-28 | E12: 2007-02-28 | F12: 1387.170044 | G12: TRUE | H12: 1 | I12: 1 | J12: 1387.170044 | K12: =IFERROR(LN(J12/J11),FALSE) -> -0.04318687284 | L12: 0.9769000785 | M12: 2007-02-28 | N12: 0.9769000785 | O12: 2007-02-28 | P12: =N12 -> 0.9769000785 | Q12: =IFERROR(CHOOSE($N$1,AO12,AV12,BB12),Q11) -> 0.9679460647 | R12: =IFERROR(CHOOSE($N$1,AP12,AW12,BC12),R11) -> 1.012181578 | S12: =IFERROR(CHOOSE($N$1,AQ12,AX12,BD12),S11) -> 1.046822473 | T12: =IFERROR(CHOOSE($N$1,AR12,AY12,BE12),T11) -> 1 | U12: =IFERROR(CHOOSE($N$1,AS12,AZ12,BF12),U11) -> 1 | V12: =IFERROR(CHOOSE($N$1,AT12,BA12,BG12),V11) -> 1 | W12: =LOOKUP($C12,INDIRECT("'"&W$5&"'!A:A"),INDIRECT("'"&W$5&"'!"&W$7&":"&W$7)) ->  | X12: =LOOKUP($C12,INDIRECT("'"&X$5&"'!A:A"),INDIRECT("'"&X$5&"'!"&X$7&":"&X$7)) ->  | Y12: =LOOKUP($C12,INDIRECT("'"&Y$5&"'!A:A"),INDIRECT("'"&Y$5&"'!"&Y$7&":"&Y$7)) ->  | Z12: =LOOKUP($C12,INDIRECT("'"&Z$5&"'!A:A"),INDIRECT("'"&Z$5&"'!"&Z$7&":"&Z$7)) ->  | AA12: =LOOKUP($C12,INDIRECT("'"&AA$5&"'!A:A"),INDIRECT("'"&AA$5&"'!"&AA$7&":"&AA$7)) ->  | AB12: =LOOKUP($C12,INDIRECT("'"&AB$5&"'!A:A"),INDIRECT("'"&AB$5&"'!"&AB$7&":"&AB$7)) ->  | AC12: 12.700913 | AD12: 24.156763 | AE12: 27.309959 | AF12: 0 | AG12: 0 | AH12: 0 | AI12: 1 | AJ12: 1 | AK12: 1 | AL12: 1 | AM12: 1 | AN12: 1 | AO12: =IFERROR(IF(ISNUMBER(AC12)>0.1,AC12,AO13)*AI12,AO13) -> 12.700913 | AP12: =IFERROR(IF(ISNUMBER(AD12)>0.1,AD12,AP13)*AJ12,AP13) -> 24.156763 | AQ12: =IFERROR(IF(ISNUMBER(AE12)>0.1,AE12,AQ13)*AK12,AQ13) -> 27.309959 | AR12: =IFERROR(IF(ISNUMBER(AF12)>0.1,AF12,AR13)*AL12,AR13) -> 0 | AS12: =IFERROR(IF(ISNUMBER(AG12)>0.1,AG12,AS13)*AM12,AS13) -> 0 | AT12: =IFERROR(IF(ISNUMBER(AH12)>0.1,AH12,AT13)*AN12,AT13) -> 0 | AU12: =K12 -> -0.04318687284 | AV12: -0.0277792427 | AW12: 0.00402763694 | AX12: 0.04054865176 | AY12: FALSE | AZ12: FALSE | BA12: FALSE | BB12: =IFERROR(IF($G12,BB11*AO12/AO11,BB11),BB11) -> 0.9679460647 | BC12: =IFERROR(IF($G12,BC11*AP12/AP11,BC11),BC11) -> 1.012181578 | BD12: =IFERROR(IF($G12,BD11*AQ12/AQ11,BD11),BD11) -> 1.046822473 | BE12: =IFERROR(IF($G12,BE11*AR12/AR11,BE11),BE11) -> 1 | BF12: =IFERROR(IF($G12,BF11*AS12/AS11,BF11),BF11) -> 1 | BG12: =IFERROR(IF($G12,BG11*AT12/AT11,BG11),BG11) -> 1 | BH12: =IFERROR(LOOKUP($C12,INDIRECT("'"&BO$6&"'!A:A"),INDIRECT("'"&BO$6&"'!"&BO$7&":"&BO$7)),0) -> 0 | BI12: =IFERROR(LOOKUP($C12,INDIRECT("'"&BP$6&"'!A:A"),INDIRECT("'"&BP$6&"'!"&BP$7&":"&BP$7)),0) -> 0 | BJ12: =IFERROR(LOOKUP($C12,INDIRECT("'"&BQ$6&"'!A:A"),INDIRECT("'"&BQ$6&"'!"&BQ$7&":"&BQ$7)),0) -> 0 | BK12: =IFERROR(LOOKUP($C12,INDIRECT("'"&BR$6&"'!A:A"),INDIRECT("'"&BR$6&"'!"&BR$7&":"&BR$7)),0) -> 0 | BL12: =IFERROR(LOOKUP($C12,INDIRECT("'"&BS$6&"'!A:A"),INDIRECT("'"&BS$6&"'!"&BS$7&":"&BS$7)),0) -> 0 | BM12: =IFERROR(LOOKUP($C12,INDIRECT("'"&BT$6&"'!A:A"),INDIRECT("'"&BT$6&"'!"&BT$7&":"&BT$7)),0) -> 0 | BN12: =IFERROR(LOOKUP($C12,INDIRECT("'"&BU$6&"'!A:A"),INDIRECT("'"&BU$6&"'!"&BU$7&":"&BU$7)),0) -> 0 | BO12: 0 | BP12: 0 | BQ12: 0 | BR12: 0 | BS12: 0 | BT12: 0 | BU12: 0 | BW12: 2007-01-14
A13: 1990-01-22 | B13: 325.799988 | D13: 2007-03-31 | E13: 2007-03-31 | F13: 1420.859985 | G13: TRUE | H13: 1 | I13: 1 | J13: 1420.859985 | K13: 0.0239965793 | L13: 1.000342339 | M13: 2007-03-31 | N13: =CHOOSE($N$1,J13,K13,L13) -> 1.000342339 | O13: =M13 -> 2007-03-31 | P13: 1.000342339 | Q13: 0.9683187353 | R13: 1.074917088 | S13: 1.087093422 | T13: 1 | U13: 1 | V13: 1 | W13: 3.076223 | X13: 4.774848 | Y13: 5.286271 | AC13: 12.705803 | AD13: 25.654011 | AE13: 28.360565 | AF13: 0 | AG13: 0 | AH13: 0 | AI13: 1 | AJ13: 1 | AK13: 1 | AL13: 1 | AM13: 1 | AN13: 1 | AO13: 12.705803 | AP13: 25.654011 | AQ13: 28.360565 | AR13: 0 | AS13: 0 | AT13: 0 | AU13: =K13 -> 0.0239965793 | AV13: 0.0003849375937 | AW13: 0.06013555136 | AX13: 0.03774818969 | AY13: FALSE | AZ13: FALSE | BA13: FALSE | BB13: 0.9683187353 | BC13: 1.074917088 | BD13: 1.087093422 | BE13: 1 | BF13: 1 | BG13: 1 | BH13: 0 | BI13: 0 | BJ13: 0 | BK13: 0 | BL13: 0 | BM13: 0 | BN13: 0 | BO13: 0 | BP13: 0 | BQ13: 0 | BR13: 0 | BS13: 0 | BT13: 0 | BU13: 0 | BW13: 2007-01-21
A14: 1990-01-29 | B14: 330.920013 | D14: 2007-04-30 | E14: 2007-04-30 | F14: 1505.619995 | G14: TRUE | H14: 1 | I14: 1 | J14: 1505.619995 | K14: 0.05794245864 | L14: 1.058304633 | M14: 2007-04-30 | N14: 1.058304633 | O14: 2007-04-30 | P14: 1.058304633 | Q14: 0.9664556874 | R14: 1.082495724 | S14: 1.200470216 | T14: 1 | U14: 1 | V14: 1 | W14: 3.034792 | X14: 4.863682 | Y14: 5.393423 | AC14: 12.681357 | AD14: 25.834883 | AE14: 31.318388 | AF14: 0 | AG14: 0 | AH14: 0 | AI14: 1 | AJ14: 1 | AK14: 1 | AL14: 1 | AM14: 1 | AN14: 1 | AO14: 12.681357 | AP14: 25.834883 | AQ14: 31.318388 | AR14: 0 | AS14: 0 | AT14: 0 | AU14: 0.05794245864 | AV14: -0.001925856028 | AW14: 0.007025699328 | AX14: 0.0992057772 | AY14: FALSE | AZ14: FALSE | BA14: FALSE | BB14: 0.9664556874 | BC14: 1.082495724 | BD14: 1.200470216 | BE14: 1 | BF14: 1 | BG14: 1 | BH14: 0 | BI14: 0 | BJ14: 0 | BK14: 0 | BL14: 0 | BM14: 0 | BN14: 0 | BO14: 0 | BP14: 0 | BQ14: 0 | BR14: 0 | BS14: 0 | BT14: 0 | BU14: 0 | BW14: 2007-01-28
A15: 1990-02-05 | B15: 333.619995 | D15: 2007-05-31 | E15: 2007-05-31 | F15: 1536.339966 | G15: TRUE | H15: 1 | I15: 1 | J15: 1536.339966 | K15: 0.02019817209 | L15: 1.079680452 | M15: 2007-05-31 | N15: 1.079680452 | O15: 2007-05-31 | P15: 1.079680452 | Q15: 0.918385454 | R15: 1.032349694 | S15: 1.296169214 | T15: 1 | U15: 1 | V15: 1 | W15: 2.972647 | X15: 4.752639 | Y15: 5.589875 | AC15: 12.050603 | AD15: 24.638096 | AE15: 33.815025 | AF15: 0 | AG15: 0 | AH15: 0 | AI15: 1 | AJ15: 1 | AK15: 1 | AL15: 1 | AM15: 1 | AN15: 1 | AO15: 12.050603 | AP15: 24.638096 | AQ15: 33.815025 | AR15: 0 | AS15: 0 | AT15: 0 | AU15: 0.02019817209 | AV15: -0.05101826203 | AW15: -0.04743177004 | AX15: 0.07669982926 | AY15: FALSE | AZ15: FALSE | BA15: FALSE | BB15: 0.918385454 | BC15: 1.032349694 | BD15: 1.296169214 | BE15: 1 | BF15: 1 | BG15: 1 | BH15: 0 | BI15: 0 | BJ15: 0 | BK15: 0 | BL15: 0 | BM15: 0 | BN15: 0 | BO15: 0 | BP15: 0 | BQ15: 0 | BR15: 0 | BS15: 0 | BT15: 0 | BU15: 0 | BW15: 2007-02-04
A16: 1990-02-12 | B16: 332.720001 | D16: 2007-06-30 | E16: 2007-06-30 | F16: 1503.349976 | G16: TRUE | H16: 1 | I16: 1 | J16: 1503.349976 | K16: -0.02170700697 | L16: 1.056243821 | M16: 2007-06-30 | N16: 1.056243821 | O16: 2007-06-30 | P16: 1.056243821 | Q16: 0.893493195 | R16: 0.9608006558 | S16: 1.248987846 | T16: 1 | U16: 1 | V16: 1 | W16: 3.10139 | X16: 4.720414 | Y16: 5.411284 | AC16: 11.723979 | AD16: 22.930504 | AE16: 32.584137 | AF16: 0 | AG16: 0 | AH16: 0 | AI16: 1 | AJ16: 1 | AK16: 1 | AL16: 1 | AM16: 1 | AN16: 1 | AO16: 11.723979 | AP16: 22.930504 | AQ16: 32.584137 | AR16: 0 | AS16: 0 | AT16: 0 | AU16: -0.02170700697 | AV16: -0.02747846853 | AW16: -0.07182578639 | AX16: -0.03707965549 | AY16: FALSE | AZ16: FALSE | BA16: FALSE | BB16: 0.893493195 | BC16: 0.9608006558 | BD16: 1.248987846 | BE16: 1 | BF16: 1 | BG16: 1 | BH16: 0 | BI16: 0 | BJ16: 0 | BK16: 0 | BL16: 0 | BM16: 0 | BN16: 0 | BO16: 0 | BP16: 0 | BQ16: 0 | BR16: 0 | BS16: 0 | BT16: 0 | BU16: 0 | BW16: 2007-02-11
A17: 1990-02-19 | B17: 324.149994 | D17: 2007-07-31 | E17: 2007-07-31 | F17: 1433.060059 | G17: TRUE | H17: 1 | I17: 1 | J17: 1433.060059 | K17: -0.04788387595 | L17: 1.005666773 | M17: 2007-07-31 | N17: 1.005666773 | O17: 2007-07-31 | P17: 1.005666773 | Q17: 0.8395591544 | R17: 0.9341831658 | S17: 1.19590532 | T17: 1 | U17: 1 | V17: 1 | W17: 3.038311 | X17: 4.584897 | Y17: 5.321988 | AC17: 11.016283 | AD17: 22.29525 | AE17: 31.199297 | AF17: 0 | AG17: 0 | AH17: 0 | AI17: 1 | AJ17: 1 | AK17: 1 | AL17: 1 | AM17: 1 | AN17: 1 | AO17: 11.016283 | AP17: 22.29525 | AQ17: 31.199297 | AR17: 0 | AS17: 0 | AT17: 0 | AU17: -0.04788387595 | AV17: -0.06226178065 | AW17: -0.02809442527 | AX17: -0.04343001234 | AY17: FALSE | AZ17: FALSE | BA17: FALSE | BB17: 0.8395591544 | BC17: 0.9341831658 | BD17: 1.19590532 | BE17: 1 | BF17: 1 | BG17: 1 | BH17: 0 | BI17: 0 | BJ17: 0 | BK17: 0 | BL17: 0 | BM17: 0 | BN17: 0 | BO17: 0 | BP17: 0 | BQ17: 0 | BR17: 0 | BS17: 0 | BT17: 0 | BU17: 0 | BW17: 2007-02-18
A18: 1990-02-26 | B18: 335.540009 | D18: 2007-08-31 | E18: 2007-08-31 | F18: 1473.98999 | G18: TRUE | H18: 1 | I18: 1 | J18: 1473.98999 | K18: 0.02816094336 | L18: 1.033987298 | M18: 2007-08-31 | N18: 1.033987298 | O18: 2007-08-31 | P18: 1.033987298 | Q18: 0.8029478927 | R18: 0.9903728047 | S18: 1.179348404 | T18: 1 | U18: 1 | V18: 1 | W18: 3.059336 | X18: 4.720414 | Y18: 5.536296 | AC18: 10.535888 | AD18: 23.636274 | AE18: 30.767353 | AF18: 0 | AG18: 0 | AH18: 0 | AI18: 1 | AJ18: 1 | AK18: 1 | AL18: 1 | AM18: 1 | AN18: 1 | AO18: 10.535888 | AP18: 23.636274 | AQ18: 30.767353 | AR18: 0 | AS18: 0 | AT18: 0 | AU18: 0.02816094336 | AV18: -0.04458711684 | AW18: 0.05840891461 | AX18: -0.01394140223 | AY18: FALSE | AZ18: FALSE | BA18: FALSE | BB18: 0.8029478927 | BC18: 0.9903728047 | BD18: 1.179348404 | BE18: 1 | BF18: 1 | BG18: 1 | BH18: 0 | BI18: 0 | BJ18: 0 | BK18: 0 | BL18: 0 | BM18: 0 | BN18: 0 | BO18: 0 | BP18: 0 | BQ18: 0 | BR18: 0 | BS18: 0 | BT18: 0 | BU18: 0 | BW18: 2007-02-25
A19: 1990-03-05 | B19: 337.929993 | D19: 2007-09-30 | E19: 2007-09-30 | F19: 1526.75 | G19: TRUE | H19: 1 | I19: 1 | J19: 1526.75 | K19: 0.03516829042 | L19: 1.070350864 | M19: 2007-09-30 | N19: 1.070350864 | O19: 2007-09-30 | P19: 1.070350864 | Q19: 0.8312828197 | R19: 0.998134001 | S19: 1.240653923 | T19: 1 | U19: 1 | V19: 1 | W19: 3.059336 | X19: 4.720414 | Y19: 5.518442 | AC19: 10.907685 | AD19: 23.821503 | AE19: 32.366718 | AF19: 0 | AG19: 0 | AH19: 0 | AI19: 1 | AJ19: 1 | AK19: 1 | AL19: 1 | AM19: 1 | AN19: 1 | AO19: 10.907685 | AP19: 23.821503 | AQ19: 32.366718 | AR19: 0 | AS19: 0 | AT19: 0 | AU19: 0.03516829042 | AV19: 0.03468025251 | AW19: 0.007806094271 | AX19: 0.05067651234 | AY19: FALSE | AZ19: FALSE | BA19: FALSE | BB19: 0.8312828197 | BC19: 0.998134001 | BD19: 1.240653923 | BE19: 1 | BF19: 1 | BG19: 1 | BH19: 0 | BI19: 0 | BJ19: 0 | BK19: 0 | BL19: 0 | BM19: 0 | BN19: 0 | BO19: 0 | BP19: 0 | BQ19: 0 | BR19: 0 | BS19: 0 | BT19: 0 | BU19: 0 | BW19: 2007-03-04
A20: 1990-03-12 | B20: 341.910004 | D20: 2007-10-31 | E20: 2007-10-31 | F20: 1509.650024 | G20: TRUE | H20: 1 | I20: 1 | J20: 1509.650024 | K20: -0.01126344134 | L20: 1.05829503 | M20: 2007-10-31 | N20: 1.05829503 | O20: 2007-10-31 | P20: 1.05829503 | Q20: 0.8201784566 | R20: 1.011068784 | S20: 1.291301655 | T20: 1 | U20: 1 | V20: 1 | W20: 3.027798 | X20: 4.810756 | Y20: 5.48272 | AC20: 10.761979 | AD20: 24.130205 | AE20: 33.688038 | AF20: 0 | AG20: 0 | AH20: 0 | AI20: 1 | AJ20: 1 | AK20: 1 | AL20: 1 | AM20: 1 | AN20: 1 | AO20: 10.761979 | AP20: 24.130205 | AQ20: 33.688038 | AR20: 0 | AS20: 0 | AT20: 0 | AU20: -0.01126344134 | AV20: -0.01344812692 | AW20: 0.01287571508 | AX20: 0.04001214624 | AY20: FALSE | AZ20: FALSE | BA20: FALSE | BB20: 0.8201784566 | BC20: 1.011068784 | BD20: 1.291301655 | BE20: 1 | BF20: 1 | BG20: 1 | BH20: 0 | BI20: 0 | BJ20: 0 | BK20: 0 | BL20: 0 | BM20: 0 | BN20: 0 | BO20: 0 | BP20: 0 | BQ20: 0 | BR20: 0 | BS20: 0 | BT20: 0 | BU20: 0 | BW20: 2007-03-11
A21: 1990-03-19 | B21: 337.220001 | D21: 2007-11-30 | E21: 2007-11-30 | F21: 1481.140015 | G21: TRUE | H21: 1 | I21: 1 | J21: 1481.140015 | K21: -0.01906578011 | L21: 1.038117809 | M21: 2007-11-30 | N21: 1.038117809 | O21: 2007-11-30 | P21: 1.038117809 | Q21: 0.8990894264 | R21: 1.057494841 | S21: 1.258918186 | T21: 1 | U21: 1 | V21: 1 | W21: 3.027798 | X21: 4.743 | Y21: 5.429144 | AC21: 11.79741 | AD21: 25.238211 | AE21: 32.843204 | AF21: 0 | AG21: 0 | AH21: 0 | AI21: 1 | AJ21: 1 | AK21: 1 | AL21: 1 | AM21: 1 | AN21: 1 | AO21: 11.79741 | AP21: 25.238211 | AQ21: 32.843204 | AR21: 0 | AS21: 0 | AT21: 0 | AU21: -0.01906578011 | AV21: 0.0918605561 | AW21: 0.04489478036 | AX21: -0.02539797509 | AY21: FALSE | AZ21: FALSE | BA21: FALSE | BB21: 0.8990894264 | BC21: 1.057494841 | BD21: 1.258918186 | BE21: 1 | BF21: 1 | BG21: 1 | BH21: 0 | BI21: 0 | BJ21: 0 | BK21: 0 | BL21: 0 | BM21: 0 | BN21: 0 | BO21: 0 | BP21: 0 | BQ21: 0 | BR21: 0 | BS21: 0 | BT21: 0 | BU21: 0 | BW21: 2007-03-18
A22: 1990-03-26 | B22: 339.940002 | D22: 2007-12-31 | E22: 2007-12-31 | F22: 1411.630005 | G22: TRUE | H22: 1 | I22: 1 | J22: 1411.630005 | K22: -0.04806700305 | L22: 0.9882185974 | M22: 2007-12-31 | N22: 0.9882185974 | O22: 2007-12-31 | P22: 0.9882185974 | Q22: 0.8536499118 | R22: 1.045926645 | S22: 1.20716161 | T22: 1 | U22: 1 | V22: 1 | W22: 2.996259 | X22: 4.697829 | Y22: 5.321988 | AC22: 11.201175 | AD22: 24.962124 | AE22: 31.492956 | AF22: 0 | AG22: 0 | AH22: 0 | AI22: 1 | AJ22: 1 | AK22: 1 | AL22: 1 | AM22: 1 | AN22: 1 | AO22: 11.201175 | AP22: 24.962124 | AQ22: 31.492956 | AR22: 0 | AS22: 0 | AT22: 0 | AU22: -0.04806700305 | AV22: -0.05186133234 | AW22: -0.01099951957 | AX22: -0.04198094199 | AY22: FALSE | AZ22: FALSE | BA22: FALSE | BB22: 0.8536499118 | BC22: 1.045926645 | BD22: 1.20716161 | BE22: 1 | BF22: 1 | BG22: 1 | BH22: 0 | BI22: 0 | BJ22: 0 | BK22: 0 | BL22: 0 | BM22: 0 | BN22: 0 | BO22: 0 | BP22: 0 | BQ22: 0 | BR22: 0 | BS22: 0 | BT22: 0 | BU22: 0 | BW22: 2007-03-25
A23: 1990-04-02 | B23: 340.079987 | D23: 2008-01-31 | E23: 2008-01-31 | F23: 1395.420044 | G23: TRUE | H23: 1 | I23: 1 | J23: 1395.420044 | K23: -0.01154959185 | L23: 0.9768050759 | M23: 2008-01-31 | N23: 0.9768050759 | O23: 2008-01-31 | P23: 0.9768050759 | Q23: 0.8820010717 | R23: 0.9686607374 | S23: 1.20919711 | T23: 1 | U23: 1 | V23: 1 | W23: 3.006771 | X23: 4.720414 | Y23: 5.412251 | AC23: 11.573185 | AD23: 23.118093 | AE23: 31.546059 | AF23: 0 | AG23: 0 | AH23: 0 | AI23: 1 | AJ23: 1 | AK23: 1 | AL23: 1 | AM23: 1 | AN23: 1 | AO23: 11.573185 | AP23: 23.118093 | AQ23: 31.546059 | AR23: 0 | AS23: 0 | AT23: 0 | AU23: -0.01154959185 | AV23: 0.03267210071 | AW23: -0.07674407833 | AX23: 0.001684766571 | AY23: FALSE | AZ23: FALSE | BA23: FALSE | BB23: 0.8820010717 | BC23: 0.9686607374 | BD23: 1.20919711 | BE23: 1 | BF23: 1 | BG23: 1 | BH23: 0 | BI23: 0 | BJ23: 0 | BK23: 0 | BL23: 0 | BM23: 0 | BN23: 0 | BO23: 0 | BP23: 0 | BQ23: 0 | BR23: 0 | BS23: 0 | BT23: 0 | BU23: 0 | BW23: 2007-04-01
A24: 1990-04-09 | B24: 344.339996 | D24: 2008-02-29 | E24: 2008-02-29 | F24: 1330.630005 | G24: TRUE | H24: 1 | I24: 1 | J24: 1330.630005 | K24: -0.04754295871 | L24: 0.9303648725 | M24: 2008-02-29 | N24: 0.9303648725 | O24: 2008-02-29 | P24: 0.9303648725 | Q24: 0.8722918987 | R24: 0.9046891614 | S24: 1.117155403 | T24: 1 | U24: 1 | V24: 1 | W24: 3.048825 | X24: 4.652657 | Y24: 5.448575 | AC24: 11.445786 | AD24: 21.591345 | AE24: 29.144835 | AF24: 0 | AG24: 0 | AH24: 0 | AI24: 1 | AJ24: 1 | AK24: 1 | AL24: 1 | AM24: 1 | AN24: 1 | AO24: 11.445786 | AP24: 21.591345 | AQ24: 29.144835 | AR24: 0 | AS24: 0 | AT24: 0 | AU24: -0.04754295871 | AV24: -0.0110691569 | AW24: -0.06832301776 | AX24: -0.07917095822 | AY24: FALSE | AZ24: FALSE | BA24: FALSE | BB24: 0.8722918987 | BC24: 0.9046891614 | BD24: 1.117155403 | BE24: 1 | BF24: 1 | BG24: 1 | BH24: 0 | BI24: 0 | BJ24: 0 | BK24: 0 | BL24: 0 | BM24: 0 | BN24: 0 | BO24: 0 | BP24: 0 | BQ24: 0 | BR24: 0 | BS24: 0 | BT24: 0 | BU24: 0 | BW24: 2007-04-08
A25: 1990-04-16 | B25: 335.119995 | D25: 2008-03-31 | E25: 2008-03-31 | F25: 1370.400024 | G25: TRUE | H25: 1 | I25: 1 | J25: 1370.400024 | K25: 0.02945016749 | L25: 0.9577642738 | M25: 2008-03-31 | N25: 0.9577642738 | O25: 2008-03-31 | P25: 0.9577642738 | Q25: 0.9667065732 | R25: 0.9201765672 | S25: 1.164651278 | T25: 1 | U25: 1 | V25: 1 | W25: 2.880614 | X25: 4.449383 | Y25: 5.248795 | AC25: 12.684649 | AD25: 21.960968 | AE25: 30.383928 | AF25: 0 | AG25: 0 | AH25: 0 | AI25: 1 | AJ25: 1 | AK25: 1 | AL25: 1 | AM25: 1 | AN25: 1 | AO25: 12.684649 | AP25: 21.960968 | AQ25: 30.383928 | AR25: 0 | AS25: 0 | AT25: 0 | AU25: 0.02945016749 | AV25: 0.1027708949 | AW25: 0.01697415587 | AX25: 0.04163607427 | AY25: FALSE | AZ25: FALSE | BA25: FALSE | BB25: 0.9667065732 | BC25: 0.9201765672 | BD25: 1.164651278 | BE25: 1 | BF25: 1 | BG25: 1 | BH25: 0 | BI25: 0 | BJ25: 0 | BK25: 0 | BL25: 0 | BM25: 0 | BN25: 0 | BO25: 0 | BP25: 0 | BQ25: 0 | BR25: 0 | BS25: 0 | BT25: 0 | BU25: 0 | BW25: 2007-04-15
A26: 1990-04-23 | B26: 329.109985 | D26: 2008-04-30 | E26: 2008-04-30 | F26: 1413.900024 | G26: TRUE | H26: 1 | I26: 1 | J26: 1413.900024 | K26: 0.03124917505 | L26: 0.9876936173 | M26: 2008-04-30 | N26: 0.9876936173 | O26: 2008-04-30 | P26: 0.9876936173 | Q26: 0.9895362645 | R26: 0.9400888384 | S26: 1.206067294 | T26: 1 | U26: 1 | V26: 1 | W26: 2.828047 | X26: 4.336458 | Y26: 5.248795 | Z26: =LOOKUP($A26,INDIRECT("'"&Z$5&"'!A:A"),INDIRECT("'"&Z$5&"'!"&Z$7&":"&Z$7)) ->  | AC26: 12.984209 | AD26: 22.436195 | AE26: 31.464407 | AF26: 0 | AG26: 0 | AH26: 0 | AI26: 1 | AJ26: 1 | AK26: 1 | AL26: 1 | AM26: 1 | AN26: 1 | AO26: 12.984209 | AP26: 22.436195 | AQ26: 31.464407 | AR26: 0 | AS26: 0 | AT26: 0 | AU26: 0.03124917505 | AV26: 0.02334140463 | AW26: 0.02140880718 | AX26: 0.03494318607 | AY26: FALSE | AZ26: FALSE | BA26: FALSE | BB26: 0.9895362645 | BC26: 0.9400888384 | BD26: 1.206067294 | BE26: 1 | BF26: 1 | BG26: 1 | BH26: 0 | BI26: 0 | BJ26: 0 | BK26: 0 | BL26: 0 | BM26: 0 | BN26: 0 | BO26: 0 | BP26: 0 | BQ26: 0 | BR26: 0 | BS26: 0 | BT26: 0 | BU26: 0 | BW26: 2007-04-22
A27: 1990-04-30 | B27: 338.390015 | D27: 2008-05-31 | E27: 2008-05-31 | F27: 1400.380005 | G27: TRUE | H27: 1 | I27: 1 | J27: 1400.380005 | K27: -0.009608228657 | L27: 0.9782036312 | M27: 2008-05-31 | N27: 0.9782036312 | O27: 2008-05-31 | P27: 0.9782036312 | Q27: 1.050578329 | R27: 0.9266831774 | S27: 1.211301069 | T27: 1 | U27: 1 | V27: 1 | W27: 2.838562 | X27: 4.404213 | Y27: 5.484898 | AC27: 13.785173 | AD27: 22.116255 | AE27: 31.600948 | AF27: 0 | AG27: 0 | AH27: 0 | AI27: 1 | AJ27: 1 | AK27: 1 | AL27: 1 | AM27: 1 | AN27: 1 | AO27: 13.785173 | AP27: 22.116255 | AQ27: 31.600948 | AR27: 0 | AS27: 0 | AT27: 0 | AU27: -0.009608228657 | AV27: 0.05985966745 | AW27: -0.01436264447 | AX27: 0.004330149679 | AY27: FALSE | AZ27: FALSE | BA27: FALSE | BB27: 1.050578329 | BC27: 0.9266831774 | BD27: 1.211301069 | BE27: 1 | BF27: 1 | BG27: 1 | BH27: 0 | BI27: 0 | BJ27: 0 | BK27: 0 | BL27: 0 | BM27: 0 | BN27: 0 | BO27: 0 | BP27: 0 | BQ27: 0 | BR27: 0 | BS27: 0 | BT27: 0 | BU27: 0 | BW27: 2007-04-29
A28: 1990-05-07 | B28: 352 | D28: 2008-06-30 | E28: 2008-06-30 | F28: 1262.900024 | G28: TRUE | H28: 1 | I28: 1 | J28: 1262.900024 | K28: -0.1033329493 | L28: 0.877122965 | M28: 2008-06-30 | N28: 0.877122965 | O28: 2008-06-30 | P28: 0.877122965 | Q28: 0.9908413735 | R28: 0.8564527911 | S28: 1.173992966 | T28: 1 | U28: 1 | V28: 1 | W28: 2.905566 | X28: 4.630072 | Y28: 5.739166 | AC28: 13.001334 | AD28: 20.440134 | AE28: 30.627638 | AF28: 0 | AG28: 0 | AH28: 0 | AI28: 1 | AJ28: 1 | AK28: 1 | AL28: 1 | AM28: 1 | AN28: 1 | AO28: 13.001334 | AP28: 20.440134 | AQ28: 30.627638 | AR28: 0 | AS28: 0 | AT28: 0 | AU28: -0.1033329493 | AV28: -0.05854162669 | AW28: -0.07881253744 | AX28: -0.03128431621 | AY28: FALSE | AZ28: FALSE | BA28: FALSE | BB28: 0.9908413735 | BC28: 0.8564527911 | BD28: 1.173992966 | BE28: 1 | BF28: 1 | BG28: 1 | BH28: 0 | BI28: 0 | BJ28: 0 | BK28: 0 | BL28: 0 | BM28: 0 | BN28: 0 | BO28: 0 | BP28: 0 | BQ28: 0 | BR28: 0 | BS28: 0 | BT28: 0 | BU28: 0 | BW28: 2007-05-06
A29: 1990-05-14 | B29: 354.640015 | D29: 2008-07-31 | E29: 2008-07-31 | F29: 1260.310059 | G29: TRUE | H29: 1 | I29: 1 | J29: 1260.310059 | K29: -0.002052913411 | L29: 0.8753223075 | M29: 2008-07-31 | N29: 0.8753223075 | O29: 2008-07-31 | P29: 0.8753223075 | Q29: 0.9645568966 | R29: 0.8705884433 | S29: 1.071220028 | T29: 1 | U29: 1 | V29: 1 | W29: 2.873519 | X29: 4.645614 | Y29: 5.575709 | AC29: 12.656442 | AD29: 20.777496 | AE29: 27.946453 | AF29: 0 | AG29: 0 | AH29: 0 | AI29: 1 | AJ29: 1 | AK29: 1 | AL29: 1 | AM29: 1 | AN29: 1 | AO29: 12.656442 | AP29: 20.777496 | AQ29: 27.946453 | AR29: 0 | AS29: 0 | AT29: 0 | AU29: -0.002052913411 | AV29: -0.02688563302 | AW29: 0.01637015684 | AX29: -0.09161251757 | AY29: FALSE | AZ29: FALSE | BA29: FALSE | BB29: 0.9645568966 | BC29: 0.8705884433 | BD29: 1.071220028 | BE29: 1 | BF29: 1 | BG29: 1 | BH29: 0 | BI29: 0 | BJ29: 0 | BK29: 0 | BL29: 0 | BM29: 0 | BN29: 0 | BO29: 0 | BP29: 0 | BQ29: 0 | BR29: 0 | BS29: 0 | BT29: 0 | BU29: 0 | BW29: 2007-05-13
A30: 1990-05-21 | B30: 354.579987 | D30: 2008-08-31 | E30: 2008-08-31 | F30: 1282.829956 | G30: TRUE | H30: 1 | I30: 1 | J30: 1282.829956 | K30: 0.01771077134 | L30: 0.8908249407 | M30: 2008-08-31 | N30: 0.8908249407 | O30: 2008-08-31 | P30: 0.8908249407 | Q30: 1.066402195 | R30: 0.9308292784 | S30: 1.051076964 | T30: 1 | U30: 1 | V30: 1 | W30: 2.788062 | X30: 4.484628 | Y30: 5.503061 | AC30: 13.992806 | AD30: 22.215206 | AE30: 27.420952 | AF30: 0 | AG30: 0 | AH30: 0 | AI30: 1 | AJ30: 1 | AK30: 1 | AL30: 1 | AM30: 1 | AN30: 1 | AO30: 13.992806 | AP30: 22.215206 | AQ30: 27.420952 | AR30: 0 | AS30: 0 | AT30: 0 | AU30: 0.01771077134 | AV30: 0.1003770058 | AW30: 0.06690653143 | AX30: -0.01898289365 | AY30: FALSE | AZ30: FALSE | BA30: FALSE | BB30: 1.066402195 | BC30: 0.9308292784 | BD30: 1.051076964 | BE30: 1 | BF30: 1 | BG30: 1 | BH30: 0 | BI30: 0 | BJ30: 0 | BK30: 0 | BL30: 0 | BM30: 0 | BN30: 0 | BO30: 0 | BP30: 0 | BQ30: 0 | BR30: 0 | BS30: 0 | BT30: 0 | BU30: 0 | BW30: 2007-05-20
A31: 1990-05-28 | B31: 363.160004 | D31: 2008-09-30 | E31: 2008-09-30 | F31: 1099.22998 | G31: TRUE | H31: 1 | I31: 1 | J31: 1099.22998 | K31: -0.1544586241 | L31: 0.7532293461 | M31: 2008-09-30 | N31: 0.7532293461 | O31: 2008-09-30 | P31: 0.7532293461 | Q31: 1.111960675 | R31: 0.9822638337 | S31: 0.9108110897 | T31: 1 | U31: 1 | V31: 1 | W31: 2.798743 | X31: 4.323642 | Y31: 5.612034 | AC31: 14.590602 | AD31: 23.442745 | AE31: 23.761635 | AF31: 0 | AG31: 0 | AH31: 0 | AI31: 1 | AJ31: 1 | AK31: 1 | AL31: 1 | AM31: 1 | AN31: 1 | AO31: 14.590602 | AP31: 23.442745 | AQ31: 23.761635 | AR31: 0 | AS31: 0 | AT31: 0 | AU31: -0.1544586241 | AV31: 0.04183428242 | AW31: 0.053784056 | AX31: -0.1432350875 | AY31: FALSE | AZ31: FALSE | BA31: FALSE | BB31: 1.111960675 | BC31: 0.9822638337 | BD31: 0.9108110897 | BE31: 1 | BF31: 1 | BG31: 1 | BH31: 0 | BI31: 0 | BJ31: 0 | BK31: 0 | BL31: 0 | BM31: 0 | BN31: 0 | BO31: 0 | BP31: 0 | BQ31: 0 | BR31: 0 | BS31: 0 | BT31: 0 | BU31: 0 | BW31: 2007-05-27
A32: 1990-06-04 | B32: 358.709991 | D32: 2008-10-31 | E32: 2008-10-31 | F32: 968.75 | G32: TRUE | H32: 1 | I32: 1 | J32: 968.75 | K32: -0.1263586148 | L32: 0.6580523293 | M32: 2008-10-31 | N32: 0.6580523293 | O32: 2008-10-31 | P32: 0.6580523293 | Q32: 1.073256361 | R32: 0.9859055779 | S32: 0.8208606159 | T32: 1 | U32: 1 | V32: 1 | W32: 2.852154 | X32: 4.392636 | Y32: 5.612034 | AC32: 14.082743 | AD32: 23.529659 | AE32: 21.414968 | AF32: 0 | AG32: 0 | AH32: 0 | AI32: 1 | AJ32: 1 | AK32: 1 | AL32: 1 | AM32: 1 | AN32: 1 | AO32: 14.082743 | AP32: 23.529659 | AQ32: 21.414968 | AR32: 0 | AS32: 0 | AT32: 0 | AU32: -0.1263586148 | AV32: -0.03542747572 | AW32: 0.003700645136 | AX32: -0.1039821885 | AY32: FALSE | AZ32: FALSE | BA32: FALSE | BB32: 1.073256361 | BC32: 0.9859055779 | BD32: 0.8208606159 | BE32: 1 | BF32: 1 | BG32: 1 | BH32: 0 | BI32: 0 | BJ32: 0 | BK32: 0 | BL32: 0 | BM32: 0 | BN32: 0 | BO32: 0 | BP32: 0 | BQ32: 0 | BR32: 0 | BS32: 0 | BT32: 0 | BU32: 0 | BW32: 2007-06-03
A33: 1990-06-11 | B33: 362.910004 | D33: 2008-11-30 | E33: 2008-11-30 | F33: 896.23999 | G33: TRUE | H33: 1 | I33: 1 | J33: 896.23999 | K33: -0.07779835757 | L33: 0.6068569388 | M33: 2008-11-30 | N33: 0.6068569388 | O33: 2008-11-30 | P33: 0.6068569388 | Q33: 1.112421445 | R33: 0.9321353185 | S33: 0.77034919 | T33: 1 | U33: 1 | V33: 1 | W33: 2.873519 | X33: 4.507625 | Y33: 5.593873 | AC33: 14.596648 | AD33: 22.246376 | AE33: 20.097204 | AF33: 0 | AG33: 0 | AH33: 0 | AI33: 1 | AJ33: 1 | AK33: 1 | AL33: 1 | AM33: 1 | AN33: 1 | AO33: 14.596648 | AP33: 22.246376 | AQ33: 20.097204 | AR33: 0 | AS33: 0 | AT33: 0 | AU33: -0.07779835757 | AV33: 0.03584176622 | AW33: -0.05608259155 | AX33: -0.06350941588 | AY33: FALSE | AZ33: FALSE | BA33: FALSE | BB33: 1.112421445 | BC33: 0.9321353185 | BD33: 0.77034919 | BE33: 1 | BF33: 1 | BG33: 1 | BH33: 0 | BI33: 0 | BJ33: 0 | BK33: 0 | BL33: 0 | BM33: 0 | BN33: 0 | BO33: 0 | BP33: 0 | BQ33: 0 | BR33: 0 | BS33: 0 | BT33: 0 | BU33: 0 | BW33: 2007-06-10
A34: 1990-06-18 | B34: 355.429993 | D34: 2008-12-31 | E34: 2008-12-31 | F34: 931.799988 | G34: TRUE | H34: 1 | I34: 1 | J34: 931.799988 | K34: 0.03890996341 | L34: 0.6304697201 | M34: 2008-12-31 | N34: 0.6304697201 | O34: 2008-12-31 | P34: 0.6304697201 | Q34: 0.9100888473 | R34: 0.9060568791 | S34: 0.7618156383 | T34: 1 | U34: 1 | V34: 1 | W34: 2.841473 | X34: 4.323642 | Y34: 5.575709 | AC34: 11.941739 | AD34: 21.623987 | AE34: 19.874577 | AF34: 0 | AG34: 0 | AH34: 0 | AI34: 1 | AJ34: 1 | AK34: 1 | AL34: 1 | AM34: 1 | AN34: 1 | AO34: 11.941739 | AP34: 21.623987 | AQ34: 19.874577 | AR34: 0 | AS34: 0 | AT34: 0 | AU34: 0.03890996341 | AV34: -0.2007521711 | AW34: -0.02837591115 | AX34: -0.01113932362 | AY34: FALSE | AZ34: FALSE | BA34: FALSE | BB34: 0.9100888473 | BC34: 0.9060568791 | BD34: 0.7618156383 | BE34: 1 | BF34: 1 | BG34: 1 | BH34: 0 | BI34: 0 | BJ34: 0 | BK34: 0 | BL34: 0 | BM34: 0 | BN34: 0 | BO34: 0 | BP34: 0 | BQ34: 0 | BR34: 0 | BS34: 0 | BT34: 0 | BU34: 0 | BW34: 2007-06-17
A35: 1990-06-25 | B35: 358.019989 | D35: 2009-01-31 | E35: 2009-01-31 | F35: 825.880005 | G35: TRUE | H35: 1 | I35: 1 | J35: 825.880005 | K35: -0.1206686959 | L35: 0.5543917612 | M35: 2009-01-31 | N35: 0.5543917612 | O35: 2009-01-31 | P35: 0.5543917612 | Q35: 0.8843897451 | R35: 0.9404435265 | S35: 0.7587694608 | T35: 1 | U35: 1 | V35: 1 | W35: 2.820108 | X35: 4.323642 | Y35: 5.448575 | AC35: 11.604528 | AD35: 22.44466 | AE35: 19.795107 | AF35: 0 | AG35: 0 | AH35: 0 | AI35: 1 | AJ35: 1 | AK35: 1 | AL35: 1 | AM35: 1 | AN35: 1 | AO35: 11.604528 | AP35: 22.44466 | AQ35: 19.795107 | AR35: 0 | AS35: 0 | AT35: 0 | AU35: -0.1206686959 | AV35: -0.02864437548 | AW35: 0.03724951619 | AX35: -0.004006591346 | AY35: FALSE | AZ35: FALSE | BA35: FALSE | BB35: 0.8843897451 | BC35: 0.9404435265 | BD35: 0.7587694608 | BE35: 1 | BF35: 1 | BG35: 1 | BH35: 0 | BI35: 0 | BJ35: 0 | BK35: 0 | BL35: 0 | BM35: 0 | BN35: 0 | BO35: 0 | BP35: 0 | BQ35: 0 | BR35: 0 | BS35: 0 | BT35: 0 | BU35: 0 | BW35: 2007-06-24
A36: 1990-07-02 | B36: 358.420013 | D36: 2009-02-28 | E36: 2009-02-28 | F36: 735.090027 | G36: TRUE | H36: 1 | I36: 1 | J36: 735.090027 | K36: -0.1164565131 | L36: 0.4898292298 | M36: 2009-02-28 | N36: 0.4898292298 | O36: 2009-02-28 | P36: 0.4898292298 | Q36: 0.565797196 | R36: 0.8481179762 | S36: 0.6341325815 | T36: 1 | U36: 1 | V36: 1 | W36: 2.798743 | X36: 4.300642 | Y36: 5.562088 | AC36: 7.424113 | AD36: 20.241215 | AE36: 16.543526 | AF36: 0 | AG36: 0 | AH36: 0 | AI36: 1 | AJ36: 1 | AK36: 1 | AL36: 1 | AM36: 1 | AN36: 1 | AO36: 7.424113 | AP36: 20.241215 | AQ36: 16.543526 | AR36: 0 | AS36: 0 | AT36: 0 | AU36: -0.1164565131 | AV36: -0.4466621505 | AW36: -0.1033318517 | AX36: -0.1794399389 | AY36: FALSE | AZ36: FALSE | BA36: FALSE | BB36: 0.565797196 | BC36: 0.8481179762 | BD36: 0.6341325815 | BE36: 1 | BF36: 1 | BG36: 1 | BH36: 0 | BI36: 0 | BJ36: 0 | BK36: 0 | BL36: 0 | BM36: 0 | BN36: 0 | BO36: 0 | BP36: 0 | BQ36: 0 | BR36: 0 | BS36: 0 | BT36: 0 | BU36: 0 | BW36: 2007-07-01
A37: 1990-07-09 | B37: 367.309998 | D37: 2009-03-31 | E37: 2009-03-31 | F37: 842.5 | G37: TRUE | H37: 1 | I37: 1 | J37: 842.5 | K37: 0.1363806848 | L37: 0.5566324755 | M37: 2009-03-31 | N37: 0.5566324755 | O37: 2009-03-31 | P37: 0.5566324755 | Q37: 0.6025617938 | R37: 0.9193217542 | S37: 0.695020943 | T37: 1 | U37: 1 | V37: 1 | W37: 2.777378 | X37: 4.392636 | Y37: 5.580565 | AC37: 7.90652 | AD37: 21.940567 | AE37: 18.132008 | AF37: 0 | AG37: 0 | AH37: 0 | AI37: 1 | AJ37: 1 | AK37: 1 | AL37: 1 | AM37: 1 | AN37: 1 | AO37: 7.90652 | AP37: 21.940567 | AQ37: 18.132008 | AR37: 0 | AS37: 0 | AT37: 0 | AU37: 0.1363806848 | AV37: 0.06295451927 | AW37: 0.08061642546 | AX37: 0.09168392724 | AY37: FALSE | AZ37: FALSE | BA37: FALSE | BB37: 0.6025617938 | BC37: 0.9193217542 | BD37: 0.695020943 | BE37: 1 | BF37: 1 | BG37: 1 | BH37: 0 | BI37: 0 | BJ37: 0 | BK37: 0 | BL37: 0 | BM37: 0 | BN37: 0 | BO37: 0 | BP37: 0 | BQ37: 0 | BR37: 0 | BS37: 0 | BT37: 0 | BU37: 0 | BW37: 2007-07-08
A38: 1990-07-16 | B38: 361.609985 | D38: 2009-04-30 | E38: 2009-04-30 | F38: 877.52002 | G38: TRUE | H38: 1 | I38: 1 | J38: 877.52002 | K38: 0.04072610767 | L38: 0.5793019497 | M38: 2009-04-30 | N38: 0.5793019497 | O38: 2009-04-30 | P38: 0.5793019497 | Q38: 0.6429547089 | R38: 0.8752879248 | S38: 0.689841253 | T38: 1 | U38: 1 | V38: 1 | W38: 2.745333 | X38: 4.277645 | Y38: 5.469695 | AC38: 8.436536 | AD38: 20.889654 | AE38: 17.996878 | AF38: 0 | AG38: 0 | AH38: 0 | AI38: 1 | AJ38: 1 | AK38: 1 | AL38: 1 | AM38: 1 | AN38: 1 | AO38: 8.436536 | AP38: 20.889654 | AQ38: 17.996878 | AR38: 0 | AS38: 0 | AT38: 0 | AU38: 0.04072610767 | AV38: 0.06488406228 | AW38: -0.04908328524 | AX38: -0.007480475879 | AY38: FALSE | AZ38: FALSE | BA38: FALSE | BB38: 0.6429547089 | BC38: 0.8752879248 | BD38: 0.689841253 | BE38: 1 | BF38: 1 | BG38: 1 | BH38: 0 | BI38: 0 | BJ38: 0 | BK38: 0 | BL38: 0 | BM38: 0 | BN38: 0 | BO38: 0 | BP38: 0 | BQ38: 0 | BR38: 0 | BS38: 0 | BT38: 0 | BU38: 0 | BW38: 2007-07-15
A39: 1990-07-23 | B39: 353.440002 | D39: 2009-05-31 | E39: 2009-05-31 | F39: 919.140015 | G39: TRUE | H39: 1 | I39: 1 | J39: 919.140015 | K39: 0.04633869668 | L39: 0.606146047 | M39: 2009-05-31 | N39: 0.606146047 | O39: 2009-05-31 | P39: 0.606146047 | Q39: 0.7320812721 | R39: 0.8437989097 | S39: 0.6884283664 | T39: 1 | U39: 1 | V39: 1 | W39: 2.713286 | X39: 4.231648 | Y39: 5.469695 | AC39: 9.606011 | AD39: 20.138136 | AE39: 17.960018 | AF39: 0 | AG39: 0 | AH39: 0 | AI39: 1 | AJ39: 1 | AK39: 1 | AL39: 1 | AM39: 1 | AN39: 1 | AO39: 9.606011 | AP39: 20.138136 | AQ39: 17.960018 | AR39: 0 | AS39: 0 | AT39: 0 | AU39: 0.04633869668 | AV39: 0.1298172505 | AW39: -0.03663868161 | AX39: -0.002050233308 | AY39: FALSE | AZ39: FALSE | BA39: FALSE | BB39: 0.7320812721 | BC39: 0.8437989097 | BD39: 0.6884283664 | BE39: 1 | BF39: 1 | BG39: 1 | BH39: 0 | BI39: 0 | BJ39: 0 | BK39: 0 | BL39: 0 | BM39: 0 | BN39: 0 | BO39: 0 | BP39: 0 | BQ39: 0 | BR39: 0 | BS39: 0 | BT39: 0 | BU39: 0 | BW39: 2007-07-22
A40: 1990-07-30 | B40: 344.859985 | D40: 2009-06-30 | E40: 2009-06-30 | F40: 896.419983 | G40: TRUE | H40: 1 | I40: 1 | J40: 896.419983 | K40: -0.02502943239 | L40: 0.5909745555 | M40: 2009-06-30 | N40: 0.5909745555 | O40: 2009-06-30 | P40: 0.5909745555 | Q40: 0.8080482969 | R40: 0.8871073987 | S40: 0.7280299001 | T40: 1 | U40: 1 | V40: 1 | W40: 2.745333 | X40: 4.369638 | Y40: 5.65448 | AC40: 10.602813 | AD40: 21.171738 | AE40: 18.99316 | AF40: 0 | AG40: 0 | AH40: 0 | AI40: 1 | AJ40: 1 | AK40: 1 | AL40: 1 | AM40: 1 | AN40: 1 | AO40: 10.602813 | AP40: 21.171738 | AQ40: 18.99316 | AR40: 0 | AS40: 0 | AT40: 0 | AU40: -0.02502943239 | AV40: 0.09873029491 | AW40: 0.05005184821 | AX40: 0.05593084925 | AY40: FALSE | AZ40: FALSE | BA40: FALSE | BB40: 0.8080482969 | BC40: 0.8871073987 | BD40: 0.7280299001 | BE40: 1 | BF40: 1 | BG40: 1 | BH40: 0 | BI40: 0 | BJ40: 0 | BK40: 0 | BL40: 0 | BM40: 0 | BN40: 0 | BO40: 0 | BP40: 0 | BQ40: 0 | BR40: 0 | BS40: 0 | BT40: 0 | BU40: 0 | BW40: 2007-07-29
A41: 1990-08-06 | B41: 335.519989 | D41: 2009-07-31 | E41: 2009-07-31 | F41: 987.47998 | G41: TRUE | H41: 1 | I41: 1 | J41: 987.47998 | K41: 0.09674718897 | L41: 0.6481496825 | M41: 2009-07-31 | N41: 0.6481496825 | O41: 2009-07-31 | P41: 0.6481496825 | Q41: 0.7583939469 | R41: 0.9366022939 | S41: 0.7684496892 | T41: 1 | U41: 1 | V41: 1 | W41: 2.691921 | X41: 4.162654 | Y41: 5.469695 | AC41: 9.951273 | AD41: 22.352985 | AE41: 20.047649 | AF41: 0 | AG41: 0 | AH41: 0 | AI41: 1 | AJ41: 1 | AK41: 1 | AL41: 1 | AM41: 1 | AN41: 1 | AO41: 9.951273 | AP41: 22.352985 | AQ41: 20.047649 | AR41: 0 | AS41: 0 | AT41: 0 | AU41: 0.09674718897 | AV41: -0.06341886058 | AW41: 0.0542926901 | AX41: 0.05403297567 | AY41: FALSE | AZ41: FALSE | BA41: FALSE | BB41: 0.7583939469 | BC41: 0.9366022939 | BD41: 0.7684496892 | BE41: 1 | BF41: 1 | BG41: 1 | BH41: 0 | BI41: 0 | BJ41: 0 | BK41: 0 | BL41: 0 | BM41: 0 | BN41: 0 | BO41: 0 | BP41: 0 | BQ41: 0 | BR41: 0 | BS41: 0 | BT41: 0 | BU41: 0 | BW41: 2007-08-05
A42: 1990-08-13 | B42: 327.829987 | D42: 2009-08-31 | E42: 2009-08-31 | F42: 1016.400024 | G42: TRUE | H42: 1 | I42: 1 | J42: 1016.400024 | K42: 0.02886605191 | L42: 0.6668592049 | M42: 2009-08-31 | N42: 0.6668592049 | O42: 2009-08-31 | P42: 0.6668592049 | Q42: 0.7305612487 | R42: 0.962714966 | S42: 0.7874706853 | T42: 1 | U42: 1 | V42: 1 | W42: 2.672755 | X42: 4.128457 | Y42: 5.414258 | AC42: 9.586066 | AD42: 22.976191 | AE42: 20.543877 | AF42: 0 | AG42: 0 | AH42: 0 | AI42: 1 | AJ42: 1 | AK42: 1 | AL42: 1 | AM42: 1 | AN42: 1 | AO42: 9.586066 | AP42: 22.976191 | AQ42: 20.543877 | AR42: 0 | AS42: 0 | AT42: 0 | AU42: 0.02886605191 | AV42: -0.03738989693 | AW42: 0.02749863666 | AX42: 0.02445105032 | AY42: FALSE | AZ42: FALSE | BA42: FALSE | BB42: 0.7305612487 | BC42: 0.962714966 | BD42: 0.7874706853 | BE42: 1 | BF42: 1 | BG42: 1 | BH42: 0 | BI42: 0 | BJ42: 0 | BK42: 0 | BL42: 0 | BM42: 0 | BN42: 0 | BO42: 0 | BP42: 0 | BQ42: 0 | BR42: 0 | BS42: 0 | BT42: 0 | BU42: 0 | BW42: 2007-08-12
A43: 1990-08-20 | B43: 311.51001 | D43: 2009-09-30 | E43: 2009-09-30 | F43: 1025.209961 | G43: TRUE | H43: 1 | I43: 1 | J43: 1025.209961 | K43: 0.008630435537 | L43: 0.6726144903 | M43: 2009-09-30 | N43: 0.6726144903 | O43: 2009-09-30 | P43: 0.6726144903 | Q43: 0.7758973453 | R43: 0.974305202 | S43: 0.7732048999 | T43: 1 | U43: 1 | V43: 1 | W43: 2.433728 | X43: 3.823515 | Y43: 5.063165 | AC43: 10.180944 | AD43: 23.252804 | AE43: 20.171705 | AF43: 0 | AG43: 0 | AH43: 0 | AI43: 1 | AJ43: 1 | AK43: 1 | AL43: 1 | AM43: 1 | AN43: 1 | AO43: 10.180944 | AP43: 23.252804 | AQ43: 20.171705 | AR43: 0 | AS43: 0 | AT43: 0 | AU43: 0.008630435537 | AV43: 0.06020715191 | AW43: 0.01196722106 | AX43: -0.01828206046 | AY43: FALSE | AZ43: FALSE | BA43: FALSE | BB43: 0.7758973453 | BC43: 0.974305202 | BD43: 0.7732048999 | BE43: 1 | BF43: 1 | BG43: 1 | BH43: 0 | BI43: 0 | BJ43: 0 | BK43: 0 | BL43: 0 | BM43: 0 | BN43: 0 | BO43: 0 | BP43: 0 | BQ43: 0 | BR43: 0 | BS43: 0 | BT43: 0 | BU43: 0 | BW43: 2007-08-19
A44: 1990-08-27 | B44: 322.559998 | D44: 2009-10-31 | E44: 2009-10-31 | F44: 1036.189941 | G44: TRUE | H44: 1 | I44: 1 | J44: 1036.189941 | K44: 0.01065303615 | L44: 0.6797798767 | M44: 2009-10-31 | N44: 0.6797798767 | O44: 2009-10-31 | P44: 0.6797798767 | Q44: 0.7707160053 | R44: 0.9822737642 | S44: 0.7634940832 | T44: 1 | U44: 1 | V44: 1 | W44: 2.607566 | X44: 4.081543 | Y44: 5.22947 | AC44: 10.112957 | AD44: 23.442982 | AE44: 19.918365 | AF44: 0 | AG44: 0 | AH44: 0 | AI44: 1 | AJ44: 1 | AK44: 1 | AL44: 1 | AM44: 1 | AN44: 1 | AO44: 10.112957 | AP44: 23.442982 | AQ44: 19.918365 | AR44: 0 | AS44: 0 | AT44: 0 | AU44: 0.01065303615 | AV44: -0.00670026471 | AW44: 0.008145448135 | AX44: -0.0126387094 | AY44: FALSE | AZ44: FALSE | BA44: FALSE | BB44: 0.7707160053 | BC44: 0.9822737642 | BD44: 0.7634940832 | BE44: 1 | BF44: 1 | BG44: 1 | BH44: 0 | BI44: 0 | BJ44: 0 | BK44: 0 | BL44: 0 | BM44: 0 | BN44: 0 | BO44: 0 | BP44: 0 | BQ44: 0 | BR44: 0 | BS44: 0 | BT44: 0 | BU44: 0 | BW44: 2007-08-26
A45: 1990-09-03 | B45: 323.399994 | D45: 2009-11-30 | E45: 2009-11-30 | F45: 1105.97998 | G45: TRUE | H45: 1 | I45: 1 | J45: 1105.97998 | K45: 0.0651813339 | L45: 0.7240888359 | M45: 2009-11-30 | N45: 0.7240888359 | O45: 2009-11-30 | P45: 0.7240888359 | Q45: 0.8644287787 | R45: 1.078634589 | S45: 0.8359565775 | T45: 1 | U45: 1 | V45: 1 | W45: 2.61843 | X45: 4.105 | Y45: 5.284906 | AC45: 11.34261 | AD45: 25.742733 | AE45: 21.808798 | AF45: 0 | AG45: 0 | AH45: 0 | AI45: 1 | AJ45: 1 | AK45: 1 | AL45: 1 | AM45: 1 | AN45: 1 | AO45: 11.34261 | AP45: 25.742733 | AQ45: 21.808798 | AR45: 0 | AS45: 0 | AT45: 0 | AU45: 0.0651813339 | AV45: 0.1147489576 | AW45: 0.09358119864 | AX45: 0.09067129589 | AY45: FALSE | AZ45: FALSE | BA45: FALSE | BB45: 0.8644287787 | BC45: 1.078634589 | BD45: 0.8359565775 | BE45: 1 | BF45: 1 | BG45: 1 | BH45: 0 | BI45: 0 | BJ45: 0 | BK45: 0 | BL45: 0 | BM45: 0 | BN45: 0 | BO45: 0 | BP45: 0 | BQ45: 0 | BR45: 0 | BS45: 0 | BT45: 0 | BU45: 0 | BW45: 2007-09-02
A46: 1990-09-10 | B46: 316.829987 | D46: 2009-12-31 | E46: 2009-12-31 | F46: 1115.099976 | G46: TRUE | H46: 1 | I46: 1 | J46: 1115.099976 | K46: 0.008212263796 | L46: 0.7300352444 | M46: 2009-12-31 | N46: 0.7300352444 | O46: 2009-12-31 | P46: 0.7300352444 | Q46: 0.9170843079 | R46: 1.112426248 | S46: 0.8345168591 | T46: 1 | U46: 1 | V46: 1 | W46: 2.553241 | X46: 4.011173 | Y46: 5.247949 | AC46: 12.03353 | AD46: 26.549206 | AE46: 21.771238 | AF46: 0 | AG46: 0 | AH46: 0 | AI46: 1 | AJ46: 1 | AK46: 1 | AL46: 1 | AM46: 1 | AN46: 1 | AO46: 12.03353 | AP46: 26.549206 | AQ46: 21.771238 | AR46: 0 | AS46: 0 | AT46: 0 | AU46: 0.008212263796 | AV46: 0.05913048948 | AW46: 0.03084746771 | AX46: -0.001723725483 | AY46: FALSE | AZ46: FALSE | BA46: FALSE | BB46: 0.9170843079 | BC46: 1.112426248 | BD46: 0.8345168591 | BE46: 1 | BF46: 1 | BG46: 1 | BH46: 0 | BI46: 0 | BJ46: 0 | BK46: 0 | BL46: 0 | BM46: 0 | BN46: 0 | BO46: 0 | BP46: 0 | BQ46: 0 | BR46: 0 | BS46: 0 | BT46: 0 | BU46: 0 | BW46: 2007-09-09
A47: 1990-09-17 | B47: 311.320007 | D47: 2010-01-31 | E47: 2010-01-31 | F47: 1073.869995 | G47: TRUE | H47: 1 | I47: 1 | J47: 1073.869995 | K47: -0.03767512419 | L47: 0.7025310759 | M47: 2010-01-31 | N47: 0.7025310759 | O47: 2010-01-31 | P47: 0.7025310759 | Q47: 0.8679391219 | R47: 1.071044053 | S47: 0.8065885058 | T47: 1 | U47: 1 | V47: 1 | W47: 2.455458 | X47: 3.987715 | Y47: 5.26643 | AC47: 11.388671 | AD47: 25.561577 | AE47: 21.042631 | AF47: 0 | AG47: 0 | AH47: 0 | AI47: 1 | AJ47: 1 | AK47: 1 | AL47: 1 | AM47: 1 | AN47: 1 | AO47: 11.388671 | AP47: 25.561577 | AQ47: 21.042631 | AR47: 0 | AS47: 0 | AT47: 0 | AU47: -0.03767512419 | AV47: -0.05507783068 | AW47: -0.03790951583 | AX47: -0.0340393133 | AY47: FALSE | AZ47: FALSE | BA47: FALSE | BB47: 0.8679391219 | BC47: 1.071044053 | BD47: 0.8065885058 | BE47: 1 | BF47: 1 | BG47: 1 | BH47: 0 | BI47: 0 | BJ47: 0 | BK47: 0 | BL47: 0 | BM47: 0 | BN47: 0 | BO47: 0 | BP47: 0 | BQ47: 0 | BR47: 0 | BS47: 0 | BT47: 0 | BU47: 0 | BW47: 2007-09-16
A48: 1990-09-24 | B48: 306.049988 | D48: 2010-02-28 | E48: 2010-02-28 | F48: 1104.48999 | G48: TRUE | H48: 1 | I48: 1 | J48: 1104.48999 | K48: 0.02811473964 | L48: 0.7222825542 | M48: 2010-02-28 | N48: 0.7222825542 | O48: 2010-02-28 | P48: 0.7222825542 | Q48: 0.907620305 | R48: 1.061432026 | S48: 0.7898854335 | T48: 1 | U48: 1 | V48: 1 | W48: 2.444593 | X48: 3.9408 | Y48: 5.321865 | AC48: 11.909348 | AD48: 25.332176 | AE48: 20.606874 | AF48: 0 | AG48: 0 | AH48: 0 | AI48: 1 | AJ48: 1 | AK48: 1 | AL48: 1 | AM48: 1 | AN48: 1 | AO48: 11.909348 | AP48: 25.332176 | AQ48: 20.606874 | AR48: 0 | AS48: 0 | AT48: 0 | AU48: 0.02811473964 | AV48: 0.0447045486 | AW48: -0.009014959208 | AX48: -0.02092571813 | AY48: FALSE | AZ48: FALSE | BA48: FALSE | BB48: 0.907620305 | BC48: 1.061432026 | BD48: 0.7898854335 | BE48: 1 | BF48: 1 | BG48: 1 | BH48: 0 | BI48: 0 | BJ48: 0 | BK48: 0 | BL48: 0 | BM48: 0 | BN48: 0 | BO48: 0 | BP48: 0 | BQ48: 0 | BR48: 0 | BS48: 0 | BT48: 0 | BU48: 0 | BW48: 2007-09-23
A49: 1990-10-01 | B49: 311.5 | D49: 2010-03-31 | E49: 2010-03-31 | F49: 1178.099976 | G49: TRUE | H49: 1 | I49: 1 | J49: 1178.099976 | K49: 0.06451926999 | L49: 0.7688836973 | M49: 2010-03-31 | N49: 0.7688836973 | O49: 2010-03-31 | P49: 0.7688836973 | Q49: 1.01010082 | R49: 1.114813322 | S49: 0.8303116239 | T49: 1 | U49: 1 | V49: 1 | W49: 2.422863 | X49: 4.081543 | Y49: 5.506651 | AC49: 13.254047 | AD49: 26.606176 | AE49: 21.66153 | AF49: 0 | AG49: 0 | AH49: 0 | AI49: 1 | AJ49: 1 | AK49: 1 | AL49: 1 | AM49: 1 | AN49: 1 | AO49: 13.254047 | AP49: 26.606176 | AQ49: 21.66153 | AR49: 0 | AS49: 0 | AT49: 0 | AU49: 0.06451926999 | AV49: 0.1069793018 | AW49: 0.04906800292 | AX49: 0.04991316674 | AY49: FALSE | AZ49: FALSE | BA49: FALSE | BB49: 1.01010082 | BC49: 1.114813322 | BD49: 0.8303116239 | BE49: 1 | BF49: 1 | BG49: 1 | BH49: 0 | BI49: 0 | BJ49: 0 | BK49: 0 | BL49: 0 | BM49: 0 | BN49: 0 | BO49: 0 | BP49: 0 | BQ49: 0 | BR49: 0 | BS49: 0 | BT49: 0 | BU49: 0 | BW49: 2007-09-30
A50: 1990-10-08 | B50: 300.029999 | D50: 2010-04-30 | E50: 2010-04-30 | F50: 1186.689941 | G50: TRUE | H50: 1 | I50: 1 | J50: 1186.689941 | K50: 0.007264918308 | L50: 0.7744695746 | M50: 2010-04-30 | N50: 0.7744695746 | O50: 2010-04-30 | P50: 0.7744695746 | Q50: 1.040399393 | R50: 1.122262192 | S50: 0.8397818742 | T50: 1 | U50: 1 | V50: 1 | W50: 2.455458 | X50: 4.128457 | Y50: 5.722436 | AC50: 13.65161 | AD50: 26.783951 | AE50: 21.908594 | AF50: 0 | AG50: 0 | AH50: 0 | AI50: 1 | AJ50: 1 | AK50: 1 | AL50: 1 | AM50: 1 | AN50: 1 | AO50: 13.65161 | AP50: 26.783951 | AQ50: 21.908594 | AR50: 0 | AS50: 0 | AT50: 0 | AU50: 0.007264918308 | AV50: 0.02955452363 | AW50: 0.006659495566 | AX50: 0.01134110374 | AY50: FALSE | AZ50: FALSE | BA50: FALSE | BB50: 1.040399393 | BC50: 1.122262192 | BD50: 0.8397818742 | BE50: 1 | BF50: 1 | BG50: 1 | BH50: 0 | BI50: 0 | BJ50: 0 | BK50: 0 | BL50: 0 | BM50: 0 | BN50: 0 | BO50: 0 | BP50: 0 | BQ50: 0 | BR50: 0 | BS50: 0 | BT50: 0 | BU50: 0 | BW50: 2007-10-07
A51: 1990-10-15 | B51: 312.480011 | D51: 2010-05-31 | E51: 2010-05-31 | F51: 1064.880005 | G51: TRUE | H51: 1 | I51: 1 | J51: 1064.880005 | K51: -0.1083057478 | L51: 0.6905900682 | M51: 2010-05-31 | N51: 0.6905900682 | O51: 2010-05-31 | P51: 0.6905900682 | Q51: 0.9791180267 | R51: 1.0484372 | S51: 0.778942155 | T51: 1 | U51: 1 | V51: 1 | W51: 2.422863 | X51: 4.292655 | Y51: 5.816554 | AC51: 12.847506 | AD51: 25.022041 | AE51: 20.321381 | AF51: 0 | AG51: 0 | AH51: 0 | AI51: 1 | AJ51: 1 | AK51: 1 | AL51: 1 | AM51: 1 | AN51: 1 | AO51: 12.847506 | AP51: 25.022041 | AQ51: 20.321381 | AR51: 0 | AS51: 0 | AT51: 0 | AU51: -0.1083057478 | AV51: -0.06070775649 | AW51: -0.0680457884 | AX51: -0.07520539694 | AY51: FALSE | AZ51: FALSE | BA51: FALSE | BB51: 0.9791180267 | BC51: 1.0484372 | BD51: 0.778942155 | BE51: 1 | BF51: 1 | BG51: 1 | BH51: 0 | BI51: 0 | BJ51: 0 | BK51: 0 | BL51: 0 | BM51: 0 | BN51: 0 | BO51: 0 | BP51: 0 | BQ51: 0 | BR51: 0 | BS51: 0 | BT51: 0 | BU51: 0 | BW51: 2007-10-14
A52: 1990-10-22 | B52: 304.709991 | D52: 2010-06-30 | E52: 2010-06-30 | F52: 1022.580017 | G52: TRUE | H52: 1 | I52: 1 | J52: 1022.580017 | K52: -0.04053325934 | L52: 0.6625982018 | M52: 2010-06-30 | N52: 0.6625982018 | O52: 2010-06-30 | P52: 0.6625982018 | Q52: 1.012538116 | R52: 1.086942252 | S52: 0.7606171762 | T52: 1 | U52: 1 | V52: 1 | W52: 2.411998 | X52: 4.222287 | Y52: 5.854203 | AC52: 13.286028 | AD52: 25.941004 | AE52: 19.843311 | AF52: 0 | AG52: 0 | AH52: 0 | AI52: 1 | AJ52: 1 | AK52: 1 | AL52: 1 | AM52: 1 | AN52: 1 | AO52: 13.286028 | AP52: 25.941004 | AQ52: 19.843311 | AR52: 0 | AS52: 0 | AT52: 0 | AU52: -0.04053325934 | AV52: 0.03356324982 | AW52: 0.03606780639 | AX52: -0.02380660999 | AY52: FALSE | AZ52: FALSE | BA52: FALSE | BB52: 1.012538116 | BC52: 1.086942252 | BD52: 0.7606171762 | BE52: 1 | BF52: 1 | BG52: 1 | BH52: 0 | BI52: 0 | BJ52: 0 | BK52: 0 | BL52: 0 | BM52: 0 | BN52: 0 | BO52: 0 | BP52: 0 | BQ52: 0 | BR52: 0 | BS52: 0 | BT52: 0 | BU52: 0 | BW52: 2007-10-21
A53: 1990-10-29 | B53: 311.850006 | D53: 2010-07-31 | E53: 2010-07-31 | F53: 1101.599976 | G53: TRUE | H53: 1 | I53: 1 | J53: 1101.599976 | K53: 0.07443478454 | L53: 0.7119185562 | M53: 2010-07-31 | N53: 0.7119185562 | O53: 2010-07-31 | P53: 0.7119185562 | Q53: 1.063571728 | R53: 1.160679924 | S53: 0.817856296 | T53: 1 | U53: 1 | V53: 1 | W53: 2.520647 | X53: 4.503771 | Y53: 5.910675 | AC53: 13.955666 | AD53: 27.70083 | AE53: 21.33659 | AF53: 0 | AG53: 0 | AH53: 0 | AI53: 1 | AJ53: 1 | AK53: 1 | AL53: 1 | AM53: 1 | AN53: 1 | AO53: 13.955666 | AP53: 27.70083 | AQ53: 21.33659 | AR53: 0 | AS53: 0 | AT53: 0 | AU53: 0.07443478454 | AV53: 0.04917263396 | AW53: 0.0656374938 | AX53: 0.07255646628 | AY53: FALSE | AZ53: FALSE | BA53: FALSE | BB53: 1.063571728 | BC53: 1.160679924 | BD53: 0.817856296 | BE53: 1 | BF53: 1 | BG53: 1 | BH53: 0 | BI53: 0 | BJ53: 0 | BK53: 0 | BL53: 0 | BM53: 0 | BN53: 0 | BO53: 0 | BP53: 0 | BQ53: 0 | BR53: 0 | BS53: 0 | BT53: 0 | BU53: 0 | BW53: 2007-10-28
A54: 1990-11-05 | B54: 313.73999 | D54: 2010-08-31 | E54: 2010-08-31 | F54: 1104.51001 | G54: TRUE | H54: 1 | I54: 1 | J54: 1104.51001 | K54: 0.002638160116 | L54: 0.7137967114 | M54: 2010-08-31 | N54: 0.7137967114 | O54: 2010-08-31 | P54: 0.7137967114 | Q54: 1.105514541 | R54: 1.234514344 | S54: 0.860538007 | T54: 1 | U54: 1 | V54: 1 | W54: 2.564106 | X54: 4.339574 | Y54: 5.967144 | AC54: 14.506019 | AD54: 29.462965 | AE54: 22.450089 | AF54: 0 | AG54: 0 | AH54: 0 | AI54: 1 | AJ54: 1 | AK54: 1 | AL54: 1 | AM54: 1 | AN54: 1 | AO54: 14.506019 | AP54: 29.462965 | AQ54: 22.450089 | AR54: 0 | AS54: 0 | AT54: 0 | AU54: 0.002638160116 | AV54: 0.03867807606 | AW54: 0.06167167427 | AX54: 0.05087113925 | AY54: FALSE | AZ54: FALSE | BA54: FALSE | BB54: 1.105514541 | BC54: 1.234514344 | BD54: 0.860538007 | BE54: 1 | BF54: 1 | BG54: 1 | BH54: 0 | BI54: 0 | BJ54: 0 | BK54: 0 | BL54: 0 | BM54: 0 | BN54: 0 | BO54: 0 | BP54: 0 | BQ54: 0 | BR54: 0 | BS54: 0 | BT54: 0 | BU54: 0 | BW54: 2007-11-04
A55: 1990-11-12 | B55: 317.119995 | D55: 2010-09-30 | E55: 2010-09-30 | F55: 1146.23999 | G55: TRUE | H55: 1 | I55: 1 | J55: 1146.23999 | K55: 0.03708520496 | L55: 0.7402680087 | M55: 2010-09-30 | N55: 0.7402680087 | O55: 2010-09-30 | P55: 0.7402680087 | Q55: 1.03964986 | R55: 1.231710862 | S55: 0.8543699097 | T55: 1 | U55: 1 | V55: 1 | W55: 2.657537 | X55: 4.30388 | Y55: 5.760082 | AC55: 13.641775 | AD55: 29.396057 | AE55: 22.289173 | AF55: 0 | AG55: 0 | AH55: 0 | AI55: 1 | AJ55: 1 | AK55: 1 | AL55: 1 | AM55: 1 | AN55: 1 | AO55: 13.641775 | AP55: 29.396057 | AQ55: 22.289173 | AR55: 0 | AS55: 0 | AT55: 0 | AU55: 0.03708520496 | AV55: -0.06142689083 | AW55: -0.002273501208 | AX55: -0.007193533676 | AY55: FALSE | AZ55: FALSE | BA55: FALSE | BB55: 1.03964986 | BC55: 1.231710862 | BD55: 0.8543699097 | BE55: 1 | BF55: 1 | BG55: 1 | BH55: 0 | BI55: 0 | BJ55: 0 | BK55: 0 | BL55: 0 | BM55: 0 | BN55: 0 | BO55: 0 | BP55: 0 | BQ55: 0 | BR55: 0 | BS55: 0 | BT55: 0 | BU55: 0 | BW55: 2007-11-11
A56: 1990-11-19 | B56: 315.100006 | D56: 2010-10-31 | E56: 2010-10-31 | F56: 1183.26001 | G56: TRUE | H56: 1 | I56: 1 | J56: 1183.26001 | K56: 0.03178633779 | L56: 0.7637984177 | M56: 2010-10-31 | N56: 0.7637984177 | O56: 2010-10-31 | P56: 0.7637984177 | Q56: 1.030959778 | R56: 1.267135176 | S56: 0.9187406956 | T56: 1 | U56: 1 | V56: 1 | W56: 2.635391 | X56: 4.375611 | Y56: 5.684786 | AC56: 13.527748 | AD56: 30.241495 | AE56: 23.968506 | AF56: 0 | AG56: 0 | AH56: 0 | AI56: 1 | AJ56: 1 | AK56: 1 | AL56: 1 | AM56: 1 | AN56: 1 | AO56: 13.527748 | AP56: 30.241495 | AQ56: 23.968506 | AR56: 0 | AS56: 0 | AT56: 0 | AU56: 0.03178633779 | AV56: -0.008393792522 | AW56: 0.02835443822 | AX56: 0.07263967372 | AY56: FALSE | AZ56: FALSE | BA56: FALSE | BB56: 1.030959778 | BC56: 1.267135176 | BD56: 0.9187406956 | BE56: 1 | BF56: 1 | BG56: 1 | BH56: 0 | BI56: 0 | BJ56: 0 | BK56: 0 | BL56: 0 | BM56: 0 | BN56: 0 | BO56: 0 | BP56: 0 | BQ56: 0 | BR56: 0 | BS56: 0 | BT56: 0 | BU56: 0 | BW56: 2007-11-18
A57: 1990-11-26 | B57: 322.220001 | D57: 2010-11-30 | E57: 2010-11-30 | F57: 1224.709961 | G57: TRUE | H57: 1 | I57: 1 | J57: 1224.709961 | K57: 0.03443069991 | L57: 0.7900965318 | M57: 2010-11-30 | N57: 0.7900965318 | O57: 2010-11-30 | P57: 0.7900965318 | Q57: 1.029141999 | R57: 1.264421278 | S57: 0.9478714207 | T57: 1 | U57: 1 | V57: 1 | W57: 2.602172 | X57: 4.399523 | Y57: 5.797731 | AC57: 13.503896 | AD57: 30.176725 | AE57: 24.728481 | AF57: 0 | AG57: 0 | AH57: 0 | AI57: 1 | AJ57: 1 | AK57: 1 | AL57: 1 | AM57: 1 | AN57: 1 | AO57: 13.503896 | AP57: 30.176725 | AQ57: 24.728481 | AR57: 0 | AS57: 0 | AT57: 0 | AU57: 0.03443069991 | AV57: -0.00176474699 | AW57: -0.002144056042 | AX57: 0.03121493768 | AY57: FALSE | AZ57: FALSE | BA57: FALSE | BB57: 1.029141999 | BC57: 1.264421278 | BD57: 0.9478714207 | BE57: 1 | BF57: 1 | BG57: 1 | BH57: 0 | BI57: 0 | BJ57: 0 | BK57: 0 | BL57: 0 | BM57: 0 | BN57: 0 | BO57: 0 | BP57: 0 | BQ57: 0 | BR57: 0 | BS57: 0 | BT57: 0 | BU57: 0 | BW57: 2007-11-25
A58: 1990-12-03 | B58: 327.75 | D58: 2010-12-31 | E58: 2010-12-31 | F58: 1257.640015 | G58: FALSE | H58: 1 | I58: 1 | J58: 1257.640015 | K58: 0.0265329113 | L58: 0.7900965318 | N58: 0.7900965318 | P58: 0.7900965318 | Q58: 1.029141999 | R58: 1.264421278 | S58: 0.9478714207 | T58: 1 | U58: 1 | V58: 1 | W58: 2.613245 | X58: 4.375611 | Y58: 5.873026 | AC58: 13.862788 | AD58: 30.515285 | AE58: 25.072754 | AF58: 0 | AG58: 0 | AH58: 0 | AI58: 1 | AJ58: 1 | AK58: 1 | AL58: 1 | AM58: 1 | AN58: 1 | AO58: 13.862788 | AP58: 30.515285 | AQ58: 25.072754 | AR58: 0 | AS58: 0 | AT58: 0 | AU58: 0.0265329113 | AV58: FALSE | AW58: FALSE | AX58: FALSE | AY58: FALSE | AZ58: FALSE | BA58: FALSE | BB58: 1.029141999 | BC58: 1.264421278 | BD58: 0.9478714207 | BE58: 1 | BF58: 1 | BG58: 1 | BH58: 0 | BI58: 0 | BJ58: 0 | BK58: 0 | BL58: 0 | BM58: 0 | BN58: 0 | BO58: 0 | BP58: 0 | BQ58: 0 | BR58: 0 | BS58: 0 | BT58: 0 | BU58: 0 | BW58: 2007-12-02
A59: 1990-12-10 | B59: 326.820007 | D59: FALSE | E59: FALSE | G59: FALSE | H59: 1 | I59: 1 | J59: 0 | K59: FALSE | L59: 0.7900965318 | N59: 0.7900965318 | P59: 0.7900965318 | Q59: 1.029141999 | R59: 1.264421278 | S59: 0.9478714207 | T59: 1 | U59: 1 | V59: 1 | W59: 2.768265 | X59: 4.44734 | Y59: 5.891851 | AC59: 13.862788 | AD59: 30.515285 | AE59: 25.072754 | AF59: 0 | AG59: 0 | AH59: 0 | AI59: 1 | AJ59: 1 | AK59: 1 | AL59: 1 | AM59: 1 | AN59: 1 | AO59: 13.862788 | AP59: 30.515285 | AQ59: 25.072754 | AR59: 0 | AS59: 0 | AT59: 0 | AU59: FALSE | AV59: FALSE | AW59: FALSE | AX59: FALSE | AY59: FALSE | AZ59: FALSE | BA59: FALSE | BB59: 1.029141999 | BC59: 1.264421278 | BD59: 0.9478714207 | BE59: 1 | BF59: 1 | BG59: 1 | BH59: 0 | BI59: 0 | BJ59: 0 | BK59: 0 | BL59: 0 | BM59: 0 | BN59: 0 | BO59: 0 | BP59: 0 | BQ59: 0 | BR59: 0 | BS59: 0 | BT59: 0 | BU59: 0 | BW59: 2007-12-09
A60: 1990-12-17 | B60: 331.75 | D60: FALSE | E60: FALSE | G60: FALSE | H60: 1 | I60: 1 | J60: 0 | K60: FALSE | L60: 0.7900965318 | N60: 0.7900965318 | P60: 0.7900965318 | Q60: 1.029141999 | R60: 1.264421278 | S60: 0.9478714207 | T60: 1 | U60: 1 | V60: 1 | W60: 2.723975 | X60: 4.566896 | Y60: 5.873026 | AC60: 13.862788 | AD60: 30.515285 | AE60: 25.072754 | AF60: 0 | AG60: 0 | AH60: 0 | AI60: 1 | AJ60: 1 | AK60: 1 | AL60: 1 | AM60: 1 | AN60: 1 | AO60: 13.862788 | AP60: 30.515285 | AQ60: 25.072754 | AR60: 0 | AS60: 0 | AT60: 0 | AU60: FALSE | AV60: FALSE | AW60: FALSE | AX60: FALSE | AY60: FALSE | AZ60: FALSE | BA60: FALSE | BB60: 1.029141999 | BC60: 1.264421278 | BD60: 0.9478714207 | BE60: 1 | BF60: 1 | BG60: 1 | BH60: 0 | BI60: 0 | BJ60: 0 | BK60: 0 | BL60: 0 | BM60: 0 | BN60: 0 | BO60: 0 | BP60: 0 | BQ60: 0 | BR60: 0 | BS60: 0 | BT60: 0 | BU60: 0 | BW60: 2007-12-16
A61: 1990-12-24 | B61: 328.720001 | D61: FALSE | E61: FALSE | G61: FALSE | H61: 1 | I61: 1 | J61: 0 | K61: FALSE | L61: 0.7900965318 | N61: 0.7900965318 | P61: 0.7900965318 | Q61: 1.029141999 | R61: 1.264421278 | S61: 0.9478714207 | T61: 1 | U61: 1 | V61: 1 | W61: 2.834705 | X61: 4.495164 | Y61: 5.74126 | AC61: 13.862788 | AD61: 30.515285 | AE61: 25.072754 | AF61: 0 | AG61: 0 | AH61: 0 | AI61: 1 | AJ61: 1 | AK61: 1 | AL61: 1 | AM61: 1 | AN61: 1 | AO61: 13.862788 | AP61: 30.515285 | AQ61: 25.072754 | AR61: 0 | AS61: 0 | AT61: 0 | AU61: FALSE | AV61: FALSE | AW61: FALSE | AX61: FALSE | AY61: FALSE | AZ61: FALSE | BA61: FALSE | BB61: 1.029141999 | BC61: 1.264421278 | BD61: 0.9478714207 | BE61: 1 | BF61: 1 | BG61: 1 | BH61: 0 | BI61: 0 | BJ61: 0 | BK61: 0 | BL61: 0 | BM61: 0 | BN61: 0 | BO61: 0 | BP61: 0 | BQ61: 0 | BR61: 0 | BS61: 0 | BT61: 0 | BU61: 0 | BW61: 2007-12-23
A62: 1990-12-31 | B62: 321 | D62: FALSE | E62: FALSE | G62: FALSE | H62: 1 | I62: 1 | J62: 0 | K62: FALSE | L62: 0.7900965318 | N62: 0.7900965318 | P62: 0.7900965318 | Q62: 1.029141999 | R62: 1.264421278 | S62: 0.9478714207 | T62: 1 | U62: 1 | V62: 1 | W62: 2.768265 | X62: 4.495164 | Y62: 5.81999 | AC62: 13.862788 | AD62: 30.515285 | AE62: 25.072754 | AF62: 0 | AG62: 0 | AH62: 0 | AI62: 1 | AJ62: 1 | AK62: 1 | AL62: 1 | AM62: 1 | AN62: 1 | AO62: 13.862788 | AP62: 30.515285 | AQ62: 25.072754 | AR62: 0 | AS62: 0 | AT62: 0 | AU62: FALSE | AV62: FALSE | AW62: FALSE | AX62: FALSE | AY62: FALSE | AZ62: FALSE | BA62: FALSE | BB62: 1.029141999 | BC62: 1.264421278 | BD62: 0.9478714207 | BE62: 1 | BF62: 1 | BG62: 1 | BH62: 0 | BI62: 0 | BJ62: 0 | BK62: 0 | BL62: 0 | BM62: 0 | BN62: 0 | BO62: 0 | BP62: 0 | BQ62: 0 | BR62: 0 | BS62: 0 | BT62: 0 | BU62: 0 | BW62: 2007-12-30
A63: 1991-01-07 | B63: 315.230011 | D63: FALSE | E63: FALSE | G63: FALSE | H63: 1 | I63: 1 | J63: 0 | K63: FALSE | L63: 0.7900965318 | N63: 0.7900965318 | P63: 0.7900965318 | Q63: 1.029141999 | R63: 1.264421278 | S63: 0.9478714207 | T63: 1 | U63: 1 | V63: 1 | W63: 2.657537 | X63: 4.375611 | Y63: 5.685975 | AC63: 13.862788 | AD63: 30.515285 | AE63: 25.072754 | AF63: 0 | AG63: 0 | AH63: 0 | AI63: 1 | AJ63: 1 | AK63: 1 | AL63: 1 | AM63: 1 | AN63: 1 | AO63: 13.862788 | AP63: 30.515285 | AQ63: 25.072754 | AR63: 0 | AS63: 0 | AT63: 0 | AU63: FALSE | AV63: FALSE | AW63: FALSE | AX63: FALSE | AY63: FALSE | AZ63: FALSE | BA63: FALSE | BB63: 1.029141999 | BC63: 1.264421278 | BD63: 0.9478714207 | BE63: 1 | BF63: 1 | BG63: 1 | BH63: 0 | BI63: 0 | BJ63: 0 | BK63: 0 | BL63: 0 | BM63: 0 | BN63: 0 | BO63: 0 | BP63: 0 | BQ63: 0 | BR63: 0 | BS63: 0 | BT63: 0 | BU63: 0 | BW63: 2008-01-06
A64: 1991-01-14 | B64: 332.230011 | D64: FALSE | E64: FALSE | G64: FALSE | H64: 1 | I64: 1 | J64: 0 | K64: FALSE | L64: 0.7900965318 | N64: 0.7900965318 | P64: 0.7900965318 | Q64: 1.029141999 | R64: 1.264421278 | S64: 0.9478714207 | T64: 1 | U64: 1 | V64: 1 | W64: 2.801486 | X64: 4.566896 | Y64: 5.81999 | AC64: 13.862788 | AD64: 30.515285 | AE64: 25.072754 | AF64: 0 | AG64: 0 | AH64: 0 | AI64: 1 | AJ64: 1 | AK64: 1 | AL64: 1 | AM64: 1 | AN64: 1 | AO64: 13.862788 | AP64: 30.515285 | AQ64: 25.072754 | AR64: 0 | AS64: 0 | AT64: 0 | AU64: FALSE | AV64: FALSE | AW64: FALSE | AX64: FALSE | AY64: FALSE | AZ64: FALSE | BA64: FALSE | BB64: 1.029141999 | BC64: 1.264421278 | BD64: 0.9478714207 | BE64: 1 | BF64: 1 | BG64: 1 | BH64: 0 | BI64: 0 | BJ64: 0 | BK64: 0 | BL64: 0 | BM64: 0 | BN64: 0 | BO64: 0 | BP64: 0 | BQ64: 0 | BR64: 0 | BS64: 0 | BT64: 0 | BU64: 0 | BW64: 2008-01-13
A65: 1991-01-21 | B65: 336.070007 | D65: FALSE | E65: FALSE | G65: FALSE | H65: 1 | I65: 1 | J65: 0 | K65: FALSE | L65: 0.7900965318 | N65: 0.7900965318 | P65: 0.7900965318 | Q65: 1.029141999 | R65: 1.264421278 | S65: 0.9478714207 | T65: 1 | U65: 1 | V65: 1 | W65: 2.845779 | X65: 4.519075 | Y65: 5.781698 | AC65: 13.862788 | AD65: 30.515285 | AE65: 25.072754 | AF65: 0 | AG65: 0 | AH65: 0 | AI65: 1 | AJ65: 1 | AK65: 1 | AL65: 1 | AM65: 1 | AN65: 1 | AO65: 13.862788 | AP65: 30.515285 | AQ65: 25.072754 | AR65: 0 | AS65: 0 | AT65: 0 | AU65: FALSE | AV65: FALSE | AW65: FALSE | AX65: FALSE | AY65: FALSE | AZ65: FALSE | BA65: FALSE | BB65: 1.029141999 | BC65: 1.264421278 | BD65: 0.9478714207 | BE65: 1 | BF65: 1 | BG65: 1 | BH65: 0 | BI65: 0 | BJ65: 0 | BK65: 0 | BL65: 0 | BM65: 0 | BN65: 0 | BO65: 0 | BP65: 0 | BQ65: 0 | BR65: 0 | BS65: 0 | BT65: 0 | BU65: 0 | BW65: 2008-01-20
A66: 1991-01-28 | B66: 343.049988 | D66: FALSE | E66: FALSE | G66: FALSE | H66: 1 | I66: 1 | J66: 0 | K66: FALSE | L66: 0.7900965318 | N66: 0.7900965318 | P66: 0.7900965318 | Q66: 1.029141999 | R66: 1.264421278 | S66: 0.9478714207 | T66: 1 | U66: 1 | V66: 1 | W66: 2.85685 | X66: 4.519075 | Y66: 5.685975 | Z66: =LOOKUP($A66,INDIRECT("'"&Z$5&"'!A:A"),INDIRECT("'"&Z$5&"'!"&Z$7&":"&Z$7)) ->  | AC66: 13.862788 | AD66: 30.515285 | AE66: 25.072754 | AF66: 0 | AG66: 0 | AH66: 0 | AI66: =IF(AI$7,INDEX($BO66:$BU66,AI$7),1) -> 1 | AJ66: 1 | AK66: 1 | AL66: 1 | AM66: 1 | AN66: 1 | AO66: 13.862788 | AP66: 30.515285 | AQ66: 25.072754 | AR66: 0 | AS66: 0 | AT66: 0 | AU66: FALSE | AV66: FALSE | AW66: FALSE | AX66: FALSE | AY66: FALSE | AZ66: FALSE | BA66: FALSE | BB66: 1.029141999 | BC66: 1.264421278 | BD66: 0.9478714207 | BE66: 1 | BF66: 1 | BG66: 1 | BH66: 0 | BI66: 0 | BJ66: 0 | BK66: 0 | BL66: 0 | BM66: 0 | BN66: 0 | BO66: 0 | BP66: 0 | BQ66: 0 | BR66: 0 | BS66: 0 | BT66: 0 | BU66: 0 | BW66: 2008-01-27
A67: 1991-02-04 | B67: 359.350006 | D67: FALSE | E67: FALSE | G67: FALSE | H67: 1 | I67: 1 | J67: 0 | K67: FALSE | L67: 0.7900965318 | N67: 0.7900965318 | P67: 0.7900965318 | Q67: 1.029141999 | R67: 1.264421278 | S67: 0.9478714207 | T67: 1 | U67: 1 | V67: 1 | W67: 2.823632 | X67: 4.566896 | Y67: 5.800843 | AC67: 13.862788 | AD67: 30.515285 | AE67: 25.072754 | AF67: 0 | AG67: 0 | AH67: 0 | AI67: 1 | AJ67: 1 | AK67: 1 | AL67: 1 | AM67: 1 | AN67: 1 | AO67: 13.862788 | AP67: 30.515285 | AQ67: 25.072754 | AR67: 0 | AS67: 0 | AT67: 0 | AU67: FALSE | AV67: FALSE | AW67: FALSE | AX67: FALSE | AY67: FALSE | AZ67: FALSE | BA67: FALSE | BB67: 1.029141999 | BC67: 1.264421278 | BD67: 0.9478714207 | BE67: 1 | BF67: 1 | BG67: 1 | BH67: 0 | BI67: 0 | BJ67: 0 | BK67: 0 | BL67: 0 | BM67: 0 | BN67: 0 | BO67: 0 | BP67: 0 | BQ67: 0 | BR67: 0 | BS67: 0 | BT67: 0 | BU67: 0 | BW67: 2008-02-03
A68: 1991-02-11 | B68: 369.059998 | D68: FALSE | E68: FALSE | G68: FALSE | H68: 1 | I68: 1 | J68: 0 | K68: FALSE | L68: 0.7900965318 | N68: 0.7900965318 | P68: 0.7900965318 | Q68: 1.029141999 | R68: 1.264421278 | S68: 0.9478714207 | T68: 1 | U68: 1 | V68: 1 | W68: 3.007008 | X68: 4.659587 | Y68: 5.896568 | AC68: 13.862788 | AD68: 30.515285 | AE68: 25.072754 | AF68: 0 | AG68: 0 | AH68: 0 | AI68: 1 | AJ68: 1 | AK68: 1 | AL68: 1 | AM68: 1 | AN68: 1 | AO68: 13.862788 | AP68: 30.515285 | AQ68: 25.072754 | AR68: 0 | AS68: 0 | AT68: 0 | AU68: FALSE | AV68: FALSE | AW68: FALSE | AX68: FALSE | AY68: FALSE | AZ68: FALSE | BA68: FALSE | BB68: 1.029141999 | BC68: 1.264421278 | BD68: 0.9478714207 | BE68: 1 | BF68: 1 | BG68: 1 | BH68: 0 | BI68: 0 | BJ68: 0 | BK68: 0 | BL68: 0 | BM68: 0 | BN68: 0 | BO68: 0 | BP68: 0 | BQ68: 0 | BR68: 0 | BS68: 0 | BT68: 0 | BU68: 0 | BW68: 2008-02-10
A69: 1991-02-18 | B69: 365.649994 | D69: FALSE | E69: FALSE | G69: FALSE | H69: 1 | I69: 1 | J69: 0 | K69: FALSE | L69: 0.7900965318 | N69: 0.7900965318 | P69: 0.7900965318 | Q69: 1.029141999 | R69: 1.264421278 | S69: 0.9478714207 | T69: 1 | U69: 1 | V69: 1 | W69: 2.950697 | X69: 4.659587 | Y69: 5.954004 | AC69: 13.862788 | AD69: 30.515285 | AE69: 25.072754 | AF69: 0 | AG69: 0 | AH69: 0 | AI69: 1 | AJ69: 1 | AK69: 1 | AL69: 1 | AM69: 1 | AN69: 1 | AO69: 13.862788 | AP69: 30.515285 | AQ69: 25.072754 | AR69: 0 | AS69: 0 | AT69: 0 | AU69: FALSE | AV69: FALSE | AW69: FALSE | AX69: FALSE | AY69: FALSE | AZ69: FALSE | BA69: FALSE | BB69: 1.029141999 | BC69: 1.264421278 | BD69: 0.9478714207 | BE69: 1 | BF69: 1 | BG69: 1 | BH69: 0 | BI69: 0 | BJ69: 0 | BK69: 0 | BL69: 0 | BM69: 0 | BN69: 0 | BO69: 0 | BP69: 0 | BQ69: 0 | BR69: 0 | BS69: 0 | BT69: 0 | BU69: 0 | BW69: 2008-02-17
A70: 1991-02-25 | B70: 370.470001 | D70: FALSE | E70: FALSE | G70: FALSE | H70: 1 | I70: 1 | J70: 0 | K70: FALSE | L70: 0.7900965318 | N70: 0.7900965318 | P70: 0.7900965318 | Q70: 1.029141999 | R70: 1.264421278 | S70: 0.9478714207 | T70: 1 | U70: 1 | V70: 1 | W70: 2.928174 | X70: 4.732775 | Y70: 5.915713 | AC70: 13.862788 | AD70: 30.515285 | AE70: 25.072754 | AF70: 0 | AG70: 0 | AH70: 0 | AI70: 1 | AJ70: 1 | AK70: 1 | AL70: 1 | AM70: 1 | AN70: 1 | AO70: 13.862788 | AP70: 30.515285 | AQ70: 25.072754 | AR70: 0 | AS70: 0 | AT70: 0 | AU70: FALSE | AV70: FALSE | AW70: FALSE | AX70: FALSE | AY70: FALSE | AZ70: FALSE | BA70: FALSE | BB70: 1.029141999 | BC70: 1.264421278 | BD70: 0.9478714207 | BE70: 1 | BF70: 1 | BG70: 1 | BH70: 0 | BI70: 0 | BJ70: 0 | BK70: 0 | BL70: 0 | BM70: 0 | BN70: 0 | BO70: 0 | BP70: 0 | BQ70: 0 | BR70: 0 | BS70: 0 | BT70: 0 | BU70: 0 | BW70: 2008-02-24
A71: 1991-03-04 | B71: 374.950012 | D71: FALSE | E71: FALSE | G71: FALSE | H71: 1 | I71: 1 | J71: 0 | K71: FALSE | L71: 0.7900965318 | N71: 0.7900965318 | P71: 0.7900965318 | Q71: 1.029141999 | R71: 1.264421278 | S71: 0.9478714207 | T71: 1 | U71: 1 | V71: 1 | W71: 2.973222 | X71: 4.610798 | Y71: 5.705122 | AC71: 13.862788 | AD71: 30.515285 | AE71: 25.072754 | AF71: 0 | AG71: 0 | AH71: 0 | AI71: 1 | AJ71: 1 | AK71: 1 | AL71: 1 | AM71: 1 | AN71: 1 | AO71: 13.862788 | AP71: 30.515285 | AQ71: 25.072754 | AR71: 0 | AS71: 0 | AT71: 0 | AU71: FALSE | AV71: FALSE | AW71: FALSE | AX71: FALSE | AY71: FALSE | AZ71: FALSE | BA71: FALSE | BB71: 1.029141999 | BC71: 1.264421278 | BD71: 0.9478714207 | BE71: 1 | BF71: 1 | BG71: 1 | BH71: 0 | BI71: 0 | BJ71: 0 | BK71: 0 | BL71: 0 | BM71: 0 | BN71: 0 | BO71: 0 | BP71: 0 | BQ71: 0 | BR71: 0 | BS71: 0 | BT71: 0 | BU71: 0 | BW71: 2008-03-02
A72: 1991-03-11 | B72: 373.589996 | D72: FALSE | E72: FALSE | G72: FALSE | H72: 1 | I72: 1 | J72: 0 | K72: FALSE | L72: 0.7900965318 | N72: 0.7900965318 | P72: 0.7900965318 | Q72: 1.029141999 | R72: 1.264421278 | S72: 0.9478714207 | T72: 1 | U72: 1 | V72: 1 | W72: 2.950697 | X72: 4.757173 | Y72: 5.896568 | AC72: 13.862788 | AD72: 30.515285 | AE72: 25.072754 | AF72: 0 | AG72: 0 | AH72: 0 | AI72: 1 | AJ72: 1 | AK72: 1 | AL72: 1 | AM72: 1 | AN72: 1 | AO72: 13.862788 | AP72: 30.515285 | AQ72: 25.072754 | AR72: 0 | AS72: 0 | AT72: 0 | AU72: FALSE | AV72: FALSE | AW72: FALSE | AX72: FALSE | AY72: FALSE | AZ72: FALSE | BA72: FALSE | BB72: 1.029141999 | BC72: 1.264421278 | BD72: 0.9478714207 | BE72: 1 | BF72: 1 | BG72: 1 | BH72: 0 | BI72: 0 | BJ72: 0 | BK72: 0 | BL72: 0 | BM72: 0 | BN72: 0 | BO72: 0 | BP72: 0 | BQ72: 0 | BR72: 0 | BS72: 0 | BT72: 0 | BU72: 0 | BW72: 2008-03-09
A73: 1991-03-18 | B73: 367.480011 | D73: FALSE | E73: FALSE | G73: FALSE | H73: 1 | I73: 1 | J73: 0 | K73: FALSE | L73: 0.7900965318 | N73: 0.7900965318 | P73: 0.7900965318 | Q73: 1.029141999 | R73: 1.264421278 | S73: 0.9478714207 | T73: 1 | U73: 1 | V73: 1 | W73: 2.973222 | X73: 4.903546 | Y73: 5.992293 | AC73: 13.862788 | AD73: 30.515285 | AE73: 25.072754 | AF73: 0 | AG73: 0 | AH73: 0 | AI73: 1 | AJ73: 1 | AK73: 1 | AL73: 1 | AM73: 1 | AN73: 1 | AO73: 13.862788 | AP73: 30.515285 | AQ73: 25.072754 | AR73: 0 | AS73: 0 | AT73: 0 | AU73: FALSE | AV73: FALSE | AW73: FALSE | AX73: FALSE | AY73: FALSE | AZ73: FALSE | BA73: FALSE | BB73: 1.029141999 | BC73: 1.264421278 | BD73: 0.9478714207 | BE73: 1 | BF73: 1 | BG73: 1 | BH73: 0 | BI73: 0 | BJ73: 0 | BK73: 0 | BL73: 0 | BM73: 0 | BN73: 0 | BO73: 0 | BP73: 0 | BQ73: 0 | BR73: 0 | BS73: 0 | BT73: 0 | BU73: 0 | BW73: 2008-03-16
A74: 1991-03-25 | B74: =IFERROR(LOOKUP($A74,INDIRECT("'"&B$6&"'!A:A"),INDIRECT("'"&B$6&"'!"&$B$9&":"&$B$9)),0) -> 375.220001 | D74: FALSE | E74: =IF($E$7,BW74,D74) -> FALSE | F74: =LOOKUP(E74,A:A,B:B) ->  | G74: FALSE | H74: 1 | I74: 1 | J74: 0 | K74: FALSE | L74: 0.7900965318 | M74: =IF(G74,E74,NA()) ->  | N74: 0.7900965318 | P74: 0.7900965318 | Q74: 1.029141999 | R74: 1.264421278 | S74: 0.9478714207 | T74: 1 | U74: 1 | V74: 1 | W74: 2.995746 | X74: 5.025527 | Y74: 6.088014 | AC74: =IF(ISNUMBER(LOOKUP($E74,$A:$A,W:W)),LOOKUP($E74,$A:$A,W:W),AC73) -> 13.862788 | AD74: =IF(ISNUMBER(LOOKUP($E74,$A:$A,X:X)),LOOKUP($E74,$A:$A,X:X),AD73) -> 30.515285 | AE74: =IF(ISNUMBER(LOOKUP($E74,$A:$A,Y:Y)),LOOKUP($E74,$A:$A,Y:Y),AE73) -> 25.072754 | AF74: =IF(ISNUMBER(LOOKUP($E74,$A:$A,Z:Z)),LOOKUP($E74,$A:$A,Z:Z),AF73) -> 0 | AG74: =IF(ISNUMBER(LOOKUP($E74,$A:$A,AA:AA)),LOOKUP($E74,$A:$A,AA:AA),AG73) -> 0 | AH74: =IF(ISNUMBER(LOOKUP($E74,$A:$A,AB:AB)),LOOKUP($E74,$A:$A,AB:AB),AH73) -> 0 | AI74: 1 | AJ74: 1 | AK74: 1 | AL74: 1 | AM74: 1 | AN74: 1 | AO74: 13.862788 | AP74: 30.515285 | AQ74: 25.072754 | AR74: 0 | AS74: 0 | AT74: 0 | AU74: FALSE | AV74: =IF(G74,IFERROR(LN(AO74/AO73),FALSE)) -> FALSE | AW74: =IF(G74,IFERROR(LN(AP74/AP73),FALSE)) -> FALSE | AX74: =IF(G74,IFERROR(LN(AQ74/AQ73),FALSE)) -> FALSE | AY74: =IF(G74,IFERROR(LN(AR74/AR73),FALSE)) -> FALSE | AZ74: =IF(G74,IFERROR(LN(AS74/AS73),FALSE)) -> FALSE | BA74: =IF(G74,IFERROR(LN(AT74/AT73),FALSE)) -> FALSE | BB74: 1.029141999 | BC74: 1.264421278 | BD74: 0.9478714207 | BE74: 1 | BF74: 1 | BG74: 1 | BH74: 0 | BI74: 0 | BJ74: 0 | BK74: 0 | BL74: 0 | BM74: 0 | BN74: 0 | BO74: =IFERROR(IF(BO$8="Divide",1/LOOKUP($E74,$A:$A,BH:BH)*1,LOOKUP($E74,$A:$A,BH:BH)*1),BO75) -> 0 | BP74: =IFERROR(IF(BP$8="Divide",1/LOOKUP($E74,$A:$A,BI:BI)*1,LOOKUP($E74,$A:$A,BI:BI)*1),BP75) -> 0 | BQ74: =IFERROR(IF(BQ$8="Divide",1/LOOKUP($E74,$A:$A,BJ:BJ)*1,LOOKUP($E74,$A:$A,BJ:BJ)*1),BQ75) -> 0 | BR74: =IFERROR(IF(BR$8="Divide",1/LOOKUP($E74,$A:$A,BK:BK)*1,LOOKUP($E74,$A:$A,BK:BK)*1),BR75) -> 0 | BS74: =IFERROR(IF(BS$8="Divide",1/LOOKUP($E74,$A:$A,BL:BL)*1,LOOKUP($E74,$A:$A,BL:BL)*1),BS75) -> 0 | BT74: =IFERROR(IF(BT$8="Divide",1/LOOKUP($E74,$A:$A,BM:BM)*1,LOOKUP($E74,$A:$A,BM:BM)*1),BT75) -> 0 | BU74: =IFERROR(IF(BU$8="Divide",1/LOOKUP($E74,$A:$A,BN:BN)*1,LOOKUP($E74,$A:$A,BN:BN)*1),BU75) -> 0 | BW74: 2008-03-23
A75: 1991-04-01 | B75: 375.359985 | D75: =IF(D74<$F$2,MIN(EOMONTH(D74,1),$F$2)) -> FALSE | E75: FALSE | G75: =AND(E75>=$F$4,E75<$F$2) -> FALSE | H75: =IF(H$8<>0,INDEX($BO75:$BU75,H$8),1) -> 1 | I75: =IF(H75,H75,IF(I76,I76,1)) -> 1 | J75: =IF(ISNUMBER(F75),F75,J76)*I75 -> 0 | K75: FALSE | L75: =IF($G75,(L74*(1+K75)),L74) -> 0.7900965318 | N75: 0.7900965318 | P75: 0.7900965318 | Q75: 1.029141999 | R75: 1.264421278 | S75: 0.9478714207 | T75: 1 | U75: 1 | V75: 1 | W75: =LOOKUP($A75,INDIRECT("'"&W$5&"'!A:A"),INDIRECT("'"&W$5&"'!"&W$7&":"&W$7)) -> 2.950697 | X75: 4.976737 | Y75: 5.877422 | AC75: 13.862788 | AD75: 30.515285 | AE75: 25.072754 | AF75: 0 | AG75: 0 | AH75: 0 | AI75: 1 | AJ75: 1 | AK75: 1 | AL75: 1 | AM75: 1 | AN75: 1 | AO75: 13.862788 | AP75: 30.515285 | AQ75: 25.072754 | AR75: 0 | AS75: 0 | AT75: 0 | AU75: FALSE | AV75: FALSE | AW75: FALSE | AX75: FALSE | AY75: FALSE | AZ75: FALSE | BA75: FALSE | BB75: 1.029141999 | BC75: 1.264421278 | BD75: 0.9478714207 | BE75: 1 | BF75: 1 | BG75: 1 | BH75: =IFERROR(LOOKUP($A75,INDIRECT("'"&BO$6&"'!A:A"),INDIRECT("'"&BO$6&"'!"&BO$7&":"&BO$7)),0) -> 0 | BI75: =IFERROR(LOOKUP($A75,INDIRECT("'"&BP$6&"'!A:A"),INDIRECT("'"&BP$6&"'!"&BP$7&":"&BP$7)),0) -> 0 | BJ75: =IFERROR(LOOKUP($A75,INDIRECT("'"&BQ$6&"'!A:A"),INDIRECT("'"&BQ$6&"'!"&BQ$7&":"&BQ$7)),0) -> 0 | BK75: =IFERROR(LOOKUP($A75,INDIRECT("'"&BR$6&"'!A:A"),INDIRECT("'"&BR$6&"'!"&BR$7&":"&BR$7)),0) -> 0 | BL75: =IFERROR(LOOKUP($A75,INDIRECT("'"&BS$6&"'!A:A"),INDIRECT("'"&BS$6&"'!"&BS$7&":"&BS$7)),0) -> 0 | BM75: =IFERROR(LOOKUP($A75,INDIRECT("'"&BT$6&"'!A:A"),INDIRECT("'"&BT$6&"'!"&BT$7&":"&BT$7)),0) -> 0 | BN75: =IFERROR(LOOKUP($A75,INDIRECT("'"&BU$6&"'!A:A"),INDIRECT("'"&BU$6&"'!"&BU$7&":"&BU$7)),0) -> 0 | BO75: 0 | BP75: 0 | BQ75: 0 | BR75: 0 | BS75: 0 | BT75: 0 | BU75: 0 | BW75: =IF(BW74<=$F$2,BW74+7) -> 2008-03-30
A76: 1991-04-08 | B76: 380.399994 | D76: FALSE | E76: FALSE | G76: FALSE | H76: 1 | I76: 1 | J76: 0 | K76: =IFERROR(LN(J76/J75),FALSE) -> FALSE | L76: 0.7900965318 | N76: 0.7900965318 | P76: =N76 -> 0.7900965318 | Q76: =IFERROR(CHOOSE($N$1,AO76,AV76,BB76),Q75) -> 1.029141999 | R76: =IFERROR(CHOOSE($N$1,AP76,AW76,BC76),R75) -> 1.264421278 | S76: =IFERROR(CHOOSE($N$1,AQ76,AX76,BD76),S75) -> 0.9478714207 | T76: =IFERROR(CHOOSE($N$1,AR76,AY76,BE76),T75) -> 1 | U76: =IFERROR(CHOOSE($N$1,AS76,AZ76,BF76),U75) -> 1 | V76: =IFERROR(CHOOSE($N$1,AT76,BA76,BG76),V75) -> 1 | W76: 2.939434 | X76: 5.00113 | Y76: 6.015595 | AC76: 13.862788 | AD76: 30.515285 | AE76: 25.072754 | AF76: 0 | AG76: 0 | AH76: 0 | AI76: 1 | AJ76: 1 | AK76: 1 | AL76: 1 | AM76: 1 | AN76: 1 | AO76: =IFERROR(IF(ISNUMBER(AC76)>0.1,AC76,AO77)*AI76,AO77) -> 13.862788 | AP76: =IFERROR(IF(ISNUMBER(AD76)>0.1,AD76,AP77)*AJ76,AP77) -> 30.515285 | AQ76: =IFERROR(IF(ISNUMBER(AE76)>0.1,AE76,AQ77)*AK76,AQ77) -> 25.072754 | AR76: =IFERROR(IF(ISNUMBER(AF76)>0.1,AF76,AR77)*AL76,AR77) -> 0 | AS76: =IFERROR(IF(ISNUMBER(AG76)>0.1,AG76,AS77)*AM76,AS77) -> 0 | AT76: =IFERROR(IF(ISNUMBER(AH76)>0.1,AH76,AT77)*AN76,AT77) -> 0 | AU76: FALSE | AV76: FALSE | AW76: FALSE | AX76: FALSE | AY76: FALSE | AZ76: FALSE | BA76: FALSE | BB76: =IFERROR(IF($G76,BB75*AO76/AO75,BB75),BB75) -> 1.029141999 | BC76: =IFERROR(IF($G76,BC75*AP76/AP75,BC75),BC75) -> 1.264421278 | BD76: =IFERROR(IF($G76,BD75*AQ76/AQ75,BD75),BD75) -> 0.9478714207 | BE76: =IFERROR(IF($G76,BE75*AR76/AR75,BE75),BE75) -> 1 | BF76: =IFERROR(IF($G76,BF75*AS76/AS75,BF75),BF75) -> 1 | BG76: =IFERROR(IF($G76,BG75*AT76/AT75,BG75),BG75) -> 1 | BH76: 0 | BI76: 0 | BJ76: 0 | BK76: 0 | BL76: 0 | BM76: 0 | BN76: 0 | BO76: 0 | BP76: 0 | BQ76: 0 | BR76: 0 | BS76: 0 | BT76: 0 | BU76: 0 | BW76: 2008-04-06
A77: 1991-04-15 | B77: 384.200012 | D77: FALSE | E77: FALSE | G77: FALSE | H77: 1 | I77: 1 | J77: 0 | K77: FALSE | L77: 0.7900965318 | N77: =CHOOSE($N$1,J77,K77,L77) -> 0.7900965318 | O77: =M77 ->  | P77: 0.7900965318 | Q77: 1.029141999 | R77: 1.264421278 | S77: 0.9478714207 | T77: 1 | U77: 1 | V77: 1 | W77: 3.007008 | X77: 4.854752 | Y77: 5.996126 | AC77: 13.862788 | AD77: 30.515285 | AE77: 25.072754 | AF77: 0 | AG77: 0 | AH77: 0 | AI77: 1 | AJ77: 1 | AK77: 1 | AL77: 1 | AM77: 1 | AN77: 1 | AO77: 13.862788 | AP77: 30.515285 | AQ77: 25.072754 | AR77: 0 | AS77: 0 | AT77: 0 | AU77: =K77 -> FALSE | AV77: FALSE | AW77: FALSE | AX77: FALSE | AY77: FALSE | AZ77: FALSE | BA77: FALSE | BB77: 1.029141999 | BC77: 1.264421278 | BD77: 0.9478714207 | BE77: 1 | BF77: 1 | BG77: 1 | BH77: 0 | BI77: 0 | BJ77: 0 | BK77: 0 | BL77: 0 | BM77: 0 | BN77: 0 | BO77: 0 | BP77: 0 | BQ77: 0 | BR77: 0 | BS77: 0 | BT77: 0 | BU77: 0 | BW77: 2008-04-13
A78: 1991-04-22 | B78: 379.019989 | D78: FALSE | E78: FALSE | G78: FALSE | H78: 1 | I78: 1 | J78: 0 | K78: FALSE | L78: 0.7900965318 | N78: 0.7900965318 | P78: 0.7900965318 | Q78: 1.029141999 | R78: 1.264421278 | S78: 0.9478714207 | T78: 1 | U78: 1 | V78: 1 | W78: 3.052058 | X78: 4.781566 | Y78: 6.05453 | AC78: 13.862788 | AD78: 30.515285 | AE78: 25.072754 | AF78: 0 | AG78: 0 | AH78: 0 | AI78: 1 | AJ78: 1 | AK78: 1 | AL78: 1 | AM78: 1 | AN78: 1 | AO78: 13.862788 | AP78: 30.515285 | AQ78: 25.072754 | AR78: 0 | AS78: 0 | AT78: 0 | AU78: FALSE | AV78: FALSE | AW78: FALSE | AX78: FALSE | AY78: FALSE | AZ78: FALSE | BA78: FALSE | BB78: 1.029141999 | BC78: 1.264421278 | BD78: 0.9478714207 | BE78: 1 | BF78: 1 | BG78: 1 | BH78: 0 | BI78: 0 | BJ78: 0 | BK78: 0 | BL78: 0 | BM78: 0 | BN78: 0 | BO78: 0 | BP78: 0 | BQ78: 0 | BR78: 0 | BS78: 0 | BT78: 0 | BU78: 0 | BW78: 2008-04-20
A79: 1991-04-29 | B79: 380.799988 | D79: FALSE | E79: FALSE | G79: FALSE | H79: 1 | I79: 1 | J79: 0 | K79: FALSE | L79: 0.7900965318 | N79: 0.7900965318 | P79: 0.7900965318 | Q79: 1.029141999 | R79: 1.264421278 | S79: 0.9478714207 | T79: 1 | U79: 1 | V79: 1 | W79: 3.175944 | X79: 4.781566 | Y79: 6.073998 | AC79: 13.862788 | AD79: 30.515285 | AE79: 25.072754 | AF79: 0 | AG79: 0 | AH79: 0 | AI79: 1 | AJ79: 1 | AK79: 1 | AL79: 1 | AM79: 1 | AN79: 1 | AO79: 13.862788 | AP79: 30.515285 | AQ79: 25.072754 | AR79: 0 | AS79: 0 | AT79: 0 | AU79: FALSE | AV79: FALSE | AW79: FALSE | AX79: FALSE | AY79: FALSE | AZ79: FALSE | BA79: FALSE | BB79: 1.029141999 | BC79: 1.264421278 | BD79: 0.9478714207 | BE79: 1 | BF79: 1 | BG79: 1 | BH79: 0 | BI79: 0 | BJ79: 0 | BK79: 0 | BL79: 0 | BM79: 0 | BN79: 0 | BO79: 0 | BP79: 0 | BQ79: 0 | BR79: 0 | BS79: 0 | BT79: 0 | BU79: 0 | BW79: 2008-04-27
A80: 1991-05-06 | B80: 375.73999 | D80: FALSE | E80: FALSE | G80: FALSE | H80: 1 | I80: 1 | J80: 0 | K80: FALSE | L80: 0.7900965318 | N80: 0.7900965318 | P80: 0.7900965318 | Q80: 1.029141999 | R80: 1.264421278 | S80: 0.9478714207 | T80: 1 | U80: 1 | V80: 1 | W80: 3.153417 | X80: 4.659587 | Y80: 6.151868 | AC80: 13.862788 | AD80: 30.515285 | AE80: 25.072754 | AF80: 0 | AG80: 0 | AH80: 0 | AI80: 1 | AJ80: 1 | AK80: 1 | AL80: 1 | AM80: 1 | AN80: 1 | AO80: 13.862788 | AP80: 30.515285 | AQ80: 25.072754 | AR80: 0 | AS80: 0 | AT80: 0 | AU80: FALSE | AV80: FALSE | AW80: FALSE | AX80: FALSE | AY80: FALSE | AZ80: FALSE | BA80: FALSE | BB80: 1.029141999 | BC80: 1.264421278 | BD80: 0.9478714207 | BE80: 1 | BF80: 1 | BG80: 1 | BH80: 0 | BI80: 0 | BJ80: 0 | BK80: 0 | BL80: 0 | BM80: 0 | BN80: 0 | BO80: 0 | BP80: 0 | BQ80: 0 | BR80: 0 | BS80: 0 | BT80: 0 | BU80: 0 | BW80: 2008-05-04
A81: 1991-05-13 | B81: 372.390015 | D81: FALSE | E81: FALSE | G81: FALSE | H81: 1 | I81: 1 | J81: 0 | K81: FALSE | L81: 0.7900965318 | N81: 0.7900965318 | P81: 0.7900965318 | Q81: 1.029141999 | R81: 1.264421278 | S81: 0.9478714207 | T81: 1 | U81: 1 | V81: 1 | W81: 3.260602 | X81: 4.772758 | Y81: 6.112937 | AC81: 13.862788 | AD81: 30.515285 | AE81: 25.072754 | AF81: 0 | AG81: 0 | AH81: 0 | AI81: 1 | AJ81: 1 | AK81: 1 | AL81: 1 | AM81: 1 | AN81: 1 | AO81: 13.862788 | AP81: 30.515285 | AQ81: 25.072754 | AR81: 0 | AS81: 0 | AT81: 0 | AU81: FALSE | AV81: FALSE | AW81: FALSE | AX81: FALSE | AY81: FALSE | AZ81: FALSE | BA81: FALSE | BB81: 1.029141999 | BC81: 1.264421278 | BD81: 0.9478714207 | BE81: 1 | BF81: 1 | BG81: 1 | BH81: 0 | BI81: 0 | BJ81: 0 | BK81: 0 | BL81: 0 | BM81: 0 | BN81: 0 | BO81: 0 | BP81: 0 | BQ81: 0 | BR81: 0 | BS81: 0 | BT81: 0 | BU81: 0 | BW81: 2008-05-11
A82: 1991-05-20 | B82: 377.48999 | D82: FALSE | E82: FALSE | G82: FALSE | H82: 1 | I82: 1 | J82: 0 | K82: FALSE | L82: 0.7900965318 | N82: 0.7900965318 | P82: 0.7900965318 | Q82: 1.029141999 | R82: 1.264421278 | S82: 0.9478714207 | T82: 1 | U82: 1 | V82: 1 | W82: 3.306366 | X82: 4.797618 | Y82: 6.015595 | AC82: 13.862788 | AD82: 30.515285 | AE82: 25.072754 | AF82: 0 | AG82: 0 | AH82: 0 | AI82: 1 | AJ82: 1 | AK82: 1 | AL82: 1 | AM82: 1 | AN82: 1 | AO82: 13.862788 | AP82: 30.515285 | AQ82: 25.072754 | AR82: 0 | AS82: 0 | AT82: 0 | AU82: FALSE | AV82: FALSE | AW82: FALSE | AX82: FALSE | AY82: FALSE | AZ82: FALSE | BA82: FALSE | BB82: 1.029141999 | BC82: 1.264421278 | BD82: 0.9478714207 | BE82: 1 | BF82: 1 | BG82: 1 | BH82: 0 | BI82: 0 | BJ82: 0 | BK82: 0 | BL82: 0 | BM82: 0 | BN82: 0 | BO82: 0 | BP82: 0 | BQ82: 0 | BR82: 0 | BS82: 0 | BT82: 0 | BU82: 0 | BW82: 2008-05-18
A83: 1991-05-27 | B83: 389.829987 | D83: FALSE | E83: FALSE | G83: FALSE | H83: 1 | I83: 1 | J83: 0 | K83: FALSE | L83: 0.7900965318 | N83: 0.7900965318 | P83: 0.7900965318 | Q83: 1.029141999 | R83: 1.264421278 | S83: 0.9478714207 | T83: 1 | U83: 1 | V83: 1 | W83: 3.180519 | X83: 4.822473 | Y83: 6.132401 | AC83: 13.862788 | AD83: 30.515285 | AE83: 25.072754 | AF83: 0 | AG83: 0 | AH83: 0 | AI83: 1 | AJ83: 1 | AK83: 1 | AL83: 1 | AM83: 1 | AN83: 1 | AO83: 13.862788 | AP83: 30.515285 | AQ83: 25.072754 | AR83: 0 | AS83: 0 | AT83: 0 | AU83: FALSE | AV83: FALSE | AW83: FALSE | AX83: FALSE | AY83: FALSE | AZ83: FALSE | BA83: FALSE | BB83: 1.029141999 | BC83: 1.264421278 | BD83: 0.9478714207 | BE83: 1 | BF83: 1 | BG83: 1 | BH83: 0 | BI83: 0 | BJ83: 0 | BK83: 0 | BL83: 0 | BM83: 0 | BN83: 0 | BO83: 0 | BP83: 0 | BQ83: 0 | BR83: 0 | BS83: 0 | BT83: 0 | BU83: 0 | BW83: 2008-05-25
A84: 1991-06-03 | B84: 379.429993 | D84: FALSE | E84: FALSE | G84: FALSE | H84: 1 | I84: 1 | J84: 0 | K84: FALSE | L84: 0.7900965318 | N84: 0.7900965318 | P84: 0.7900965318 | Q84: 1.029141999 | R84: 1.264421278 | S84: 0.9478714207 | T84: 1 | U84: 1 | V84: 1 | W84: 3.2034 | X84: 4.723038 | Y84: 6.035063 | AC84: 13.862788 | AD84: 30.515285 | AE84: 25.072754 | AF84: 0 | AG84: 0 | AH84: 0 | AI84: 1 | AJ84: 1 | AK84: 1 | AL84: 1 | AM84: 1 | AN84: 1 | AO84: 13.862788 | AP84: 30.515285 | AQ84: 25.072754 | AR84: 0 | AS84: 0 | AT84: 0 | AU84: FALSE | AV84: FALSE | AW84: FALSE | AX84: FALSE | AY84: FALSE | AZ84: FALSE | BA84: FALSE | BB84: 1.029141999 | BC84: 1.264421278 | BD84: 0.9478714207 | BE84: 1 | BF84: 1 | BG84: 1 | BH84: 0 | BI84: 0 | BJ84: 0 | BK84: 0 | BL84: 0 | BM84: 0 | BN84: 0 | BO84: 0 | BP84: 0 | BQ84: 0 | BR84: 0 | BS84: 0 | BT84: 0 | BU84: 0 | BW84: 2008-06-01
A85: 1991-06-10 | B85: 382.290009 | D85: FALSE | E85: FALSE | G85: FALSE | H85: 1 | I85: 1 | J85: 0 | K85: FALSE | L85: 0.7900965318 | N85: 0.7900965318 | P85: 0.7900965318 | Q85: 1.029141999 | R85: 1.264421278 | S85: 0.9478714207 | T85: 1 | U85: 1 | V85: 1 | W85: 3.088993 | X85: 4.946763 | Y85: 6.190804 | AC85: 13.862788 | AD85: 30.515285 | AE85: 25.072754 | AF85: 0 | AG85: 0 | AH85: 0 | AI85: 1 | AJ85: 1 | AK85: 1 | AL85: 1 | AM85: 1 | AN85: 1 | AO85: 13.862788 | AP85: 30.515285 | AQ85: 25.072754 | AR85: 0 | AS85: 0 | AT85: 0 | AU85: FALSE | AV85: FALSE | AW85: FALSE | AX85: FALSE | AY85: FALSE | AZ85: FALSE | BA85: FALSE | BB85: 1.029141999 | BC85: 1.264421278 | BD85: 0.9478714207 | BE85: 1 | BF85: 1 | BG85: 1 | BH85: 0 | BI85: 0 | BJ85: 0 | BK85: 0 | BL85: 0 | BM85: 0 | BN85: 0 | BO85: 0 | BP85: 0 | BQ85: 0 | BR85: 0 | BS85: 0 | BT85: 0 | BU85: 0 | BW85: 2008-06-08
A86: 1991-06-17 | B86: 377.75 | D86: FALSE | E86: FALSE | G86: FALSE | H86: 1 | I86: 1 | J86: 0 | K86: FALSE | L86: 0.7900965318 | N86: 0.7900965318 | P86: 0.7900965318 | Q86: 1.029141999 | R86: 1.264421278 | S86: 0.9478714207 | T86: 1 | U86: 1 | V86: 1 | W86: 2.951704 | X86: 4.872188 | Y86: 6.151868 | AC86: 13.862788 | AD86: 30.515285 | AE86: 25.072754 | AF86: 0 | AG86: 0 | AH86: 0 | AI86: 1 | AJ86: 1 | AK86: 1 | AL86: 1 | AM86: 1 | AN86: 1 | AO86: 13.862788 | AP86: 30.515285 | AQ86: 25.072754 | AR86: 0 | AS86: 0 | AT86: 0 | AU86: FALSE | AV86: FALSE | AW86: FALSE | AX86: FALSE | AY86: FALSE | AZ86: FALSE | BA86: FALSE | BB86: 1.029141999 | BC86: 1.264421278 | BD86: 0.9478714207 | BE86: 1 | BF86: 1 | BG86: 1 | BH86: 0 | BI86: 0 | BJ86: 0 | BK86: 0 | BL86: 0 | BM86: 0 | BN86: 0 | BO86: 0 | BP86: 0 | BQ86: 0 | BR86: 0 | BS86: 0 | BT86: 0 | BU86: 0 | BW86: 2008-06-15
A87: 1991-06-24 | B87: 371.160004 | D87: FALSE | E87: FALSE | G87: FALSE | H87: 1 | I87: 1 | J87: 0 | K87: FALSE | L87: 0.7900965318 | N87: 0.7900965318 | P87: 0.7900965318 | Q87: 1.029141999 | R87: 1.264421278 | S87: 0.9478714207 | T87: 1 | U87: 1 | V87: 1 | W87: 2.917381 | X87: 4.897047 | Y87: 6.05453 | AC87: 13.862788 | AD87: 30.515285 | AE87: 25.072754 | AF87: 0 | AG87: 0 | AH87: 0 | AI87: 1 | AJ87: 1 | AK87: 1 | AL87: 1 | AM87: 1 | AN87: 1 | AO87: 13.862788 | AP87: 30.515285 | AQ87: 25.072754 | AR87: 0 | AS87: 0 | AT87: 0 | AU87: FALSE | AV87: FALSE | AW87: FALSE | AX87: FALSE | AY87: FALSE | AZ87: FALSE | BA87: FALSE | BB87: 1.029141999 | BC87: 1.264421278 | BD87: 0.9478714207 | BE87: 1 | BF87: 1 | BG87: 1 | BH87: 0 | BI87: 0 | BJ87: 0 | BK87: 0 | BL87: 0 | BM87: 0 | BN87: 0 | BO87: 0 | BP87: 0 | BQ87: 0 | BR87: 0 | BS87: 0 | BT87: 0 | BU87: 0 | BW87: 2008-06-22
A88: 1991-07-01 | B88: 374.079987 | D88: FALSE | E88: FALSE | G88: FALSE | H88: 1 | I88: 1 | J88: 0 | K88: FALSE | L88: 0.7900965318 | N88: 0.7900965318 | P88: 0.7900965318 | Q88: 1.029141999 | R88: 1.264421278 | S88: 0.9478714207 | T88: 1 | U88: 1 | V88: 1 | W88: 2.951704 | X88: 4.872188 | Y88: 6.298553 | AC88: 13.862788 | AD88: 30.515285 | AE88: 25.072754 | AF88: 0 | AG88: 0 | AH88: 0 | AI88: 1 | AJ88: 1 | AK88: 1 | AL88: 1 | AM88: 1 | AN88: 1 | AO88: 13.862788 | AP88: 30.515285 | AQ88: 25.072754 | AR88: 0 | AS88: 0 | AT88: 0 | AU88: FALSE | AV88: FALSE | AW88: FALSE | AX88: FALSE | AY88: FALSE | AZ88: FALSE | BA88: FALSE | BB88: 1.029141999 | BC88: 1.264421278 | BD88: 0.9478714207 | BE88: 1 | BF88: 1 | BG88: 1 | BH88: 0 | BI88: 0 | BJ88: 0 | BK88: 0 | BL88: 0 | BM88: 0 | BN88: 0 | BO88: 0 | BP88: 0 | BQ88: 0 | BR88: 0 | BS88: 0 | BT88: 0 | BU88: 0 | BW88: 2008-06-29
A89: 1991-07-08 | B89: 380.25 | D89: FALSE | E89: FALSE | G89: FALSE | H89: 1 | I89: 1 | J89: 0 | K89: FALSE | L89: 0.7900965318 | N89: 0.7900965318 | P89: 0.7900965318 | Q89: 1.029141999 | R89: 1.264421278 | S89: 0.9478714207 | T89: 1 | U89: 1 | V89: 1 | W89: 3.04323 | X89: 4.921907 | Y89: 6.338166 | AC89: 13.862788 | AD89: 30.515285 | AE89: 25.072754 | AF89: 0 | AG89: 0 | AH89: 0 | AI89: 1 | AJ89: 1 | AK89: 1 | AL89: 1 | AM89: 1 | AN89: 1 | AO89: 13.862788 | AP89: 30.515285 | AQ89: 25.072754 | AR89: 0 | AS89: 0 | AT89: 0 | AU89: FALSE | AV89: FALSE | AW89: FALSE | AX89: FALSE | AY89: FALSE | AZ89: FALSE | BA89: FALSE | BB89: 1.029141999 | BC89: 1.264421278 | BD89: 0.9478714207 | BE89: 1 | BF89: 1 | BG89: 1 | BH89: 0 | BI89: 0 | BJ89: 0 | BK89: 0 | BL89: 0 | BM89: 0 | BN89: 0 | BO89: 0 | BP89: 0 | BQ89: 0 | BR89: 0 | BS89: 0 | BT89: 0 | BU89: 0 | BW89: 2008-07-06
A90: 1991-07-15 | B90: 384.220001 | D90: FALSE | E90: FALSE | G90: FALSE | H90: 1 | I90: 1 | J90: 0 | K90: FALSE | L90: 0.7900965318 | N90: 0.7900965318 | P90: 0.7900965318 | Q90: 1.029141999 | R90: 1.264421278 | S90: 0.9478714207 | T90: 1 | U90: 1 | V90: 1 | W90: 3.054669 | X90: 4.897047 | Y90: 6.357975 | AC90: 13.862788 | AD90: 30.515285 | AE90: 25.072754 | AF90: 0 | AG90: 0 | AH90: 0 | AI90: 1 | AJ90: 1 | AK90: 1 | AL90: 1 | AM90: 1 | AN90: 1 | AO90: 13.862788 | AP90: 30.515285 | AQ90: 25.072754 | AR90: 0 | AS90: 0 | AT90: 0 | AU90: FALSE | AV90: FALSE | AW90: FALSE | AX90: FALSE | AY90: FALSE | AZ90: FALSE | BA90: FALSE | BB90: 1.029141999 | BC90: 1.264421278 | BD90: 0.9478714207 | BE90: 1 | BF90: 1 | BG90: 1 | BH90: 0 | BI90: 0 | BJ90: 0 | BK90: 0 | BL90: 0 | BM90: 0 | BN90: 0 | BO90: 0 | BP90: 0 | BQ90: 0 | BR90: 0 | BS90: 0 | BT90: 0 | BU90: 0 | BW90: 2008-07-13
A91: 1991-07-22 | B91: 380.929993 | D91: FALSE | E91: FALSE | G91: FALSE | H91: 1 | I91: 1 | J91: 0 | K91: FALSE | L91: 0.7900965318 | N91: 0.7900965318 | P91: 0.7900965318 | Q91: 1.029141999 | R91: 1.264421278 | S91: 0.9478714207 | T91: 1 | U91: 1 | V91: 1 | W91: 3.04323 | X91: 4.996479 | Y91: 6.476816 | AC91: 13.862788 | AD91: 30.515285 | AE91: 25.072754 | AF91: 0 | AG91: 0 | AH91: 0 | AI91: 1 | AJ91: 1 | AK91: 1 | AL91: 1 | AM91: 1 | AN91: 1 | AO91: 13.862788 | AP91: 30.515285 | AQ91: 25.072754 | AR91: 0 | AS91: 0 | AT91: 0 | AU91: FALSE | AV91: FALSE | AW91: FALSE | AX91: FALSE | AY91: FALSE | AZ91: FALSE | BA91: FALSE | BB91: 1.029141999 | BC91: 1.264421278 | BD91: 0.9478714207 | BE91: 1 | BF91: 1 | BG91: 1 | BH91: 0 | BI91: 0 | BJ91: 0 | BK91: 0 | BL91: 0 | BM91: 0 | BN91: 0 | BO91: 0 | BP91: 0 | BQ91: 0 | BR91: 0 | BS91: 0 | BT91: 0 | BU91: 0 | BW91: 2008-07-20
A92: 1991-07-29 | B92: 387.179993 | D92: FALSE | E92: FALSE | G92: FALSE | H92: 1 | I92: 1 | J92: 0 | K92: FALSE | L92: 0.7900965318 | N92: 0.7900965318 | P92: 0.7900965318 | Q92: 1.029141999 | R92: 1.264421278 | S92: 0.9478714207 | T92: 1 | U92: 1 | V92: 1 | W92: 3.123315 | X92: 5.071057 | Y92: 6.655076 | AC92: 13.862788 | AD92: 30.515285 | AE92: 25.072754 | AF92: 0 | AG92: 0 | AH92: 0 | AI92: 1 | AJ92: 1 | AK92: 1 | AL92: 1 | AM92: 1 | AN92: 1 | AO92: 13.862788 | AP92: 30.515285 | AQ92: 25.072754 | AR92: 0 | AS92: 0 | AT92: 0 | AU92: FALSE | AV92: FALSE | AW92: FALSE | AX92: FALSE | AY92: FALSE | AZ92: FALSE | BA92: FALSE | BB92: 1.029141999 | BC92: 1.264421278 | BD92: 0.9478714207 | BE92: 1 | BF92: 1 | BG92: 1 | BH92: 0 | BI92: 0 | BJ92: 0 | BK92: 0 | BL92: 0 | BM92: 0 | BN92: 0 | BO92: 0 | BP92: 0 | BQ92: 0 | BR92: 0 | BS92: 0 | BT92: 0 | BU92: 0 | BW92: 2008-07-27
A93: 1991-08-05 | B93: 387.119995 | D93: FALSE | E93: FALSE | G93: FALSE | H93: 1 | I93: 1 | J93: 0 | K93: FALSE | L93: 0.7900965318 | N93: 0.7900965318 | P93: 0.7900965318 | Q93: 1.029141999 | R93: 1.264421278 | S93: 0.9478714207 | T93: 1 | U93: 1 | V93: 1 | W93: 3.123315 | X93: 5.120773 | Y93: 6.793722 | AC93: 13.862788 | AD93: 30.515285 | AE93: 25.072754 | AF93: 0 | AG93: 0 | AH93: 0 | AI93: 1 | AJ93: 1 | AK93: 1 | AL93: 1 | AM93: 1 | AN93: 1 | AO93: 13.862788 | AP93: 30.515285 | AQ93: 25.072754 | AR93: 0 | AS93: 0 | AT93: 0 | AU93: FALSE | AV93: FALSE | AW93: FALSE | AX93: FALSE | AY93: FALSE | AZ93: FALSE | BA93: FALSE | BB93: 1.029141999 | BC93: 1.264421278 | BD93: 0.9478714207 | BE93: 1 | BF93: 1 | BG93: 1 | BH93: 0 | BI93: 0 | BJ93: 0 | BK93: 0 | BL93: 0 | BM93: 0 | BN93: 0 | BO93: 0 | BP93: 0 | BQ93: 0 | BR93: 0 | BS93: 0 | BT93: 0 | BU93: 0 | BW93: 2008-08-03
A94: 1991-08-12 | B94: 385.579987 | D94: FALSE | E94: FALSE | G94: FALSE | H94: 1 | I94: 1 | J94: 0 | K94: FALSE | L94: 0.7900965318 | N94: 0.7900965318 | P94: 0.7900965318 | Q94: 1.029141999 | R94: 1.264421278 | S94: 0.9478714207 | T94: 1 | U94: 1 | V94: 1 | W94: 3.151033 | X94: 5.061277 | Y94: 6.773916 | AC94: 13.862788 | AD94: 30.515285 | AE94: 25.072754 | AF94: 0 | AG94: 0 | AH94: 0 | AI94: 1 | AJ94: 1 | AK94: 1 | AL94: 1 | AM94: 1 | AN94: 1 | AO94: 13.862788 | AP94: 30.515285 | AQ94: 25.072754 | AR94: 0 | AS94: 0 | AT94: 0 | AU94: FALSE | AV94: FALSE | AW94: FALSE | AX94: FALSE | AY94: FALSE | AZ94: FALSE | BA94: FALSE | BB94: 1.029141999 | BC94: 1.264421278 | BD94: 0.9478714207 | BE94: 1 | BF94: 1 | BG94: 1 | BH94: 0 | BI94: 0 | BJ94: 0 | BK94: 0 | BL94: 0 | BM94: 0 | BN94: 0 | BO94: 0 | BP94: 0 | BQ94: 0 | BR94: 0 | BS94: 0 | BT94: 0 | BU94: 0 | BW94: 2008-08-10
A95: 1991-08-19 | B95: 394.170013 | D95: FALSE | E95: FALSE | G95: FALSE | H95: 1 | I95: 1 | J95: 0 | K95: FALSE | L95: 0.7900965318 | N95: 0.7900965318 | P95: 0.7900965318 | Q95: 1.029141999 | R95: 1.264421278 | S95: 0.9478714207 | T95: 1 | U95: 1 | V95: 1 | W95: 3.162662 | X95: 5.213119 | Y95: 6.853142 | AC95: 13.862788 | AD95: 30.515285 | AE95: 25.072754 | AF95: 0 | AG95: 0 | AH95: 0 | AI95: 1 | AJ95: 1 | AK95: 1 | AL95: 1 | AM95: 1 | AN95: 1 | AO95: 13.862788 | AP95: 30.515285 | AQ95: 25.072754 | AR95: 0 | AS95: 0 | AT95: 0 | AU95: FALSE | AV95: FALSE | AW95: FALSE | AX95: FALSE | AY95: FALSE | AZ95: FALSE | BA95: FALSE | BB95: 1.029141999 | BC95: 1.264421278 | BD95: 0.9478714207 | BE95: 1 | BF95: 1 | BG95: 1 | BH95: 0 | BI95: 0 | BJ95: 0 | BK95: 0 | BL95: 0 | BM95: 0 | BN95: 0 | BO95: 0 | BP95: 0 | BQ95: 0 | BR95: 0 | BS95: 0 | BT95: 0 | BU95: 0 | BW95: 2008-08-17
A96: 1991-08-26 | B96: 395.429993 | D96: FALSE | E96: FALSE | G96: FALSE | H96: 1 | I96: 1 | J96: 0 | K96: FALSE | L96: 0.7900965318 | N96: 0.7900965318 | P96: 0.7900965318 | Q96: 1.029141999 | R96: 1.264421278 | S96: 0.9478714207 | T96: 1 | U96: 1 | V96: 1 | W96: 3.151033 | X96: 5.137199 | Y96: 6.912563 | AC96: 13.862788 | AD96: 30.515285 | AE96: 25.072754 | AF96: 0 | AG96: 0 | AH96: 0 | AI96: 1 | AJ96: 1 | AK96: 1 | AL96: 1 | AM96: 1 | AN96: 1 | AO96: 13.862788 | AP96: 30.515285 | AQ96: 25.072754 | AR96: 0 | AS96: 0 | AT96: 0 | AU96: FALSE | AV96: FALSE | AW96: FALSE | AX96: FALSE | AY96: FALSE | AZ96: FALSE | BA96: FALSE | BB96: 1.029141999 | BC96: 1.264421278 | BD96: 0.9478714207 | BE96: 1 | BF96: 1 | BG96: 1 | BH96: 0 | BI96: 0 | BJ96: 0 | BK96: 0 | BL96: 0 | BM96: 0 | BN96: 0 | BO96: 0 | BP96: 0 | BQ96: 0 | BR96: 0 | BS96: 0 | BT96: 0 | BU96: 0 | BW96: 2008-08-24
A97: 1991-09-02 | B97: 389.100006 | D97: FALSE | E97: FALSE | G97: FALSE | H97: 1 | I97: 1 | J97: 0 | K97: FALSE | L97: 0.7900965318 | N97: 0.7900965318 | P97: 0.7900965318 | Q97: 1.029141999 | R97: 1.264421278 | S97: 0.9478714207 | T97: 1 | U97: 1 | V97: 1 | W97: 3.162662 | X97: 4.985361 | Y97: 6.872945 | AC97: 13.862788 | AD97: 30.515285 | AE97: 25.072754 | AF97: 0 | AG97: 0 | AH97: 0 | AI97: 1 | AJ97: 1 | AK97: 1 | AL97: 1 | AM97: 1 | AN97: 1 | AO97: 13.862788 | AP97: 30.515285 | AQ97: 25.072754 | AR97: 0 | AS97: 0 | AT97: 0 | AU97: FALSE | AV97: FALSE | AW97: FALSE | AX97: FALSE | AY97: FALSE | AZ97: FALSE | BA97: FALSE | BB97: 1.029141999 | BC97: 1.264421278 | BD97: 0.9478714207 | BE97: 1 | BF97: 1 | BG97: 1 | BH97: 0 | BI97: 0 | BJ97: 0 | BK97: 0 | BL97: 0 | BM97: 0 | BN97: 0 | BO97: 0 | BP97: 0 | BQ97: 0 | BR97: 0 | BS97: 0 | BT97: 0 | BU97: 0 | BW97: 2008-08-31
A98: 1991-09-09 | B98: 383.589996 | D98: FALSE | E98: FALSE | G98: FALSE | H98: 1 | I98: 1 | J98: 0 | K98: FALSE | L98: 0.7900965318 | N98: 0.7900965318 | P98: 0.7900965318 | Q98: 1.029141999 | R98: 1.264421278 | S98: 0.9478714207 | T98: 1 | U98: 1 | V98: 1 | W98: 3.197543 | X98: 5.010667 | Y98: 6.853142 | AC98: 13.862788 | AD98: 30.515285 | AE98: 25.072754 | AF98: 0 | AG98: 0 | AH98: 0 | AI98: 1 | AJ98: 1 | AK98: 1 | AL98: 1 | AM98: 1 | AN98: 1 | AO98: 13.862788 | AP98: 30.515285 | AQ98: 25.072754 | AR98: 0 | AS98: 0 | AT98: 0 | AU98: FALSE | AV98: FALSE | AW98: FALSE | AX98: FALSE | AY98: FALSE | AZ98: FALSE | BA98: FALSE | BB98: 1.029141999 | BC98: 1.264421278 | BD98: 0.9478714207 | BE98: 1 | BF98: 1 | BG98: 1 | BH98: 0 | BI98: 0 | BJ98: 0 | BK98: 0 | BL98: 0 | BM98: 0 | BN98: 0 | BO98: 0 | BP98: 0 | BQ98: 0 | BR98: 0 | BS98: 0 | BT98: 0 | BU98: 0 | BW98: 2008-09-07
A99: 1991-09-16 | B99: 387.920013 | D99: FALSE | E99: FALSE | G99: FALSE | H99: 1 | I99: 1 | J99: 0 | K99: FALSE | L99: 0.7900965318 | N99: 0.7900965318 | P99: 0.7900965318 | Q99: 1.029141999 | R99: 1.264421278 | S99: 0.9478714207 | T99: 1 | U99: 1 | V99: 1 | W99: 3.197543 | X99: 5.010667 | Y99: 7.011596 | AC99: 13.862788 | AD99: 30.515285 | AE99: 25.072754 | AF99: 0 | AG99: 0 | AH99: 0 | AI99: 1 | AJ99: 1 | AK99: 1 | AL99: 1 | AM99: 1 | AN99: 1 | AO99: 13.862788 | AP99: 30.515285 | AQ99: 25.072754 | AR99: 0 | AS99: 0 | AT99: 0 | AU99: FALSE | AV99: FALSE | AW99: FALSE | AX99: FALSE | AY99: FALSE | AZ99: FALSE | BA99: FALSE | BB99: 1.029141999 | BC99: 1.264421278 | BD99: 0.9478714207 | BE99: 1 | BF99: 1 | BG99: 1 | BH99: 0 | BI99: 0 | BJ99: 0 | BK99: 0 | BL99: 0 | BM99: 0 | BN99: 0 | BO99: 0 | BP99: 0 | BQ99: 0 | BR99: 0 | BS99: 0 | BT99: 0 | BU99: 0 | BW99: 2008-09-14
A100: 1991-09-23 | B100: 385.899994 | D100: FALSE | E100: FALSE | G100: FALSE | H100: 1 | I100: 1 | J100: 0 | K100: FALSE | L100: 0.7900965318 | N100: 0.7900965318 | P100: 0.7900965318 | Q100: 1.029141999 | R100: 1.264421278 | S100: 0.9478714207 | T100: 1 | U100: 1 | V100: 1 | W100: 3.278935 | X100: 5.035968 | Y100: 7.189859 | AC100: 13.862788 | AD100: 30.515285 | AE100: 25.072754 | AF100: 0 | AG100: 0 | AH100: 0 | AI100: 1 | AJ100: 1 | AK100: 1 | AL100: 1 | AM100: 1 | AN100: 1 | AO100: 13.862788 | AP100: 30.515285 | AQ100: 25.072754 | AR100: 0 | AS100: 0 | AT100: 0 | AU100: FALSE | AV100: FALSE | AW100: FALSE | AX100: FALSE | AY100: FALSE | AZ100: FALSE | BA100: FALSE | BB100: 1.029141999 | BC100: 1.264421278 | BD100: 0.9478714207 | BE100: 1 | BF100: 1 | BG100: 1 | BH100: 0 | BI100: 0 | BJ100: 0 | BK100: 0 | BL100: 0 | BM100: 0 | BN100: 0 | BO100: 0 | BP100: 0 | BQ100: 0 | BR100: 0 | BS100: 0 | BT100: 0 | BU100: 0 | BW100: 2008-09-21
A101: 1991-09-30 | B101: 381.25 | D101: FALSE | E101: FALSE | G101: FALSE | H101: 1 | I101: 1 | J101: 0 | K101: FALSE | L101: 0.7900965318 | N101: 0.7900965318 | P101: 0.7900965318 | Q101: 1.029141999 | R101: 1.264421278 | S101: 0.9478714207 | T101: 1 | U101: 1 | V101: 1 | W101: 3.325444 | X101: 5.162509 | Y101: 7.011596 | AC101: 13.862788 | AD101: 30.515285 | AE101: 25.072754 | AF101: 0 | AG101: 0 | AH101: 0 | AI101: 1 | AJ101: 1 | AK101: 1 | AL101: 1 | AM101: 1 | AN101: 1 | AO101: 13.862788 | AP101: 30.515285 | AQ101: 25.072754 | AR101: 0 | AS101: 0 | AT101: 0 | AU101: FALSE | AV101: FALSE | AW101: FALSE | AX101: FALSE | AY101: FALSE | AZ101: FALSE | BA101: FALSE | BB101: 1.029141999 | BC101: 1.264421278 | BD101: 0.9478714207 | BE101: 1 | BF101: 1 | BG101: 1 | BH101: 0 | BI101: 0 | BJ101: 0 | BK101: 0 | BL101: 0 | BM101: 0 | BN101: 0 | BO101: 0 | BP101: 0 | BQ101: 0 | BR101: 0 | BS101: 0 | BT101: 0 | BU101: 0 | BW101: 2008-09-28
